Workbook

Sheet START
A1: =muni -> 

Sheet Instructions
G1: ='Lookup and lists'!$B$26 -> 141 | H1: =INDEX('Lookup and lists'!$B$28:$B$285,G1) -> LIM353 Molemole
D2: 2020
X4: Yes
X5: No
W7: Type of Entities Range: | X7: Parent Municipality
X8: Consolidated Information
W10: Date linked | X10: 15
W11: Date | X11: =VLOOKUP(X10,W39:X55,2) -> Q3 Third Quarter | Y11: 2013-08-01
W19: MTREF Range: | X19: 2014
X20: 2015
X21: 2016
X22: 2017
X23: 2018
X24: 2019
X25: 2020
X26: 2021
X27: 2022
X28: 2023
X29: 2024
X30: 2025
X31: 2026
X32: 2027
X33: 2028
W34: MTREF Linked:
W35: MTREF: | X35: 12
X36: =INDEX(X19:X32,X35,1) -> 2025
W37: Fin Year:
X38: =MTREF&"/"&RIGHT(MTREF,2)+1 -> 2025/26
V39: Date/type of report | W39: 1 | X39: M01 July
W40: 2 | X40: M02 August
W41: 3 | X41: M03 September
W42: 4 | X42: M04 October
W43: 5 | X43: M05 November
W44: 6 | X44: M06 December
W45: 7 | X45: M07 January
W46: 8 | X46: M08 February
W47: 9 | X47: M09 March
W48: 10 | X48: M10 April
W49: 11 | X49: M11 May
W50: 12 | X50: M12 June
W51: 13 | X51: Q1 First Quarter
W52: 14 | X52: Q2 Second Quarter
W53: 15 | X53: Q3 Third Quarter
W54: 16 | X54: Q4 Fourth Quarter
W55: 17 | X55: Mid-Year Assessment

Sheet Template names (hidden)
A1: Common sheet headings
A2: Head1 | B2: =HLOOKUP(MTREF,Headings,2) -> 2024/25 | C2: Prior year -1
A3: Head2 | B3: =HLOOKUP(MTREF,Headings,5) -> Budget Year 2025/26 | C3: Year of approved budget
A4: Head2A | B4: =HLOOKUP(MTREF,Headings,4) -> 2025/26 | C4: Approved budget year
A5: Head3 | B5: =HLOOKUP(MTREF,Headings,3) -> 2025/26 Medium Term Revenue & Expenditure Framework | C5: MTREF header name
A6: Head5 | B6: Audited Outcome
A7: Head5A | B7: Outcome
A8: Head5B | B8: Pre-audit outcome
A9: Head6 | B9: Original Budget
A10: Head7 | B10: Adjusted Budget
A11: Head8 | B11: Full Year Forecast
A12: Head9 | B12: =HLOOKUP(MTREF,Headings,5) -> Budget Year 2025/26 | C12: 1st year of MTREF | D12: Year1
A13: Head10 | B13: =HLOOKUP(MTREF,Headings,6) -> Budget Year +1 2026/27 | C13: 2nd year of MTREF | D13: Year2
A14: Head11 | B14: =HLOOKUP(MTREF,Headings,7) -> Budget Year +2 2027/28 | C14: 3rd year of MTREF | D14: Year3
A15: Head12 | B15: Forecast 2010/11 | D15: Year4
A16: Head13 | B16: Forecast 2011/12 | D16: Year5
A17: Head14 | B17: Forecast 2012/13 | D17: Year6
A18: Head15 | B18: Forecast 2013/14 | D18: Year7
A19: Head16 | B19: Forecast 2014/15 | D19: Year8
A20: Head17 | B20: Forecast 2015/16 | D20: Year9
A21: Head18 | B21: Forecast 2016/17 | D21: Year10
A22: Head19 | B22: Forecast 2017/18 | D22: Year11
A23: Head20 | B23: Forecast 2018/19 | D23: Year12
A24: Head21 | B24: Forecast 2019/20 | D24: Year13
A25: Head22 | B25: Forecast 2020/21 | D25: Year14
A26: Head23 | B26: Forecast 2021/22 | D26: Year15
A27: Head24 | B27: Description | D27: Desc
A28: Head25 | B28: Schedule of funding diligence | D28: fdil
A29: Head26 | B29: Vote Description | D29: VDesc
A30: Head27 | B30: Ref
A31: Head27a | B31: References
A32: Head28 | B32: Surplus/ (Deficit) for the year | D32: Result
A33: Head29 | B33: Annual target 2007/08
A34: Head30 | B34: Revised target 2007/08
A35: Head31 | B35: Quarter ended 30 September
A36: Head32 | B36: Quarter ended 31 December
A37: Head33 | B37: Quarter ended 31 March
A38: Head34 | B38: Quarter ended 30 June
A39: Head35 | B39: Variance explanation
A40: Head36 | B40: YTD Actual 31 Dec
A41: Head37 | B41: YTD Budget 31 Dec
A42: Head38 | B42: Monthly actual
A43: Head39 | B43: YearTD actual
A44: Head40 | B44: YearTD budget
A45: Head41 | B45: YTD variance
A46: Head42 | B46: Surplus/ (Deficit) for the yr/period
A47: Head43 | B47: =Head3&" Summary" -> 2025/26 Medium Term Revenue & Expenditure Framework Summary
A48: Head44 | B48: 1996 Census
A49: Head45 | B49: 2001 Census
A50: Head46 | B50: - Adjustments Budget - Month YYYY
A51: Head47 | B51: Previous target year to complete
A52: Head48 | B52: Present value
A53: Head49 | B53: Virement
A54: Head50 | B54: Other Adjusts.
A55: Head51 | B55: Accum. Funds
A56: Head52 | B56: Multi-year capital
A57: Head53 | B57: Unfore. Unavoid.
A58: Head54 | B58: Prior Adjusted
A59: Head55 | B59: Nat. or Prov. Govt
A60: Head56 | B60: Total Adjusts.
A61: Head57 | B61: =date -> Q3 Third Quarter
A62: Head58 | B62: Parent muni.
A63: Head59 | B63: Downward adjusts
A64: Head60 | B64: Month | C64: Report header part name | D64: =date -> Q3 Third Quarter
A65: SFPerf1 | B65: Budgeted Financial Performance
A66: SFPerf2 | B66: Forecast Financial Performance
A67: SFPos1 | B67: Budgeted Financial Position
A68: SFPos2 | B68: Forecast Financial Position
A69: Cash1 | B69: Budget Cash Flow
A70: Cash2 | B70: Forecast Cash Flow
A71: RandM | B71: Expenditure includes repairs & maintenance of R'000
A72: Standard nomenclature
A73: Muni | B73: ='Lookup and lists'!B27 -> 0
A74: Municipal Entities | B74: 2 | C74: Type of report: | D74: 1
A75: =IF((MuniEntities=1)*(MuniType=2),"YES","NO") -> NO | B75: Does this municipality have entities (consolidated budget and entity budgets required)? YES/NO
A76: s71 (Monthly Mayor report) schedules and charts
A77: S71sum | B77: =IF(Consolques="YES",E77,F77) -> Table C1 Monthly Budget Statement Summary | D77: Table C1 | E77: =D77&"Consolidated Monthly Budget Statement Summary" -> Table C1 Consolidated Monthly Budget Statement Summary | F77: =D77&"Monthly Budget Statement Summary" -> Table C1 Monthly Budget Statement Summary
A78: S71C | B78: Table C3 Monthly Budget Statement - Financial Performance (revenue and expenditure by municipal vote) | D78: Table C3 | E78: =D78&"Consolidated Monthly Budget Statement - Financial Performance (revenue and expenditure by municipal vote) " -> Table C3 Consolidated Monthly Budget Statement - Financial Performance (revenue and expenditure by municipal vote) | F78: =D78&"Monthly Budget Statement - Financial Performance (revenue and expenditure by municipal vote)" -> Table C3 Monthly Budget Statement - Financial Performance (revenue and expenditure by municipal vote)
A79: S71A | B79: =IF(Consolques="YES",E79,F79) -> Table C2 Monthly Budget Statement - Financial Performance (functional classification) | D79: Table C2 | E79: =D79&"Consolidated Monthly Budget Statement - Financial Performance (functional classification) " -> Table C2 Consolidated Monthly Budget Statement - Financial Performance (functional classification) | F79: =D79&"Monthly Budget Statement - Financial Performance (functional classification)" -> Table C2 Monthly Budget Statement - Financial Performance (functional classification)
A80: S71B | B80: =IF(Consolques="YES",E80,F80) -> Table C4 Monthly Budget Statement - Financial Performance (revenue and expenditure) | D80: Table C4 | E80: =D80&"Consolidated Monthly Budget Statement - Financial Performance (revenue and expenditure) " -> Table C4 Consolidated Monthly Budget Statement - Financial Performance (revenue and expenditure) | F80: =D80&"Monthly Budget Statement - Financial Performance (revenue and expenditure)" -> Table C4 Monthly Budget Statement - Financial Performance (revenue and expenditure)
A81: S71D | B81: =IF(Consolques="YES",E81,F81) -> Table C5 Monthly Budget Statement - Capital Expenditure (municipal vote, functional classification and funding) | D81: Table C5 | E81: =D81&"Consolidated Monthly Budget Statement - Capital Expenditure (municipal vote, functional classification and funding " -> Table C5 Consolidated Monthly Budget Statement - Capital Expenditure (municipal vote, functional classification and funding | F81: =D81&"Monthly Budget Statement - Capital Expenditure (municipal vote, functional classification and funding)" -> Table C5 Monthly Budget Statement - Capital Expenditure (municipal vote, functional classification and funding)
A82: S71E | B82: Table C6 Monthly Budget Statement - Financial Position | D82: Table C6 | E82: =D82&"Consolidated Monthly Budget Statement - Financial Position " -> Table C6 Consolidated Monthly Budget Statement - Financial Position | F82: =D82&"Monthly Budget Statement - Financial Position" -> Table C6 Monthly Budget Statement - Financial Position
A83: S71F | B83: Table C7 Monthly Budget Statement - Cash Flow | D83: Table C7 | E83: =D83&"Consolidated Monthly Budget Statement - Cash Flow " -> Table C7 Consolidated Monthly Budget Statement - Cash Flow | F83: =D83&"Monthly Budget Statement - Cash Flow " -> Table C7 Monthly Budget Statement - Cash Flow
A84: S71G | B84: =D84&"Material variance explanations " -> Supporting Table SC1 Material variance explanations | D84: Supporting Table SC1
A85: S71H | B85: =D85&"Monthly Budget Statement - performance indicators " -> Supporting Table SC2 Monthly Budget Statement - performance indicators | D85: Supporting Table SC2
A86: S71I | B86: =D86&"Monthly Budget Statement - aged debtors" -> Supporting Table SC3 Monthly Budget Statement - aged debtors | D86: Supporting Table SC3
A87: S71J | B87: =D87&"Monthly Budget Statement - aged creditors " -> Supporting Table SC4 Monthly Budget Statement - aged creditors | D87: Supporting Table SC4
A88: S71K | B88: =D88&"Monthly Budget Statement - investment portfolio " -> Supporting Table SC5 Monthly Budget Statement - investment portfolio | D88: Supporting Table SC5
A89: S71L | B89: =D89&"Monthly Budget Statement - transfers and grant receipts " -> Supporting Table SC6 Monthly Budget Statement - transfers and grant receipts | D89: Supporting Table SC6
A90: S71M | B90: =D90&" Monthly Budget Statement - transfers and grant expenditure " -> Supporting Table SC7(1) Monthly Budget Statement - transfers and grant expenditure | D90: Supporting Table SC7(1)
A91: S71N | B91: =D91&"Monthly Budget Statement - councillor and staff benefits " -> Supporting Table SC8 Monthly Budget Statement - councillor and staff benefits | D91: Supporting Table SC8
A92: S71O | B92: =D92&"Monthly Budget Statement - actuals and revised targets for cash receipts" -> Supporting Table SC9 Monthly Budget Statement - actuals and revised targets for cash receipts | D92: Supporting Table SC9
A93: S71P | B93: =IF(Consolques="YES",E93,F93) -> NOT REQUIRED - municipality does not have entities or this is the parent municipality's budget | D93: Supporting Table SC10 | E93: =D93&"Monthly Budget Statement - Parent Municipality Financial Performance (revenue and expenditure) " -> Supporting Table SC10 Monthly Budget Statement - Parent Municipality Financial Performance (revenue and expenditure) | F93: NOT REQUIRED - municipality does not have entities or this is the parent municipality's budget
A94: S71Q | B94: NOT REQUIRED - municipality does not have entities or this is the parent municipality's budget | D94: Supporting Table SC11 | E94: =D94&"Monthly Budget Statement - summary of municipal entities" -> Supporting Table SC11 Monthly Budget Statement - summary of municipal entities | F94: NOT REQUIRED - municipality does not have entities or this is the parent municipality's budget
A95: S71R | B95: Supporting Table SC12 Monthly Budget Statement - capital expenditure trend | D95: Supporting Table SC12 | E95: =D95&"Consolidated Monthly Budget Statement - capital expenditure trend " -> Supporting Table SC12 Consolidated Monthly Budget Statement - capital expenditure trend | F95: =D95&"Monthly Budget Statement - capital expenditure trend" -> Supporting Table SC12 Monthly Budget Statement - capital expenditure trend
A96: S71Sa | B96: Supporting Table SC13a Monthly Budget Statement - capital expenditure on new assets by asset class | D96: Supporting Table SC13a | E96: =D96&"Consolidated Monthly Budget Statement - capital expenditure on new assets by asset class" -> Supporting Table SC13a Consolidated Monthly Budget Statement - capital expenditure on new assets by asset class | F96: =D96&"Monthly Budget Statement - capital expenditure on new assets by asset class" -> Supporting Table SC13a Monthly Budget Statement - capital expenditure on new assets by asset class
A97: S71Sb | B97: Supporting Table SC13b Monthly Budget Statement - capital expenditure on renewal of existing assets by asset class | D97: Supporting Table SC13b | E97: =D97&"Consolidated Monthly Budget Statement - capital expenditure on renewal of existing assets by asset class" -> Supporting Table SC13b Consolidated Monthly Budget Statement - capital expenditure on renewal of existing assets by asset class | F97: =D97&"Monthly Budget Statement - capital expenditure on renewal of existing assets by asset class" -> Supporting Table SC13b Monthly Budget Statement - capital expenditure on renewal of existing assets by asset class
A98: S71Sc | B98: Supporting Table SC13c Monthly Budget Statement - expenditure on repairs and maintenance by asset class | D98: Supporting Table SC13c | E98: =D98&"Consolidated Monthly Budget Statement - expenditure on repairs and maintenance by asset class" -> Supporting Table SC13c Consolidated Monthly Budget Statement - expenditure on repairs and maintenance by asset class | F98: =D98&"Monthly Budget Statement - expenditure on repairs and maintenance by asset class" -> Supporting Table SC13c Monthly Budget Statement - expenditure on repairs and maintenance by asset class
A99: S71Sd | B99: Supporting Table SC13d Monthly Budget Statement - depreciation by asset class | D99: Supporting Table SC13d | E99: =D99&"Consolidated Monthly Budget Statement - depreciation by asset class" -> Supporting Table SC13d Consolidated Monthly Budget Statement - depreciation by asset class | F99: =D99&"Monthly Budget Statement - depreciation by asset class" -> Supporting Table SC13d Monthly Budget Statement - depreciation by asset class
A100: S71Se | B100: =IF(Consolques="YES",E100,F100) -> Supporting Table SC13e Monthly Budget Statement - capital expenditure on upgrading of existing assets by asset class | D100: Supporting Table SC13e | E100: =D100&"Consolidated Monthly Budget Statement - capital expenditure on upgrading of existing assets by asset class" -> Supporting Table SC13e Consolidated Monthly Budget Statement - capital expenditure on upgrading of existing assets by asset class | F100: =D100&"Monthly Budget Statement - capital expenditure on upgrading of existing assets by asset class" -> Supporting Table SC13e Monthly Budget Statement - capital expenditure on upgrading of existing assets by asset class
B101: s71 charts listing
B102: =D102&Head2A&" Capital Expenditure Monthly Trend: actual v target" -> Chart C1 2025/26 Capital Expenditure Monthly Trend: actual v target | D102: Chart C1
B103: =D103&Head2A&" Capital Expenditure: YTD actual v YTD target" -> Chart C2 2025/26 Capital Expenditure: YTD actual v YTD target | D103: Chart C2
B104: =D104&"Aged Consumer Debtors Analysis" -> Chart C3 Aged Consumer Debtors Analysis | D104: Chart C3
B105: =D105&"Consumer Debtors (total by Debtor Customer Category)" -> Chart C4 Consumer Debtors (total by Debtor Customer Category) | D105: Chart C4
B106: =D106&"Aged Creditors Analysis" -> Chart C5 Aged Creditors Analysis | D106: Chart C5
A107: S71T | B107: =D107&" Monthly Budget Statement - Expenditure against approved rollovers" -> Supporting Table SC7(2) Monthly Budget Statement - Expenditure against approved rollovers | D107: Supporting Table SC7(2)

Sheet Lookup and lists (hidden)
A1: Description | B1: 2013 | C1: 2014 | D1: 2015 | E1: 2016 | F1: 2017 | G1: 2018 | H1: 2019 | I1: 2020 | J1: 2021 | K1: 2022 | L1: 2023 | M1: 2024 | N1: 2025 | O1: 2026 | Q1: Grants: | R1: National - opex | S1: Provincial - opex | T1: National - capex | U1: Provincial - capex | V1: YESNO
A2: ='Template names'!C2 -> Prior year -1 | B2: =B1-1&"/"&RIGHT(B1,2)-0 -> 2012/13 | C2: =C1-1&"/"&RIGHT(C1,2)-0 -> 2013/14 | D2: =D1-1&"/"&RIGHT(D1,2)-0 -> 2014/15 | E2: =E1-1&"/"&RIGHT(E1,2)-0 -> 2015/16 | F2: =F1-1&"/"&RIGHT(F1,2)-0 -> 2016/17 | G2: 2017/18 | H2: 2018/19 | I2: 2019/20 | J2: 2020/21 | K2: 2021/22 | L2: 2022/23 | M2: 2023/24 | N2: 2024/25 | O2: 2025/26 | R2: Local Government Equitable Share | S2: Health subsidy | T2: Municipal Infrastructure Grant (MIG) | U2: Agriculture | V2: Yes
A3: ='Template names'!C5 -> MTREF header name | B3: =B1&"/"&RIGHT(B1,2)+1&" Medium Term Revenue & Expenditure Framework" -> 2013/14 Medium Term Revenue & Expenditure Framework | C3: =C1&"/"&RIGHT(C1,2)+1&" Medium Term Revenue & Expenditure Framework" -> 2014/15 Medium Term Revenue & Expenditure Framework | D3: =D1&"/"&RIGHT(D1,2)+1&" Medium Term Revenue & Expenditure Framework" -> 2015/16 Medium Term Revenue & Expenditure Framework | E3: =E1&"/"&RIGHT(E1,2)+1&" Medium Term Revenue & Expenditure Framework" -> 2016/17 Medium Term Revenue & Expenditure Framework | F3: =F1&"/"&RIGHT(F1,2)+1&" Medium Term Revenue & Expenditure Framework" -> 2017/18 Medium Term Revenue & Expenditure Framework | G3: 2018/19 Medium Term Revenue & Expenditure Framework | H3: 2019/20 Medium Term Revenue & Expenditure Framework | I3: 2020/21 Medium Term Revenue & Expenditure Framework | J3: 2021/22 Medium Term Revenue & Expenditure Framework | K3: 2022/23 Medium Term Revenue & Expenditure Framework | L3: 2023/24 Medium Term Revenue & Expenditure Framework | M3: 2024/25 Medium Term Revenue & Expenditure Framework | N3: 2025/26 Medium Term Revenue & Expenditure Framework | O3: 2026/27 Medium Term Revenue & Expenditure Framework | R3: RSC Levy Replacement | S3: Ambulance subsidy | T3: Public Transport and Systems | U3: Education | V3: No
A4: ='Template names'!C4 -> Approved budget year | B4: =B1&"/"&RIGHT(B1,2)+1 -> 2013/14 | C4: =C1&"/"&RIGHT(C1,2)+1 -> 2014/15 | D4: =D1&"/"&RIGHT(D1,2)+1 -> 2015/16 | E4: =E1&"/"&RIGHT(E1,2)+1 -> 2016/17 | F4: =F1&"/"&RIGHT(F1,2)+1 -> 2017/18 | G4: 2018/19 | H4: 2019/20 | I4: 2020/21 | J4: 2021/22 | K4: 2022/23 | L4: 2023/24 | M4: 2024/25 | N4: 2025/26 | O4: 2026/27 | R4: Finance Management | S4: Housing | T4: Rural Transport Services and Infrastructure | U4: Health
A5: ='Template names'!C12 -> 1st year of MTREF | B5: ="Budget Year "&B1&"/"&RIGHT(B1,2)+1 -> Budget Year 2013/14 | C5: ="Budget Year "&C1&"/"&RIGHT(C1,2)+1 -> Budget Year 2014/15 | D5: ="Budget Year "&D1&"/"&RIGHT(D1,2)+1 -> Budget Year 2015/16 | E5: ="Budget Year "&E1&"/"&RIGHT(E1,2)+1 -> Budget Year 2016/17 | F5: ="Budget Year "&F1&"/"&RIGHT(F1,2)+1 -> Budget Year 2017/18 | G5: Budget Year 2018/19 | H5: Budget Year 2019/20 | I5: Budget Year 2020/21 | J5: Budget Year 2021/22 | K5: Budget Year 2022/23 | L5: Budget Year 2023/24 | M5: Budget Year 2024/25 | N5: Budget Year 2025/26 | O5: Budget Year 2026/27 | R5: Municipal Systems Improvement | S5: Sport and Recreation | T5: Regional Bulk Infrastructure | U5: Housing and Local Government
A6: ='Template names'!C13 -> 2nd year of MTREF | B6: ="Budget Year +1 "&B1+1&"/"&RIGHT(B1,2)+2 -> Budget Year +1 2014/15 | C6: ="Budget Year +1 "&C1+1&"/"&RIGHT(C1,2)+2 -> Budget Year +1 2015/16 | D6: ="Budget Year +1 "&D1+1&"/"&RIGHT(D1,2)+2 -> Budget Year +1 2016/17 | E6: ="Budget Year +1 "&E1+1&"/"&RIGHT(E1,2)+2 -> Budget Year +1 2017/18 | F6: ="Budget Year +1 "&F1+1&"/"&RIGHT(F1,2)+2 -> Budget Year +1 2018/19 | G6: Budget Year +1 2019/20 | H6: Budget Year +1 2020/21 | I6: Budget Year +1 2021/22 | J6: Budget Year +1 2022/23 | K6: Budget Year +1 2023/24 | L6: Budget Year +1 2024/25 | M6: Budget Year +1 2025/26 | N6: Budget Year +1 2026/27 | O6: Budget Year +1 2027/28 | R6: Water Services Operating Subsidy | T6: Rural Households Infrastructure | U6: Other Departments
A7: ='Template names'!C14 -> 3rd year of MTREF | B7: ="Budget Year +2 "&B1+2&"/"&RIGHT(B1,2)+3 -> Budget Year +2 2015/16 | C7: ="Budget Year +2 "&C1+2&"/"&RIGHT(C1,2)+3 -> Budget Year +2 2016/17 | D7: ="Budget Year +2 "&D1+2&"/"&RIGHT(D1,2)+3 -> Budget Year +2 2017/18 | E7: ="Budget Year +2 "&E1+2&"/"&RIGHT(E1,2)+3 -> Budget Year +2 2018/19 | F7: ="Budget Year +2 "&F1+2&"/"&RIGHT(F1,2)+3 -> Budget Year +2 2019/20 | G7: Budget Year +2 2020/21 | H7: Budget Year +2 2021/22 | I7: Budget Year +2 2022/23 | J7: Budget Year +2 2023/24 | K7: Budget Year +2 2024/25 | L7: Budget Year +2 2025/26 | M7: Budget Year +2 2026/27 | N7: Budget Year +2 2027/28 | O7: Budget Year +2 2028/29 | R7: Energy Efficiency and Demand Management | T7: Neighbourhood Development Partnership | U7: Public Works, Roads, Transport
A8: NOTE: This sheet should not be directly amended - select headings from sheet 'S' | R8: Integrated National Electrification Programme | T8: 2010 FIFA World Cup Stadiums Development | U8: Sport and Recreation
R9: Municipal Drought Relief
R10: 2010 FIFA World Cup Operating
R11: Electricity Demand Side Management
R12: EPWP Incentive
A26: Name link | B26: 141
A27: Name of Muni
B28: Choose name from list | C28: Set name on 'Instructions' sheet
B29: BUF Buffalo City | C29: EC EASTERN CAPE
B30: NMA Nelson Mandela Bay | C30: EC EASTERN CAPE
B31: EC101 Dr Beyers Naude | C31: EC EASTERN CAPE
B32: EC102 Blue Crane Route | C32: EC EASTERN CAPE
B33: EC104 Makana | C33: EC EASTERN CAPE
B34: EC105 Ndlambe | C34: EC EASTERN CAPE
B35: EC106 Sundays River Valley | C35: EC EASTERN CAPE
B36: EC108 Kouga | C36: EC EASTERN CAPE
B37: EC109 Kou-Kamma | C37: EC EASTERN CAPE
B38: DC10 Sarah Baartman | C38: EC EASTERN CAPE
B39: EC121 Mbhashe | C39: EC EASTERN CAPE
B40: EC122 Mnquma | C40: EC EASTERN CAPE
B41: EC123 Great Kei | C41: EC EASTERN CAPE
B42: EC124 Amahlathi | C42: EC EASTERN CAPE
B43: EC126 Ngqushwa | C43: EC EASTERN CAPE
B44: EC129 Raymond Mhlaba | C44: EC EASTERN CAPE
B45: DC12 Amathole | C45: EC EASTERN CAPE
B46: EC131 Inxuba Yethemba | C46: EC EASTERN CAPE
B47: EC135 Intsika Yethu | C47: EC EASTERN CAPE
B48: EC136 Emalahleni (Ec) | C48: EC EASTERN CAPE
B49: EC137 Engcobo | C49: EC EASTERN CAPE
B50: EC138 Sakhisizwe | C50: EC EASTERN CAPE
B51: EC139 Enoch Mgijima | C51: EC EASTERN CAPE
B52: DC13 Chris Hani | C52: EC EASTERN CAPE
B53: EC141 Elundini | C53: EC EASTERN CAPE
B54: EC142 Senqu | C54: EC EASTERN CAPE
B55: EC145 Walter Sisulu | C55: EC EASTERN CAPE
B56: DC14 Joe Gqabi | C56: EC EASTERN CAPE
B57: EC153 Ngquza Hills | C57: EC EASTERN CAPE
B58: EC154 Port St Johns | C58: EC EASTERN CAPE
B59: EC155 Nyandeni | C59: EC EASTERN CAPE
B60: EC156 Mhlontlo | C60: EC EASTERN CAPE
B61: EC157 King Sabata Dalindyebo | C61: EC EASTERN CAPE
B62: DC15 O .R. Tambo | C62: EC EASTERN CAPE
B63: EC441 Matatiele | C63: EC EASTERN CAPE
B64: EC442 Umzimvubu | C64: EC EASTERN CAPE
B65: EC443 Winnie Madikizela Mandela | C65: EC EASTERN CAPE
B66: EC444 Ntabankulu | C66: EC EASTERN CAPE
B67: DC44 Alfred Nzo | C67: EC EASTERN CAPE
B68: MAN Mangaung | C68: FS FREE STATE
B69: FS161 Letsemeng | C69: FS FREE STATE
B70: FS162 Kopanong | C70: FS FREE STATE
B71: FS163 Mohokare | C71: FS FREE STATE
B72: DC16 Xhariep | C72: FS FREE STATE
B73: FS181 Masilonyana | C73: FS FREE STATE
B74: FS182 Tokologo | C74: FS FREE STATE
B75: FS183 Tswelopele | C75: FS FREE STATE
B76: FS184 Matjhabeng | C76: FS FREE STATE
B77: FS185 Nala | C77: FS FREE STATE
B78: DC18 Lejweleputswa | C78: FS FREE STATE
B79: FS191 Setsoto | C79: FS FREE STATE
B80: FS192 Dihlabeng | C80: FS FREE STATE
B81: FS193 Nketoana | C81: FS FREE STATE
B82: FS194 Maluti-a-Phofung | C82: FS FREE STATE
B83: FS195 Phumelela | C83: FS FREE STATE
B84: FS196 Mantsopa | C84: FS FREE STATE
B85: DC19 Thabo Mofutsanyana | C85: FS FREE STATE
B86: FS201 Moqhaka | C86: FS FREE STATE
B87: FS203 Ngwathe | C87: FS FREE STATE
B88: FS204 Metsimaholo | C88: FS FREE STATE
B89: FS205 Mafube | C89: FS FREE STATE
B90: DC20 Fezile Dabi | C90: FS FREE STATE
B91: EKU City of Ekurhuleni | C91: GT GAUTENG
B92: JHB City Of Johannesburg | C92: GT GAUTENG
B93: TSH City Of Tshwane | C93: GT GAUTENG
B94: GT421 Emfuleni | C94: GT GAUTENG
B95: GT422 Midvaal | C95: GT GAUTENG
B96: GT423 Lesedi | C96: GT GAUTENG
B97: DC42 Sedibeng | C97: GT GAUTENG
B98: GT481 Mogale City | C98: GT GAUTENG
B99: GT484 Merafong City | C99: GT GAUTENG
B100: GT485 Rand West City | C100: GT GAUTENG
B101: DC48 West Rand | C101: GT GAUTENG
B102: ETH eThekwini | C102: KZN KWAZULU-NATAL
B103: KZN212 Umdoni | C103: KZN KWAZULU-NATAL
B104: KZN213 Umzumbe | C104: KZN KWAZULU-NATAL
B105: KZN214 uMuziwabantu | C105: KZN KWAZULU-NATAL
B106: KZN216 Ray Nkonyeni | C106: KZN KWAZULU-NATAL
B107: DC21 Ugu | C107: KZN KWAZULU-NATAL
B108: KZN221 uMshwathi | C108: KZN KWAZULU-NATAL
B109: KZN222 uMngeni | C109: KZN KWAZULU-NATAL
B110: KZN223 Mpofana | C110: KZN KWAZULU-NATAL
B111: KZN224 Impendle | C111: KZN KWAZULU-NATAL
B112: KZN225 Msunduzi | C112: KZN KWAZULU-NATAL
B113: KZN226 Mkhambathini | C113: KZN KWAZULU-NATAL
B114: KZN227 Richmond | C114: KZN KWAZULU-NATAL
B115: DC22 uMgungundlovu | C115: KZN KWAZULU-NATAL
B116: KZN235 Okhahlamba | C116: KZN KWAZULU-NATAL
B117: KZN237 Inkosi Langalibalele | C117: KZN KWAZULU-NATAL
B118: KZN238 Alfred Duma | C118: KZN KWAZULU-NATAL
B119: DC23 Uthukela | C119: KZN KWAZULU-NATAL
B120: KZN241 Endumeni | C120: KZN KWAZULU-NATAL
B121: KZN242 Nquthu | C121: KZN KWAZULU-NATAL
B122: KZN244 Msinga | C122: KZN KWAZULU-NATAL
B123: KZN245 Umvoti | C123: KZN KWAZULU-NATAL
B124: DC24 Umzinyathi | C124: KZN KWAZULU-NATAL
B125: KZN252 Newcastle | C125: KZN KWAZULU-NATAL
B126: KZN253 Emadlangeni | C126: KZN KWAZULU-NATAL
B127: KZN254 Dannhauser | C127: KZN KWAZULU-NATAL
B128: DC25 Amajuba | C128: KZN KWAZULU-NATAL
B129: KZN261 eDumbe | C129: KZN KWAZULU-NATAL
B130: KZN262 uPhongolo | C130: KZN KWAZULU-NATAL
B131: KZN263 Abaqulusi | C131: KZN KWAZULU-NATAL
B132: KZN265 Nongoma | C132: KZN KWAZULU-NATAL
B133: KZN266 Ulundi | C133: KZN KWAZULU-NATAL
B134: DC26 Zululand | C134: KZN KWAZULU-NATAL
B135: KZN271 Umhlabuyalingana | C135: KZN KWAZULU-NATAL
B136: KZN272 Jozini | C136: KZN KWAZULU-NATAL
B137: KZN275 Mtubatuba | C137: KZN KWAZULU-NATAL
B138: KZN276 Hlabisa Big Five | C138: KZN KWAZULU-NATAL
B139: DC27 Umkhanyakude | C139: KZN KWAZULU-NATAL
B140: KZN281 Mfolozi | C140: KZN KWAZULU-NATAL
B141: KZN282 uMhlathuze | C141: KZN KWAZULU-NATAL
B142: KZN284 uMlalazi | C142: KZN KWAZULU-NATAL
B143: KZN285 Mthonjaneni | C143: KZN KWAZULU-NATAL
B144: KZN286 Nkandla | C144: KZN KWAZULU-NATAL
B145: DC28 King Cetshwayo | C145: KZN KWAZULU-NATAL
B146: KZN291 Mandeni | C146: KZN KWAZULU-NATAL
B147: KZN292 KwaDukuza | C147: KZN KWAZULU-NATAL
B148: KZN293 Ndwedwe | C148: KZN KWAZULU-NATAL
B149: KZN294 Maphumulo | C149: KZN KWAZULU-NATAL
B150: DC29 iLembe | C150: KZN KWAZULU-NATAL
B151: KZN433 Greater Kokstad | C151: KZN KWAZULU-NATAL
B152: KZN434 Johannes Phumani Phungula | C152: KZN KWAZULU-NATAL
B153: KZN435 Umzimkhulu | C153: KZN KWAZULU-NATAL
B154: KZN436 Dr Nkosazana Dlamini Zuma | C154: KZN KWAZULU-NATAL
B155: DC43 Harry Gwala | C155: KZN KWAZULU-NATAL
B156: LIM331 Greater Giyani | C156: LIM LIMPOPO
B157: LIM332 Greater Letaba | C157: LIM LIMPOPO
B158: LIM333 Greater Tzaneen | C158: LIM LIMPOPO
B159: LIM334 Ba-Phalaborwa | C159: LIM LIMPOPO
B160: LIM335 Maruleng | C160: LIM LIMPOPO
B161: DC33 Mopani | C161: LIM LIMPOPO
B162: LIM341 Musina | C162: LIM LIMPOPO
B163: LIM343 Thulamela | C163: LIM LIMPOPO
B164: LIM344 Makhado | C164: LIM LIMPOPO
B165: LIM345 Collins Chabane | C165: LIM LIMPOPO
B166: DC34 Vhembe | C166: LIM LIMPOPO
B167: LIM351 Blouberg | C167: LIM LIMPOPO
B168: LIM353 Molemole | C168: LIM LIMPOPO
B169: LIM354 Polokwane | C169: LIM LIMPOPO
B170: LIM355 Lepelle-Nkumpi | C170: LIM LIMPOPO
B171: DC35 Capricorn | C171: LIM LIMPOPO
B172: LIM361 Thabazimbi | C172: LIM LIMPOPO
B173: LIM362 Lephalale | C173: LIM LIMPOPO
B174: LIM366 Bela Bela | C174: LIM LIMPOPO
B175: LIM367 Mogalakwena | C175: LIM LIMPOPO
B176: LIM368 Modimolle-Mookgopong | C176: LIM LIMPOPO
B177: DC36 Waterberg | C177: LIM LIMPOPO
B178: LIM471 Ephraim Mogale | C178: LIM LIMPOPO
B179: LIM472 Elias Motsoaledi | C179: LIM LIMPOPO
B180: LIM473 Makhuduthamaga | C180: LIM LIMPOPO
B181: LIM476 Tubatse Fetakgomo | C181: LIM LIMPOPO
B182: DC47 Sekhukhune | C182: LIM LIMPOPO
B183: MP301 Albert Luthuli | C183: MP MPUMALANGA
B184: MP302 Msukaligwa | C184: MP MPUMALANGA
B185: MP303 Mkhondo | C185: MP MPUMALANGA
B186: MP304 Pixley Ka Seme (MP) | C186: MP MPUMALANGA
B187: MP305 Lekwa | C187: MP MPUMALANGA
B188: MP306 Dipaleseng | C188: MP MPUMALANGA
B189: MP307 Govan Mbeki | C189: MP MPUMALANGA
B190: DC30 Gert Sibande | C190: MP MPUMALANGA
B191: MP311 Victor Khanye | C191: MP MPUMALANGA
B192: MP312 Emalahleni (Mp) | C192: MP MPUMALANGA
B193: MP313 Steve Tshwete | C193: MP MPUMALANGA
B194: MP314 Emakhazeni | C194: MP MPUMALANGA
B195: MP315 Thembisile Hani | C195: MP MPUMALANGA
B196: MP316 Dr J.S. Moroka | C196: MP MPUMALANGA
B197: DC31 Nkangala | C197: MP MPUMALANGA
B198: MP321 Thaba Chweu | C198: MP MPUMALANGA
B199: MP324 Nkomazi | C199: MP MPUMALANGA
B200: MP325 Bushbuckridge | C200: MP MPUMALANGA
B201: MP326 City of Mbombela | C201: MP MPUMALANGA
B202: DC32 Ehlanzeni | C202: MP MPUMALANGA
B203: NC451 Joe Morolong | C203: NC NORTHERN CAPE
B204: NC452 Ga-Segonyana | C204: NC NORTHERN CAPE
B205: NC453 Gamagara | C205: NC NORTHERN CAPE
B206: DC45 John Taolo Gaetsewe | C206: NC NORTHERN CAPE
B207: NC061 Richtersveld | C207: NC NORTHERN CAPE
B208: NC062 Nama Khoi | C208: NC NORTHERN CAPE
B209: NC064 Kamiesberg | C209: NC NORTHERN CAPE
B210: NC065 Hantam | C210: NC NORTHERN CAPE
B211: NC066 Karoo Hoogland | C211: NC NORTHERN CAPE
B212: NC067 Khai-Ma | C212: NC NORTHERN CAPE
B213: DC6 Namakwa | C213: NC NORTHERN CAPE
... 73 more rows

Sheet Org structure
A1: Organisational Structure Votes | C1: Organisational Structure Sub-Votes | E1: Display Sub-Votes
A2: =B2&" - "&C2 -> Vote 01 - Corporate Services | B2: Vote 01 | C2: Corporate Services
A3: =B11&" - "&C11 -> Vote 02 - Municipal Manager | B3: 01.1 | C3: Corporate Services Admin | D3: =CONCATENATE(B3, " - ", C3) -> 01.1 - Corporate Services Admin | E3: 01.1 - Corporate Services Admin
A4: =B17&" - "&C17 -> Vote 03 - Mayors Office | B4: 01.2 | C4: Human Resources | D4: 01.2 - Human Resources | E4: 01.2 - Human Resources
A5: =B23&" - "&C23 -> Vote 04 - Budget And Treasury | B5: 01.3 | C5: Information Technology Services | D5: 01.3 - Information Technology Services | E5: 01.3 - Information Technology Services
A6: =B30&" - "&C30 -> Vote 05 - Community Services | B6: 01.4 | C6: Council Support | D6: 01.4 - Council Support | E6: 01.4 - Council Support
A7: =B37&" - "&C37 -> Vote 06 - Technical Services | B7: 01.5 | C7: Local Economic Development | D7: 01.5 - Local Economic Development | E7: 01.5 - Local Economic Development
A8: =B46&" - "&C46 -> Vote 07 - | B8: 01.6 | C8: Municipal Planning Idp | D8: 01.6 - Municipal Planning Idp | E8: 01.6 - Municipal Planning Idp
A9: Vote 08 - | B9: 01.7 | C9: Town & Regional Planning | D9: 01.7 - Town & Regional Planning | E9: 01.7 - Town & Regional Planning
A10: Vote 09 - | B10: 01.8 | C10: Led Administration | D10: 01.8 - Led Administration | E10: 01.8 - Led Administration
A11: Vote 10 - | B11: Vote 02 | C11: Municipal Manager
A12: Vote 11 - | B12: 02.1 | C12: Municipal Manager Admin | D12: =CONCATENATE(B12, " - ", C12) -> 02.1 - Municipal Manager Admin | E12: 02.1 - Municipal Manager Admin
A13: Vote 12 - | B13: 02.2 | C13: Legal Services | D13: =CONCATENATE(B13, " - ", C13) -> 02.2 - Legal Services | E13: 02.2 - Legal Services
A14: Vote 13 - | B14: 02.3 | C14: Political Office Beares | D14: =CONCATENATE(B14, " - ", C14) -> 02.3 - Political Office Beares | E14: 02.3 - Political Office Beares
A15: Vote 14 - | B15: 02.4 | C15: Pms | D15: =CONCATENATE(B15, " - ", C15) -> 02.4 - Pms | E15: 02.4 - Pms
A16: Vote 15 - Other | B16: 02.5 | C16: Internal Audit | D16: =CONCATENATE(B16, " - ", C16) -> 02.5 - Internal Audit | E16: 02.5 - Internal Audit
B17: Vote 03 | C17: Mayors Office
B18: 03.1 | C18: Mayors Office Admin | D18: =CONCATENATE(B18, " - ", C18) -> 03.1 - Mayors Office Admin | E18: 03.1 - Mayors Office Admin
B19: 03.2 | C19: Office Of The Speaker | D19: =CONCATENATE(B19, " - ", C19) -> 03.2 - Office Of The Speaker | E19: 03.2 - Office Of The Speaker
B20: 03.3 | C20: Office Of The Chief Whip | D20: =CONCATENATE(B20, " - ", C20) -> 03.3 - Office Of The Chief Whip | E20: 03.3 - Office Of The Chief Whip
B21: 03.4 | C21: Exco Members | D21: =CONCATENATE(B21, " - ", C21) -> 03.4 - Exco Members | E21: 03.4 - Exco Members
B22: 03.5 | C22: Council General Administration | D22: =CONCATENATE(B22, " - ", C22) -> 03.5 - Council General Administration | E22: 03.5 - Council General Administration
B23: Vote 04 | C23: Budget And Treasury
B24: 04.1 | C24: Budget And Treasury Admin | D24: =CONCATENATE(B24, " - ", C24) -> 04.1 - Budget And Treasury Admin | E24: 04.1 - Budget And Treasury Admin
B25: 04.2 | C25: Chief Financial Officer Admin | D25: 04.2 - Chief Financial Officer Admin | E25: 04.2 - Chief Financial Officer Admin
B26: 04.3 | C26: Budget & Reporting | D26: 04.3 - Budget & Reporting | E26: 04.3 - Budget & Reporting
B27: 04.4 | C27: Revenue Management | D27: 04.4 - Revenue Management | E27: 04.4 - Revenue Management
B28: 04.5 | C28: Supply Chain Management | D28: 04.5 - Supply Chain Management | E28: 04.5 - Supply Chain Management
B29: 04.6 | C29: Expenditure | D29: 04.6 - Expenditure | E29: 04.6 - Expenditure
B30: Vote 05 | C30: Community Services
B31: 05.1 | C31: Community Services Admin | D31: =CONCATENATE(B31, " - ", C31) -> 05.1 - Community Services Admin | E31: 05.1 - Community Services Admin
B32: 05.2 | C32: Libraries | D32: 05.2 - Libraries | E32: 05.2 - Libraries
B33: 05.3 | C33: Sports Recreation & Social Amenitie | D33: 05.3 - Sports Recreation & Social Amenitie | E33: 05.3 - Sports Recreation & Social Amenitie
B34: 05.4 | C34: Traffic Service | D34: 05.4 - Traffic Service | E34: 05.4 - Traffic Service
B35: 05.5 | C35: Parks; Cemeteries | D35: 05.5 - Parks; Cemeteries | E35: 05.5 - Parks; Cemeteries
B36: 05.6 | C36: Refuse | D36: 05.6 - Refuse | E36: 05.6 - Refuse
B37: Vote 06 | C37: Technical Services
B38: 06.1 | C38: Mpac | D38: =CONCATENATE(B38, " - ", C38) -> 06.1 - Mpac | E38: 06.1 - Mpac
B39: 06.2 | C39: Technical Services Admin | D39: 06.2 - Technical Services Admin | E39: 06.2 - Technical Services Admin
B40: 06.3 | C40: Techn Serv-Roads: Admin | D40: 06.3 - Techn Serv-Roads: Admin | E40: 06.3 - Techn Serv-Roads: Admin
B41: 06.4 | C41: Techn Serv-Stormwater: Admin | D41: 06.4 - Techn Serv-Stormwater: Admin | E41: 06.4 - Techn Serv-Stormwater: Admin
B42: 06.5 | C42: Project Management Unit | D42: 06.5 - Project Management Unit | E42: 06.5 - Project Management Unit
B43: 06.6 | C43: Electrical & Machinery | D43: 06.6 - Electrical & Machinery | E43: 06.6 - Electrical & Machinery
B44: 06.7 | C44: Water | D44: 06.7 - Water | E44: 06.7 - Water
B45: 06.8 | C45: Sanitation | D45: 06.8 - Sanitation | E45: 06.8 - Sanitation
B46: Vote 07
B47: Vote 08
B48: Vote 09
B49: Vote 10
B50: Vote 11
B51: Vote 12
B52: Vote 13
B53: Vote 14
B54: Vote 15 | C54: Other

Sheet Contacts
A1: =muni&" - "&" Contact Information" -> LIM353 Molemole - Contact Information
A3: A. GENERAL INFORMATION
A4: Municipality | B4: =muni -> LIM353 Molemole | C4: Set name on 'Instructions' sheet
A6: Grade | B6: Level 3 | C6: 1 Grade in terms of the Remuneration of Public Office Bearers Act.
A8: Province | B8: =IF(B4>" ",VLOOKUP(B4,'Lookup and lists'!B28:C311,2, FALSE)," ") -> LIM LIMPOPO
A10: Web Address | B10: Molemole.gov.za
A12: e-mail Address | B12: info@molemole.gov.za
A14: B. CONTACT INFORMATION
A15: Postal address:
A16: P.O. Box | B16: Private Bag X44
A17: City / Town | B17: Mogwadi
A18: Postal Code | B18: 0715
A20: Street address
A21: Building | B21: Civic Center
A22: Street No. & Name | B22: 303 Church Street
A23: City / Town | B23: Mogwadi
A24: Postal Code | B24: 0715
A26: General Contacts
A27: Telephone number | B27: 015 501 2300
A28: Fax number
A30: C. POLITICAL LEADERSHIP
A31: Speaker: | C31: Secretary/PA to the Speaker:
A32: ID Number | B32: 810311 0466 087 | C32: ID Number | D32: 850930 1072 080
A33: Title | B33: Mrs | C33: Title | D33: Ms
A34: Name | B34: MATLOU DIKELEDI | C34: Name | D34: Maketa Rathete
A35: Telephone number | B35: 015 501 0243 | C35: Telephone number | D35: 015 501 0243
A36: Cell number | B36: 060 876 1553 | C36: Cell number | D36: 072 958 1970
A37: Fax number | B37: 015 501 0419 | C37: Fax number | D37: 015 501 0419
A38: E-mail address | B38: dikeledipakgadi@gmail.com | C38: E-mail address | D38: rathetem@molemole.gov.za
A40: Mayor/Executive Mayor: | C40: Secretary/PA to the Mayor/Executive Mayor:
A41: ID Number | B41: 660312 5428 081 | C41: ID Number | D41: 850930 1072 080
A42: Title | B42: Mr | C42: Title | D42: Ms
A43: Name | B43: PAYA E | C43: Name | D43: RATHETE MAKETA
A44: Telephone number | B44: 015 501 0243 | C44: Telephone number | D44: 015 501 0243
A45: Cell number | B45: 082 474 2858 | C45: Cell number | D45: 072 958 1970
A46: Fax number | B46: 086 515 8809 | C46: Fax number | D46: 015 501 0419
A47: E-mail address | B47: payae@molemole.gov.za | C47: E-mail address | D47: rathetem@molemole.go.za
A49: Deputy Mayor/Executive Mayor: | C49: Secretary/PA to the Deputy Mayor/Executive Mayor:
A50: ID Number | C50: ID Number
A51: Title | C51: Title
A52: Name | C52: Name
A53: Telephone number | C53: Telephone number
A54: Cell number | C54: Cell number
A55: Fax number | C55: Fax number
A56: E-mail address | C56: E-mail address
A58: D. MANAGEMENT LEADERSHIP
A59: Municipal Manager: | C59: Secretary/PA to the Municipal Manager:
A60: ID Number | B60: 741022 5373 087 | C60: ID Number | D60: 7309085465084
A61: Title | B61: Mr | C61: Title | D61: Mr
A62: Name | B62: MAKGATO KGABO EMMANUEL | C62: Name | D62: Nkoto Modisha
A63: Telephone number | B63: 015 501 0243 | C63: Telephone number | D63: 015 501 0243
A64: Cell number | B64: 082 619 5734 | C64: Cell number | D64: 084 563 7813
A65: Fax number | B65: 015 501 0419 | C65: Fax number | D65: 015 501 0419
A66: E-mail address | B66: MakgatoKE@molemole.gov.za | C66: E-mail address | D66: ModishaN@molemole.gov.za
A68: Chief Financial Officer | C68: Secretary/PA to the Chief Financial Officer
A69: ID Number | B69: 840119 5370 087 | C69: ID Number | D69: 9312190190082
A70: Title | B70: Mr | C70: Title | D70: Miss
A71: Name | B71: NKALANGA AS | C71: Name | D71: Rachel Dipela
A72: Telephone number | B72: 015 501 0243 | C72: Telephone number | D72: 015 501 0243
A73: Cell number | B73: 072 343 3314 | C73: Cell number | D73: 071 610 6432
A74: Fax number | B74: 015 501 0419 | C74: Fax number | D74: 015 501 0419
A75: E-mail address | B75: Nkalanga@molemole.gov.za | C75: E-mail address | D75: rdipela@molemole.gov.za
A77: Official responsible for submitting financial information | C77: Official responsible for submitting financial information
A78: ID Number | B78: 820214 0303 086 | C78: ID Number
A79: Title | B79: Mrs | C79: Title
A80: Name | B80: WISO PORTIA | C80: Name
A81: Telephone number | B81: 015 501 0243 | C81: Telephone number
A82: Cell number | B82: 082 488 3823 | C82: Cell number
A83: Fax number | B83: 015 501 0419 | C83: Fax number
A84: E-mail address | B84: mamabolomp@molemole.gov.za | C84: E-mail address
A85: Official responsible for submitting financial information | C85: Official responsible for submitting financial information
A86: ID Number | C86: ID Number
A87: Title | C87: Title
A88: Name | C88: Name
A89: Telephone number | C89: Telephone number
A90: Cell number | C90: Cell number
A91: Fax number | C91: Fax number
A92: E-mail address | C92: E-mail address
A93: Official responsible for submitting financial information | C93: Official responsible for submitting financial information
A94: ID Number | C94: ID Number
A95: Title | C95: Title
A96: Name | C96: Name
A97: Telephone number | C97: Telephone number
A98: Cell number | C98: Cell number
A99: Fax number | C99: Fax number
A100: E-mail address | C100: E-mail address
A101: Official responsible for submitting financial information | C101: Official responsible for submitting financial information
A102: ID Number | C102: ID Number
A103: Title | C103: Title
A104: Name | C104: Name
A105: Telephone number | C105: Telephone number
A106: Cell number | C106: Cell number
A107: Fax number | C107: Fax number
A108: E-mail address | C108: E-mail address
A109: Official responsible for submitting financial information | C109: Official responsible for submitting financial information
A110: ID Number | C110: ID Number
A111: Title | C111: Title
A112: Name | C112: Name
A113: Telephone number | C113: Telephone number
A114: Cell number | C114: Cell number
A115: Fax number | C115: Fax number
A116: E-mail address | C116: E-mail address
A117: Official responsible for submitting financial information | C117: Official responsible for submitting financial information
A118: ID Number | C118: ID Number
A119: Title | C119: Title
A120: Name | C120: Name
A121: Telephone number | C121: Telephone number
A122: Cell number | C122: Cell number
A123: Fax number | C123: Fax number
A124: E-mail address | C124: E-mail address
A125: Official responsible for submitting financial information | C125: Official responsible for submitting financial information
A126: ID Number | C126: ID Number
A127: Title | C127: Title
A128: Name | C128: Name
A129: Telephone number | C129: Telephone number
A130: Cell number | C130: Cell number
A131: Fax number | C131: Fax number
A132: E-mail address | C132: E-mail address
A133: Official responsible for submitting financial information
A134: ID Number
A135: Title
A136: Name
A137: Telephone number
A138: Cell number
A139: Fax number
A140: E-mail address

Sheet C1-Sum
A1: =muni& " - "&s71sum& " - "&date -> LIM353 Molemole - Table C1 Monthly Budget Statement Summary - Q3 Third Quarter
A2: =desc -> Description | B2: =Head1 -> 2024/25 | C2: =Head2 -> Budget Year 2025/26
B3: =Head5 -> Audited Outcome | C3: =Head6 -> Original Budget | D3: =Head7 -> Adjusted Budget | E3: =Head38 -> Monthly actual | F3: =Head39 -> YearTD actual | G3: =Head40 -> YearTD budget | H3: =Head41 -> YTD variance | I3: =Head41 -> YTD variance | J3: =Head8 -> Full Year Forecast
A4: R thousands | I4: %
A5: Financial Performance
A6: Property rates | B6: =SUM('C4-FinPerf RE'!C23) -> 29864220.67 | C6: =SUM('C4-FinPerf RE'!D23) -> 39267857 | D6: =SUM('C4-FinPerf RE'!E23) -> 39267857 | E6: =SUM('C4-FinPerf RE'!F23) -> 661872.22 | F6: =SUM('C4-FinPerf RE'!G23) -> 29540247.33 | G6: =SUM('C4-FinPerf RE'!H23) -> 29450844 | H6: =F6-G6 -> 89403.33 | I6: =IF(H6=0,"",H6/G6) -> 0.003035679724 | J6: =SUM('C4-FinPerf RE'!K23) -> 39267857
A7: Service charges | B7: =SUM('C4-FinPerf RE'!C7:C10) -> 13301601.39 | C7: =SUM('C4-FinPerf RE'!D7:D10) -> 15186304 | D7: =SUM('C4-FinPerf RE'!E7:E10) -> 15186304 | E7: =SUM('C4-FinPerf RE'!F7:F10) -> 1112616.6 | F7: =SUM('C4-FinPerf RE'!G7:G10) -> 10241537.25 | G7: =SUM('C4-FinPerf RE'!H7:H10) -> 11389707 | H7: =F7-G7 -> -1148169.75 | I7: =IF(H7=0,"",H7/G7) -> -0.1008076634 | J7: =SUM('C4-FinPerf RE'!K7:K10) -> 15186304
A8: Investment revenue | B8: ='C4-FinPerf RE'!C15 -> 13918817.93 | C8: ='C4-FinPerf RE'!D15 -> 16695504 | D8: ='C4-FinPerf RE'!E15 -> 16695504 | E8: ='C4-FinPerf RE'!F15 -> 0 | F8: ='C4-FinPerf RE'!G15 -> 6303375.02 | G8: ='C4-FinPerf RE'!H15 -> 12521628 | H8: =F8-G8 -> -6218252.98 | I8: =IF(H8=0,"",H8/G8) -> -0.4966009995 | J8: ='C4-FinPerf RE'!K15 -> 16695504
A9: Transfers and subsidies - Operational | B9: ='C4-FinPerf RE'!C27 -> 193141465.7 | C9: ='C4-FinPerf RE'!D27 -> 207339000 | D9: ='C4-FinPerf RE'!E27 -> 191368000 | E9: ='C4-FinPerf RE'!F27 -> 46731000 | F9: ='C4-FinPerf RE'!G27 -> 200773124.8 | G9: ='C4-FinPerf RE'!H27 -> 149115832 | H9: 51657292.77 | I9: =IF(H9=0,"",H9/G9) -> 0.3464239315 | J9: ='C4-FinPerf RE'!K27 -> 191368000
A10: Other own revenue | B10: =+B11-SUM(B6:B9) -> 25252835.15 | C10: =+C11-SUM(C6:C9) -> 18879166 | D10: 36346938 | E10: 2797326.92 | F10: 11984992.36 | G10: 21146412.8 | H10: =F10-G10 -> -9161420.44 | I10: =IF(H10=0,"",H10/G10) -> -0.4332375674 | J10: =SUM('C4-FinPerf RE'!K34)-SUM('C4-FinPerf RE'!K7:K10)-'C4-FinPerf RE'!K15-'C4-FinPerf RE'!K23-'C4-FinPerf RE'!K27 -> 36346938
A11: Total Revenue (excluding capital transfers and contributions) | B11: =+'C4-FinPerf RE'!C34 -> 275478940.8 | C11: =+'C4-FinPerf RE'!D34 -> 297367831 | D11: =+'C4-FinPerf RE'!E34 -> 298864603 | E11: =+'C4-FinPerf RE'!F34 -> 51302815.74 | F11: =+'C4-FinPerf RE'!G34 -> 258843276.7 | G11: =+'C4-FinPerf RE'!H34 -> 223624423.8 | H11: =F11-G11 -> 35218852.93 | I11: =IF(H11=0,"",H11/G11) -> 0.1574910841 | J11: =+'C4-FinPerf RE'!K34 -> 298864603
A12: Employee costs | B12: ='C4-FinPerf RE'!C36 -> 118552192.4 | C12: ='C4-FinPerf RE'!D36 -> 121240320 | D12: ='C4-FinPerf RE'!E36 -> 126130876 | E12: ='C4-FinPerf RE'!F36 -> 0 | F12: ='C4-FinPerf RE'!G36 -> 82373611.27 | G12: ='C4-FinPerf RE'!H36 -> 92888208.4 | H12: -10514597.13 | I12: -0.1131962529 | J12: ='C4-FinPerf RE'!K36 -> 126130876
A13: Remuneration of Councillors | B13: ='C4-FinPerf RE'!C37 -> 14185585.14 | C13: ='C4-FinPerf RE'!D37 -> 16413901 | D13: ='C4-FinPerf RE'!E37 -> 16265796 | E13: ='C4-FinPerf RE'!F37 -> 0 | F13: ='C4-FinPerf RE'!G37 -> 9476685.84 | G13: ='C4-FinPerf RE'!H37 -> 12251273 | H13: -2774587.16 | I13: -0.2264733763 | J13: ='C4-FinPerf RE'!K37 -> 16265796
A14: Depreciation and amortisation | B14: ='C4-FinPerf RE'!C41 -> 24411644.82 | C14: ='C4-FinPerf RE'!D41 -> 21656256 | D14: ='C4-FinPerf RE'!E41 -> 24133195 | E14: ='C4-FinPerf RE'!F41 -> 0 | F14: ='C4-FinPerf RE'!G41 -> 23709323.53 | G14: ='C4-FinPerf RE'!H41 -> 17233282.6 | H14: 6476040.93 | I14: 0.3757868469 | J14: ='C4-FinPerf RE'!K41 -> 24133195
A15: Interest | B15: ='C4-FinPerf RE'!C42 -> 2935813.16 | C15: ='C4-FinPerf RE'!D42 -> 2551065 | D15: ='C4-FinPerf RE'!E42 -> 3085365 | E15: ='C4-FinPerf RE'!F42 -> 0 | F15: ='C4-FinPerf RE'!G42 -> 8689.52 | G15: ='C4-FinPerf RE'!H42 -> 2127030 | H15: -2118340.48 | I15: -0.9959147168 | J15: ='C4-FinPerf RE'!K42 -> 3085365
A16: Inventory consumed and bulk purchases | B16: =SUM('C4-FinPerf RE'!C38+'C4-FinPerf RE'!C39) -> 21253995.65 | C16: =SUM('C4-FinPerf RE'!D38+'C4-FinPerf RE'!D39) -> 21593424 | D16: =SUM('C4-FinPerf RE'!E38+'C4-FinPerf RE'!E39) -> 21282619 | E16: =SUM('C4-FinPerf RE'!F38+'C4-FinPerf RE'!F39) -> 1499141.47 | F16: =SUM('C4-FinPerf RE'!G38+'C4-FinPerf RE'!G39) -> 14867936.9 | G16: =SUM('C4-FinPerf RE'!H38+'C4-FinPerf RE'!H39) -> 16070782 | H16: -1202845.1 | I16: -0.07484670628 | J16: =SUM('C4-FinPerf RE'!K38+'C4-FinPerf RE'!K39) -> 21282619
A17: Transfers and subsidies | B17: ='C4-FinPerf RE'!C44 -> 0 | C17: ='C4-FinPerf RE'!D44 -> 0 | D17: ='C4-FinPerf RE'!E44 -> 0 | E17: ='C4-FinPerf RE'!F44 -> 0 | F17: ='C4-FinPerf RE'!G44 -> 0 | G17: ='C4-FinPerf RE'!H44 -> 0 | H17: 0 | J17: ='C4-FinPerf RE'!K44 -> 0
A18: Other expenditure | B18: ='C4-FinPerf RE'!C49-SUM('C1-Sum'!B12:B17) -> 127654983.8 | C18: ='C4-FinPerf RE'!D49-SUM('C1-Sum'!C12:C17) -> 101856078 | D18: ='C4-FinPerf RE'!E49-SUM('C1-Sum'!D12:D17) -> 102605138 | E18: ='C4-FinPerf RE'!F49-SUM('C1-Sum'!E12:E17) -> -9934212.17 | F18: ='C4-FinPerf RE'!G49-SUM('C1-Sum'!F12:F17) -> 48087343.95 | G18: ='C4-FinPerf RE'!H49-SUM('C1-Sum'!G12:G17) -> 76692191.09 | H18: -28604847.14 | I18: -0.3729825258 | J18: ='C4-FinPerf RE'!K49-SUM('C1-Sum'!J12:J17) -> 102605138
A19: Total Expenditure | B19: =SUM(B12:B18) -> 308994214.9 | C19: 285311044 | D19: 293502989 | E19: -8435070.7 | F19: 178523591 | G19: 217262767.1 | H19: -38739176.08 | I19: -0.178305637 | J19: =SUM(J12:J18) -> 293502989
A20: Surplus/(Deficit) | B20: =B11-B19 -> -33515274.14 | C20: 12056787 | D20: 5361614 | E20: 59737886.44 | F20: 80319685.72 | G20: 6361656.71 | H20: 73958029.01 | I20: 11.62559257 | J20: =J11-J19 -> 5361614
A21: Transfers and subsidies - capital (monetary allocations) | B21: ='C4-FinPerf RE'!C51 -> 37448726.67 | C21: ='C4-FinPerf RE'!D51 -> 52088000 | D21: ='C4-FinPerf RE'!E51 -> 52088000 | E21: ='C4-FinPerf RE'!F51 -> 0 | F21: ='C4-FinPerf RE'!G51 -> 23373512.65 | G21: ='C4-FinPerf RE'!H51 -> 39065994 | H21: -15692481.35 | I21: -0.4016915927 | J21: ='C4-FinPerf RE'!K51 -> 52088000
A22: Transfers and subsidies - capital (in-kind) | B22: ='C4-FinPerf RE'!C52 -> 0 | C22: ='C4-FinPerf RE'!D52 -> 0 | D22: ='C4-FinPerf RE'!E52 -> 0 | E22: ='C4-FinPerf RE'!F52 -> 0 | F22: ='C4-FinPerf RE'!G52 -> 0 | G22: ='C4-FinPerf RE'!H52 -> 0 | H22: 0 | J22: ='C4-FinPerf RE'!K52 -> 0
A23: Surplus/(Deficit) after capital transfers & contributions | B23: =B20+B21+B22 -> 3933452.53 | C23: 64144787 | D23: 57449614 | E23: 59737886.44 | F23: 103693198.4 | G23: 45427650.71 | H23: 58265547.66 | I23: 1.282600943 | J23: =J20+J21+J22 -> 57449614
A24: Share of surplus/ (deficit) of associate | B24: ='C4-FinPerf RE'!C60 -> 0 | C24: ='C4-FinPerf RE'!D60 -> 0 | D24: ='C4-FinPerf RE'!E60 -> 0 | E24: ='C4-FinPerf RE'!F60 -> 0 | F24: ='C4-FinPerf RE'!G60 -> 0 | G24: ='C4-FinPerf RE'!H60 -> 0 | H24: 0 | J24: ='C4-FinPerf RE'!K60 -> 0
A25: Surplus/ (Deficit) for the year | B25: =B23+B24 -> 3933452.53 | C25: 64144787 | D25: 57449614 | E25: 59737886.44 | F25: 103693198.4 | G25: 45427650.71 | H25: 58265547.66 | I25: 1.282600943 | J25: =J23+J24 -> 57449614
A27: Capital expenditure & funds sources
A28: Capital expenditure | B28: ='C5-Capex'!C40 -> 52822626.79 | C28: ='C5-Capex'!D40 -> 64396800 | D28: ='C5-Capex'!E40 -> 58277000 | E28: ='C5-Capex'!F40 -> 14105735.5 | F28: ='C5-Capex'!G40 -> 34816561.32 | G28: ='C5-Capex'!H40 -> 45849725 | H28: =F28-G28 -> -11033163.68 | I28: =IF(H28=0,"",H28/G28) -> -0.2406375105 | J28: ='C5-Capex'!K40 -> 58277000
A29: Capital transfers recognised | B29: ='C5-Capex'!C70 -> 32564110.16 | C29: ='C5-Capex'!D70 -> 52088000 | D29: ='C5-Capex'!E70 -> 52388000 | E29: ='C5-Capex'!F70 -> 14128351.5 | F29: ='C5-Capex'!G70 -> 34158751.32 | G29: ='C5-Capex'!H70 -> 39186012 | H29: -5027260.68 | I29: -0.1282922253 | J29: ='C5-Capex'!K70 -> 52388000
A31: Borrowing | B31: ='C5-Capex'!C72 -> 0 | C31: ='C5-Capex'!D72 -> 0 | D31: ='C5-Capex'!E72 -> 0 | E31: ='C5-Capex'!F72 -> 0 | F31: ='C5-Capex'!G72 -> 0 | G31: ='C5-Capex'!H72 -> 0 | H31: 0 | J31: ='C5-Capex'!K72 -> 0
A32: Internally generated funds | B32: ='C5-Capex'!C73 -> 20258516.63 | C32: ='C5-Capex'!D73 -> 12308800 | D32: ='C5-Capex'!E73 -> 5889000 | E32: ='C5-Capex'!F73 -> -22616 | F32: ='C5-Capex'!G73 -> 657810 | G32: ='C5-Capex'!H73 -> 6663713 | H32: -6005903 | I32: -0.9012847642 | J32: ='C5-Capex'!K73 -> 5889000
A33: Total sources of capital funds | B33: =+B29+B31+B32 -> 52822626.79 | C33: 64396800 | D33: 58277000 | E33: 14105735.5 | F33: 34816561.32 | G33: 45849725 | H33: -11033163.68 | I33: -0.2406375105 | J33: =+J29+J31+J32 -> 58277000
A35: Financial position
A36: Total current assets | B36: ='C6-FinPos'!C14 -> 94113954.41 | C36: ='C6-FinPos'!D14 -> 225037285 | D36: ='C6-FinPos'!E14 -> 161465686 | F36: ='C6-FinPos'!F14 -> 92258310.2 | J36: ='C6-FinPos'!G14 -> 161465686
A37: Total non current assets | B37: ='C6-FinPos'!C26 -> 458764390.8 | C37: ='C6-FinPos'!D26 -> 485891851 | D37: ='C6-FinPos'!E26 -> 517519713 | F37: ='C6-FinPos'!F26 -> 483145775.1 | J37: ='C6-FinPos'!G26 -> 517519713
A38: Total current liabilities | B38: ='C6-FinPos'!C38 -> -5669761.49 | C38: ='C6-FinPos'!D38 -> 43303833 | D38: ='C6-FinPos'!E38 -> 58202653 | F38: ='C6-FinPos'!F38 -> -77970942.18 | J38: ='C6-FinPos'!G38 -> 58202653
A39: Total non current liabilities | B39: ='C6-FinPos'!C44 -> 59790949.84 | C39: ='C6-FinPos'!D44 -> 58128905 | D39: ='C6-FinPos'!E44 -> 68931671 | F39: ='C6-FinPos'!F44 -> 59790949.84 | J39: ='C6-FinPos'!G44 -> 68931671
A40: Community wealth/Equity | B40: ='C6-FinPos'!C51 -> 553729670.7 | C40: ='C6-FinPos'!D51 -> 609496398 | D40: ='C6-FinPos'!E51 -> 557970588 | F40: ='C6-FinPos'!F51 -> 533772150.8 | J40: ='C6-FinPos'!G51 -> 557970588
A42: Cash flows
A43: Net cash from (used) operating | B43: ='C7-CFlow'!C18 -> 37325835.92 | C43: ='C7-CFlow'!D18 -> 53628252 | D43: ='C7-CFlow'!E18 -> 48894773 | E43: ='C7-CFlow'!F18 -> 0 | F43: ='C7-CFlow'!G18 -> -44353821.38 | G43: ='C7-CFlow'!H18 -> 36172214.84 | H43: =G43-F43 -> 80526036.22 | I43: =IF(H43=0,"",H43/G43) -> 2.226184838 | J43: ='C7-CFlow'!K18 -> 48894773
A44: Net cash from (used) investing | B44: ='C7-CFlow'!C28 -> -52052584.67 | C44: ='C7-CFlow'!D28 -> -64396800 | D44: ='C7-CFlow'!E28 -> -58277000 | E44: ='C7-CFlow'!F28 -> 0 | F44: ='C7-CFlow'!G28 -> -20710825.82 | G44: ='C7-CFlow'!H28 -> -43707749.94 | H44: =G44-F44 -> -22996924.12 | I44: =IF(H44=0,"",H44/G44) -> 0.5261520932 | J44: ='C7-CFlow'!K28 -> -58277000
A45: Net cash from (used) financing | B45: ='C7-CFlow'!C37 -> 0 | C45: ='C7-CFlow'!D37 -> 0 | D45: ='C7-CFlow'!E37 -> 0 | E45: ='C7-CFlow'!F37 -> 0 | F45: ='C7-CFlow'!G37 -> 0 | G45: ='C7-CFlow'!H37 -> 0 | H45: =G45-F45 -> 0 | I45: =IF(H45=0,"",H45/G45) ->  | J45: ='C7-CFlow'!K37 -> 0
A46: Cash/cash equivalents at the month/year end | B46: ='C7-CFlow'!C41 -> 125614336.3 | C46: ='C7-CFlow'!D41 -> 129572538 | D46: ='C7-CFlow'!E41 -> 130958859 | E46: ='C7-CFlow'!F41 -> 67580471.2 | F46: ='C7-CFlow'!G41 -> 67580471.2 | G46: ='C7-CFlow'!H41 -> 132805550.9 | H46: =G46-F46 -> 65225079.7 | I46: =IF(H46=0,"",H46/G46) -> 0.4911321798 | J46: ='C7-CFlow'!K41 -> 123262891.4
A48: Debtors & creditors analysis | B48: ='SC3'!C3 -> 0-30 Days | C48: ='SC3'!D3 -> 31-60 Days | D48: ='SC3'!E3 -> 61-90 Days | E48: ='SC3'!F3 -> 91-120 Days | F48: ='SC3'!G3 -> 121-150 Dys | G48: ='SC3'!H3 -> 151-180 Dys | H48: ='SC3'!I3 -> 181 Dys-1 Yr | I48: ='SC3'!J3 -> Over 1Yr | J48: Total
A49: =LEFT('SC3'!A4,20) -> Debtors Age Analysis
A50: ='SC3'!A14 -> Total By Income Source | B50: ='SC3'!C14 -> 6064230 | C50: ='SC3'!D14 -> 8527872 | D50: ='SC3'!E14 -> 685388 | E50: ='SC3'!F14 -> 154330577 | F50: ='SC3'!G14 -> 0 | G50: ='SC3'!H14 -> 0 | H50: ='SC3'!I14 -> 0 | I50: ='SC3'!J14 -> 0 | J50: ='SC3'!K14 -> 169608067
A51: =LEFT('SC4'!A5,22) -> Creditors Age Analysis
A52: Total Creditors | B52: ='SC4'!C16 -> 25693 | C52: ='SC4'!D16 -> 39987 | D52: ='SC4'!E16 -> 0 | E52: ='SC4'!F16 -> 0 | F52: ='SC4'!G16 -> 0 | G52: ='SC4'!H16 -> 7370 | H52: ='SC4'!I16 -> 0 | I52: ='SC4'!J16 -> 0 | J52: ='SC4'!K16 -> 73050

Sheet C2-FinPerf SC
A1: =muni& " - "&S71A& " - "&date -> LIM353 Molemole - Table C2 Monthly Budget Statement - Financial Performance (functional classification) - Q3 Third Quarter
A2: =desc -> Description | B2: =head27 -> Ref | C2: =Head1 -> 2024/25 | D2: =Head2 -> Budget Year 2025/26
C3: =Head5 -> Audited Outcome | D3: =Head6 -> Original Budget | E3: =Head7 -> Adjusted Budget | F3: =Head38 -> Monthly actual | G3: =Head39 -> YearTD actual | H3: =Head40 -> YearTD budget | I3: =Head41 -> YTD variance | J3: =Head41 -> YTD variance | K3: =Head8 -> Full Year Forecast
A4: R thousands | B4: 1 | J4: %
A5: Revenue - Functional
A6: Governance and administration | C6: =SUM(C7:C9) -> 235844658.7 | D6: 247348598 | E6: 248174958 | F6: 49329758.96 | G6: 227618230.1 | H6: 185841919 | I6: =G6-H6 -> 41776311.05 | J6: =IF(I6=0,"",I6/H6) -> 0.2247948755 | K6: =SUM(K7:K9) -> 248174958
A7: Executive and council | C7: ='C2C'!C7 -> 6000 | D7: ='C2C'!D7 -> 0 | E7: ='C2C'!E7 -> 0 | F7: ='C2C'!F7 -> 0 | G7: ='C2C'!G7 -> 0 | H7: ='C2C'!H7 -> 0 | I7: 0 | J7: =IF(I7=0,"",I7/H7) ->  | K7: ='C2C'!K7 -> 0
A8: Finance and administration | C8: ='C2C'!C10 -> 235838658.7 | D8: ='C2C'!D10 -> 247348598 | E8: ='C2C'!E10 -> 248114958 | F8: ='C2C'!F10 -> 49329758.96 | G8: ='C2C'!G10 -> 227582146.8 | H8: ='C2C'!H10 -> 185817919 | I8: 41764227.77 | J8: 0.2247588822 | K8: ='C2C'!K10 -> 248114958
A9: Internal audit | C9: ='C2C'!C24 -> 0 | D9: ='C2C'!D24 -> 0 | E9: ='C2C'!E24 -> 60000 | F9: ='C2C'!F24 -> 0 | G9: ='C2C'!G24 -> 36083.28 | H9: ='C2C'!H24 -> 24000 | I9: 12083.28 | J9: 0.50347 | K9: ='C2C'!K24 -> 60000
A10: Community and public safety | C10: =SUM(C11:C15) -> 6766968.61 | D10: 13884801 | E10: 12479801 | F10: 869508.83 | G10: 8622543.37 | H10: 9851576 | I10: -1229032.63 | J10: -0.1247549255 | K10: =SUM(K11:K15) -> 12479801
A11: Community and social services | C11: ='C2C'!C27 -> 1402864 | D11: ='C2C'!D27 -> 1405000 | E11: ='C2C'!E27 -> 0 | F11: ='C2C'!F27 -> 1980 | G11: ='C2C'!G27 -> 5940 | H11: ='C2C'!H27 -> 491747 | I11: -485807 | J11: -0.9879206177 | K11: ='C2C'!K27 -> 0
A12: Sport and recreation | C12: ='C2C'!C49 -> 233209.67 | D12: ='C2C'!D49 -> 332 | E12: ='C2C'!E49 -> 332 | F12: ='C2C'!F49 -> 19345.87 | G12: ='C2C'!G49 -> 328879.75 | H12: ='C2C'!H49 -> 243 | I12: 328636.75 | J12: 1352.414609 | K12: ='C2C'!K49 -> 332
A13: Public safety | C13: ='C2C'!C55 -> 5130894.94 | D13: ='C2C'!D55 -> 12479469 | E13: ='C2C'!E55 -> 12479469 | F13: ='C2C'!F55 -> 848182.96 | G13: ='C2C'!G55 -> 8287723.62 | H13: ='C2C'!H55 -> 9359586 | I13: -1071862.38 | J13: -0.1145202769 | K13: ='C2C'!K55 -> 12479469
A14: Housing | C14: ='C2C'!C64 -> 0 | D14: ='C2C'!D64 -> 0 | E14: ='C2C'!E64 -> 0 | F14: ='C2C'!F64 -> 0 | G14: ='C2C'!G64 -> 0 | H14: ='C2C'!H64 -> 0 | I14: 0 | K14: ='C2C'!K64 -> 0
A15: Health | C15: ='C2C'!C67 -> 0 | D15: ='C2C'!D67 -> 0 | E15: ='C2C'!E67 -> 0 | F15: ='C2C'!F67 -> 0 | G15: ='C2C'!G67 -> 0 | H15: ='C2C'!H67 -> 0 | I15: 0 | K15: ='C2C'!K67 -> 0
A16: Economic and environmental services | C16: =SUM(C17:C19) -> 40031927.56 | D16: 56172642 | E16: 56172642 | F16: 6911.11 | G16: 21650235.9 | H16: 42129459 | I16: -20479223.1 | J16: -0.4861022094 | K16: =SUM(K17:K19) -> 56172642
A17: Planning and development | C17: ='C2C'!C76 -> 40031927.56 | D17: ='C2C'!D76 -> 56172642 | E17: ='C2C'!E76 -> 56172642 | F17: ='C2C'!F76 -> 6911.11 | G17: ='C2C'!G76 -> 164346.95 | H17: ='C2C'!H76 -> 42129459 | I17: -41965112.05 | J17: -0.9960990017 | K17: ='C2C'!K76 -> 56172642
A18: Road transport | C18: ='C2C'!C87 -> 0 | D18: ='C2C'!D87 -> 0 | E18: ='C2C'!E87 -> 0 | F18: ='C2C'!F87 -> 0 | G18: ='C2C'!G87 -> 21485888.95 | H18: ='C2C'!H87 -> 0 | I18: 21485888.95 | K18: ='C2C'!K87 -> 0
A19: Environmental protection | C19: ='C2C'!C92 -> 0 | D19: ='C2C'!D92 -> 0 | E19: ='C2C'!E92 -> 0 | F19: ='C2C'!F92 -> 0 | G19: ='C2C'!G92 -> 0 | H19: ='C2C'!H92 -> 0 | I19: 0 | K19: ='C2C'!K92 -> 0
A20: Trading services | C20: =SUM(C21:C24) -> 31019919.25 | D20: =SUM(D21:D24) -> 32301514 | E20: 34952586 | F20: 1170677.22 | G20: 24819992.24 | H20: 25286520.8 | I20: -466528.56 | J20: -0.01844969356 | K20: =SUM(K21:K24) -> 34952586
A21: Energy sources | C21: ='C2C'!C100 -> 29076343.92 | D21: ='C2C'!D100 -> 30352837 | E21: ='C2C'!E100 -> 31598909 | F21: ='C2C'!F100 -> 1009730.49 | G21: ='C2C'!G100 -> 20526767.92 | H21: ='C2C'!H100 -> 23263037.8 | I21: =G21-H21 -> -2736269.88 | J21: -0.1176230681 | K21: ='C2C'!K100 -> 31598909
A22: Water management | C22: ='C2C'!C104 -> 206931.24 | D22: ='C2C'!D104 -> 146962 | E22: ='C2C'!E104 -> 146962 | F22: ='C2C'!F104 -> 0 | G22: ='C2C'!G104 -> 69795.58 | H22: ='C2C'!H104 -> 110214 | I22: =G22-H22 -> -40418.42 | J22: -0.3667267316 | K22: ='C2C'!K104 -> 146962
A23: Waste water management | C23: ='C2C'!C108 -> 0 | D23: ='C2C'!D108 -> 365798 | E23: ='C2C'!E108 -> 365798 | F23: ='C2C'!F108 -> 0 | G23: ='C2C'!G108 -> 1886506.05 | H23: ='C2C'!H108 -> 274347 | I23: =G23-H23 -> 1612159.05 | J23: 5.876350206 | K23: ='C2C'!K108 -> 365798
A24: Waste management | C24: ='C2C'!C113 -> 1736644.09 | D24: ='C2C'!D113 -> 1435917 | E24: ='C2C'!E113 -> 2840917 | F24: ='C2C'!F113 -> 160946.73 | G24: ='C2C'!G113 -> 2336922.69 | H24: ='C2C'!H113 -> 1638922 | I24: =G24-H24 -> 698000.69 | J24: 0.4258901217 | K24: ='C2C'!K113 -> 2840917
A25: Other | B25: 4 | C25: ='C2C'!C118 -> 0 | D25: ='C2C'!D118 -> 0 | E25: ='C2C'!E118 -> 0 | F25: ='C2C'!F118 -> 0 | G25: ='C2C'!G118 -> 0 | H25: ='C2C'!H118 -> 0 | I25: =G25-H25 -> 0 | K25: ='C2C'!K118 -> 0
A26: Total Revenue - Functional | B26: 2 | C26: =C6+C10+C16+C20+C25 -> 313663474.1 | D26: =D6+D10+D16+D20+D25 -> 349707555 | E26: 351779987 | F26: 51376856.12 | G26: 282711001.6 | H26: 263109474.8 | I26: 19601526.76 | J26: 0.07449950928 | K26: =K6+K10+K16+K20+K25 -> 351779987
A28: Expenditure - Functional
A29: Governance and administration | C29: =SUM(C30:C32) -> 162515402.7 | D29: 145793806 | E29: 154318370 | F29: 3224788.33 | G29: 104885535.6 | H29: 112791666.6 | I29: =G29-H29 -> -7906130.95 | J29: =IF(I29=0,"",I29/H29) -> -0.07009499186 | K29: =SUM(K30:K32) -> 154318370
A30: Executive and council | C30: ='C2C'!C129 -> 35591736.7 | D30: ='C2C'!D129 -> 41625382 | E30: ='C2C'!E129 -> 43815523 | F30: ='C2C'!F129 -> 470988.55 | G30: ='C2C'!G129 -> 24796472.73 | H30: ='C2C'!H129 -> 32188348.37 | I30: -7391875.64 | J30: =IF(I30=0,"",I30/H30) -> -0.2296444526 | K30: ='C2C'!K129 -> 43815523
A31: Finance and administration | C31: ='C2C'!C132 -> 116176176.7 | D31: ='C2C'!D132 -> 91979689 | E31: ='C2C'!E132 -> 97738179 | F31: ='C2C'!F132 -> 2753799.78 | G31: ='C2C'!G132 -> 70562054.99 | H31: ='C2C'!H132 -> 71359070.94 | I31: -797015.95 | J31: -0.0111690909 | K31: ='C2C'!K132 -> 97738179
A32: Internal audit | C32: ='C2C'!C146 -> 10747489.28 | D32: ='C2C'!D146 -> 12188735 | E32: ='C2C'!E146 -> 12764668 | F32: ='C2C'!F146 -> 0 | G32: ='C2C'!G146 -> 9527007.9 | H32: ='C2C'!H146 -> 9244247.26 | I32: 282760.64 | J32: 0.0305877409 | K32: ='C2C'!K146 -> 12764668
A33: Community and public safety | C33: =SUM(C34:C38) -> 31625084.52 | D33: 32650607 | E33: 31979380 | F33: 39876.92 | G33: 21215805.94 | H33: 24210924.2 | I33: -2995118.26 | J33: -0.1237093733 | K33: =SUM(K34:K38) -> 31979380
A34: Community and social services | C34: ='C2C'!C149 -> 5908411.31 | D34: ='C2C'!D149 -> 10211046 | E34: ='C2C'!E149 -> 9555834 | F34: ='C2C'!F149 -> 0 | G34: ='C2C'!G149 -> 3970286.63 | H34: ='C2C'!H149 -> 7396474.2 | I34: -3426187.57 | J34: -0.4632190254 | K34: ='C2C'!K149 -> 9555834
A35: Sport and recreation | C35: ='C2C'!C171 -> 3591191.65 | D35: ='C2C'!D171 -> 3484575 | E35: ='C2C'!E171 -> 3628560 | F35: ='C2C'!F171 -> 1814.78 | G35: ='C2C'!G171 -> 1877842.81 | H35: ='C2C'!H171 -> 2662113 | I35: -784270.19 | J35: -0.2946043951 | K35: ='C2C'!K171 -> 3628560
A36: Public safety | C36: ='C2C'!C177 -> 22125481.56 | D36: ='C2C'!D177 -> 18954986 | E36: ='C2C'!E177 -> 18794986 | F36: ='C2C'!F177 -> 38062.14 | G36: ='C2C'!G177 -> 15367676.5 | H36: ='C2C'!H177 -> 14152337 | I36: 1215339.5 | J36: 0.0858755342 | K36: ='C2C'!K177 -> 18794986
A37: Housing | C37: ='C2C'!C186 -> 0 | D37: ='C2C'!D186 -> 0 | E37: ='C2C'!E186 -> 0 | F37: ='C2C'!F186 -> 0 | G37: ='C2C'!G186 -> 0 | H37: ='C2C'!H186 -> 0 | I37: 0 | K37: ='C2C'!K186 -> 0
A38: Health | C38: ='C2C'!C189 -> 0 | D38: ='C2C'!D189 -> 0 | E38: ='C2C'!E189 -> 0 | F38: ='C2C'!F189 -> 0 | G38: ='C2C'!G189 -> 0 | H38: ='C2C'!H189 -> 0 | I38: 0 | K38: ='C2C'!K189 -> 0
A39: Economic and environmental services | C39: =SUM(C40:C42) -> 25412846 | D39: 24340871 | E39: 22829717 | F39: 540356.51 | G39: 11730711.39 | H39: 17625498.52 | I39: -5894787.13 | J39: -0.3344465476 | K39: =SUM(K40:K42) -> 22829717
A40: Planning and development | C40: ='C2C'!C198 -> 14645203.04 | D40: ='C2C'!D198 -> 16980667 | E40: ='C2C'!E198 -> 15629513 | F40: ='C2C'!F198 -> 236740.51 | G40: ='C2C'!G198 -> 7719549.42 | H40: ='C2C'!H198 -> 12160303.52 | I40: -4440754.1 | J40: -0.3651844786 | K40: ='C2C'!K198 -> 15629513
A41: Road transport | C41: ='C2C'!C209 -> 10767642.96 | D41: ='C2C'!D209 -> 7360204 | E41: ='C2C'!E209 -> 7200204 | F41: ='C2C'!F209 -> 303616 | G41: ='C2C'!G209 -> 4011161.97 | H41: ='C2C'!H209 -> 5465195 | I41: -1454033.03 | J41: -0.2660532753 | K41: ='C2C'!K209 -> 7200204
A42: Environmental protection | C42: ='C2C'!C214 -> 0 | D42: ='C2C'!D214 -> 0 | E42: ='C2C'!E214 -> 0 | F42: ='C2C'!F214 -> 0 | G42: ='C2C'!G214 -> 0 | H42: ='C2C'!H214 -> 0 | I42: 0 | K42: ='C2C'!K214 -> 0
A43: Trading services | C43: =SUM(C44:C47) -> 89440881.75 | D43: =SUM(D44:D47) -> 82525760 | E43: 84375522 | F43: -12240092.46 | G43: 40691538.06 | H43: 62634677.8 | I43: -21943139.74 | J43: -0.3503353176 | K43: =SUM(K44:K47) -> 84375522
A44: Energy sources | C44: ='C2C'!C222 -> 48671083.35 | D44: ='C2C'!D222 -> 46298999 | E44: ='C2C'!E222 -> 47947380 | F44: ='C2C'!F222 -> -12331230.15 | G44: ='C2C'!G222 -> 17298831.28 | H44: ='C2C'!H222 -> 35383755.4 | I44: -18084924.12 | J44: -0.5111081036 | K44: ='C2C'!K222 -> 47947380
A45: Water management | C45: ='C2C'!C226 -> 7217372.55 | D45: ='C2C'!D226 -> 6631392 | E45: ='C2C'!E226 -> 7480167 | F45: ='C2C'!F226 -> 0 | G45: ='C2C'!G226 -> 4624871.52 | H45: ='C2C'!H226 -> 5313144 | I45: -688272.48 | J45: -0.1295414692 | K45: ='C2C'!K226 -> 7480167
A46: Waste water management | C46: ='C2C'!C230 -> 23385006.33 | D46: ='C2C'!D230 -> 18265366 | E46: ='C2C'!E230 -> 18975477 | F46: ='C2C'!F230 -> 4316.6 | G46: ='C2C'!G230 -> 10747672.03 | H46: ='C2C'!H230 -> 13983196.4 | I46: -3235524.37 | J46: -0.231386607 | K46: ='C2C'!K230 -> 18975477
A47: Waste management | C47: ='C2C'!C235 -> 10167419.52 | D47: ='C2C'!D235 -> 11330003 | E47: ='C2C'!E235 -> 9972498 | F47: ='C2C'!F235 -> 86821.09 | G47: ='C2C'!G235 -> 8020163.23 | H47: ='C2C'!H235 -> 7954582 | I47: 65581.23 | J47: 0.008244459608 | K47: ='C2C'!K235 -> 9972498
A48: Other | C48: ='C2C'!C240 -> 0 | D48: ='C2C'!D240 -> 0 | E48: ='C2C'!E240 -> 0 | F48: ='C2C'!F240 -> 0 | G48: ='C2C'!G240 -> 0 | H48: ='C2C'!H240 -> 0 | I48: 0 | K48: ='C2C'!K240 -> 0
A49: Total Expenditure - Functional | B49: 3 | C49: =C29+C33+C39+C43+C48 -> 308994214.9 | D49: =D29+D33+D39+D43+D48 -> 285311044 | E49: 293502989 | F49: -8435070.7 | G49: 178523591 | H49: 217262767.1 | I49: -38739176.08 | J49: -0.178305637 | K49: =K29+K33+K39+K43+K48 -> 293502989
A50: Surplus/ (Deficit) for the year | C50: =C26-C49 -> 4669259.17 | D50: 64396511 | E50: 58276998 | F50: 59811926.82 | G50: 104187410.6 | H50: 45846707.71 | I50: =I26-I49 -> 58340702.84 | J50: =IF(I50=0,"",I50/H50) -> 1.272516736 | K50: =K26-K49 -> 58276998
A51: =head27a -> References
A52: 1. Government Finance Statistics Functions and Sub-functions are standardised to assist the compilation of national and international accounts for comparison purposes
A53: 2. Total Revenue by functional classification must reconcile to Total Operating Revenue shown in the Financial Performance Statement
A54: 3. Total Expenditure by functional classification must reconcile to total operating expenditure shown in 'Financial Performance Statement'
A55: 4. All amounts must be classified under a functional classification (modified GFS). The GFS function 'Other' is only for Abbatoirs, Air Transport, Licensing and Regulation, Markets and Tourism - and if used must be supported by footnotes. Nothing else may be placed under 'Other'. Assign associate share to relevant classification

Sheet C2C
A1: =muni& " - "&S71A& " - "&date -> LIM353 Molemole - Table C2 Monthly Budget Statement - Financial Performance (functional classification) - Q3 Third Quarter
A2: =desc -> Description | B2: =head27 -> Ref | C2: =Head1 -> 2024/25 | D2: =Head2 -> Budget Year 2025/26
C3: =Head5 -> Audited Outcome | D3: =Head6 -> Original Budget | E3: =Head7 -> Adjusted Budget | F3: =Head38 -> Monthly actual | G3: =Head39 -> YearTD actual | H3: =Head40 -> YearTD budget | I3: =Head41 -> YTD variance | J3: =Head41 -> YTD variance | K3: =Head8 -> Full Year Forecast
A4: R thousands | B4: 1 | J4: %
A5: Revenue - Functional
A6: Municipal governance and administration | C6: =C7+C10+C24 -> 235844658.7 | D6: 247348598 | E6: 248174958 | F6: 49329758.96 | G6: 227618230.1 | H6: 185841919 | I6: =G6-H6 -> 41776311.05 | J6: =IF(I6=0,"",I6/H6) -> 0.2247948755 | K6: =K7+K10+K24 -> 248174958
A7: Executive and council | C7: =SUM(C8:C9) -> 6000 | D7: =SUM(D8:D9) -> 0 | E7: 0 | F7: 0 | G7: 0 | H7: 0 | I7: =G7-H7 -> 0 | J7: =IF(I7=0,"",I7/H7) ->  | K7: 0
A8: Mayor and Council | C8: 6000 | D8: 0 | E8: 0 | F8: 0 | G8: 0 | H8: 0 | I8: 0 | K8: 0
A9: Municipal Manager, Town Secretary and Chief Executive | C9: 0 | D9: 0 | E9: 0 | F9: 0 | G9: 0 | H9: 0 | I9: 0 | K9: 0
A10: Finance and administration | C10: =SUM(C11:C23) -> 235838658.7 | D10: 247348598 | E10: 248114958 | F10: 49329758.96 | G10: 227582146.8 | H10: 185817919 | I10: 41764227.77 | J10: 0.2247588822 | K10: =SUM(K11:K23) -> 248114958
A11: Administrative and Corporate Support | C11: 220752508.4 | D11: 230307351 | E11: 229358051 | F11: 49251820.71 | G11: 220049352.6 | H11: 172350728 | I11: 47698624.55 | J11: 0.2767532525 | K11: 229358051
A12: Asset Management | I12: 0
A13: Finance | C13: 14114986.66 | D13: 16789523 | E13: 16969523 | F13: 3897.87 | G13: 6439883.04 | H13: 12664134 | I13: -6224250.96 | J13: -0.4914865051 | K13: 16969523
A14: Fleet Management | I14: 0
A15: Human Resources | C15: 201121.51 | D15: 251724 | E15: 827384 | F15: 74040.38 | G15: 494212.18 | H15: 419057 | I15: 75155.18 | J15: 0.1793435738 | K15: 827384
A16: Information Technology | C16: 770042.12 | D16: 0 | E16: 900000 | F16: 0 | G16: 563440.72 | H16: 360000 | I16: 203440.72 | J16: 0.5651131111 | K16: 900000
A17: Legal Services | C17: 0 | D17: 0 | E17: 0 | F17: 0 | G17: 0 | H17: 0 | I17: 0 | K17: 0
A18: Marketing, Customer Relations, Publicity and Media Co-ordination | I18: 0
A19: Property Services | I19: 0
A20: Risk Management | C20: 0 | D20: 0 | E20: 0 | F20: 0 | G20: 0 | H20: 0 | I20: 0 | K20: 0
A21: Security Services | I21: 0
A22: Supply Chain Management | C22: 0 | D22: 0 | E22: 60000 | F22: 0 | G22: 35258.28 | H22: 24000 | I22: 11258.28 | J22: 0.469095 | K22: 60000
A23: Valuation Service | I23: 0
A24: Internal audit | C24: =SUM(C25:C25) -> 0 | D24: 0 | E24: 60000 | F24: 0 | G24: 36083.28 | H24: 24000 | I24: 12083.28 | J24: 0.50347 | K24: =SUM(K25:K25) -> 60000
A25: Governance Function | C25: 0 | D25: 0 | E25: 60000 | F25: 0 | G25: 36083.28 | H25: 24000 | I25: 12083.28 | J25: 0.50347 | K25: 60000
A26: Community and public safety | C26: =C27+C49+C55+C64+C67 -> 6766968.61 | D26: =D27+D49+D55+D64+D67 -> 13884801 | E26: =E27+E49+E55+E64+E67 -> 12479801 | F26: =F27+F49+F55+F64+F67 -> 869508.83 | G26: 8622543.37 | H26: 9851576 | I26: -1229032.63 | J26: -0.1247549255 | K26: =K27+K49+K55+K64+K67 -> 12479801
A27: Community and social services | C27: =SUM(C28:C48) -> 1402864 | D27: 1405000 | E27: 0 | F27: 1980 | G27: 5940 | H27: 491747 | I27: -485807 | J27: -0.9879206177 | K27: =SUM(K28:K48) -> 0
A28: Aged Care | I28: 0
A29: Agricultural | I29: 0
A30: Animal Care and Diseases | I30: 0
A31: Cemeteries, Funeral Parlours and Crematoriums | C31: 17850 | D31: 0 | E31: 0 | F31: 1980 | G31: 5940 | H31: 0 | I31: 5940 | K31: 0
A32: Child Care Facilities | I32: 0
A33: Community Halls and Facilities | C33: 1385014 | D33: 1405000 | E33: 0 | F33: 0 | G33: 0 | H33: 491747 | I33: -491747 | J33: -1 | K33: 0
A34: Consumer Protection | I34: 0
A35: Cultural Matters | I35: 0
A36: Disaster Management | I36: 0
A37: Education | I37: 0
A38: Indigenous and Customary Law | I38: 0
A39: Industrial Promotion | I39: 0
A40: Language Policy | I40: 0
A41: Libraries and Archives | C41: 0 | D41: 0 | E41: 0 | F41: 0 | G41: 0 | H41: 0 | I41: 0 | K41: 0
A42: Literacy Programmes | I42: 0
A43: Media Services | I43: 0
A44: Museums and Art Galleries | I44: 0
A45: Population Development | I45: 0
A46: Provincial Cultural Matters | I46: 0
A47: Theatres | I47: 0
A48: Zoo's | I48: 0
A49: Sport and recreation | C49: =SUM(C50:C54) -> 233209.67 | D49: =SUM(D50:D54) -> 332 | E49: 332 | F49: 19345.87 | G49: 328879.75 | H49: 243 | I49: 328636.75 | J49: 1352.414609 | K49: 332
A50: Beaches and Jetties | I50: 0
A51: Casinos, Racing, Gambling, Wagering | I51: 0
A52: Community Parks (including Nurseries) | I52: 0
A53: Recreational Facilities | C53: 233209.67 | D53: 332 | E53: 332 | F53: 19345.87 | G53: 328879.75 | H53: 243 | I53: 328636.75 | J53: 1352.414609 | K53: 332
A54: Sports Grounds and Stadiums | I54: 0
A55: Public safety | C55: =SUM(C56:C63) -> 5130894.94 | D55: =SUM(D56:D63) -> 12479469 | E55: 12479469 | F55: 848182.96 | G55: 8287723.62 | H55: 9359586 | I55: -1071862.38 | J55: -0.1145202769 | K55: 12479469
A56: Civil Defence | I56: 0
A57: Cleansing | I57: 0
A58: Control of Public Nuisances | I58: =G58-H58 -> 0 | J58: =IF(I58=0,"",I58/H58) -> 
A59: Fencing and Fences | I59: 0
A60: Fire Fighting and Protection | I60: 0
A61: Licensing and Control of Animals | I61: =G61-H61 -> 0 | J61: =IF(I61=0,"",I61/H61) -> 
A62: Police Forces, Traffic and Street Parking Control | C62: 5130894.94 | D62: 12479469 | E62: 12479469 | F62: 848182.96 | G62: 8287723.62 | H62: 9359586 | I62: =G62-H62 -> -1071862.38 | J62: =IF(I62=0,"",I62/H62) -> -0.1145202769 | K62: 12479469
A63: Pounds | I63: 0
A64: Housing | C64: =SUM(C65:C66) -> 0 | D64: 0 | E64: 0 | F64: 0 | G64: 0 | H64: 0 | I64: =G64-H64 -> 0 | J64: =IF(I64=0,"",I64/H64) ->  | K64: =SUM(K65:K66) -> 0
A65: Housing | I65: =G65-H65 -> 0 | J65: =IF(I65=0,"",I65/H65) -> 
A66: Informal Settlements | I66: =G66-H66 -> 0 | J66: =IF(I66=0,"",I66/H66) -> 
A67: Health | C67: =SUM(C68:C74) -> 0 | D67: 0 | E67: 0 | F67: 0 | G67: 0 | H67: 0 | I67: 0 | K67: =SUM(K68:K74) -> 0
A68: Ambulance | I68: 0
A69: Health Services | I69: 0
A70: Laboratory Services | I70: =G70-H70 -> 0 | J70: =IF(I70=0,"",I70/H70) -> 
A71: Food Control | I71: =G71-H71 -> 0 | J71: =IF(I71=0,"",I71/H71) -> 
A72: Health Surveillance and Prevention of Communicable Diseases including immunizations | I72: 0
A73: Vector Control | I73: 0
A74: Chemical Safety | I74: 0
A75: Economic and environmental services | C75: =C76+C87+C92 -> 40031927.56 | D75: =D76+D87+D92 -> 56172642 | E75: =E76+E87+E92 -> 56172642 | F75: 6911.11 | G75: 21650235.9 | H75: 42129459 | I75: -20479223.1 | J75: -0.4861022094 | K75: =K76+K87+K92 -> 56172642
A76: Planning and development | C76: =SUM(C77:C86) -> 40031927.56 | D76: 56172642 | E76: 56172642 | F76: 6911.11 | G76: 164346.95 | H76: 42129459 | I76: -41965112.05 | J76: -0.9960990017 | K76: =SUM(K77:K86) -> 56172642
A77: Billboards | I77: =G77-H77 -> 0 | J77: =IF(I77=0,"",I77/H77) -> 
A78: Corporate Wide Strategic Planning (IDPs, LEDs) | C78: 0 | D78: 0 | E78: 0 | F78: 0 | G78: 0 | H78: 0 | I78: 0 | K78: 0
A79: Central City Improvement District | I79: 0
A80: Development Facilitation | I80: =G80-H80 -> 0 | J80: =IF(I80=0,"",I80/H80) -> 
A81: Economic Development/Planning | C81: 94835.76 | D81: 2117445 | E81: 2117445 | F81: 0 | G81: 4800 | H81: 1588077 | I81: =G81-H81 -> -1583277 | J81: =IF(I81=0,"",I81/H81) -> -0.9969774765 | K81: 2117445
A82: Regional Planning and Development | I82: =G82-H82 -> 0 | J82: =IF(I82=0,"",I82/H82) -> 
A83: Town Planning, Building Regulations and Enforcement, and City Engineer | C83: 464679.43 | D83: 1126197 | E83: 1126197 | F83: 6911.11 | G83: 26828.56 | H83: 844641 | I83: =G83-H83 -> -817812.44 | J83: =IF(I83=0,"",I83/H83) -> -0.9682367302 | K83: 1126197
A84: Project Management Unit | C84: 39472412.37 | D84: 52929000 | E84: 52929000 | F84: 0 | G84: 132718.39 | H84: 39696741 | I84: -39564022.61 | J84: -0.9966566931 | K84: 52929000
A85: Provincial Planning | I85: 0
A86: Support to Local Municipalities | I86: 0
A87: Road transport | C87: =SUM(C88:C91) -> 0 | D87: 0 | E87: 0 | F87: 0 | G87: 21485888.95 | H87: 0 | I87: 21485888.95 | K87: =SUM(K88:K91) -> 0
A88: Public Transport | I88: 0
A89: Road and Traffic Regulation | I89: 0
A90: Roads | C90: 0 | D90: 0 | E90: 0 | F90: 0 | G90: 21485888.95 | H90: 0 | I90: 21485888.95 | K90: 0
A91: Taxi Ranks | I91: 0
A92: Environmental protection | C92: =SUM(C93:C98) -> 0 | D92: =SUM(D93:D98) -> 0 | E92: 0 | F92: 0 | G92: 0 | H92: 0 | I92: 0 | K92: 0
A93: Biodiversity and Landscape | I93: 0
A94: Coastal Protection | I94: 0
A95: Indigenous Forests | I95: =G95-H95 -> 0 | J95: =IF(I95=0,"",I95/H95) -> 
A96: Nature Conservation | I96: =G96-H96 -> 0 | J96: =IF(I96=0,"",I96/H96) -> 
A97: Pollution Control | I97: 0
A98: Soil Conservation | I98: 0
A99: Trading services | C99: =C100+C104+C108+C113 -> 31019919.25 | D99: =D100+D104+D108+D113 -> 32301514 | E99: =E100+E104+E108+E113 -> 34952586 | F99: =F100+F104+F108+F113 -> 1170677.22 | G99: =G100+G104+G108+G113 -> 24819992.24 | H99: 25286520.8 | I99: =I100+I104+I108+I113 -> -466528.56 | J99: -0.01844969356 | K99: =K100+K104+K108+K113 -> 34952586
A100: Energy sources | C100: =SUM(C101:C103) -> 29076343.92 | D100: =SUM(D101:D103) -> 30352837 | E100: 31598909 | F100: 1009730.49 | G100: 20526767.92 | H100: 23263037.8 | I100: -2736269.88 | J100: -0.1176230681 | K100: 31598909
A101: Electricity | C101: 29076343.92 | D101: 30352837 | E101: 31598909 | F101: 1009730.49 | G101: 20526767.92 | H101: 23263037.8 | I101: -2736269.88 | J101: -0.1176230681 | K101: 31598909
A102: Street Lighting and Signal Systems | I102: =G102-H102 -> 0 | J102: =IF(I102=0,"",I102/H102) -> 
A103: Nonelectric Energy | I103: 0
A104: Water management | C104: =SUM(C105:C107) -> 206931.24 | D104: =SUM(D105:D107) -> 146962 | E104: 146962 | F104: 0 | G104: 69795.58 | H104: 110214 | I104: -40418.42 | J104: -0.3667267316 | K104: 146962
A105: Water Treatment | I105: 0
A106: Water Distribution | C106: 206931.24 | D106: 146962 | E106: 146962 | F106: 0 | G106: 69795.58 | H106: 110214 | I106: =G106-H106 -> -40418.42 | J106: =IF(I106=0,"",I106/H106) -> -0.3667267316 | K106: 146962
A107: Water Storage | I107: 0
A108: Waste water management | C108: =SUM(C109:C112) -> 0 | D108: =SUM(D109:D112) -> 365798 | E108: 365798 | F108: 0 | G108: 1886506.05 | H108: 274347 | I108: 1612159.05 | J108: 5.876350206 | K108: 365798
A109: Public Toilets | I109: 0
A110: Sewerage | C110: 0 | D110: 365798 | E110: 365798 | F110: 0 | G110: 148882.35 | H110: 274347 | I110: -125464.65 | J110: -0.4573210205 | K110: 365798
A111: Storm Water Management | C111: 0 | D111: 0 | E111: 0 | F111: 0 | G111: 1737623.7 | H111: 0 | I111: =G111-H111 -> 1737623.7 | J111: =IF(I111=0,"",I111/H111) ->  | K111: 0
A112: Waste Water Treatment | I112: 0
A113: Waste management | C113: =SUM(C114:C117) -> 1736644.09 | D113: 1435917 | E113: 2840917 | F113: 160946.73 | G113: 2336922.69 | H113: 1638922 | I113: 698000.69 | J113: 0.4258901217 | K113: =SUM(K114:K117) -> 2840917
A114: Recycling | I114: =G114-H114 -> 0 | J114: =IF(I114=0,"",I114/H114) -> 
A115: Solid Waste Disposal (Landfill Sites) | I115: =G115-H115 -> 0 | J115: =IF(I115=0,"",I115/H115) -> 
A116: Solid Waste Removal | C116: 1736644.09 | D116: 1435917 | E116: 2840917 | F116: 160946.73 | G116: 2336922.69 | H116: 1638922 | I116: 698000.69 | J116: 0.4258901217 | K116: 2840917
A117: Street Cleaning | I117: =G117-H117 -> 0 | J117: =IF(I117=0,"",I117/H117) -> 
A118: Other | C118: =SUM(C119:C124) -> 0 | D118: =SUM(D119:D124) -> 0 | E118: 0 | F118: 0 | G118: 0 | H118: 0 | I118: 0 | K118: 0
A119: Abattoirs | I119: 0
A120: Air Transport | I120: 0
A121: Forestry | I121: =G121-H121 -> 0 | J121: =IF(I121=0,"",I121/H121) -> 
A122: Licensing and Regulation | I122: 0
A123: Markets | I123: 0
A124: Tourism | I124: =G124-H124 -> 0 | J124: =IF(I124=0,"",I124/H124) -> 
A125: ="Total "&A5 -> Total Revenue - Functional | B125: 2 | C125: =C6+C26+C75+C99+C118 -> 313663474.1 | D125: =D6+D26+D75+D99+D118 -> 349707555 | E125: 351779987 | F125: 51376856.12 | G125: 282711001.6 | H125: 263109474.8 | I125: =G125-H125 -> 19601526.76 | J125: =IF(I125=0,"",I125/H125) -> 0.07449950928 | K125: =K6+K26+K75+K99+K118 -> 351779987
A127: Expenditure - Functional
A128: =A6 -> Municipal governance and administration | C128: =C129+C132+C146 -> 162515402.7 | D128: =D129+D132+D146 -> 145793806 | E128: =E129+E132+E146 -> 154318370 | F128: =F129+F132+F146 -> 3224788.33 | G128: 104885535.6 | H128: =H129+H132+H146 -> 112791666.6 | I128: =G128-H128 -> -7906130.95 | J128: =IF(I128=0,"",I128/H128) -> -0.07009499186 | K128: =K129+K132+K146 -> 154318370
A129: Executive and council | C129: =SUM(C130:C131) -> 35591736.7 | D129: 41625382 | E129: 43815523 | F129: 470988.55 | G129: 24796472.73 | H129: 32188348.37 | I129: -7391875.64 | J129: -0.2296444526 | K129: 43815523
A130: Mayor and Council | C130: 24639866.92 | D130: 30390613 | E130: 31966920 | F130: 395026.05 | G130: 17069270.85 | H130: 23423796.8 | I130: -6354525.95 | J130: -0.2712850527 | K130: 31966920
A131: Municipal Manager, Town Secretary and Chief Executive | C131: 10951869.78 | D131: 11234769 | E131: 11848603 | F131: 75962.5 | G131: 7727201.88 | H131: 8764551.57 | I131: -1037349.69 | J131: -0.1183574176 | K131: 11848603
A132: Finance and administration | C132: =SUM(C133:C145) -> 116176176.7 | D132: 91979689 | E132: 97738179 | F132: 2753799.78 | G132: 70562054.99 | H132: 71359070.94 | I132: -797015.95 | J132: -0.0111690909 | K132: =SUM(K133:K145) -> 97738179
A133: Administrative and Corporate Support | C133: 65938252.6 | D133: 37251989 | E133: 35877092 | F133: 1104257.2 | G133: 35019911.76 | H133: 27249254.23 | I133: 7770657.53 | J133: 0.2851695487 | K133: 35877092
A134: Asset Management | I134: 0
A135: Finance | C135: 19450122.2 | D135: 24787656 | E135: 29368835 | F135: 523863.04 | G135: 15864432.37 | H135: 20458483.57 | I135: -4594051.2 | J135: -0.2245548251 | K135: 29368835
A136: Fleet Management | I136: 0
A137: Human Resources | C137: 6645175.63 | D137: 6929696 | E137: 7742103 | F137: 32271.15 | G137: 5116105.44 | H137: 5802345.74 | I137: -686240.3 | J137: -0.1182694604 | K137: 7742103
A138: Information Technology | C138: 11098915.3 | D138: 10037286 | E138: 10213017 | F138: 653915.56 | G138: 5835187.08 | H138: 7493342.4 | I138: -1658155.32 | J138: -0.2212838052 | K138: 10213017
A139: Legal Services | C139: 4790514.56 | D139: 3812174 | E139: 5034773 | F139: 15972.48 | G139: 2627961.49 | H139: 3348240.6 | I139: -720279.11 | J139: -0.2151216702 | K139: 5034773
A140: Marketing, Customer Relations, Publicity and Media Co-ordination | I140: 0
A141: Property Services | I141: 0
A142: Risk Management | C142: 614412.74 | D142: 995097 | E142: 1014578 | F142: 22616 | G142: 566307.68 | H142: 754189.4 | I142: -187881.72 | J142: -0.2491174233 | K142: 1014578
A143: Security Services | I143: 0
A144: Supply Chain Management | C144: 7638783.66 | D144: 8165791 | E144: 8487781 | F144: 400904.35 | G144: 5532149.17 | H144: 6253215 | I144: -721065.83 | J144: -0.1153112167 | K144: 8487781
A145: Valuation Service | I145: 0
A146: Internal audit | C146: =SUM(C147:C147) -> 10747489.28 | D146: 12188735 | E146: 12764668 | F146: 0 | G146: 9527007.9 | H146: 9244247.26 | I146: 282760.64 | J146: 0.0305877409 | K146: =SUM(K147:K147) -> 12764668
A147: Governance Function | C147: 10747489.28 | D147: 12188735 | E147: 12764668 | F147: 0 | G147: 9527007.9 | H147: 9244247.26 | I147: 282760.64 | J147: 0.0305877409 | K147: 12764668
A148: Community and public safety | C148: =C149+C171+C177+C186+C189 -> 31625084.52 | D148: =D149+D171+D177+D186+D189 -> 32650607 | E148: 31979380 | F148: 39876.92 | G148: 21215805.94 | H148: 24210924.2 | I148: -2995118.26 | J148: -0.1237093733 | K148: =K149+K171+K177+K186+K189 -> 31979380
A149: Community and social services | C149: =SUM(C150:C170) -> 5908411.31 | D149: 10211046 | E149: 9555834 | F149: 0 | G149: 3970286.63 | H149: 7396474.2 | I149: -3426187.57 | J149: -0.4632190254 | K149: =SUM(K150:K170) -> 9555834
A150: Aged Care | I150: 0
A151: Agricultural | I151: 0
A152: Animal Care and Diseases | I152: 0
A153: Cemeteries, Funeral Parlours and Crematoriums | C153: 995673.82 | D153: 1398787 | E153: 1369340 | F153: 0 | G153: 660352.54 | H153: 1037360.2 | I153: -377007.66 | J153: -0.3634298482 | K153: 1369340
A154: Child Care Facilities | I154: 0
A155: Community Halls and Facilities | C155: 3123116.27 | D155: 6893499 | E155: 6177211 | F155: 0 | G155: 2159651.9 | H155: 4883759.8 | I155: -2724107.9 | J155: -0.5577890829 | K155: 6177211
A156: Consumer Protection | I156: 0
A157: Cultural Matters | I157: =G157-H157 -> 0 | J157: =IF(I157=0,"",I157/H157) -> 
A158: Disaster Management | I158: =G158-H158 -> 0 | J158: =IF(I158=0,"",I158/H158) -> 
A159: Education | I159: =G159-H159 -> 0 | J159: =IF(I159=0,"",I159/H159) -> 
A160: Indigenous and Customary Law | I160: 0
A161: Industrial Promotion | I161: 0
A162: Language Policy | I162: 0
A163: Libraries and Archives | C163: 1789621.22 | D163: 1918760 | E163: 2009283 | F163: 0 | G163: 1150282.19 | H163: 1475354.2 | I163: -325072.01 | J163: -0.2203348931 | K163: 2009283
A164: Literacy Programmes | I164: 0
A165: Media Services | I165: 0
A166: Museums and Art Galleries | I166: 0
A167: Population Development | I167: 0
A168: Provincial Cultural Matters | I168: 0
A169: Theatres | I169: 0
A170: Zoo's | I170: 0
A171: Sport and recreation | C171: =SUM(C172:C176) -> 3591191.65 | D171: 3484575 | E171: 3628560 | F171: 1814.78 | G171: 1877842.81 | H171: 2662113 | I171: -784270.19 | J171: -0.2946043951 | K171: 3628560
A172: Beaches and Jetties | I172: 0
A173: Casinos, Racing, Gambling, Wagering | I173: 0
A174: Community Parks (including Nurseries) | I174: 0
A175: Recreational Facilities | C175: 3591191.65 | D175: 3484575 | E175: 3628560 | F175: 1814.78 | G175: 1877842.81 | H175: 2662113 | I175: -784270.19 | J175: -0.2946043951 | K175: 3628560
A176: Sports Grounds and Stadiums | I176: 0
A177: Public safety | C177: =SUM(C178:C185) -> 22125481.56 | D177: 18954986 | E177: 18794986 | F177: 38062.14 | G177: 15367676.5 | H177: 14152337 | I177: 1215339.5 | J177: 0.0858755342 | K177: 18794986
A178: Civil Defence | I178: 0
A179: Cleansing | I179: 0
A180: Control of Public Nuisances | I180: =G180-H180 -> 0 | J180: =IF(I180=0,"",I180/H180) -> 
A181: Fencing and Fences | I181: 0
A182: Fire Fighting and Protection | I182: 0
A183: Licensing and Control of Animals | I183: =G183-H183 -> 0 | J183: =IF(I183=0,"",I183/H183) -> 
A184: Police Forces, Traffic and Street Parking Control | C184: 22125481.56 | D184: 18954986 | E184: 18794986 | F184: 38062.14 | G184: 15367676.5 | H184: 14152337 | I184: =G184-H184 -> 1215339.5 | J184: =IF(I184=0,"",I184/H184) -> 0.0858755342 | K184: 18794986
A185: Pounds | I185: 0
A186: Housing | C186: =SUM(C187:C188) -> 0 | D186: 0 | E186: 0 | F186: 0 | G186: 0 | H186: 0 | I186: =G186-H186 -> 0 | J186: =IF(I186=0,"",I186/H186) ->  | K186: =SUM(K187:K188) -> 0
A187: Housing | I187: =G187-H187 -> 0 | J187: =IF(I187=0,"",I187/H187) -> 
A188: Informal Settlements | I188: =G188-H188 -> 0 | J188: =IF(I188=0,"",I188/H188) -> 
A189: Health | C189: =SUM(C190:C196) -> 0 | D189: 0 | E189: 0 | F189: 0 | G189: 0 | H189: 0 | I189: 0 | K189: 0
A190: Ambulance | I190: 0
A191: Health Services | I191: 0
A192: =A70 -> Laboratory Services | I192: 0
A193: Food Control | I193: =G193-H193 -> 0 | J193: =IF(I193=0,"",I193/H193) -> 
A194: Health Surveillance and Prevention of Communicable Diseases including immunizations | I194: =G194-H194 -> 0 | J194: =IF(I194=0,"",I194/H194) -> 
A195: Vector Control | I195: 0
A196: Chemical Safety | I196: 0
A197: Economic and environmental services | C197: =C198+C209+C214 -> 25412846 | D197: 24340871 | E197: 22829717 | F197: 540356.51 | G197: 11730711.39 | H197: 17625498.52 | I197: -5894787.13 | J197: -0.3344465476 | K197: =K198+K209+K214 -> 22829717
A198: Planning and development | C198: =SUM(C199:C208) -> 14645203.04 | D198: 16980667 | E198: 15629513 | F198: 236740.51 | G198: 7719549.42 | H198: 12160303.52 | I198: -4440754.1 | J198: -0.3651844786 | K198: 15629513
A199: Billboards | I199: 0
A200: Corporate Wide Strategic Planning (IDPs, LEDs) | C200: 4352662.78 | D200: 4771219 | E200: 3647409 | F200: 228223.08 | G200: 669760.53 | H200: 3128912 | I200: -2459151.47 | J200: -0.7859445935 | K200: 3647409
A201: Central City Improvement District | I201: 0
... 54 more rows

Sheet C3-FinPerf V
A1: =muni& " - "&S71C& " - "&date -> LIM353 Molemole - Table C3 Monthly Budget Statement - Financial Performance (revenue and expenditure by municipal vote) - Q3 Third Quarter
A2: =Vdesc -> Vote Description | B2: =head27 -> Ref | C2: =Head1 -> 2024/25 | D2: =Head2 -> Budget Year 2025/26
C3: =Head5 -> Audited Outcome | D3: =Head6 -> Original Budget | E3: =Head7 -> Adjusted Budget | F3: =Head38 -> Monthly actual | G3: =Head39 -> YearTD actual | H3: =Head40 -> YearTD budget | I3: =Head41 -> YTD variance | J3: =Head41 -> YTD variance | K3: =Head8 -> Full Year Forecast
A4: R thousands | J4: %
A5: Revenue by Vote | B5: 1
A6: ='Org structure'!A2 -> Vote 01 - Corporate Services | C6: ='C3C'!C6 -> 1957820.13 | D6: ='C3C'!D6 -> 3916995 | E6: ='C3C'!E6 -> 5643355 | F6: ='C3C'!F6 -> 1820612.59 | G6: ='C3C'!G6 -> 2828942.56 | H6: ='C3C'!H6 -> 3628270 | I6: =G6-H6 -> -799327.44 | J6: =IF(I6=0,"",I6/H6) -> -0.2203053907 | K6: ='C3C'!K6 -> 5643355
A7: ='Org structure'!A3 -> Vote 02 - Municipal Manager | C7: ='C3C'!C15 -> 0 | D7: ='C3C'!D15 -> 0 | E7: ='C3C'!E15 -> 60000 | F7: ='C3C'!F15 -> 0 | G7: ='C3C'!G15 -> 36083.28 | H7: ='C3C'!H15 -> 24000 | I7: 12083.28 | J7: 0.50347 | K7: ='C3C'!K15 -> 60000
A8: ='Org structure'!A4 -> Vote 03 - Mayors Office | C8: ='C3C'!C21 -> 0 | D8: ='C3C'!D21 -> 0 | E8: ='C3C'!E21 -> 0 | F8: ='C3C'!F21 -> 0 | G8: ='C3C'!G21 -> 0 | H8: ='C3C'!H21 -> 0 | I8: 0 | K8: ='C3C'!K21 -> 0
A9: ='Org structure'!A5 -> Vote 04 - Budget And Treasury | C9: ='C3C'!C27 -> 234446353.8 | D9: ='C3C'!D27 -> 246675245 | E9: ='C3C'!E27 -> 245715245 | F9: ='C3C'!F27 -> 47516057.48 | G9: ='C3C'!G27 -> 224784832.8 | H9: ='C3C'!H27 -> 184622367 | I9: 40162465.77 | J9: 0.217538462 | K9: ='C3C'!K27 -> 245715245
A10: ='Org structure'!A6 -> Vote 05 - Community Services | C10: ='C3C'!C34 -> 8503612.7 | D10: ='C3C'!D34 -> 15320718 | E10: ='C3C'!E34 -> 15320718 | F10: ='C3C'!F34 -> 1030455.56 | G10: ='C3C'!G34 -> 10959466.06 | H10: ='C3C'!H34 -> 11490498 | I10: -531031.94 | J10: -0.04621487598 | K10: ='C3C'!K34 -> 15320718
A11: ='Org structure'!A7 -> Vote 06 - Technical Services | C11: ='C3C'!C41 -> 68755687.53 | D11: ='C3C'!D41 -> 83794597 | E11: ='C3C'!E41 -> 85040669 | F11: ='C3C'!F41 -> 1009730.49 | G11: ='C3C'!G41 -> 44101676.89 | H11: ='C3C'!H41 -> 63344339.8 | I11: -19242662.91 | J11: -0.303778727 | K11: ='C3C'!K41 -> 85040669
A12: ='Org structure'!A8 -> Vote 07 - | C12: ='C3C'!C50 -> 0 | D12: ='C3C'!D50 -> 0 | E12: ='C3C'!E50 -> 0 | F12: ='C3C'!F50 -> 0 | G12: ='C3C'!G50 -> 0 | H12: ='C3C'!H50 -> 0 | I12: =G12-H12 -> 0 | J12: =IF(I12=0,"",I12/H12) ->  | K12: ='C3C'!K50 -> 0
A13: ='Org structure'!A9 -> Vote 08 - | C13: ='C3C'!C51 -> 0 | D13: ='C3C'!D51 -> 0 | E13: ='C3C'!E51 -> 0 | F13: ='C3C'!F51 -> 0 | G13: ='C3C'!G51 -> 0 | H13: ='C3C'!H51 -> 0 | I13: 0 | K13: ='C3C'!K51 -> 0
A14: ='Org structure'!A10 -> Vote 09 - | C14: ='C3C'!C52 -> 0 | D14: ='C3C'!D52 -> 0 | E14: ='C3C'!E52 -> 0 | F14: ='C3C'!F52 -> 0 | G14: ='C3C'!G52 -> 0 | H14: ='C3C'!H52 -> 0 | I14: 0 | K14: ='C3C'!K52 -> 0
A15: ='Org structure'!A11 -> Vote 10 - | C15: ='C3C'!C53 -> 0 | D15: ='C3C'!D53 -> 0 | E15: ='C3C'!E53 -> 0 | F15: ='C3C'!F53 -> 0 | G15: ='C3C'!G53 -> 0 | H15: ='C3C'!H53 -> 0 | I15: 0 | K15: ='C3C'!K53 -> 0
A16: ='Org structure'!A12 -> Vote 11 - | C16: ='C3C'!C54 -> 0 | D16: ='C3C'!D54 -> 0 | E16: ='C3C'!E54 -> 0 | F16: ='C3C'!F54 -> 0 | G16: ='C3C'!G54 -> 0 | H16: ='C3C'!H54 -> 0 | I16: 0 | K16: ='C3C'!K54 -> 0
A17: ='Org structure'!A13 -> Vote 12 - | C17: ='C3C'!C55 -> 0 | D17: ='C3C'!D55 -> 0 | E17: ='C3C'!E55 -> 0 | F17: ='C3C'!F55 -> 0 | G17: ='C3C'!G55 -> 0 | H17: ='C3C'!H55 -> 0 | I17: 0 | K17: ='C3C'!K55 -> 0
A18: ='Org structure'!A14 -> Vote 13 - | C18: ='C3C'!C56 -> 0 | D18: ='C3C'!D56 -> 0 | E18: ='C3C'!E56 -> 0 | F18: ='C3C'!F56 -> 0 | G18: ='C3C'!G56 -> 0 | H18: ='C3C'!H56 -> 0 | I18: 0 | K18: ='C3C'!K56 -> 0
A19: ='Org structure'!A15 -> Vote 14 - | C19: ='C3C'!C57 -> 0 | D19: ='C3C'!D57 -> 0 | E19: ='C3C'!E57 -> 0 | F19: ='C3C'!F57 -> 0 | G19: ='C3C'!G57 -> 0 | H19: ='C3C'!H57 -> 0 | I19: 0 | K19: ='C3C'!K57 -> 0
A20: ='Org structure'!A16 -> Vote 15 - Other | C20: ='C3C'!C58 -> 0 | D20: ='C3C'!D58 -> 0 | E20: ='C3C'!E58 -> 0 | F20: ='C3C'!F58 -> 0 | G20: ='C3C'!G58 -> 0 | H20: ='C3C'!H58 -> 0 | I20: 0 | K20: ='C3C'!K58 -> 0
A21: Total Revenue by Vote | B21: 2 | C21: =SUM(C6:C20) -> 313663474.1 | D21: =SUM(D6:D20) -> 349707555 | E21: 351779987 | F21: 51376856.12 | G21: 282711001.6 | H21: 263109474.8 | I21: 19601526.76 | J21: 0.07449950928 | K21: =SUM(K6:K20) -> 351779987
A23: Expenditure by Vote | B23: 1
A24: ='Org structure'!A2 -> Vote 01 - Corporate Services | C24: ='C3C'!C62 -> 63325473.25 | D24: ='C3C'!D62 -> 67364632 | E24: ='C3C'!E62 -> 67641759 | F24: ='C3C'!F62 -> 1521487.46 | G24: ='C3C'!G62 -> 38952484.2 | H24: ='C3C'!H62 -> 50809915.83 | I24: =G24-H24 -> -11857431.63 | J24: =IF(I24=0,"",I24/H24) -> -0.2333684565 | K24: ='C3C'!K62 -> 67641759
A25: ='Org structure'!A3 -> Vote 02 - Municipal Manager | C25: ='C3C'!C71 -> 27104286.36 | D25: ='C3C'!D71 -> 28230775 | E25: ='C3C'!E71 -> 30662622 | F25: ='C3C'!F71 -> 114550.98 | G25: ='C3C'!G71 -> 20448478.95 | H25: ='C3C'!H71 -> 22111228.83 | I25: -1662749.88 | J25: -0.07519934296 | K25: ='C3C'!K71 -> 30662622
A26: ='Org structure'!A4 -> Vote 03 - Mayors Office | C26: ='C3C'!C77 -> 17205165.64 | D26: ='C3C'!D77 -> 20443276 | E26: ='C3C'!E77 -> 20345171 | F26: ='C3C'!F77 -> 76302.45 | G26: ='C3C'!G77 -> 11571156.6 | H26: ='C3C'!H77 -> 15293410 | I26: -3722253.4 | J26: -0.2433893684 | K26: ='C3C'!K77 -> 20345171
A27: ='Org structure'!A5 -> Vote 04 - Budget And Treasury | C27: ='C3C'!C83 -> 64583665.67 | D27: ='C3C'!D83 -> 40970823 | E27: ='C3C'!E83 -> 45706992 | F27: ='C3C'!F83 -> 1480364.85 | G27: ='C3C'!G83 -> 38502573 | H27: ='C3C'!H83 -> 32483014.63 | I27: 6019558.37 | J27: 0.1853140307 | K27: ='C3C'!K83 -> 45706992
A28: ='Org structure'!A6 -> Vote 05 - Community Services | C28: ='C3C'!C90 -> 41798936.96 | D28: ='C3C'!D90 -> 43980610 | E28: ='C3C'!E90 -> 41951878 | F28: ='C3C'!F90 -> 127280.08 | G28: ='C3C'!G90 -> 29240625.73 | H28: ='C3C'!H90 -> 32165506.2 | I28: -2924880.47 | J28: -0.09093220706 | K28: ='C3C'!K90 -> 41951878
A29: ='Org structure'!A7 -> Vote 06 - Technical Services | C29: ='C3C'!C97 -> 94976687.06 | D29: ='C3C'!D97 -> 84320928 | E29: ='C3C'!E97 -> 87194567 | F29: ='C3C'!F97 -> -11755056.52 | G29: ='C3C'!G97 -> 39808272.53 | H29: ='C3C'!H97 -> 64399691.6 | I29: -24591419.07 | J29: -0.381856162 | K29: ='C3C'!K97 -> 87194567
A30: ='Org structure'!A8 -> Vote 07 - | C30: ='C3C'!C106 -> 0 | D30: ='C3C'!D106 -> 0 | E30: ='C3C'!E106 -> 0 | F30: ='C3C'!F106 -> 0 | G30: ='C3C'!G106 -> 0 | H30: ='C3C'!H106 -> 0 | I30: =G30-H30 -> 0 | J30: =IF(I30=0,"",I30/H30) ->  | K30: ='C3C'!K106 -> 0
A31: ='Org structure'!A9 -> Vote 08 - | C31: ='C3C'!C107 -> 0 | D31: ='C3C'!D107 -> 0 | E31: ='C3C'!E107 -> 0 | F31: ='C3C'!F107 -> 0 | G31: ='C3C'!G107 -> 0 | H31: ='C3C'!H107 -> 0 | I31: 0 | K31: ='C3C'!K107 -> 0
A32: ='Org structure'!A10 -> Vote 09 - | C32: ='C3C'!C108 -> 0 | D32: ='C3C'!D108 -> 0 | E32: ='C3C'!E108 -> 0 | F32: ='C3C'!F108 -> 0 | G32: ='C3C'!G108 -> 0 | H32: ='C3C'!H108 -> 0 | I32: 0 | K32: ='C3C'!K108 -> 0
A33: ='Org structure'!A11 -> Vote 10 - | C33: ='C3C'!C109 -> 0 | D33: ='C3C'!D109 -> 0 | E33: ='C3C'!E109 -> 0 | F33: ='C3C'!F109 -> 0 | G33: ='C3C'!G109 -> 0 | H33: ='C3C'!H109 -> 0 | I33: 0 | J33: =IF(I33=0,"",I33/H33) ->  | K33: ='C3C'!K109 -> 0
A34: ='Org structure'!A12 -> Vote 11 - | C34: ='C3C'!C110 -> 0 | D34: ='C3C'!D110 -> 0 | E34: ='C3C'!E110 -> 0 | F34: ='C3C'!F110 -> 0 | G34: ='C3C'!G110 -> 0 | H34: ='C3C'!H110 -> 0 | I34: 0 | J34: =IF(I34=0,"",I34/H34) ->  | K34: ='C3C'!K110 -> 0
A35: ='Org structure'!A13 -> Vote 12 - | C35: ='C3C'!C111 -> 0 | D35: ='C3C'!D111 -> 0 | E35: ='C3C'!E111 -> 0 | F35: ='C3C'!F111 -> 0 | G35: ='C3C'!G111 -> 0 | H35: ='C3C'!H111 -> 0 | I35: 0 | J35: =IF(I35=0,"",I35/H35) ->  | K35: ='C3C'!K111 -> 0
A36: ='Org structure'!A14 -> Vote 13 - | C36: ='C3C'!C112 -> 0 | D36: ='C3C'!D112 -> 0 | E36: ='C3C'!E112 -> 0 | F36: ='C3C'!F112 -> 0 | G36: ='C3C'!G112 -> 0 | H36: ='C3C'!H112 -> 0 | I36: 0 | J36: =IF(I36=0,"",I36/H36) ->  | K36: ='C3C'!K112 -> 0
A37: ='Org structure'!A15 -> Vote 14 - | C37: ='C3C'!C113 -> 0 | D37: ='C3C'!D113 -> 0 | E37: ='C3C'!E113 -> 0 | F37: ='C3C'!F113 -> 0 | G37: ='C3C'!G113 -> 0 | H37: ='C3C'!H113 -> 0 | I37: 0 | J37: =IF(I37=0,"",I37/H37) ->  | K37: ='C3C'!K113 -> 0
A38: ='Org structure'!A16 -> Vote 15 - Other | C38: ='C3C'!C114 -> 0 | D38: ='C3C'!D114 -> 0 | E38: ='C3C'!E114 -> 0 | F38: ='C3C'!F114 -> 0 | G38: ='C3C'!G114 -> 0 | H38: ='C3C'!H114 -> 0 | I38: 0 | K38: ='C3C'!K114 -> 0
A39: Total Expenditure by Vote | B39: 2 | C39: =SUM(C24:C38) -> 308994214.9 | D39: =SUM(D24:D38) -> 285311044 | E39: 293502989 | F39: -8435070.7 | G39: 178523591 | H39: 217262767.1 | I39: -38739176.08 | J39: =IF(I39=0,"",I39/H39) -> -0.178305637 | K39: =SUM(K24:K38) -> 293502989
A40: =result -> Surplus/ (Deficit) for the year | B40: 2 | C40: =C21-C39 -> 4669259.17 | D40: 64396511 | E40: 58276998 | F40: 59811926.82 | G40: 104187410.6 | H40: 45846707.71 | I40: =I21-I39 -> 58340702.84 | J40: =IF(I40=0,"",I40/H40) -> 1.272516736 | K40: =K21-K39 -> 58276998
A41: =head27a -> References
A42: 1. Insert 'Vote'; e.g. Department, if different to standard classification structure
A43: 2. Must reconcile to Monthly Budget Statement - Financial Performance Statement (standard classification)

Sheet C3C
A1: =muni& " - "&S71C& " - "&"A"& " - "&date -> LIM353 Molemole - Table C3 Monthly Budget Statement - Financial Performance (revenue and expenditure by municipal vote) - A - Q3 Third Quarter
A2: =Vdesc -> Vote Description | B2: =head27 -> Ref | C2: =Head1 -> 2024/25 | D2: =Head2 -> Budget Year 2025/26 | L2: =Head4 -> 
A3: R thousand | C3: =Head5 -> Audited Outcome | D3: =Head6 -> Original Budget | E3: =Head7 -> Adjusted Budget | F3: =Head38 -> Monthly actual | G3: =Head39 -> YearTD actual | H3: =Head40 -> YearTD budget | I3: =Head41 -> YTD variance | J3: =Head41 -> YTD variance | K3: =Head8 -> Full Year Forecast | L3: =Head12 -> Forecast 2010/11 | M3: =Head13 -> Forecast 2011/12 | N3: =Head14 -> Forecast 2012/13 | O3: =Head15 -> Forecast 2013/14 | P3: =Head16 -> Forecast 2014/15 | Q3: =Head17 -> Forecast 2015/16 | R3: =Head18 -> Forecast 2016/17 | S3: =Head19 -> Forecast 2017/18 | T3: =Head20 -> Forecast 2018/19 | U3: =Head21 -> Forecast 2019/20 | V3: =Head22 -> Forecast 2020/21 | W3: =Head23 -> Forecast 2021/22
J4: %
A5: Revenue by Vote | B5: 1
A6: ='Org structure'!A2 -> Vote 01 - Corporate Services | C6: =SUM(C7:C14) -> 1957820.13 | D6: 3916995 | E6: 5643355 | F6: 1820612.59 | G6: 2828942.56 | H6: 3628270 | I6: =G6-H6 -> -799327.44 | J6: =IF(I6=0,"",I6/H6) -> -0.2203053907 | K6: =SUM(K7:K14) -> 5643355
A7: ='Org structure'!E3 -> 01.1 - Corporate Services Admin | C7: 421141.31 | D7: 421629 | E7: 672329 | F7: 1739661.1 | G7: 1739661.1 | H7: 416495 | I7: =G7-H7 -> 1323166.1 | J7: =IF(I7=0,"",I7/H7) -> 3.176907526 | K7: 672329
A8: ='Org structure'!E4 -> 01.2 - Human Resources | C8: 201121.51 | D8: 251724 | E8: 827384 | F8: 74040.38 | G8: 494212.18 | H8: 419057 | I8: 75155.18 | J8: 0.1793435738 | K8: 827384
A9: ='Org structure'!E5 -> 01.3 - Information Technology Services | C9: 770042.12 | D9: 0 | E9: 900000 | F9: 0 | G9: 563440.72 | H9: 360000 | I9: 203440.72 | J9: 0.5651131111 | K9: 900000
A10: ='Org structure'!E6 -> 01.4 - Council Support | C10: 6000 | D10: 0 | E10: 0 | F10: 0 | G10: 0 | H10: 0 | I10: 0 | K10: 0
A11: ='Org structure'!E7 -> 01.5 - Local Economic Development | C11: 94835.76 | D11: 2117445 | E11: 2117445 | F11: 0 | G11: 4800 | H11: 1588077 | I11: -1583277 | J11: -0.9969774765 | K11: 2117445
A12: ='Org structure'!E8 -> 01.6 - Municipal Planning Idp | C12: 0 | D12: 0 | E12: 0 | F12: 0 | G12: 0 | H12: 0 | I12: 0 | K12: 0
A13: ='Org structure'!E9 -> 01.7 - Town & Regional Planning | C13: 464679.43 | D13: 1126197 | E13: 1126197 | F13: 6911.11 | G13: 26828.56 | H13: 844641 | I13: -817812.44 | J13: -0.9682367302 | K13: 1126197
A14: ='Org structure'!E10 -> 01.8 - Led Administration | C14: 0 | D14: 0 | E14: 0 | F14: 0 | G14: 0 | H14: 0 | I14: 0 | K14: 0
A15: ='Org structure'!A3 -> Vote 02 - Municipal Manager | C15: =SUM(C16:C20) -> 0 | D15: 0 | E15: 60000 | F15: 0 | G15: 36083.28 | H15: 24000 | I15: 12083.28 | J15: 0.50347 | K15: =SUM(K16:K20) -> 60000
A16: ='Org structure'!E12 -> 02.1 - Municipal Manager Admin | C16: 0 | D16: 0 | E16: 0 | F16: 0 | G16: 0 | H16: 0 | I16: =G16-H16 -> 0 | J16: =IF(I16=0,"",I16/H16) ->  | K16: 0
A17: ='Org structure'!E13 -> 02.2 - Legal Services | C17: 0 | D17: 0 | E17: 0 | F17: 0 | G17: 0 | H17: 0 | I17: =G17-H17 -> 0 | J17: =IF(I17=0,"",I17/H17) ->  | K17: 0
A18: ='Org structure'!E14 -> 02.3 - Political Office Beares | C18: 0 | D18: 0 | E18: 0 | F18: 0 | G18: 0 | H18: 0 | I18: =G18-H18 -> 0 | J18: =IF(I18=0,"",I18/H18) ->  | K18: 0
A19: ='Org structure'!E15 -> 02.4 - Pms | C19: 0 | D19: 0 | E19: 0 | F19: 0 | G19: 0 | H19: 0 | I19: =G19-H19 -> 0 | J19: =IF(I19=0,"",I19/H19) ->  | K19: 0
A20: ='Org structure'!E16 -> 02.5 - Internal Audit | C20: 0 | D20: 0 | E20: 60000 | F20: 0 | G20: 36083.28 | H20: 24000 | I20: =G20-H20 -> 12083.28 | J20: =IF(I20=0,"",I20/H20) -> 0.50347 | K20: 60000
A21: ='Org structure'!A4 -> Vote 03 - Mayors Office | C21: =SUM(C22:C26) -> 0 | D21: 0 | E21: 0 | F21: 0 | G21: 0 | H21: 0 | I21: 0 | K21: =SUM(K22:K26) -> 0
A22: ='Org structure'!E18 -> 03.1 - Mayors Office Admin | C22: 0 | D22: 0 | E22: 0 | F22: 0 | G22: 0 | H22: 0 | I22: =G22-H22 -> 0 | J22: =IF(I22=0,"",I22/H22) ->  | K22: 0
A23: ='Org structure'!E19 -> 03.2 - Office Of The Speaker | C23: 0 | D23: 0 | E23: 0 | F23: 0 | G23: 0 | H23: 0 | I23: =G23-H23 -> 0 | J23: =IF(I23=0,"",I23/H23) ->  | K23: 0
A24: ='Org structure'!E20 -> 03.3 - Office Of The Chief Whip | C24: 0 | D24: 0 | E24: 0 | F24: 0 | G24: 0 | H24: 0 | I24: =G24-H24 -> 0 | J24: =IF(I24=0,"",I24/H24) ->  | K24: 0
A25: ='Org structure'!E21 -> 03.4 - Exco Members | C25: 0 | D25: 0 | E25: 0 | F25: 0 | G25: 0 | H25: 0 | I25: =G25-H25 -> 0 | J25: =IF(I25=0,"",I25/H25) ->  | K25: 0
A26: ='Org structure'!E22 -> 03.5 - Council General Administration | C26: 0 | D26: 0 | E26: 0 | F26: 0 | G26: 0 | H26: 0 | I26: =G26-H26 -> 0 | J26: =IF(I26=0,"",I26/H26) ->  | K26: 0
A27: ='Org structure'!A5 -> Vote 04 - Budget And Treasury | C27: =SUM(C28:C33) -> 234446353.8 | D27: 246675245 | E27: 245715245 | F27: 47516057.48 | G27: 224784832.8 | H27: 184622367 | I27: 40162465.77 | J27: 0.217538462 | K27: =SUM(K28:K33) -> 245715245
A28: ='Org structure'!E24 -> 04.1 - Budget And Treasury Admin | C28: 220331367.1 | D28: 229885722 | E28: 228685722 | F28: 47512159.61 | G28: 218309691.4 | H28: 171934233 | I28: =G28-H28 -> 46375458.45 | J28: =IF(I28=0,"",I28/H28) -> 0.2697278933 | K28: 228685722
A29: ='Org structure'!E25 -> 04.2 - Chief Financial Officer Admin | C29: 0 | D29: 0 | E29: 0 | F29: 0 | G29: 0 | H29: 0 | I29: 0 | K29: 0
A30: ='Org structure'!E26 -> 04.3 - Budget & Reporting | C30: 13918817.93 | D30: 16695504 | E30: 16755504 | F30: 0 | G30: 6338070.8 | H30: 12545628 | I30: -6207557.2 | J30: -0.4947984429 | K30: 16755504
A31: ='Org structure'!E27 -> 04.4 - Revenue Management | C31: 196168.73 | D31: 94019 | E31: 154019 | F31: 3897.87 | G31: 65953.96 | H31: 94506 | I31: -28552.04 | J31: -0.3021188073 | K31: 154019
A32: ='Org structure'!E28 -> 04.5 - Supply Chain Management | C32: 0 | D32: 0 | E32: 60000 | F32: 0 | G32: 35258.28 | H32: 24000 | I32: 11258.28 | J32: 0.469095 | K32: 60000
A33: ='Org structure'!E29 -> 04.6 - Expenditure | C33: 0 | D33: 0 | E33: 60000 | F33: 0 | G33: 35858.28 | H33: 24000 | I33: 11858.28 | J33: 0.494095 | K33: 60000
A34: ='Org structure'!A6 -> Vote 05 - Community Services | C34: =SUM(C35:C40) -> 8503612.7 | D34: 15320718 | E34: 15320718 | F34: 1030455.56 | G34: 10959466.06 | H34: 11490498 | I34: -531031.94 | J34: -0.04621487598 | K34: =SUM(K35:K40) -> 15320718
A35: ='Org structure'!E31 -> 05.1 - Community Services Admin | C35: 1385014 | D35: 1405000 | E35: 0 | F35: 0 | G35: 0 | H35: 491747 | I35: =G35-H35 -> -491747 | J35: =IF(I35=0,"",I35/H35) -> -1 | K35: 0
A36: ='Org structure'!E32 -> 05.2 - Libraries | C36: 0 | D36: 0 | E36: 0 | F36: 0 | G36: 0 | H36: 0 | I36: 0 | K36: 0
A37: ='Org structure'!E33 -> 05.3 - Sports Recreation & Social Amenitie | C37: 233209.67 | D37: 332 | E37: 332 | F37: 19345.87 | G37: 328879.75 | H37: 243 | I37: 328636.75 | J37: 1352.414609 | K37: 332
A38: ='Org structure'!E34 -> 05.4 - Traffic Service | C38: 5130894.94 | D38: 12479469 | E38: 12479469 | F38: 848182.96 | G38: 8287723.62 | H38: 9359586 | I38: -1071862.38 | J38: -0.1145202769 | K38: 12479469
A39: ='Org structure'!E35 -> 05.5 - Parks; Cemeteries | C39: 17850 | D39: 0 | E39: 0 | F39: 1980 | G39: 5940 | H39: 0 | I39: 5940 | K39: 0
A40: ='Org structure'!E36 -> 05.6 - Refuse | C40: 1736644.09 | D40: 1435917 | E40: 2840917 | F40: 160946.73 | G40: 2336922.69 | H40: 1638922 | I40: 698000.69 | J40: 0.4258901217 | K40: 2840917
A41: ='Org structure'!A7 -> Vote 06 - Technical Services | C41: =SUM(C42:C49) -> 68755687.53 | D41: 83794597 | E41: 85040669 | F41: 1009730.49 | G41: 44101676.89 | H41: 63344339.8 | I41: -19242662.91 | J41: -0.303778727 | K41: =SUM(K42:K49) -> 85040669
A42: ='Org structure'!E38 -> 06.1 - Mpac | C42: 0 | D42: 0 | E42: 0 | F42: 0 | G42: 0 | H42: 0 | I42: =G42-H42 -> 0 | J42: =IF(I42=0,"",I42/H42) ->  | K42: 0
A43: ='Org structure'!E39 -> 06.2 - Technical Services Admin | C43: 0 | D43: 0 | E43: 0 | F43: 0 | G43: 0 | H43: 0 | I43: 0 | K43: 0
A44: ='Org structure'!E40 -> 06.3 - Techn Serv-Roads: Admin | C44: 0 | D44: 0 | E44: 0 | F44: 0 | G44: 21485888.95 | H44: 0 | I44: 21485888.95 | K44: 0
A45: ='Org structure'!E41 -> 06.4 - Techn Serv-Stormwater: Admin | C45: 0 | D45: 0 | E45: 0 | F45: 0 | G45: 1737623.7 | H45: 0 | I45: 1737623.7 | K45: 0
A46: ='Org structure'!E42 -> 06.5 - Project Management Unit | C46: 39472412.37 | D46: 52929000 | E46: 52929000 | F46: 0 | G46: 132718.39 | H46: 39696741 | I46: -39564022.61 | J46: -0.9966566931 | K46: 52929000
A47: ='Org structure'!E43 -> 06.6 - Electrical & Machinery | C47: 29076343.92 | D47: 30352837 | E47: 31598909 | F47: 1009730.49 | G47: 20526767.92 | H47: 23263037.8 | I47: -2736269.88 | J47: -0.1176230681 | K47: 31598909
A48: ='Org structure'!E44 -> 06.7 - Water | C48: 206931.24 | D48: 146962 | E48: 146962 | F48: 0 | G48: 69795.58 | H48: 110214 | I48: -40418.42 | J48: -0.3667267316 | K48: 146962
A49: ='Org structure'!E45 -> 06.8 - Sanitation | C49: 0 | D49: 365798 | E49: 365798 | F49: 0 | G49: 148882.35 | H49: 274347 | I49: -125464.65 | J49: -0.4573210205 | K49: 365798
A50: ='Org structure'!A8 -> Vote 07 - | C50: 0 | D50: 0 | E50: 0 | F50: 0 | G50: 0 | H50: 0 | I50: =G50-H50 -> 0 | J50: =IF(I50=0,"",I50/H50) ->  | K50: 0
A51: ='Org structure'!A9 -> Vote 08 - | C51: 0 | D51: 0 | E51: 0 | F51: 0 | G51: 0 | H51: 0 | I51: 0 | K51: 0
A52: ='Org structure'!A10 -> Vote 09 - | C52: 0 | D52: 0 | E52: 0 | F52: 0 | G52: 0 | H52: 0 | I52: 0 | K52: 0
A53: ='Org structure'!A11 -> Vote 10 - | C53: 0 | D53: 0 | E53: 0 | F53: 0 | G53: 0 | H53: 0 | I53: 0 | K53: 0
A54: ='Org structure'!A12 -> Vote 11 - | C54: 0 | D54: 0 | E54: 0 | F54: 0 | G54: 0 | H54: 0 | I54: 0 | K54: 0
A55: ='Org structure'!A13 -> Vote 12 - | C55: 0 | D55: 0 | E55: 0 | F55: 0 | G55: 0 | H55: 0 | I55: 0 | K55: 0
A56: ='Org structure'!A14 -> Vote 13 - | C56: 0 | D56: 0 | E56: 0 | F56: 0 | G56: 0 | H56: 0 | I56: =G56-H56 -> 0 | J56: =IF(I56=0,"",I56/H56) ->  | K56: 0
A57: ='Org structure'!A15 -> Vote 14 - | C57: 0 | D57: 0 | E57: 0 | F57: 0 | G57: 0 | H57: 0 | I57: 0 | K57: 0
A58: ='Org structure'!A16 -> Vote 15 - Other | C58: 0 | D58: 0 | E58: 0 | F58: 0 | G58: 0 | H58: 0 | I58: 0 | K58: 0
A59: Total Revenue by Vote | B59: 2 | C59: =C6+C15+C21+C27+C34+C41+C50+C51+C52+C53+C54+C55+C56+C57+C58 -> 313663474.1 | D59: 349707555 | E59: 351779987 | F59: 51376856.12 | G59: 282711001.6 | H59: 263109474.8 | I59: 19601526.76 | J59: 0.07449950928 | K59: =K6+K15+K21+K27+K34+K41+K50+K51+K52+K53+K54+K55+K56+K57+K58 -> 351779987
I60: 0
A61: Expenditure by Vote | B61: 1 | I61: 0
A62: ='Org structure'!A2 -> Vote 01 - Corporate Services | C62: =SUM(C63:C70) -> 63325473.25 | D62: 67364632 | E62: 67641759 | F62: 1521487.46 | G62: 38952484.2 | H62: 50809915.83 | I62: -11857431.63 | J62: -0.2333684565 | K62: =SUM(K63:K70) -> 67641759
A63: ='Org structure'!E3 -> 01.1 - Corporate Services Admin | C63: 28437059.87 | D63: 29234613 | E63: 28026716 | F63: 548077.67 | G63: 17909263.74 | H63: 21477938.17 | I63: =G63-H63 -> -3568674.43 | J63: =IF(I63=0,"",I63/H63) -> -0.1661553545 | K63: 28026716
A64: ='Org structure'!E4 -> 01.2 - Human Resources | C64: 6645175.63 | D64: 6929696 | E64: 7742103 | F64: 32271.15 | G64: 5116105.44 | H64: 5802345.74 | I64: -686240.3 | J64: -0.1182694604 | K64: 7742103
A65: ='Org structure'!E5 -> 01.3 - Information Technology Services | C65: 11098915.3 | D65: 10037286 | E65: 10213017 | F65: 653915.56 | G65: 5835187.08 | H65: 7493342.4 | I65: -1658155.32 | J65: -0.2212838052 | K65: 10213017
A66: ='Org structure'!E6 -> 01.4 - Council Support | C66: 5709736.79 | D66: 7657441 | E66: 9323193 | F66: 59000 | G66: 4270611.2 | H66: 6409461.8 | I66: -2138850.6 | J66: -0.333702059 | K66: 9323193
A67: ='Org structure'!E7 -> 01.5 - Local Economic Development | C67: 4868658.36 | D67: 5943210 | E67: 5961629 | F67: 0 | G67: 3100455.96 | H67: 4447369.66 | I67: -1346913.7 | J67: -0.3028562505 | K67: 5961629
A68: ='Org structure'!E8 -> 01.6 - Municipal Planning Idp | C68: 3709782.72 | D68: 3971219 | E68: 2847409 | F68: 228223.08 | G68: 669760.53 | H68: 2528909 | I68: -1859148.47 | J68: -0.7351583114 | K68: 2847409
A69: ='Org structure'!E9 -> 01.7 - Town & Regional Planning | C69: 2213264.52 | D69: 2791167 | E69: 2727692 | F69: 0 | G69: 2051100.25 | H69: 2050546.06 | I69: 554.19 | J69: 0.0002702645948 | K69: 2727692
A70: ='Org structure'!E10 -> 01.8 - Led Administration | C70: 642880.06 | D70: 800000 | E70: 800000 | F70: 0 | G70: 0 | H70: 600003 | I70: -600003 | J70: -1 | K70: 800000
A71: ='Org structure'!A3 -> Vote 02 - Municipal Manager | C71: =SUM(C72:C76) -> 27104286.36 | D71: 28230775 | E71: 30662622 | F71: 114550.98 | G71: 20448478.95 | H71: 22111228.83 | I71: -1662749.88 | J71: -0.07519934296 | K71: =SUM(K72:K76) -> 30662622
A72: ='Org structure'!E12 -> 02.1 - Municipal Manager Admin | C72: 7677906.64 | D72: 7326820 | E72: 8113656 | F72: 75962.5 | G72: 5509388.04 | H72: 5902704.37 | I72: =G72-H72 -> -393316.33 | J72: =IF(I72=0,"",I72/H72) -> -0.06663324221 | K72: 8113656
A73: ='Org structure'!E13 -> 02.2 - Legal Services | C73: 4790514.56 | D73: 3812174 | E73: 5034773 | F73: 15972.48 | G73: 2627961.49 | H73: 3348240.6 | I73: =G73-H73 -> -720279.11 | J73: =IF(I73=0,"",I73/H73) -> -0.2151216702 | K73: 5034773
A74: ='Org structure'!E14 -> 02.3 - Political Office Beares | C74: 614412.74 | D74: 995097 | E74: 1014578 | F74: 22616 | G74: 566307.68 | H74: 754189.4 | I74: =G74-H74 -> -187881.72 | J74: =IF(I74=0,"",I74/H74) -> -0.2491174233 | K74: 1014578
A75: ='Org structure'!E15 -> 02.4 - Pms | C75: 3273963.14 | D75: 3907949 | E75: 3734947 | F75: 0 | G75: 2217813.84 | H75: 2861847.2 | I75: =G75-H75 -> -644033.36 | J75: =IF(I75=0,"",I75/H75) -> -0.2250411413 | K75: 3734947
A76: ='Org structure'!E16 -> 02.5 - Internal Audit | C76: 10747489.28 | D76: 12188735 | E76: 12764668 | F76: 0 | G76: 9527007.9 | H76: 9244247.26 | I76: =G76-H76 -> 282760.64 | J76: =IF(I76=0,"",I76/H76) -> 0.0305877409 | K76: 12764668
A77: ='Org structure'!A4 -> Vote 03 - Mayors Office | C77: =SUM(C78:C82) -> 17205165.64 | D77: 20443276 | E77: 20345171 | F77: 76302.45 | G77: 11571156.6 | H77: 15293410 | I77: -3722253.4 | J77: -0.2433893684 | K77: =SUM(K78:K82) -> 20345171
A78: ='Org structure'!E18 -> 03.1 - Mayors Office Admin | C78: 3447553.92 | D78: 4013381 | E78: 4063381 | F78: 20596.45 | G78: 2490191.78 | H78: 3030140 | I78: =G78-H78 -> -539948.22 | J78: =IF(I78=0,"",I78/H78) -> -0.1781924994 | K78: 4063381
A79: ='Org structure'!E19 -> 03.2 - Office Of The Speaker | C79: 914118.34 | D79: 1202523 | E79: 1054418 | F79: 21819.8 | G79: 623456.5 | H79: 842675 | I79: =G79-H79 -> -219218.5 | J79: =IF(I79=0,"",I79/H79) -> -0.2601459637 | K79: 1054418
A80: ='Org structure'!E20 -> 03.3 - Office Of The Chief Whip | C80: 510963.84 | D80: 835529 | E80: 835529 | F80: 6972.1 | G80: 369377.19 | H80: 626670 | I80: =G80-H80 -> -257292.81 | J80: =IF(I80=0,"",I80/H80) -> -0.4105714491 | K80: 835529
A81: ='Org structure'!E21 -> 03.4 - Exco Members | C81: 3749556.79 | D81: 4769770 | E81: 4769770 | F81: 26914.1 | G81: 2447465.66 | H81: 3577347 | I81: =G81-H81 -> -1129881.34 | J81: =IF(I81=0,"",I81/H81) -> -0.3158433722 | K81: 4769770
A82: ='Org structure'!E22 -> 03.5 - Council General Administration | C82: 8582972.75 | D82: 9622073 | E82: 9622073 | F82: 0 | G82: 5640665.47 | H82: 7216578 | I82: =G82-H82 -> -1575912.53 | J82: =IF(I82=0,"",I82/H82) -> -0.2183739343 | K82: 9622073
A83: ='Org structure'!A5 -> Vote 04 - Budget And Treasury | C83: =SUM(C84:C89) -> 64583665.67 | D83: 40970823 | E83: 45706992 | F83: 1480364.85 | G83: 38502573 | H83: 32483014.63 | I83: =G83-H83 -> 6019558.37 | J83: =IF(I83=0,"",I83/H83) -> 0.1853140307 | K83: =SUM(K84:K89) -> 45706992
A84: ='Org structure'!E24 -> 04.1 - Budget And Treasury Admin | C84: 37494759.81 | D84: 8017376 | E84: 7850376 | F84: 555597.46 | G84: 17105991.46 | H84: 5771316.06 | I84: =G84-H84 -> 11334675.4 | J84: =IF(I84=0,"",I84/H84) -> 1.963967193 | K84: 7850376
A85: ='Org structure'!E25 -> 04.2 - Chief Financial Officer Admin | C85: 50361.29 | D85: 0 | E85: 0 | F85: 0 | G85: 686.1 | H85: 0 | I85: 686.1 | K85: 0
A86: ='Org structure'!E26 -> 04.3 - Budget & Reporting | C86: 5419887.78 | D86: 9789249 | E86: 8058839 | F86: 0 | G86: 5341650.68 | H86: 6684855.97 | I86: -1343205.29 | J86: -0.20093257 | K86: 8058839
A87: ='Org structure'!E27 -> 04.4 - Revenue Management | C87: 8506039.59 | D87: 9537351 | E87: 15212045 | F87: 519878.1 | G87: 6530118.7 | H87: 9422978.6 | I87: -2892859.9 | J87: -0.3070005805 | K87: 15212045
A88: ='Org structure'!E28 -> 04.5 - Supply Chain Management | C88: 7638783.66 | D88: 8165791 | E88: 8487781 | F88: 400904.35 | G88: 5532149.17 | H88: 6253215 | I88: -721065.83 | J88: -0.1153112167 | K88: 8487781
A89: ='Org structure'!E29 -> 04.6 - Expenditure | C89: 5473833.54 | D89: 5461056 | E89: 6097951 | F89: 3984.94 | G89: 3991976.89 | H89: 4350649 | I89: -358672.11 | J89: -0.08244105879 | K89: 6097951
A90: ='Org structure'!A6 -> Vote 05 - Community Services | C90: =SUM(C91:C96) -> 41798936.96 | D90: 43980610 | E90: 41951878 | F90: 127280.08 | G90: 29240625.73 | H90: 32165506.2 | I90: -2924880.47 | J90: -0.09093220706 | K90: =SUM(K91:K96) -> 41951878
A91: ='Org structure'!E31 -> 05.1 - Community Services Admin | C91: 3123116.27 | D91: 6893499 | E91: 6177211 | F91: 0 | G91: 2159651.9 | H91: 4883759.8 | I91: =G91-H91 -> -2724107.9 | J91: =IF(I91=0,"",I91/H91) -> -0.5577890829 | K91: 6177211
A92: ='Org structure'!E32 -> 05.2 - Libraries | C92: 1789621.22 | D92: 1918760 | E92: 2009283 | F92: 0 | G92: 1150282.19 | H92: 1475354.2 | I92: -325072.01 | J92: -0.2203348931 | K92: 2009283
A93: ='Org structure'!E33 -> 05.3 - Sports Recreation & Social Amenitie | C93: 3591191.65 | D93: 3484575 | E93: 3628560 | F93: 1814.78 | G93: 1877842.81 | H93: 2662113 | I93: -784270.19 | J93: -0.2946043951 | K93: 3628560
A94: ='Org structure'!E34 -> 05.4 - Traffic Service | C94: 22125481.56 | D94: 18954986 | E94: 18794986 | F94: 38062.14 | G94: 15367676.5 | H94: 14152337 | I94: 1215339.5 | J94: 0.0858755342 | K94: 18794986
A95: ='Org structure'!E35 -> 05.5 - Parks; Cemeteries | C95: 995673.82 | D95: 1398787 | E95: 1369340 | F95: 0 | G95: 660352.54 | H95: 1037360.2 | I95: -377007.66 | J95: -0.3634298482 | K95: 1369340
A96: ='Org structure'!E36 -> 05.6 - Refuse | C96: 10173852.44 | D96: 11330003 | E96: 9972498 | F96: 87403.16 | G96: 8024819.79 | H96: 7954582 | I96: 70237.79 | J96: 0.008829853033 | K96: 9972498
A97: ='Org structure'!A7 -> Vote 06 - Technical Services | C97: =SUM(C98:C105) -> 94976687.06 | D97: 84320928 | E97: 87194567 | F97: -11755056.52 | G97: 39808272.53 | H97: 64399691.6 | I97: -24591419.07 | J97: -0.381856162 | K97: =SUM(K98:K105) -> 87194567
A98: ='Org structure'!E38 -> 06.1 - Mpac | C98: 1724964.49 | D98: 2289896 | E98: 2298556 | F98: 259723.6 | G98: 1227503.05 | H98: 1720925 | I98: =G98-H98 -> -493421.95 | J98: =IF(I98=0,"",I98/H98) -> -0.2867190319 | K98: 2298556
A99: ='Org structure'!E39 -> 06.2 - Technical Services Admin | C99: 159595.96 | D99: 0 | E99: 0 | F99: 0 | G99: 61143.47 | H99: 0 | I99: 61143.47 | K99: 0
A100: ='Org structure'!E40 -> 06.3 - Techn Serv-Roads: Admin | C100: 10767642.96 | D100: 7360204 | E100: 7200204 | F100: 303616 | G100: 4011161.97 | H100: 5465195 | I100: -1454033.03 | J100: -0.2660532753 | K100: 7200204
A101: ='Org structure'!E41 -> 06.4 - Techn Serv-Stormwater: Admin | C101: 23250273.1 | D101: 18152215 | E101: 18862326 | F101: 4316.6 | G101: 10747672.03 | H101: 13898317.4 | I101: -3150645.37 | J101: -0.2266925758 | K101: 18862326
A102: ='Org structure'!E42 -> 06.5 - Project Management Unit | C102: 3210617.38 | D102: 3475071 | E102: 3292783 | F102: 8517.43 | G102: 1898232.68 | H102: 2533475.8 | I102: -635243.12 | J102: -0.2507397623 | K102: 3292783
A103: ='Org structure'!E43 -> 06.6 - Electrical & Machinery | C103: 48511487.39 | D103: 46298999 | E103: 47947380 | F103: -12331230.15 | G103: 17237687.81 | H103: 35383755.4 | I103: -18146067.59 | J103: -0.5128361132 | K103: 47947380
A104: ='Org structure'!E44 -> 06.7 - Water | C104: 7217372.55 | D104: 6631392 | E104: 7480167 | F104: 0 | G104: 4624871.52 | H104: 5313144 | I104: -688272.48 | J104: -0.1295414692 | K104: 7480167
A105: ='Org structure'!E45 -> 06.8 - Sanitation | C105: 134733.23 | D105: 113151 | E105: 113151 | F105: 0 | G105: 0 | H105: 84879 | I105: -84879 | J105: -1 | K105: 113151
A106: ='Org structure'!A8 -> Vote 07 - | C106: 0 | D106: 0 | E106: 0 | F106: 0 | G106: 0 | H106: 0 | I106: 0 | K106: 0
A107: ='Org structure'!A9 -> Vote 08 - | C107: 0 | D107: 0 | E107: 0 | F107: 0 | G107: 0 | H107: 0 | I107: 0 | K107: 0
A108: ='Org structure'!A10 -> Vote 09 - | C108: 0 | D108: 0 | E108: 0 | F108: 0 | G108: 0 | H108: 0 | I108: =G108-H108 -> 0 | J108: =IF(I108=0,"",I108/H108) ->  | K108: 0
A109: ='Org structure'!A11 -> Vote 10 - | C109: 0 | D109: 0 | E109: 0 | F109: 0 | G109: 0 | H109: 0 | I109: 0 | K109: 0
A110: ='Org structure'!A12 -> Vote 11 - | C110: 0 | D110: 0 | E110: 0 | F110: 0 | G110: 0 | H110: 0 | I110: 0 | K110: 0
A111: ='Org structure'!A13 -> Vote 12 - | C111: 0 | D111: 0 | E111: 0 | F111: 0 | G111: 0 | H111: 0 | I111: 0 | K111: 0
A112: ='Org structure'!A14 -> Vote 13 - | C112: 0 | D112: 0 | E112: 0 | F112: 0 | G112: 0 | H112: 0 | I112: 0 | K112: 0
A113: ='Org structure'!A15 -> Vote 14 - | C113: 0 | D113: 0 | E113: 0 | F113: 0 | G113: 0 | H113: 0 | I113: 0 | K113: 0
A114: ='Org structure'!A16 -> Vote 15 - Other | C114: 0 | D114: 0 | E114: 0 | F114: 0 | G114: 0 | H114: 0 | I114: =G114-H114 -> 0 | J114: =IF(I114=0,"",I114/H114) ->  | K114: 0
A115: Total Expenditure by Vote | B115: 2 | C115: =C62+C71+C77+C83+C90+C97+C106+C107+C108+C109+C110+C111+C112+C113+C114 -> 308994214.9 | D115: 285311044 | E115: 293502989 | F115: -8435070.7 | G115: 178523591 | H115: 217262767.1 | I115: -38739176.08 | J115: -0.178305637 | K115: =K62+K71+K77+K83+K90+K97+K106+K107+K108+K109+K110+K111+K112+K113+K114 -> 293502989
I116: 0 | L116: =#REF!-#REF! ->  | M116: =#REF!-#REF! ->  | N116: =#REF!-#REF! ->  | O116: =#REF!-#REF! ->  | P116: =#REF!-#REF! ->  | Q116: =#REF!-#REF! ->  | R116: =#REF!-#REF! ->  | S116: =#REF!-#REF! ->  | T116: =#REF!-#REF! ->  | U116: =#REF!-#REF! ->  | V116: =#REF!-#REF! ->  | W116: =#REF!-#REF! -> 
A117: =result -> Surplus/ (Deficit) for the year | B117: 2 | C117: =C59-C115 -> 4669259.17 | D117: 64396511 | E117: 58276998 | F117: 59811926.82 | G117: 104187410.6 | H117: 45846707.71 | I117: 58340702.84 | J117: 1.272516736 | K117: =K59-K115 -> 58276998
A118: =head27a -> References
A119: 1. Insert 'Vote'; e.g. Department, if different to standard structure
A120: 2. Must reconcile to Financial Performance ('Revenue and Expenditure by Standard Classification' and 'Revenue and Expenditure')
A121: 3. Assign share in 'associate' to relevant Vote
A123: check revenue
A124: check expenditure

Sheet C4-FinPerf RE
A1: =muni& " - "&S71B& " - "&date -> LIM353 Molemole - Table C4 Monthly Budget Statement - Financial Performance (revenue and expenditure) - Q3 Third Quarter
A2: =desc -> Description | B2: =head27 -> Ref | C2: =Head1 -> 2024/25 | D2: =Head2 -> Budget Year 2025/26
C3: =Head5 -> Audited Outcome | D3: =Head6 -> Original Budget | E3: =Head7 -> Adjusted Budget | F3: =Head38 -> Monthly actual | G3: =Head39 -> YearTD actual | H3: =Head40 -> YearTD budget | I3: =Head41 -> YTD variance | J3: =Head41 -> YTD variance | K3: =Head8 -> Full Year Forecast
A4: R thousands | J4: %
A5: Revenue
A6: Exchange Revenue
A7: Service charges - Electricity | C7: 12003878.24 | D7: 14201434 | E7: 14201434 | F7: 995041.75 | G7: 9226504.78 | H7: 10651068 | I7: =G7-H7 -> -1424563.22 | J7: =IF(I7=0,"",I7/H7) -> -0.1337483922 | K7: 14201434
A8: Service charges - Water | C8: 0 | D8: 0 | E8: 0 | F8: 0 | G8: 18.33 | H8: 0 | I8: 18.33 | K8: 0
A9: Service charges - Waste Water Management | C9: 0 | D9: 0 | E9: 0 | F9: 0 | G9: 0 | H9: 0 | I9: 0 | K9: 0
A10: Service charges - Waste management | C10: 1297723.15 | D10: 984870 | E10: 984870 | F10: 117574.85 | G10: 1015014.14 | H10: 738639 | I10: 276375.14 | J10: 0.3741680848 | K10: 984870
A11: Sale of Goods and Rendering of Services | C11: 17376644.51 | D11: 1308158 | E11: 18525230 | F11: 1748552.21 | G11: 1772429.66 | H11: 7867927.8 | I11: -6095498.14 | J11: -0.7747272592 | K11: 18525230
A12: Agency services | C12: 206931.24 | D12: 512760 | E12: 512760 | F12: 0 | G12: 218659.6 | H12: 384561 | I12: -165901.4 | J12: -0.4314046406 | K12: 512760
A13: Interest | I13: 0
A14: Interest earned from Receivables | C14: 693046.84 | D14: 725469 | E14: 725469 | F14: 60915.01 | G14: 504618.07 | H14: 544086 | I14: -39467.93 | J14: -0.07253987421 | K14: 725469
A15: Interest from Current and Non Current Assets | C15: 13918817.93 | D15: 16695504 | E15: 16695504 | F15: 0 | G15: 6303375.02 | H15: 12521628 | I15: -6218252.98 | J15: -0.4966009995 | K15: 16695504
A16: Dividends | C16: 0 | D16: 0 | E16: 0 | F16: 0 | G16: 0 | H16: 0 | I16: 0 | K16: 0
A17: Rent on Land | C17: 0 | D17: 0 | E17: 0 | F17: 0 | G17: 0 | H17: 0 | I17: 0 | K17: 0
A18: Rental from Fixed Assets | C18: 231134.22 | D18: 240000 | E18: 490700 | F18: 18998.04 | G18: 177764.97 | H18: 280280 | I18: -102515.03 | J18: -0.3657593478 | K18: 490700
A19: Licence and permits | C19: 4501380.7 | D19: 14449976 | E19: 14449976 | F19: 844982.96 | G19: 8269578.56 | H19: 10837467 | I19: -2567888.44 | J19: -0.2369454449 | K19: 14449976
A20: Special rating levies | I20: 0
A21: Operational Revenue | C21: 0 | D21: 0 | E21: 0 | F21: 0 | G21: 0 | H21: 0 | I21: 0 | K21: 0
A22: Non-Exchange Revenue | I22: 0
A23: Property rates | C23: 29864220.67 | D23: 39267857 | E23: 39267857 | F23: 661872.22 | G23: 29540247.33 | H23: 29450844 | I23: 89403.33 | J23: 0.003035679724 | K23: 39267857
A24: Surcharges and Taxes | I24: 0
A25: Fines, penalties and forfeits | C25: 733275.06 | D25: 146938 | E25: 146938 | F25: 4591.31 | G25: 32546.8 | H25: 110196 | I25: -77649.2 | J25: -0.7046462667 | K25: 146938
A26: Licence and permits | I26: 0
A27: Transfers and subsidies - Operational | C27: 193141465.7 | D27: 207339000 | E27: 191368000 | F27: 46731000 | G27: 200773124.8 | H27: 149115832 | I27: 51657292.77 | J27: 0.3464239315 | K27: 191368000
A28: Interest | C28: 734380.46 | D28: 1495865 | E28: 1495865 | F28: 119287.39 | G28: 1009394.7 | H28: 1121895 | I28: -112500.3 | J28: -0.1002770313 | K28: 1495865
A29: Fuel Levy | I29: 0
A30: Operational Revenue | I30: 0
A31: Gains on disposal of Assets | C31: 770042.12 | D31: 0 | E31: 0 | F31: 0 | G31: 0 | H31: 0 | I31: 0 | K31: 0
A32: Other Gains | C32: 6000 | D32: 0 | E32: 0 | F32: 0 | G32: 0 | H32: 0 | I32: 0 | K32: 0
A33: Discontinued Operations | I33: 0
A34: Total Revenue (excluding capital transfers and contributions) | C34: =SUM(C7:C21)+SUM(C23:C33) -> 275478940.8 | D34: 297367831 | E34: 298864603 | F34: 51302815.74 | G34: 258843276.7 | H34: 223624423.8 | I34: =G34-H34 -> 35218852.93 | J34: 0.1574910841 | K34: =SUM(K7:K21)+SUM(K23:K33) -> 298864603
A35: Expenditure By Type
A36: Employee related costs | C36: 118552192.4 | D36: 121240320 | E36: 126130876 | F36: 0 | G36: 82373611.27 | H36: 92888208.4 | I36: =G36-H36 -> -10514597.13 | J36: =IF(I36=0,"",I36/H36) -> -0.1131962529 | K36: 126130876
A37: Remuneration of councillors | C37: 14185585.14 | D37: 16413901 | E37: 16265796 | F37: 0 | G37: 9476685.84 | H37: 12251273 | I37: -2774587.16 | J37: -0.2264733763 | K37: 16265796
A38: Bulk purchases - electricity | C38: 16015294.01 | D38: 15182813 | E38: 15572008 | F38: 985761.16 | G38: 10867964.47 | H38: 11542793 | I38: -674828.53 | J38: -0.05846319257 | K38: 15572008
A39: Inventory consumed | C39: 5238701.64 | D39: 6410611 | E39: 5710611 | F39: 513380.31 | G39: 3999972.43 | H39: 4527989 | I39: -528016.57 | J39: -0.1166117166 | K39: 5710611
A40: Debt impairment | C40: 27252364.21 | D40: 2359253 | E40: 2359253 | F40: 0 | G40: 1198803.46 | H40: 1769463 | I40: -570659.54 | J40: -0.3225043643 | K40: 2359253
A41: Depreciation and amortisation | C41: 24411644.82 | D41: 21656256 | E41: 24133195 | F41: 0 | G41: 23709323.53 | H41: 17233282.6 | I41: 6476040.93 | J41: 0.3757868469 | K41: 24133195
A42: Interest | C42: 2935813.16 | D42: 2551065 | E42: 3085365 | F42: 0 | G42: 8689.52 | H42: 2127030 | I42: -2118340.48 | J42: -0.9959147168 | K42: 3085365
A43: Contracted services | C43: 62567021.52 | D43: 61204750 | E43: 60628701 | F43: -11420741.75 | G43: 19695946.16 | H43: 45673288.4 | I43: -25977342.24 | J43: -0.5687644387 | K43: 60628701
A44: Transfers and subsidies | C44: 0 | D44: 0 | E44: 0 | F44: 0 | G44: 0 | H44: 0 | I44: 0 | K44: 0
A45: Irrecoverable debts written off | C45: 247789.67 | D45: 547578 | E45: 547578 | F45: 179253.86 | G45: 646396.26 | H45: 410688 | I45: 235708.26 | J45: 0.573935104 | K45: 547578
A46: Operational costs | C46: 33577418.45 | D46: 37744497 | E46: 39069606 | F46: 1307275.72 | G46: 26546198.07 | H46: 28838751.69 | I46: -2292553.62 | J46: -0.07949559137 | K46: 39069606
A47: Losses on Disposal of Assets | C47: 2656645.91 | D47: 0 | E47: 0 | F47: 0 | G47: 0 | H47: 0 | I47: 0 | K47: 0
A48: Other Losses | C48: 1353744 | D48: 0 | E48: 0 | F48: 0 | G48: 0 | H48: 0 | I48: 0 | K48: 0
A49: Total Expenditure | C49: =SUM(C36:C48) -> 308994214.9 | D49: 285311044 | E49: 293502989 | F49: -8435070.7 | G49: 178523591 | H49: 217262767.1 | I49: =G49-H49 -> -38739176.08 | J49: -0.178305637 | K49: =SUM(K36:K48) -> 293502989
A50: Surplus/(Deficit) | C50: =C34-C49 -> -33515274.14 | D50: 12056787 | E50: 5361614 | F50: 59737886.44 | G50: 80319685.72 | H50: =H34-H49 -> 6361656.71 | I50: =I34-I49 -> 73958029.01 | J50: 11.62559257 | K50: =K34-K49 -> 5361614
A51: Transfers and subsidies - capital (monetary allocations) | C51: 37448726.67 | D51: 52088000 | E51: 52088000 | F51: 0 | G51: 23373512.65 | H51: 39065994 | I51: =G51-H51 -> -15692481.35 | J51: -0.4016915927 | K51: 52088000
A52: Transfers and subsidies - capital (in-kind) | C52: 0 | D52: 0 | E52: 0 | F52: 0 | G52: 0 | H52: 0 | I52: =G52-H52 -> 0 | K52: 0
A53: Surplus/(Deficit) after capital transfers & contributions | C53: =C50+SUM(C51:C52) -> 3933452.53 | D53: 64144787 | E53: 57449614 | F53: 59737886.44 | G53: 103693198.4 | H53: 45427650.71 | I53: =G53-H53 -> 58265547.66 | J53: 1.282600943 | K53: =K50+SUM(K51:K52) -> 57449614
A54: Income Tax | I54: =G54-H54 -> 0
A55: Surplus/(Deficit) after income tax | C55: =C53-C54 -> 3933452.53 | D55: 64144787 | E55: 57449614 | F55: 59737886.44 | G55: 103693198.4 | H55: 45427650.71 | I55: 58265547.66 | J55: 1.282600943 | K55: =K53-K54 -> 57449614
A56: Share of Surplus/Deficit attributable to Joint Venture | I56: 0
A57: Share of Surplus/Deficit attributable to Minorities | I57: 0
A58: Surplus/(Deficit) attributable to municipality | C58: =SUM(C55:C57) -> 3933452.53 | D58: 64144787 | E58: 57449614 | F58: 59737886.44 | G58: 103693198.4 | H58: 45427650.71 | I58: 58265547.66 | J58: 1.282600943 | K58: =SUM(K55:K57) -> 57449614
A59: Share of Surplus/Deficit attributable to Associate | I59: 0
A60: Intercompany/Parent subsidiary transactions | I60: 0
A61: Surplus/ (Deficit) for the year | C61: =SUM(C58:C60) -> 3933452.53 | D61: 64144787 | E61: 57449614 | F61: 59737886.44 | G61: 103693198.4 | H61: 45427650.71 | I61: 58265547.66 | J61: 1.282600943 | K61: =SUM(K58:K60) -> 57449614
A62: =head27a -> References
A63: 1. Material variances to be explained on Table SC1
A66: =A34&" including capital transfers/contributions etc" -> Total Revenue (excluding capital transfers and contributions) including capital transfers/contributions etc | C66: =C34+SUM(C51:C52) -> 312927667.5 | D66: 349455831 | E66: 350952603 | F66: 51302815.74 | G66: 282216789.4 | H66: 262690417.8 | K66: =K34+SUM(K51:K52) -> 350952603

Sheet C5-Capex
A1: =muni& " - "&S71D& " - "&date -> LIM353 Molemole - Table C5 Monthly Budget Statement - Capital Expenditure (municipal vote, functional classification and funding) - Q3 Third Quarter
A2: =Vdesc -> Vote Description | B2: =head27 -> Ref | C2: =Head1 -> 2024/25 | D2: =Head2 -> Budget Year 2025/26
C3: =Head5 -> Audited Outcome | D3: =Head6 -> Original Budget | E3: =Head7 -> Adjusted Budget | F3: =Head38 -> Monthly actual | G3: =Head39 -> YearTD actual | H3: =Head40 -> YearTD budget | I3: =Head41 -> YTD variance | J3: =Head41 -> YTD variance | K3: =Head8 -> Full Year Forecast
A4: R thousands | B4: 1 | J4: %
A5: Multi-Year expenditure appropriation | B5: 2
A6: ='Org structure'!A2 -> Vote 01 - Corporate Services | C6: ='C5C'!C7 -> 2579651.29 | D6: ='C5C'!D7 -> 4300000 | E6: ='C5C'!E7 -> 2479000 | F6: ='C5C'!F7 -> 0 | G6: ='C5C'!G7 -> 53860 | H6: ='C5C'!H7 -> 2496606 | I6: =G6-H6 -> -2442746 | J6: =IF(I6=0,"",I6/H6) -> -0.9784267121 | K6: ='C5C'!K7 -> 2479000
A7: ='Org structure'!A3 -> Vote 02 - Municipal Manager | C7: ='C5C'!C11 -> 147826.09 | D7: ='C5C'!D11 -> 150000 | E7: ='C5C'!E11 -> 150000 | F7: ='C5C'!F11 -> -22616 | G7: ='C5C'!G11 -> 115200 | H7: ='C5C'!H11 -> 112500 | I7: 2700 | J7: 0.024 | K7: ='C5C'!K11 -> 150000
A8: ='Org structure'!A4 -> Vote 03 - Mayors Office | C8: ='C5C'!C14 -> 0 | D8: ='C5C'!D14 -> 0 | E8: ='C5C'!E14 -> 0 | F8: ='C5C'!F14 -> 0 | G8: ='C5C'!G14 -> 0 | H8: ='C5C'!H14 -> 0 | I8: 0 | K8: ='C5C'!K14 -> 0
A9: ='Org structure'!A5 -> Vote 04 - Budget And Treasury | C9: ='C5C'!C15 -> 2976569.26 | D9: ='C5C'!D15 -> 0 | E9: ='C5C'!E15 -> 0 | F9: ='C5C'!F15 -> 0 | G9: ='C5C'!G15 -> 0 | H9: ='C5C'!H15 -> 0 | I9: 0 | K9: ='C5C'!K15 -> 0
A10: ='Org structure'!A6 -> Vote 05 - Community Services | C10: ='C5C'!C19 -> 1779570.5 | D10: ='C5C'!D19 -> 13758800 | E10: ='C5C'!E19 -> 12760000 | F10: ='C5C'!F19 -> 0 | G10: ='C5C'!G19 -> 619184.78 | H10: ='C5C'!H19 -> 9919601 | I10: -9300416.22 | J10: -0.9375796688 | K10: ='C5C'!K19 -> 12760000
A11: ='Org structure'!A7 -> Vote 06 - Technical Services | C11: ='C5C'!C23 -> 45339009.65 | D11: ='C5C'!D23 -> 46188000 | E11: ='C5C'!E23 -> 42888000 | F11: ='C5C'!F23 -> 14128351.5 | G11: ='C5C'!G23 -> 34028316.54 | H11: ='C5C'!H23 -> 33321018 | I11: 707298.54 | J11: 0.02122679865 | K11: ='C5C'!K23 -> 42888000
A12: ='Org structure'!A8 -> Vote 07 - | C12: ='C5C'!C28 -> 0 | D12: ='C5C'!D28 -> 0 | E12: ='C5C'!E28 -> 0 | F12: ='C5C'!F28 -> 0 | G12: ='C5C'!G28 -> 0 | H12: ='C5C'!H28 -> 0 | I12: =G12-H12 -> 0 | J12: =IF(I12=0,"",I12/H12) ->  | K12: ='C5C'!K28 -> 0
A13: ='Org structure'!A9 -> Vote 08 - | C13: ='C5C'!C29 -> 0 | D13: ='C5C'!D29 -> 0 | E13: ='C5C'!E29 -> 0 | F13: ='C5C'!F29 -> 0 | G13: ='C5C'!G29 -> 0 | H13: ='C5C'!H29 -> 0 | I13: 0 | K13: ='C5C'!K29 -> 0
A14: ='Org structure'!A10 -> Vote 09 - | C14: ='C5C'!C30 -> 0 | D14: ='C5C'!D30 -> 0 | E14: ='C5C'!E30 -> 0 | F14: ='C5C'!F30 -> 0 | G14: ='C5C'!G30 -> 0 | H14: ='C5C'!H30 -> 0 | I14: 0 | K14: ='C5C'!K30 -> 0
A15: ='Org structure'!A11 -> Vote 10 - | C15: ='C5C'!C31 -> 0 | D15: ='C5C'!D31 -> 0 | E15: ='C5C'!E31 -> 0 | F15: ='C5C'!F31 -> 0 | G15: ='C5C'!G31 -> 0 | H15: ='C5C'!H31 -> 0 | I15: 0 | K15: ='C5C'!K31 -> 0
A16: ='Org structure'!A12 -> Vote 11 - | C16: ='C5C'!C32 -> 0 | D16: ='C5C'!D32 -> 0 | E16: ='C5C'!E32 -> 0 | F16: ='C5C'!F32 -> 0 | G16: ='C5C'!G32 -> 0 | H16: ='C5C'!H32 -> 0 | I16: 0 | K16: ='C5C'!K32 -> 0
A17: ='Org structure'!A13 -> Vote 12 - | C17: ='C5C'!C33 -> 0 | D17: ='C5C'!D33 -> 0 | E17: ='C5C'!E33 -> 0 | F17: ='C5C'!F33 -> 0 | G17: ='C5C'!G33 -> 0 | H17: ='C5C'!H33 -> 0 | I17: 0 | K17: ='C5C'!K33 -> 0
A18: ='Org structure'!A14 -> Vote 13 - | C18: ='C5C'!C34 -> 0 | D18: ='C5C'!D34 -> 0 | E18: ='C5C'!E34 -> 0 | F18: ='C5C'!F34 -> 0 | G18: ='C5C'!G34 -> 0 | H18: ='C5C'!H34 -> 0 | I18: =G18-H18 -> 0 | J18: =IF(I18=0,"",I18/H18) ->  | K18: ='C5C'!K34 -> 0
A19: ='Org structure'!A15 -> Vote 14 - | C19: ='C5C'!C35 -> 0 | D19: ='C5C'!D35 -> 0 | E19: ='C5C'!E35 -> 0 | F19: ='C5C'!F35 -> 0 | G19: ='C5C'!G35 -> 0 | H19: ='C5C'!H35 -> 0 | I19: =G19-H19 -> 0 | J19: =IF(I19=0,"",I19/H19) ->  | K19: ='C5C'!K35 -> 0
A20: ='Org structure'!A16 -> Vote 15 - Other | C20: ='C5C'!C36 -> 0 | D20: ='C5C'!D36 -> 0 | E20: ='C5C'!E36 -> 0 | F20: ='C5C'!F36 -> 0 | G20: ='C5C'!G36 -> 0 | H20: ='C5C'!H36 -> 0 | I20: =G20-H20 -> 0 | J20: =IF(I20=0,"",I20/H20) ->  | K20: ='C5C'!K36 -> 0
A21: Total Capital Multi-year expenditure | B21: 4,7 | C21: =SUM(C6:C20) -> 52822626.79 | D21: =SUM(D6:D20) -> 64396800 | E21: 58277000 | F21: 14105735.5 | G21: 34816561.32 | H21: 45849725 | I21: -11033163.68 | J21: =IF(I21=0,"",I21/H21) -> -0.2406375105 | K21: =SUM(K6:K20) -> 58277000
A23: Single Year expenditure appropriation | B23: 2
A24: ='C5C'!A41 -> Vote 01 - Corporate Services | C24: ='C5C'!C41 -> 0 | D24: ='C5C'!D41 -> 0 | E24: ='C5C'!E41 -> 0 | F24: ='C5C'!F41 -> 0 | G24: ='C5C'!G41 -> 0 | H24: ='C5C'!H41 -> 0 | I24: =G24-H24 -> 0 | J24: =IF(I24=0,"",I24/H24) ->  | K24: ='C5C'!K41 -> 0
A25: ='C5C'!A42 -> Vote 02 - Municipal Manager | C25: ='C5C'!C42 -> 0 | D25: ='C5C'!D42 -> 0 | E25: ='C5C'!E42 -> 0 | F25: ='C5C'!F42 -> 0 | G25: ='C5C'!G42 -> 0 | H25: ='C5C'!H42 -> 0 | I25: 0 | K25: ='C5C'!K42 -> 0
A26: ='C5C'!A43 -> Vote 03 - Mayors Office | C26: ='C5C'!C43 -> 0 | D26: ='C5C'!D43 -> 0 | E26: ='C5C'!E43 -> 0 | F26: ='C5C'!F43 -> 0 | G26: ='C5C'!G43 -> 0 | H26: ='C5C'!H43 -> 0 | I26: 0 | K26: ='C5C'!K43 -> 0
A27: ='C5C'!A44 -> Vote 04 - Budget And Treasury | C27: ='C5C'!C44 -> 0 | D27: ='C5C'!D44 -> 0 | E27: ='C5C'!E44 -> 0 | F27: ='C5C'!F44 -> 0 | G27: ='C5C'!G44 -> 0 | H27: ='C5C'!H44 -> 0 | I27: 0 | K27: ='C5C'!K44 -> 0
A28: ='C5C'!A45 -> Vote 05 - Community Services | C28: ='C5C'!C45 -> 0 | D28: ='C5C'!D45 -> 0 | E28: ='C5C'!E45 -> 0 | F28: ='C5C'!F45 -> 0 | G28: ='C5C'!G45 -> 0 | H28: ='C5C'!H45 -> 0 | I28: 0 | K28: ='C5C'!K45 -> 0
A29: ='C5C'!A46 -> Vote 06 - Technical Services | C29: ='C5C'!C46 -> 0 | D29: ='C5C'!D46 -> 0 | E29: ='C5C'!E46 -> 0 | F29: ='C5C'!F46 -> 0 | G29: ='C5C'!G46 -> 0 | H29: ='C5C'!H46 -> 0 | I29: 0 | K29: ='C5C'!K46 -> 0
A30: ='Org structure'!A8 -> Vote 07 - | C30: ='C5C'!C47 -> 0 | D30: ='C5C'!D47 -> 0 | E30: ='C5C'!E47 -> 0 | F30: ='C5C'!F47 -> 0 | G30: ='C5C'!G47 -> 0 | H30: ='C5C'!H47 -> 0 | I30: ='C5C'!I47 -> 0 | J30: =IF(I30=0,"",I30/H30) ->  | K30: ='C5C'!K47 -> 0
A31: ='Org structure'!A9 -> Vote 08 - | C31: ='C5C'!C48 -> 0 | D31: ='C5C'!D48 -> 0 | E31: ='C5C'!E48 -> 0 | F31: ='C5C'!F48 -> 0 | G31: ='C5C'!G48 -> 0 | H31: ='C5C'!H48 -> 0 | I31: ='C5C'!I48 -> 0 | K31: ='C5C'!K48 -> 0
A32: ='Org structure'!A10 -> Vote 09 - | C32: ='C5C'!C49 -> 0 | D32: ='C5C'!D49 -> 0 | E32: ='C5C'!E49 -> 0 | F32: ='C5C'!F49 -> 0 | G32: ='C5C'!G49 -> 0 | H32: ='C5C'!H49 -> 0 | I32: ='C5C'!I49 -> 0 | K32: ='C5C'!K49 -> 0
A33: ='Org structure'!A11 -> Vote 10 - | C33: ='C5C'!C50 -> 0 | D33: ='C5C'!D50 -> 0 | E33: ='C5C'!E50 -> 0 | F33: ='C5C'!F50 -> 0 | G33: ='C5C'!G50 -> 0 | H33: ='C5C'!H50 -> 0 | I33: ='C5C'!I50 -> 0 | K33: ='C5C'!K50 -> 0
A34: ='Org structure'!A12 -> Vote 11 - | C34: ='C5C'!C51 -> 0 | D34: ='C5C'!D51 -> 0 | E34: ='C5C'!E51 -> 0 | F34: ='C5C'!F51 -> 0 | G34: ='C5C'!G51 -> 0 | H34: ='C5C'!H51 -> 0 | I34: ='C5C'!I51 -> 0 | K34: ='C5C'!K51 -> 0
A35: ='Org structure'!A13 -> Vote 12 - | C35: ='C5C'!C52 -> 0 | D35: ='C5C'!D52 -> 0 | E35: ='C5C'!E52 -> 0 | F35: ='C5C'!F52 -> 0 | G35: ='C5C'!G52 -> 0 | H35: ='C5C'!H52 -> 0 | I35: ='C5C'!I52 -> 0 | K35: ='C5C'!K52 -> 0
A36: ='Org structure'!A14 -> Vote 13 - | C36: ='C5C'!C53 -> 0 | D36: ='C5C'!D53 -> 0 | E36: ='C5C'!E53 -> 0 | F36: ='C5C'!F53 -> 0 | G36: ='C5C'!G53 -> 0 | H36: ='C5C'!H53 -> 0 | I36: ='C5C'!I53 -> 0 | K36: ='C5C'!K53 -> 0
A37: ='Org structure'!A15 -> Vote 14 - | C37: ='C5C'!C54 -> 0 | D37: ='C5C'!D54 -> 0 | E37: ='C5C'!E54 -> 0 | F37: ='C5C'!F54 -> 0 | G37: ='C5C'!G54 -> 0 | H37: ='C5C'!H54 -> 0 | I37: ='C5C'!I54 -> 0 | K37: ='C5C'!K54 -> 0
A38: ='Org structure'!A16 -> Vote 15 - Other | C38: ='C5C'!C55 -> 0 | D38: ='C5C'!D55 -> 0 | E38: ='C5C'!E55 -> 0 | F38: ='C5C'!F55 -> 0 | G38: ='C5C'!G55 -> 0 | H38: ='C5C'!H55 -> 0 | I38: ='C5C'!I55 -> 0 | K38: ='C5C'!K55 -> 0
A39: Total Capital single-year expenditure | B39: 4 | C39: =SUM(C24:C38) -> 0 | D39: 0 | E39: 0 | F39: 0 | G39: 0 | H39: 0 | I39: 0 | K39: =SUM(K24:K38) -> 0
A40: Total Capital Expenditure | C40: =C39+C21 -> 52822626.79 | D40: 64396800 | E40: 58277000 | F40: 14105735.5 | G40: 34816561.32 | H40: 45849725 | I40: -11033163.68 | J40: =IF(I40=0,"",I40/H40) -> -0.2406375105 | K40: =K39+K21 -> 58277000
A42: Capital Expenditure - Functional Classification
A43: Governance and administration | C43: =SUM(C44:C46) -> 5530046.64 | D43: 4450000 | E43: 2629000 | F43: -22616 | G43: 169060 | H43: 2609106 | I43: =G43-H43 -> -2440046 | J43: =IF(I43=0,"",I43/H43) -> -0.9352038591 | K43: =SUM(K44:K46) -> 2629000
A44: Executive and council | C44: 0 | D44: 0 | E44: 0 | F44: 0 | G44: 0 | H44: 0 | I44: 0 | J44: =IF(I44=0,"",I44/H44) ->  | K44: 0
A45: Finance and administration | C45: 5530046.64 | D45: 4450000 | E45: 2629000 | F45: -22616 | G45: 169060 | H45: 2609106 | I45: -2440046 | J45: -0.9352038591 | K45: 2629000
A46: Internal audit | C46: 0 | D46: 0 | E46: 0 | F46: 0 | G46: 0 | H46: 0 | I46: 0 | K46: 0
A47: Community and public safety | C47: =SUM(C48:C52) -> 1779570.5 | D47: 13758800 | E47: 12760000 | F47: 0 | G47: 619184.78 | H47: 9919601 | I47: -9300416.22 | J47: -0.9375796688 | K47: =SUM(K48:K52) -> 12760000
A48: Community and social services | C48: 1758370.5 | D48: 1000000 | E48: 500000 | F48: 0 | G48: 488750 | H48: 550006 | I48: -61256 | J48: -0.1113733305 | K48: 500000
A49: Sport and recreation | C49: 0 | D49: 12758800 | E49: 12200000 | F49: 0 | G49: 130434.78 | H49: 9345595 | I49: -9215160.22 | J49: -0.9860431808 | K49: 12200000
A50: Public safety | C50: 21200 | D50: 0 | E50: 60000 | F50: 0 | G50: 0 | H50: 24000 | I50: -24000 | J50: -1 | K50: 60000
A51: Housing | I51: 0
A52: Health | I52: 0
A53: Economic and environmental services | C53: =SUM(C54:C56) -> 19689235.03 | D53: 23303670 | E53: 39340826 | F53: 341851.5 | G53: 18899664.29 | H53: 23892628.4 | I53: -4992964.11 | J53: -0.2089750875 | K53: =SUM(K54:K56) -> 39340826
A54: Planning and development | C54: 174000 | D54: 0 | E54: 300000 | F54: 0 | G54: 0 | H54: 120000 | I54: -120000 | J54: -1 | K54: 300000
A55: Road transport | C55: 19515235.03 | D55: 23303670 | E55: 39040826 | F55: 341851.5 | G55: 18899664.29 | H55: 23772628.4 | I55: -4872964.11 | J55: -0.2049821344 | K55: 39040826
A56: Environmental protection | I56: 0
A57: Trading services | C57: =SUM(C58:C61) -> 25823774.62 | D57: 22884330 | E57: 3547174 | F57: 13786500 | G57: 15128652.25 | H57: 9428389.6 | I57: 5700262.65 | J57: 0.6045849707 | K57: =SUM(K58:K61) -> 3547174
A58: Energy sources | C58: 2691899.49 | D58: 3800000 | E58: 200000 | F58: 13786500 | G58: 13786500 | H58: 1410003 | I58: 12376497 | J58: 8.777638771 | K58: 200000
A59: Water management | I59: 0
A60: Waste water management | C60: 23131875.13 | D60: 19084330 | E60: 3347174 | F60: 0 | G60: 1342152.25 | H60: 8018386.6 | I60: -6676234.35 | J60: -0.8326156723 | K60: 3347174
A61: Waste management | I61: 0
A62: Other | I62: 0
A63: Total Capital Expenditure - Functional Classification | B63: 3 | C63: =C43+C47+C53+C57+C62 -> 52822626.79 | D63: =D43+D47+D53+D57+D62 -> 64396800 | E63: 58277000 | F63: 14105735.5 | G63: 34816561.32 | H63: 45849725 | I63: -11033163.68 | J63: -0.2406375105 | K63: =K43+K47+K53+K57+K62 -> 58277000
A65: Funded by:
A66: National Government | C66: 32564110.16 | D66: 52088000 | E66: 52388000 | F66: 14128351.5 | G66: 34158751.32 | H66: 39186012 | I66: =G66-H66 -> -5027260.68 | J66: =IF(I66=0,"",I66/H66) -> -0.1282922253 | K66: 52388000
A67: Provincial Government | C67: 0 | D67: 0 | E67: 0 | F67: 0 | G67: 0 | H67: 0 | I67: 0 | K67: 0
A68: District Municipality | C68: 0 | D68: 0 | E68: 0 | F68: 0 | G68: 0 | H68: 0 | I68: 0 | K68: 0
A69: Transfers and subsidies - capital (monetary allocations) (Nat / Prov Departm Agencies, Households, Non-profit Institutions, Private Enterprises, Public Corporatons, Higher Educ Institutions) | C69: 0 | D69: 0 | E69: 0 | F69: 0 | G69: 0 | H69: 0 | I69: 0 | K69: 0
A70: Transfers recognised - capital | C70: =SUM(C66:C69) -> 32564110.16 | D70: 52088000 | E70: 52388000 | F70: 14128351.5 | G70: 34158751.32 | H70: 39186012 | I70: -5027260.68 | J70: -0.1282922253 | K70: =SUM(K66:K69) -> 52388000
A72: Borrowing | B72: 6 | I72: 0
A73: Internally generated funds | C73: 20258516.63 | D73: 12308800 | E73: 5889000 | F73: -22616 | G73: 657810 | H73: 6663713 | I73: -6005903 | J73: -0.9012847642 | K73: 5889000
A74: Total Capital Funding | C74: =+C70+C72+C73 -> 52822626.79 | D74: 64396800 | E74: 58277000 | F74: 14105735.5 | G74: 34816561.32 | H74: 45849725 | I74: -11033163.68 | J74: -0.2406375105 | K74: =+K70+K72+K73 -> 58277000
A75: =head27a -> References
A76: 1. Municipalities may choose to appropriate for capital expenditure for three years or for one year (if one year appropriation projected expenditure required for yr2 and yr3).
A77: 2. Include capital component of PPP unitary payment
A78: 3. Capital expenditure by functional classification must reconcile to the total of multi-year and single year appropriations
A79: 4. Include expenditure on investment property, intangible and biological assets
A81: 6. Include finance leases and PPP capital funding component of unitary payment - total borrowing/repayments to reconcile to changes in Table SA17
A82: 7. Total Capital Funding must balance with Total Capital Expenditure
A86: check balance | C86: =C40-C74 -> 0 | D86: =D40-D74 -> 0 | E86: 0 | F86: 0 | G86: 0 | H86: 0 | K86: 0

Sheet C5C
A1: =muni& " - "&S71D& " - "&"A"& " - "&date -> LIM353 Molemole - Table C5 Monthly Budget Statement - Capital Expenditure (municipal vote, functional classification and funding) - A - Q3 Third Quarter
A2: =Vdesc -> Vote Description | B2: =head27 -> Ref | C2: =Head1 -> 2024/25 | D2: =Head2 -> Budget Year 2025/26 | L2: =Head4 -> 
A3: R thousand | C3: =Head5 -> Audited Outcome | D3: =Head6 -> Original Budget | E3: =Head7 -> Adjusted Budget | F3: =Head38 -> Monthly actual | G3: =Head39 -> YearTD actual | H3: =Head40 -> YearTD budget | I3: =Head41 -> YTD variance | J3: =Head41 -> YTD variance | K3: =Head8 -> Full Year Forecast | L3: =Head12 -> Forecast 2010/11 | M3: =Head13 -> Forecast 2011/12 | N3: =Head14 -> Forecast 2012/13 | O3: =Head15 -> Forecast 2013/14 | P3: =Head16 -> Forecast 2014/15 | Q3: =Head17 -> Forecast 2015/16 | R3: =Head18 -> Forecast 2016/17 | S3: =Head19 -> Forecast 2017/18 | T3: =Head20 -> Forecast 2018/19 | U3: =Head21 -> Forecast 2019/20 | V3: =Head22 -> Forecast 2020/21 | W3: =Head23 -> Forecast 2021/22
J4: %
A5: Capital expenditure - Municipal Vote
A6: Expenditure of multi-year capital appropriation | B6: 1
A7: ='Org structure'!A2 -> Vote 01 - Corporate Services | C7: =SUM(C8:C10) -> 2579651.29 | D7: 4300000 | E7: 2479000 | F7: 0 | G7: 53860 | H7: 2496606 | I7: =G7-H7 -> -2442746 | J7: =IF(I7=0,"",I7/H7) -> -0.9784267121 | K7: =SUM(K8:K10) -> 2479000
A8: ='Org structure'!E3 -> 01.1 - Corporate Services Admin | C8: 325786.29 | D8: 3700000 | E8: 2350000 | F8: 0 | G8: 24860 | H8: 2235006 | I8: =G8-H8 -> -2210146 | J8: =IF(I8=0,"",I8/H8) -> -0.9888769874 | K8: 2350000
A9: ='Org structure'!E5 -> 01.3 - Information Technology Services | C9: 2079865 | D9: 600000 | E9: 129000 | F9: 0 | G9: 29000 | H9: 261600 | I9: =G9-H9 -> -232600 | J9: =IF(I9=0,"",I9/H9) -> -0.8891437309 | K9: 129000
A10: ='Org structure'!E8 -> 01.6 - Municipal Planning Idp | C10: 174000 | D10: 0 | E10: 0 | F10: 0 | G10: 0 | H10: 0 | I10: =G10-H10 -> 0 | J10: =IF(I10=0,"",I10/H10) ->  | K10: 0
A11: ='Org structure'!A3 -> Vote 02 - Municipal Manager | C11: =SUM(C12:C13) -> 147826.09 | D11: 150000 | E11: 150000 | F11: -22616 | G11: 115200 | H11: 112500 | I11: 2700 | J11: 0.024 | K11: =SUM(K12:K13) -> 150000
A12: ='Org structure'!E14 -> 02.3 - Political Office Beares | C12: 147826.09 | D12: 150000 | E12: 150000 | F12: -22616 | G12: 115200 | H12: 112500 | I12: =G12-H12 -> 2700 | J12: =IF(I12=0,"",I12/H12) -> 0.024 | K12: 150000
A13: ='Org structure'!E16 -> 02.5 - Internal Audit | C13: 0 | D13: 0 | E13: 0 | F13: 0 | G13: 0 | H13: 0 | I13: =G13-H13 -> 0 | J13: =IF(I13=0,"",I13/H13) ->  | K13: 0
A14: ='Org structure'!A4 -> Vote 03 - Mayors Office | C14: 0 | D14: 0 | E14: 0 | F14: 0 | G14: 0 | H14: 0 | I14: 0 | K14: 0
A15: ='Org structure'!A5 -> Vote 04 - Budget And Treasury | C15: =SUM(C16:C18) -> 2976569.26 | D15: 0 | E15: 0 | F15: 0 | G15: 0 | H15: 0 | I15: 0 | K15: =SUM(K16:K18) -> 0
A16: ='Org structure'!E24 -> 04.1 - Budget And Treasury Admin | C16: 0 | D16: 0 | E16: 0 | F16: 0 | G16: 0 | H16: 0 | I16: =G16-H16 -> 0 | J16: =IF(I16=0,"",I16/H16) ->  | K16: 0
A17: ='Org structure'!E27 -> 04.4 - Revenue Management | C17: 2976569.26 | D17: 0 | E17: 0 | F17: 0 | G17: 0 | H17: 0 | I17: =G17-H17 -> 0 | J17: =IF(I17=0,"",I17/H17) ->  | K17: 0
A18: ='Org structure'!E28 -> 04.5 - Supply Chain Management | C18: 0 | D18: 0 | E18: 0 | F18: 0 | G18: 0 | H18: 0 | I18: =G18-H18 -> 0 | J18: =IF(I18=0,"",I18/H18) ->  | K18: 0
A19: ='Org structure'!A6 -> Vote 05 - Community Services | C19: =SUM(C20:C22) -> 1779570.5 | D19: 13758800 | E19: 12760000 | F19: 0 | G19: 619184.78 | H19: 9919601 | I19: -9300416.22 | J19: -0.9375796688 | K19: =SUM(K20:K22) -> 12760000
A20: ='Org structure'!E31 -> 05.1 - Community Services Admin | C20: 1758370.5 | D20: 1000000 | E20: 500000 | F20: 0 | G20: 488750 | H20: 550006 | I20: =G20-H20 -> -61256 | J20: =IF(I20=0,"",I20/H20) -> -0.1113733305 | K20: 500000
A21: ='Org structure'!E33 -> 05.3 - Sports Recreation & Social Amenitie | C21: 0 | D21: 12758800 | E21: 12200000 | F21: 0 | G21: 130434.78 | H21: 9345595 | I21: =G21-H21 -> -9215160.22 | J21: =IF(I21=0,"",I21/H21) -> -0.9860431808 | K21: 12200000
A22: ='Org structure'!E34 -> 05.4 - Traffic Service | C22: 21200 | D22: 0 | E22: 60000 | F22: 0 | G22: 0 | H22: 24000 | I22: =G22-H22 -> -24000 | J22: =IF(I22=0,"",I22/H22) -> -1 | K22: 60000
A23: ='Org structure'!A7 -> Vote 06 - Technical Services | C23: =SUM(C24:C27) -> 45339009.65 | D23: 46188000 | E23: 42888000 | F23: 14128351.5 | G23: 34028316.54 | H23: 33321018 | I23: 707298.54 | J23: 0.02122679865 | K23: =SUM(K24:K27) -> 42888000
A24: ='Org structure'!E40 -> 06.3 - Techn Serv-Roads: Admin | C24: 19515235.03 | D24: 23303670 | E24: 39040826 | F24: 341851.5 | G24: 18899664.29 | H24: 23772628.4 | I24: =G24-H24 -> -4872964.11 | J24: =IF(I24=0,"",I24/H24) -> -0.2049821344 | K24: 39040826
A25: ='Org structure'!E41 -> 06.4 - Techn Serv-Stormwater: Admin | C25: 23131875.13 | D25: 19084330 | E25: 3347174 | F25: 0 | G25: 1342152.25 | H25: 8018386.6 | I25: =G25-H25 -> -6676234.35 | J25: =IF(I25=0,"",I25/H25) -> -0.8326156723 | K25: 3347174
A26: ='Org structure'!E42 -> 06.5 - Project Management Unit | C26: 0 | D26: 0 | E26: 300000 | F26: 0 | G26: 0 | H26: 120000 | I26: =G26-H26 -> -120000 | J26: =IF(I26=0,"",I26/H26) -> -1 | K26: 300000
A27: ='Org structure'!E43 -> 06.6 - Electrical & Machinery | C27: 2691899.49 | D27: 3800000 | E27: 200000 | F27: 13786500 | G27: 13786500 | H27: 1410003 | I27: =G27-H27 -> 12376497 | J27: =IF(I27=0,"",I27/H27) -> 8.777638771 | K27: 200000
A28: ='Org structure'!A8 -> Vote 07 - | C28: 0 | D28: 0 | E28: 0 | F28: 0 | G28: 0 | H28: 0 | I28: =G28-H28 -> 0 | J28: =IF(I28=0,"",I28/H28) ->  | K28: 0
A29: ='Org structure'!A9 -> Vote 08 - | C29: 0 | D29: 0 | E29: 0 | F29: 0 | G29: 0 | H29: 0 | I29: 0 | K29: 0
A30: ='Org structure'!A10 -> Vote 09 - | C30: 0 | D30: 0 | E30: 0 | F30: 0 | G30: 0 | H30: 0 | I30: 0 | K30: 0
A31: ='Org structure'!A11 -> Vote 10 - | C31: 0 | D31: 0 | E31: 0 | F31: 0 | G31: 0 | H31: 0 | I31: 0 | K31: 0
A32: ='Org structure'!A12 -> Vote 11 - | C32: 0 | D32: 0 | E32: 0 | F32: 0 | G32: 0 | H32: 0 | I32: 0 | K32: 0
A33: ='Org structure'!A13 -> Vote 12 - | C33: 0 | D33: 0 | E33: 0 | F33: 0 | G33: 0 | H33: 0 | I33: 0 | K33: 0
A34: ='Org structure'!A14 -> Vote 13 - | C34: 0 | D34: 0 | E34: 0 | F34: 0 | G34: 0 | H34: 0 | I34: =G34-H34 -> 0 | J34: =IF(I34=0,"",I34/H34) ->  | K34: 0
A35: ='Org structure'!A15 -> Vote 14 - | C35: 0 | D35: 0 | E35: 0 | F35: 0 | G35: 0 | H35: 0 | I35: 0 | K35: 0
A36: ='Org structure'!A16 -> Vote 15 - Other | C36: 0 | D36: 0 | E36: 0 | F36: 0 | G36: 0 | H36: 0 | I36: 0 | K36: 0
A37: Total multi-year capital expenditure | C37: =C7+C11+C14+C15+C19+C23+C28+C29+C30+C31+C32+C33+C34+C35+C36 -> 52822626.79 | D37: 64396800 | E37: 58277000 | F37: 14105735.5 | G37: 34816561.32 | H37: 45849725 | I37: -11033163.68 | J37: -0.2406375105 | K37: =K7+K11+K14+K15+K19+K23+K28+K29+K30+K31+K32+K33+K34+K35+K36 -> 58277000
I38: 0
A39: Capital expenditure - Municipal Vote
A40: Expenditue of single-year capital appropriation | B40: 1
A41: ='Org structure'!A2 -> Vote 01 - Corporate Services | C41: 0 | D41: 0 | E41: 0 | F41: 0 | G41: 0 | H41: 0 | I41: 0 | K41: 0
A42: ='Org structure'!A3 -> Vote 02 - Municipal Manager | C42: 0 | D42: 0 | E42: 0 | F42: 0 | G42: 0 | H42: 0 | I42: 0 | K42: 0
A43: ='Org structure'!A4 -> Vote 03 - Mayors Office | C43: 0 | D43: 0 | E43: 0 | F43: 0 | G43: 0 | H43: 0 | I43: 0 | K43: 0
A44: ='Org structure'!A5 -> Vote 04 - Budget And Treasury | C44: 0 | D44: 0 | E44: 0 | F44: 0 | G44: 0 | H44: 0 | I44: =G44-H44 -> 0 | J44: =IF(I44=0,"",I44/H44) ->  | K44: 0
A45: ='Org structure'!A6 -> Vote 05 - Community Services | C45: 0 | D45: 0 | E45: 0 | F45: 0 | G45: 0 | H45: 0 | I45: 0 | K45: 0
A46: ='Org structure'!A7 -> Vote 06 - Technical Services | C46: 0 | D46: 0 | E46: 0 | F46: 0 | G46: 0 | H46: 0 | I46: 0 | K46: 0
A47: ='Org structure'!A8 -> Vote 07 - | C47: 0 | D47: 0 | E47: 0 | F47: 0 | G47: 0 | H47: 0 | I47: 0 | K47: 0
A48: ='Org structure'!A9 -> Vote 08 - | C48: 0 | D48: 0 | E48: 0 | F48: 0 | G48: 0 | H48: 0 | I48: 0 | K48: 0
A49: ='Org structure'!A10 -> Vote 09 - | C49: 0 | D49: 0 | E49: 0 | F49: 0 | G49: 0 | H49: 0 | I49: =G49-H49 -> 0 | J49: =IF(I49=0,"",I49/H49) ->  | K49: 0
A50: ='Org structure'!A11 -> Vote 10 - | C50: 0 | D50: 0 | E50: 0 | F50: 0 | G50: 0 | H50: 0 | I50: 0 | K50: 0
A51: ='Org structure'!A12 -> Vote 11 - | C51: 0 | D51: 0 | E51: 0 | F51: 0 | G51: 0 | H51: 0 | I51: 0 | K51: 0
A52: ='Org structure'!A13 -> Vote 12 - | C52: 0 | D52: 0 | E52: 0 | F52: 0 | G52: 0 | H52: 0 | I52: 0 | K52: 0
A53: ='Org structure'!A14 -> Vote 13 - | C53: 0 | D53: 0 | E53: 0 | F53: 0 | G53: 0 | H53: 0 | I53: 0 | K53: 0
A54: ='Org structure'!A15 -> Vote 14 - | C54: 0 | D54: 0 | E54: 0 | F54: 0 | G54: 0 | H54: 0 | I54: 0 | K54: 0
A55: ='Org structure'!A16 -> Vote 15 - Other | C55: 0 | D55: 0 | E55: 0 | F55: 0 | G55: 0 | H55: 0 | I55: =G55-H55 -> 0 | J55: =IF(I55=0,"",I55/H55) ->  | K55: 0
A56: Total single-year capital expenditure | C56: =C41+C42+C43+C44+C45+C46+C47+C48+C49+C50+C51+C52+C53+C54+C55 -> 0 | D56: 0 | E56: 0 | F56: 0 | G56: 0 | H56: 0 | I56: 0 | K56: =K41+K42+K43+K44+K45+K46+K47+K48+K49+K50+K51+K52+K53+K54+K55 -> 0
A57: Total Capital Expenditure | C57: =C37+C56 -> 52822626.79 | D57: 64396800 | E57: 58277000 | F57: 14105735.5 | G57: 34816561.32 | H57: 45849725 | I57: -11033163.68 | J57: -0.2406375105 | K57: =K37+K56 -> 58277000
A58: =head27a -> References
A59: 1. Insert 'Vote'; e.g. Department, if different to standard structure

Sheet C6-FinPos
A1: =muni& " - "&S71E& " - "&date -> LIM353 Molemole - Table C6 Monthly Budget Statement - Financial Position - Q3 Third Quarter
A2: =desc -> Description | B2: =head27 -> Ref | C2: =Head1 -> 2024/25 | D2: =Head2 -> Budget Year 2025/26
C3: =Head5 -> Audited Outcome | D3: =Head6 -> Original Budget | E3: =Head7 -> Adjusted Budget | F3: =Head39 -> YearTD actual | G3: =Head8 -> Full Year Forecast
A4: R thousands | B4: 1
A5: ASSETS
A6: Current assets
A7: Cash and cash equivalents | C7: 132645118.4 | D7: 129572538 | E7: 135907981 | F7: 136822834.7 | G7: 135907981
A8: Trade and other receivables from exchange transactions | C8: 410695.48 | D8: 5606550 | E8: 280976 | F8: -953145.36 | G8: 280976
A9: Receivables from non-exchange transactions | C9: 2801392.33 | D9: 80962794 | E9: 15097710 | F9: -402624.79 | G9: 15097710
A10: Current portion of non-current receivables | C10: 0 | D10: 0 | E10: 0 | F10: 0 | G10: 0
A11: Inventory | C11: 362727.19 | D11: 156003 | E11: 362728 | F11: 362727.19 | G11: 362728
A12: VAT | C12: -47245555.73 | D12: 6481927 | E12: 10460714 | F12: -52295756.49 | G12: 10460714
A13: Other current assets | C13: 5139576.74 | D13: 2257473 | E13: -644423 | F13: 8724274.99 | G13: -644423
A14: Total current assets | C14: =SUM(C7:C13) -> 94113954.41 | D14: =SUM(D7:D13) -> 225037285 | E14: =SUM(E7:E13) -> 161465686 | F14: =SUM(F7:F13) -> 92258310.2 | G14: =SUM(G7:G13) -> 161465686
A15: Non current assets
A16: Investments | C16: 0 | D16: 0 | E16: 0 | F16: 0 | G16: 0
A17: Investment property | C17: 1534541.53 | D17: 1459246 | E17: 1534540 | F17: 1512711.73 | G17: 1534540
A18: Property, plant and equipment | C18: 453538074.3 | D18: 483709061 | E18: 512293401 | F18: 477996453.4 | G18: 512293401
A19: Biological assets
A20: Living and non-living resources
A21: Heritage assets | C21: 414500 | D21: 408500 | E21: 414500 | F21: 414500 | G21: 414500
A22: Intangible assets | C22: 3277274.97 | D22: 315044 | E22: 3277272 | F22: 3222109.93 | G22: 3277272
A23: Trade and other receivables from exchange transactions
A24: Non-current receivables from non-exchange transactions | C24: 0 | D24: 0 | E24: 0 | F24: 0 | G24: 0
A25: Other non-current assets
A26: Total non current assets | C26: =SUM(C16:C25) -> 458764390.8 | D26: =SUM(D16:D25) -> 485891851 | E26: =SUM(E16:E25) -> 517519713 | F26: =SUM(F16:F25) -> 483145775.1 | G26: =SUM(G16:G25) -> 517519713
A27: TOTAL ASSETS | C27: =C14+C26 -> 552878345.2 | D27: =D14+D26 -> 710929136 | E27: =E14+E26 -> 678985399 | F27: =F14+F26 -> 575404085.3 | G27: =G14+G26 -> 678985399
A28: LIABILITIES
A29: Current liabilities
A30: Bank overdraft | C30: 0 | D30: 0 | E30: 0 | F30: 0 | G30: 0
A31: Financial liabilities | C31: 0 | D31: 0 | E31: 0 | F31: 0 | G31: 0
A32: Consumer deposits | C32: 507776.48 | D32: 509126 | E32: 507777 | F32: 507776.48 | G32: 507777
A33: Trade and other payables from exchange transactions | C33: 40080584.31 | D33: 42369912 | E33: 45684645 | F33: -75726226.15 | G33: 45684645
A34: Trade and other payables from non-exchange transactions | C34: 1409931.21 | D34: 1260124 | E34: 1409930 | F34: 47085900.79 | G34: 1409930
A35: Provision | C35: 2532199.94 | D35: -835329 | E35: 3094285 | F35: 2493166.34 | G35: 3094285
A36: VAT | C36: -50200253.43 | D36: 0 | E36: 7506016 | F36: -52331559.64 | G36: 7506016
A37: Other current liabilities | C37: 0 | D37: 0 | E37: 0 | F37: 0 | G37: 0
A38: Total current liabilities | C38: =SUM(C30:C37) -> -5669761.49 | D38: =SUM(D30:D37) -> 43303833 | E38: =SUM(E30:E37) -> 58202653 | F38: =SUM(F30:F37) -> -77970942.18 | G38: =SUM(G30:G37) -> 58202653
A39: Non current liabilities
A40: Financial liabilities | C40: 0 | D40: 0 | E40: 0 | F40: 0 | G40: 0
A41: Provision | C41: 59790949.84 | D41: 58128905 | E41: 68931671 | F41: 59790949.84 | G41: 68931671
A42: Long term portion of trade payables | C42: 0 | D42: 0 | E42: 0 | F42: 0 | G42: 0
A43: Other non-current liabilities | C43: 0 | D43: 0 | E43: 0 | F43: 0 | G43: 0
A44: Total non current liabilities | C44: =SUM(C40:C43) -> 59790949.84 | D44: =SUM(D40:D43) -> 58128905 | E44: =SUM(E40:E43) -> 68931671 | F44: =SUM(F40:F43) -> 59790949.84 | G44: =SUM(G40:G43) -> 68931671
A45: TOTAL LIABILITIES | C45: =C38+C44 -> 54121188.35 | D45: =D38+D44 -> 101432738 | E45: =E38+E44 -> 127134324 | F45: =F38+F44 -> -18179992.34 | G45: =G38+G44 -> 127134324
A46: NET ASSETS | B46: 2 | C46: =C27-C45 -> 498757156.9 | D46: =D27-D45 -> 609496398 | E46: =E27-E45 -> 551851075 | F46: =F27-F45 -> 593584077.6 | G46: =G27-G45 -> 551851075
A47: COMMUNITY WEALTH/EQUITY
A48: Accumulated surplus/(deficit) | C48: 505151460.4 | D48: 561761977 | E48: 506392376 | F48: 485193940.5 | G48: 506392376
A49: Reserves and funds | C49: 48578210.27 | D49: 47734421 | E49: 51578212 | F49: 48578210.27 | G49: 51578212
A50: Other | C50: 0 | D50: 0 | E50: 0 | F50: 0 | G50: 0
A51: TOTAL COMMUNITY WEALTH/EQUITY | B51: 2 | C51: =SUM(C48:C50) -> 553729670.7 | D51: =SUM(D48:D50) -> 609496398 | E51: =SUM(E48:E50) -> 557970588 | F51: =SUM(F48:F50) -> 533772150.8 | G51: =SUM(G48:G50) -> 557970588
A52: =head27a -> References
A53: 1. Material variances to be explained in Table SC1
A54: 2. Net assets must balance with Total Community Wealth/Equity
A57: check balance | C57: =C46-C51 -> -54972513.79 | D57: =D46-D51 -> 0 | E57: =E46-E51 -> -6119513 | F57: =F46-F51 -> 59811926.82 | G57: =G46-G51 -> -6119513

Sheet C7-CFlow
A1: =muni& " - "&S71F& " - "&date -> LIM353 Molemole - Table C7 Monthly Budget Statement - Cash Flow - Q3 Third Quarter
A2: =desc -> Description | B2: =head27 -> Ref | C2: =Head1 -> 2024/25 | D2: =Head2 -> Budget Year 2025/26
C3: =Head5 -> Audited Outcome | D3: =Head6 -> Original Budget | E3: =Head7 -> Adjusted Budget | F3: =Head38 -> Monthly actual | G3: =Head39 -> YearTD actual | H3: =Head40 -> YearTD budget | I3: =Head41 -> YTD variance | J3: =Head41 -> YTD variance | K3: =Head8 -> Full Year Forecast
A4: R thousands | B4: 1 | J4: %
A5: CASH FLOW FROM OPERATING ACTIVITIES
A6: Receipts
A7: Property rates | C7: 7889322.75 | D7: 19664717 | E7: 19664717 | F7: 0 | G7: 7209260.56 | H7: 14748537.78 | I7: =G7-H7 -> -7539277.22 | J7: =IF(I7=0,"",I7/H7) -> -0.5111881145 | K7: 19664717
A8: Service charges | C8: 1779257.63 | D8: 14823588 | E8: 14823588 | F8: 0 | G8: 956488.38 | H8: 11117691 | I8: -10161202.62 | J8: =IF(I8=0,"",I8/H8) -> -0.9139669937 | K8: 14823588
A9: Other revenue | C9: 121166539.7 | D9: 16909553 | E9: 38045695 | F9: 0 | G9: 106439373.5 | H9: 28534271.31 | I9: 77905102.15 | J9: =IF(I9=0,"",I9/H9) -> 2.73022925 | K9: 38045695
A10: Transfers and Subsidies - Operational | C10: 193221124 | D10: 207339000 | E10: 191368000 | F10: 0 | G10: 143795945.7 | H10: 143525999.9 | I10: 269945.79 | J10: =IF(I10=0,"",I10/H10) -> 0.001880814558 | K10: 191368000
A11: Transfers and Subsidies - Capital | C11: 38779000 | D11: 52088000 | E11: 52088000 | F11: 0 | G11: 36280000 | H11: 39066000.03 | I11: -2786000.03 | J11: =IF(I11=0,"",I11/H11) -> -0.07131521087 | K11: 52088000
A12: Interest | C12: 3691019.91 | D12: 16695504 | E12: 16695504 | F12: 0 | G12: 6665903.09 | H12: 12521628 | I12: -5855724.91 | J12: -0.4676488481 | K12: 16695504
A13: Dividends | I13: 0
A14: Payments
A15: Suppliers and employees | C15: -329200428.1 | D15: -271341046 | E15: -280705367 | F15: 0 | G15: -345700792.5 | H15: -211027890.1 | I15: =H15-G15 -> 134672902.4 | J15: -0.6381758465 | K15: -280705367
A16: Interest | C16: 0 | D16: -2551064 | E16: -3085364 | F16: 0 | G16: 0 | H16: -2314023.03 | I16: =H16-G16 -> -2314023.03 | J16: 1 | K16: -3085364
A17: Transfers and Subsidies | I17: =H17-G17 -> 0
A18: NET CASH FROM/(USED) OPERATING ACTIVITIES | C18: =SUM(C7:C13)+SUM(C15:C17) -> 37325835.92 | D18: 53628252 | E18: 48894773 | F18: 0 | G18: -44353821.38 | H18: 36172214.84 | I18: =H18-G18 -> 80526036.22 | J18: 2.226184838 | K18: =SUM(K7:K13)+SUM(K15:K17) -> 48894773
A20: CASH FLOWS FROM INVESTING ACTIVITIES
A21: Receipts
A22: Proceeds on disposal of PPE | C22: 770042.12 | D22: 0 | E22: 0 | F22: 0 | G22: 0 | H22: 0 | I22: =G22-H22 -> 0 | J22: =IF(I22=0,"",I22/H22) ->  | K22: 0
A24: Decrease (increase) in non-current receivables | C24: 0 | D24: 0 | E24: 0 | F24: 0 | G24: 0 | H24: 0 | I24: =G24-H24 -> 0 | K24: 0
A25: Decrease (increase) in non-current investments | C25: 0 | D25: 0 | E25: 0 | F25: 0 | G25: 0 | H25: 0 | I25: =G25-H25 -> 0 | K25: 0
A26: Payments
A27: Capital assets | C27: -52822626.79 | D27: -64396800 | E27: -58277000 | F27: 0 | G27: -20710825.82 | H27: -43707749.94 | I27: =H27-G27 -> -22996924.12 | J27: 0.5261520932 | K27: -58277000
A28: NET CASH FROM/(USED) INVESTING ACTIVITIES | C28: =SUM(C22:C25)+C27 -> -52052584.67 | D28: =SUM(D22:D25)+D27 -> -64396800 | E28: -58277000 | F28: 0 | G28: -20710825.82 | H28: -43707749.94 | I28: =H28-G28 -> -22996924.12 | J28: 0.5261520932 | K28: =SUM(K22:K25)+K27 -> -58277000
A30: CASH FLOWS FROM FINANCING ACTIVITIES
A31: Receipts
A32: Short term loans | I32: =G32-H32 -> 0 | J32: =IF(I32=0,"",I32/H32) -> 
A33: Borrowing long term/refinancing | I33: =G33-H33 -> 0
A34: Increase (decrease) in consumer deposits | I34: =G34-H34 -> 0
A35: Payments
A36: Repayment of borrowing | C36: 0 | D36: 0 | E36: 0 | F36: 0 | G36: 0 | H36: 0 | I36: =H36-G36 -> 0 | K36: 0
A37: NET CASH FROM/(USED) FINANCING ACTIVITIES | C37: =SUM(C32:C34)+C36 -> 0 | D37: 0 | E37: 0 | F37: 0 | G37: 0 | H37: 0 | I37: =H37-G37 -> 0 | K37: =SUM(K32:K34)+K36 -> 0
A39: NET INCREASE/ (DECREASE) IN CASH HELD | C39: =C18+C28+C37 -> -14726748.75 | D39: -10768548 | E39: -9382227 | F39: 0 | G39: -65064647.2 | H39: -7535535.1 | K39: =K18+K28+K37 -> -9382227
A40: Cash/cash equivalents at beginning: | C40: 140341085.1 | D40: 140341086 | E40: 140341086 | F40: 67580471.2 | G40: 132645118.4 | H40: =IF(E40=0, D40, E40) -> 140341086 | K40: =G40 -> 132645118.4
A41: Cash/cash equivalents at month/year end: | C41: =C39+C40 -> 125614336.3 | D41: 129572538 | E41: 130958859 | F41: 67580471.2 | G41: 67580471.2 | H41: 132805550.9 | K41: =K39+K40 -> 123262891.4
A42: References
A43: 1. Material variances to be explained in Table SC1

Sheet SC1
A1: =muni& " - "&S71G& " - "&date -> LIM353 Molemole - Supporting Table SC1 Material variance explanations - Q3 Third Quarter
A2: =head27 -> Ref | B2: =desc -> Description
C3: Variance | D3: Reasons for material deviations | E3: Remedial or corrective steps/remarks
B4: R thousands
A5: 1 | B5: Revenue
B6: Variances was Not Calculated
A10: 2 | B10: Expenditure By Type
B11: Variances was Not Calculated
A15: 3 | B15: =RIGHT('C5-Capex'!A40,19) -> Capital Expenditure
B16: Variances was Not Calculated
A20: 4 | B20: Financial Position
B21: Variances was Not Calculated
A25: 5 | B25: Cash Flow
B26: Variances was Not Calculated
A30: 6 | B30: Measureable performance
A35: 7 | B35: Municipal Entities
A41: =head27a -> References
A42: 1. Revenue for each source, vote and standard classification
A43: 2. Expenditure for each type, vote and standard classification
A44: 3. Capital expenditure for each vote and standard classification
A45: 4. Explain any material variances between the annual budget and the expected financial position based on current trends
A46: 5. Cash receipts by source and cash payments by type where not explained under revenue and expenditure
A47: 6. For Sept, Dec, Mar and Jun statements explain any material variances in achievement of measurable performance objectives

Sheet SC2
A1: =muni& " - "&S71H& " - "&Head57 -> LIM353 Molemole - Supporting Table SC2 Monthly Budget Statement - performance indicators - Q3 Third Quarter
A2: Description of financial indicator | B2: Basis of calculation | C2: =head27 -> Ref | D2: =Head1 -> 2024/25 | E2: =Head2 -> Budget Year 2025/26
D3: =Head5 -> Audited Outcome | E3: =Head6 -> Original Budget | F3: =Head7 -> Adjusted Budget | G3: =Head39 -> YearTD actual | H3: =Head8 -> Full Year Forecast
A5: Borrowing Management
A7: Capital Charges to Operating Expenditure | B7: Interest & principal paid/Operating Expenditure | D7: =IF(ISERROR((D42-D43)/D45),0,((D42-D43)/D45)) -> 0.009501191343 | E7: =IF(ISERROR((E42+E44)/E45),0,((E42+E44)/E45)) -> 0.08484536967 | F7: =IF(ISERROR((F42+F44)/F45),0,((F42+F44)/F45)) -> 0.09273690906 | G7: =IF(ISERROR((G42+G44)/G45),0,((G42+G44)/G45)) -> 4.867435139e-05 | H7: =IF(ISERROR((H42+H44)/H45),0,((H42+H44)/H45)) -> 0.065931734
A8: Borrowed funding of 'own' capital expenditure | B8: Borrowings/Capital expenditure excl. transfers and grants | D8: =IF(ISERROR(D47/D46),0,(D47/D46)) -> 0 | E8: =IF(ISERROR(E47/E46),0,(E47/E46)) -> 0 | F8: =IF(ISERROR(F47/F46),0,(F47/F46)) -> 0 | G8: =IF(ISERROR(G47/G46),0,(G47/G46)) -> 0 | H8: =IF(ISERROR(H47/H46),0,(H47/H46)) -> 0
A9: Safety of Capital
A10: Debt to Equity | B10: Loans, Accounts Payable, Overdraft & Tax Provision/ Funds & Reserves | D10: =IF(ISERROR(D48/D49),0,(D48/D49)) -> 0.07492918967 | E10: =IF(ISERROR(E48/E49),0,(E48/E49)) -> 0.07158374708 | F10: =IF(ISERROR(F48/F49),0,(F48/F49)) -> 0.0844033288 | G10: =IF(ISERROR(G48/G49),0,(G48/G49)) -> -0.05365646244 | H10: =IF(ISERROR(H48/H49),0,(H48/H49)) -> 0.0844033288
A11: Gearing | B11: Long Term Borrowing/ Funds & Reserves | D11: =IF(ISERROR(D51/D50),0,(D51/D50)) -> 0 | E11: =IF(ISERROR(E51/E50),0,(E51/E50)) -> 0 | F11: =IF(ISERROR(F51/F50),0,(F51/F50)) -> 0 | G11: =IF(ISERROR(G51/G50),0,(G51/G50)) -> 0 | H11: =IF(ISERROR(H51/H50),0,(H51/H50)) -> 0
A12: Liquidity
A13: Current Ratio | B13: Current assets/current liabilities | C13: 1 | D13: =IF(ISERROR(D52/D53),0,(D52/D53)) -> -16.59927928 | E13: =IF(ISERROR(E52/E53),0,(E52/E53)) -> 5.196705913 | F13: =IF(ISERROR(F52/F53),0,(F52/F53)) -> 2.774198042 | G13: =IF(ISERROR(G52/G53),0,(G52/G53)) -> -1.183239648 | H13: =IF(ISERROR(H52/H53),0,(H52/H53)) -> 2.774198042
A14: Liquidity Ratio | B14: Monetary Assets/Current Liabilities | D14: =IF(ISERROR(D54/D53),0,(D54/D53)) -> -23.3951849 | E14: =IF(ISERROR(E54/E53),0,(E54/E53)) -> 2.992172494 | F14: =IF(ISERROR(F54/F53),0,(F54/F53)) -> 2.335082234 | G14: =IF(ISERROR(G54/G53),0,(G54/G53)) -> -1.75479263 | H14: =IF(ISERROR(H54/H53),0,(H54/H53)) -> 2.335082234
A15: Revenue Management
A16: Annual Debtors Collection Rate (Payment Level %) | B16: Last 12 Mths Receipts/ Last 12 Mths Billing
A17: Outstanding Debtors to Revenue | B17: Total Outstanding Debtors to Annual Revenue | D17: =IF(ISERROR(D59/D55),0,(D59/D55)) -> 0.03031688929 | E17: =IF(ISERROR(E59/E55),0,(E59/E55)) -> 0.2987102428 | F17: =IF(ISERROR(F59/F55),0,(F59/F55)) -> 0.04930079659 | G17: =IF(ISERROR(G59/G55),0,(G59/G55)) -> 0.02846705131 | H17: =IF(ISERROR(H59/H55),0,(H59/H55)) -> 0.04930079659
A18: Longstanding Debtors Recovered | B18: Debtors > 12 Mths Recovered/Total Debtors > 12 Months Old | D18: =IF(ISERROR(D64/D63),0,(D64/D63)) -> 0 | E18: =IF(ISERROR(E64/E63),0,(E64/E63)) -> 0 | F18: =IF(ISERROR(F64/F63),0,(F64/F63)) -> 0 | G18: =IF(ISERROR(G64/G63),0,(G64/G63)) -> 0 | H18: =IF(ISERROR(H64/H63),0,(H64/H63)) -> 0
A19: Creditors Management
A20: Creditors System Efficiency | B20: % of Creditors Paid Within Terms (within MFMA s 65(e))
A21: Funding of Provisions
A22: Percentage Of Provisions Not Funded | B22: Unfunded Provisions/Total Provisions
A23: Other Indicators
A24: Electricity Distribution Losses | B24: % Volume (units purchased and generated less units sold)/units purchased and generated | C24: 2 | D24: 0 | E24: 0 | F24: 0 | G24: 0 | H24: 0
A25: Water Distribution Losses | B25: % Volume (units purchased and own source less units sold)/Total units purchased and own source | C25: 2
A26: Employee costs | B26: Employee costs/Total Revenue - capital revenue | D26: =IF(ISERROR(D40/D55),0,(D40/D55)) -> 0.4303493838 | E26: =IF(ISERROR(E40/E55),0,(E40/E55)) -> 0.4077116196 | F26: =IF(ISERROR(F40/F55),0,(F40/F55)) -> 0.4220335053 | G26: =IF(ISERROR(G40/G55),0,(G40/G55)) -> 0.3182373995 | H26: =IF(ISERROR(H40/H55),0,(H40/H55)) -> 0.4220335053
A27: Repairs & Maintenance | B27: R&M/Total Revenue - capital revenue | D27: =IF(ISERROR(D41/D55),0,(D41/D55)) -> 0.05245513544 | E27: =IF(ISERROR(E41/E55),0,(E41/E55)) -> 0.044423097 | F27: =IF(ISERROR(F41/F55),0,(F41/F55)) -> 0.04667665511 | G27: =IF(ISERROR(G41/G55),0,(G41/G55)) -> 0.02821947633 | H27: =IF(ISERROR(H41/H55),0,(H41/H55)) -> 0.04667665511
A28: Interest & Depreciation | B28: I&D/Total Revenue - capital revenue | D28: =IF(ISERROR((D42+D44)/D55),0,((D42+D44)/D55)) -> 0.09927240863 | E28: =IF(ISERROR((E42+E44)/E55),0,((E42+E44)/E55)) -> 0.08140531179 | F28: =IF(ISERROR((F42+F44)/F55),0,((F42+F44)/F55)) -> 0.09107321418 | G28: =IF(ISERROR((G42+G44)/G55),0,((G42+G44)/G55)) -> 3.357058414e-05 | H28: =IF(ISERROR((H42+H44)/H55),0,((H42+H44)/H55)) -> 0.06474892244
A29: IDP regulation financial viability indicators
A30: i. Debt coverage | B30: (Total Operating Revenue - Operating Grants)/Debt service payments due within financial year)
A31: ii. O/S Service Debtors to Revenue | B31: Total outstanding service debtors/annual revenue received for services
A32: iii. Cost coverage | B32: (Available cash + Investments)/monthly fixed operational expenditure
A33: References
A34: 1. Consumer debtors > 12 months old are excluded from current assets.
A35: 2. Material variances to be explained.
A37: Calculations
A38: ='C6-FinPos'!A40 -> Financial liabilities | D38: ='C6-FinPos'!C40 -> 0 | E38: ='C6-FinPos'!D40 -> 0 | F38: ='C6-FinPos'!E40 -> 0 | G38: ='C6-FinPos'!F40 -> 0 | H38: ='C6-FinPos'!G40 -> 0
A39: Total Assets | D39: ='C6-FinPos'!C27 -> 552878345.2 | E39: ='C6-FinPos'!D27 -> 710929136 | F39: ='C6-FinPos'!E27 -> 678985399 | G39: ='C6-FinPos'!F27 -> 575404085.3 | H39: ='C6-FinPos'!G27 -> 678985399
A40: Employee related costs | D40: ='C4-FinPerf RE'!C36 -> 118552192.4 | E40: ='C4-FinPerf RE'!D36 -> 121240320 | F40: ='C4-FinPerf RE'!E36 -> 126130876 | G40: ='C4-FinPerf RE'!G36 -> 82373611.27 | H40: ='C4-FinPerf RE'!K36 -> 126130876
A41: =A27 -> Repairs & Maintenance | D41: =+SC13c!C173 -> 14450285.15 | E41: =+SC13c!D173 -> 13210000 | F41: =+SC13c!E173 -> 13950000 | G41: =+SC13c!G173 -> 7304421.72 | H41: =+SC13c!K173 -> 13950000
A42: Interest (finance charges) | D42: ='C4-FinPerf RE'!C42 -> 2935813.16 | E42: ='C4-FinPerf RE'!D42 -> 2551065 | F42: ='C4-FinPerf RE'!E42 -> 3085365 | G42: ='C4-FinPerf RE'!G42 -> 8689.52 | H42: ='C4-FinPerf RE'!K42 -> 3085365
A43: Principal paid | D43: =-'C7-CFlow'!C36 -> 0 | E43: =-'C7-CFlow'!D36 -> 0 | F43: =-'C7-CFlow'!E36 -> 0 | G43: =-'C7-CFlow'!G36 -> 0 | H43: =-'C7-CFlow'!K36 -> 0
A44: Depreciation | D44: ='C4-FinPerf RE'!C41 -> 24411644.82 | E44: ='C4-FinPerf RE'!D41 -> 21656256 | F44: ='C4-FinPerf RE'!E41 -> 24133195 | G44: ='C4-FinPerf RE'!F41 -> 0 | H44: ='C4-FinPerf RE'!K37 -> 16265796
A45: Operating expenditure | D45: ='C4-FinPerf RE'!C49 -> 308994214.9 | E45: ='C4-FinPerf RE'!D49 -> 285311044 | F45: ='C4-FinPerf RE'!E49 -> 293502989 | G45: ='C4-FinPerf RE'!G49 -> 178523591 | H45: ='C4-FinPerf RE'!K49 -> 293502989
A46: ='C5-Capex'!A40 -> Total Capital Expenditure | D46: ='C5-Capex'!C63 -> 52822626.79 | E46: ='C5-Capex'!D63 -> 64396800 | F46: ='C5-Capex'!E63 -> 58277000 | G46: ='C5-Capex'!F63 -> 14105735.5 | H46: ='C5-Capex'!G63 -> 34816561.32
A47: Borrowed funding for capital | D47: ='C5-Capex'!C72 -> 0 | E47: ='C5-Capex'!D72 -> 0 | F47: ='C5-Capex'!E72 -> 0 | G47: ='C5-Capex'!G72 -> 0 | H47: ='C5-Capex'!K72 -> 0
A48: Debt | D48: ='C6-FinPos'!C30+'C6-FinPos'!C31+'C6-FinPos'!C33+'C6-FinPos'!C34+'C6-FinPos'!C40+'C6-FinPos'!C43 -> 41490515.52 | E48: ='C6-FinPos'!D30+'C6-FinPos'!D31+'C6-FinPos'!D33+'C6-FinPos'!D34+'C6-FinPos'!D40+'C6-FinPos'!D43 -> 43630036 | F48: ='C6-FinPos'!E30+'C6-FinPos'!E31+'C6-FinPos'!E33+'C6-FinPos'!E34+'C6-FinPos'!E40+'C6-FinPos'!E43 -> 47094575 | G48: ='C6-FinPos'!F30+'C6-FinPos'!F31+'C6-FinPos'!F33+'C6-FinPos'!F34+'C6-FinPos'!F40+'C6-FinPos'!F43 -> -28640325.36 | H48: ='C6-FinPos'!G30+'C6-FinPos'!G31+'C6-FinPos'!G33+'C6-FinPos'!G34+'C6-FinPos'!G40+'C6-FinPos'!G43 -> 47094575
A49: Equity | D49: ='C6-FinPos'!C51 -> 553729670.7 | E49: ='C6-FinPos'!D51 -> 609496398 | F49: ='C6-FinPos'!E51 -> 557970588 | G49: ='C6-FinPos'!F51 -> 533772150.8 | H49: ='C6-FinPos'!G51 -> 557970588
A50: ='C6-FinPos'!A49 -> Reserves and funds | D50: ='C6-FinPos'!C50 -> 0 | E50: ='C6-FinPos'!D50 -> 0 | F50: ='C6-FinPos'!E50 -> 0 | G50: ='C6-FinPos'!F50 -> 0 | H50: ='C6-FinPos'!G50 -> 0
A51: Borrowing | D51: ='C6-FinPos'!C40 -> 0 | E51: ='C6-FinPos'!D40 -> 0 | F51: ='C6-FinPos'!E40 -> 0 | G51: ='C6-FinPos'!F40 -> 0 | H51: ='C6-FinPos'!G40 -> 0
A52: ='C6-FinPos'!A6 -> Current assets | D52: ='C6-FinPos'!C14 -> 94113954.41 | E52: ='C6-FinPos'!D14 -> 225037285 | F52: ='C6-FinPos'!E14 -> 161465686 | G52: ='C6-FinPos'!F14 -> 92258310.2 | H52: ='C6-FinPos'!G14 -> 161465686
A53: ='C6-FinPos'!A29 -> Current liabilities | D53: ='C6-FinPos'!C38 -> -5669761.49 | E53: ='C6-FinPos'!D38 -> 43303833 | F53: ='C6-FinPos'!E38 -> 58202653 | G53: ='C6-FinPos'!F38 -> -77970942.18 | H53: ='C6-FinPos'!G38 -> 58202653
A54: Monetary assets | D54: ='C6-FinPos'!C7 -> 132645118.4 | E54: ='C6-FinPos'!D7 -> 129572538 | F54: ='C6-FinPos'!E7 -> 135907981 | G54: ='C6-FinPos'!F7 -> 136822834.7 | H54: ='C6-FinPos'!G7 -> 135907981
A55: Total Revenue (excluding capital transfers and contributions) | D55: ='C4-FinPerf RE'!C34 -> 275478940.8 | E55: ='C4-FinPerf RE'!D34 -> 297367831 | F55: ='C4-FinPerf RE'!E34 -> 298864603 | G55: ='C4-FinPerf RE'!G34 -> 258843276.7 | H55: ='C4-FinPerf RE'!K34 -> 298864603
A56: Transfers and subsidies - Operational | D56: ='C4-FinPerf RE'!C27 -> 193141465.7 | E56: ='C4-FinPerf RE'!D29 -> 0 | F56: ='C4-FinPerf RE'!E29 -> 0 | G56: ='C4-FinPerf RE'!G29 -> 0 | H56: ='C4-FinPerf RE'!K29 -> 0
A57: Transfers and subsidies - capital (monetary allocations) | D57: ='C4-FinPerf RE'!C51 -> 37448726.67 | E57: ='C4-FinPerf RE'!D51 -> 52088000 | F57: ='C4-FinPerf RE'!E51 -> 52088000 | G57: ='C4-FinPerf RE'!G51 -> 23373512.65 | H57: ='C4-FinPerf RE'!K51 -> 52088000
A58: Debt service payments | D58: ='C7-CFlow'!C12+'C7-CFlow'!C36 -> 3691019.91 | E58: ='C7-CFlow'!D12+'C7-CFlow'!D36 -> 16695504 | F58: ='C7-CFlow'!E12+'C7-CFlow'!E36 -> 16695504 | G58: ='C7-CFlow'!F12+'C7-CFlow'!F36 -> 0 | H58: ='C7-CFlow'!G12+'C7-CFlow'!G36 -> 6665903.09
A59: Outstanding debtors (receivables) | D59: ='C6-FinPos'!C8+'C6-FinPos'!C9+'C6-FinPos'!C10+'C6-FinPos'!C13+'C6-FinPos'!C23+'C6-FinPos'!C24 -> 8351664.55 | E59: ='C6-FinPos'!D8+'C6-FinPos'!D9+'C6-FinPos'!D10+'C6-FinPos'!D13+'C6-FinPos'!D23+'C6-FinPos'!D24 -> 88826817 | F59: ='C6-FinPos'!E8+'C6-FinPos'!E9+'C6-FinPos'!E10+'C6-FinPos'!E13+'C6-FinPos'!E23+'C6-FinPos'!E24 -> 14734263 | G59: ='C6-FinPos'!F8+'C6-FinPos'!F9+'C6-FinPos'!F10+'C6-FinPos'!F13+'C6-FinPos'!F23+'C6-FinPos'!F24 -> 7368504.84 | H59: ='C6-FinPos'!G8+'C6-FinPos'!G9+'C6-FinPos'!G10+'C6-FinPos'!G13+'C6-FinPos'!G23+'C6-FinPos'!G24 -> 14734263
A60: Annual services revenue | D60: ='C4-FinPerf RE'!C7+'C4-FinPerf RE'!C8+'C4-FinPerf RE'!C9+'C4-FinPerf RE'!C10+'C4-FinPerf RE'!C23 -> 43165822.06 | E60: ='C4-FinPerf RE'!D7+'C4-FinPerf RE'!D8+'C4-FinPerf RE'!D9+'C4-FinPerf RE'!D10+'C4-FinPerf RE'!D23 -> 54454161 | F60: ='C4-FinPerf RE'!E7+'C4-FinPerf RE'!E8+'C4-FinPerf RE'!E9+'C4-FinPerf RE'!E10+'C4-FinPerf RE'!E23 -> 54454161 | G60: ='C4-FinPerf RE'!F7+'C4-FinPerf RE'!F8+'C4-FinPerf RE'!F9+'C4-FinPerf RE'!F10+'C4-FinPerf RE'!F23 -> 1774488.82 | H60: ='C4-FinPerf RE'!G7+'C4-FinPerf RE'!G8+'C4-FinPerf RE'!G9+'C4-FinPerf RE'!G10+'C4-FinPerf RE'!G23 -> 39781784.58
A61: Cash + investments | B61: Including LT investments | D61: ='C6-FinPos'!C7+'C6-FinPos'!C16-'C6-FinPos'!C30 -> 132645118.4 | E61: ='C6-FinPos'!D7+'C6-FinPos'!D16-'C6-FinPos'!D30 -> 129572538 | F61: ='C6-FinPos'!E7+'C6-FinPos'!E16-'C6-FinPos'!E30 -> 135907981 | G61: ='C6-FinPos'!F7+'C6-FinPos'!F16-'C6-FinPos'!F30 -> 136822834.7 | H61: ='C6-FinPos'!G7+'C6-FinPos'!G16-'C6-FinPos'!G30 -> 135907981
A62: Fixed operational expend. (monthly)
A63: Longstanding debtors outstanding | D63: ='C6-FinPos'!C23+'C6-FinPos'!C24 -> 0 | E63: ='C6-FinPos'!D23+'C6-FinPos'!D24 -> 0 | F63: ='C6-FinPos'!E23+'C6-FinPos'!E24 -> 0 | G63: ='C6-FinPos'!F23+'C6-FinPos'!F24 -> 0 | H63: ='C6-FinPos'!G23+'C6-FinPos'!G24 -> 0
A64: Longstanding debtors recovered
A65: Attorney collections

Sheet SC3
A1: =muni& " - "&S71I& " - "&Head57 -> LIM353 Molemole - Supporting Table SC3 Monthly Budget Statement - aged debtors - Q3 Third Quarter
A2: =desc -> Description | C2: =Head2 -> Budget Year 2025/26
A3: R thousands | B3: NT Code | C3: 0-30 Days | D3: 31-60 Days | E3: 61-90 Days | F3: 91-120 Days | G3: 121-150 Dys | H3: 151-180 Dys | I3: 181 Dys-1 Yr | J3: Over 1Yr | K3: Total | L3: Total over 90 days | M3: Actual Bad Debts Written Off against Debtors | N3: Impairment - Bad Debts i.t.o Council Policy
A4: Debtors Age Analysis By Income Source
A5: Trade and Other Receivables from Exchange Transactions - Water | B5: 1200 | C5: 0 | D5: 0 | E5: 0 | F5: 5381168 | G5: 0 | H5: 0 | I5: 0 | J5: 0 | K5: =SUM(C5:J5) -> 5381168 | L5: =SUM(F5:J5) -> 5381168 | M5: 0 | N5: 0
A6: Trade and Other Receivables from Exchange Transactions - Electricity | B6: 1300 | C6: 0 | D6: 0 | E6: 0 | F6: 1475612 | G6: 0 | H6: 0 | I6: 0 | J6: 0 | K6: =SUM(C6:J6) -> 1475612 | L6: =SUM(F6:J6) -> 1475612 | M6: 0 | N6: 0
A7: Receivables from Non-exchange Transactions - Property Rates | B7: 1400 | C7: 420726 | D7: 316277 | E7: 286911 | F7: 13532957 | G7: 0 | H7: 0 | I7: 0 | J7: 0 | K7: =SUM(C7:J7) -> 14556871 | L7: 13532957 | M7: 0 | N7: 0
A8: Receivables from Exchange Transactions - Waste Water Management | B8: 1500 | C8: 0 | D8: 0 | E8: 0 | F8: 3168775 | G8: 0 | H8: 0 | I8: 0 | J8: 0 | K8: 3168775 | L8: 3168775 | M8: 0 | N8: 0
A9: Receivables from Exchange Transactions - Waste Management | B9: 1600 | C9: 145699 | D9: 101569 | E9: 83571 | F9: 17787861 | G9: 0 | H9: 0 | I9: 0 | J9: 0 | K9: 18118700 | L9: =SUM(F9:J9) -> 17787861 | M9: 0 | N9: 0
A10: Receivables from Exchange Transactions - Property Rental Debtors | B10: 1700 | K10: 0 | L10: =SUM(F10:J10) -> 0
A11: Interest on Arrear Debtor Accounts | B11: 1810 | K11: 0 | L11: 0
A12: Recoverable unauthorised, irregular, fruitless and wasteful expenditure | B12: 1820 | K12: 0 | L12: 0
A13: Other | B13: 1900 | C13: 5497805 | D13: 8110026 | E13: 314906 | F13: 112984204 | G13: 0 | H13: 0 | I13: 0 | J13: 0 | K13: 126906941 | L13: =SUM(F13:J13) -> 112984204 | M13: 0 | N13: 0
A14: Total By Income Source | B14: 2000 | C14: =SUM(C5:C13) -> 6064230 | D14: 8527872 | E14: 685388 | F14: 154330577 | G14: 0 | H14: 0 | I14: 0 | J14: 0 | K14: 169608067 | L14: =SUM(L5:L13) -> 154330577 | M14: 0 | N14: 0
A15: =Head1&" - totals only" -> 2024/25 - totals only | C15: 913448 | D15: 3935239 | E15: 876807 | F15: 159302832 | G15: 0 | H15: 0 | I15: 0 | J15: 0 | K15: =SUM(C15:J15) -> 165028326 | L15: =SUM(F15:J15) -> 159302832 | M15: 0 | N15: 0
A16: Debtors Age Analysis By Customer Group
A17: Organs of State | B17: 2200 | C17: 11 | D17: 35979 | E17: 38512 | F17: 41121210 | G17: 0 | H17: 0 | I17: 0 | J17: 0 | K17: =SUM(C17:J17) -> 41195712 | L17: =SUM(F17:J17) -> 41121210 | M17: 0 | N17: 0
A18: Commercial | B18: 2300 | C18: 144709 | D18: 139117 | E18: 135278 | F18: 9325157 | G18: 0 | H18: 0 | I18: 0 | J18: 0 | K18: =SUM(C18:J18) -> 9744261 | L18: =SUM(F18:J18) -> 9325157 | M18: 0 | N18: 0
A19: Households | B19: 2400 | C19: 594118 | D19: 509319 | E19: 495029 | F19: 42913019 | G19: 0 | H19: 0 | I19: 0 | J19: 0 | K19: =SUM(C19:J19) -> 44511485 | L19: =SUM(F19:J19) -> 42913019 | M19: 0 | N19: 0
A20: Other | B20: 2500 | C20: 5325392 | D20: 7843457 | E20: 16569 | F20: 60971191 | G20: 0 | H20: 0 | I20: 0 | J20: 0 | K20: =SUM(C20:J20) -> 74156609 | L20: =SUM(F20:J20) -> 60971191 | M20: 0 | N20: 0
A21: Total By Customer Group | B21: 2600 | C21: =SUM(C17:C20) -> 6064230 | D21: 8527872 | E21: 685388 | F21: 154330577 | G21: 0 | H21: 0 | I21: 0 | J21: =SUM(J17:J20) -> 0 | K21: =SUM(K17:K20) -> 169608067 | L21: =SUM(L17:L20) -> 154330577 | M21: =SUM(M17:M20) -> 0 | N21: =SUM(N17:N20) -> 0
A22: Notes
A23: Material increases in value of debtors' categories compared to previous month to be explained
A24: Bad debts = amounts actually written off in the month
A25: Total by Income Source must reconcile with Total by Customer Group
C26: =C14-C21 -> 0 | D26: =D14-D21 -> 0 | E26: =E14-E21 -> 0 | F26: 0 | G26: 0 | H26: 0 | I26: 0 | J26: =J14-J21 -> 0 | K26: 0
C27: =IF(C26=0,"","MUST AGREE") ->  | D27: =IF(D26=0,"","MUST AGREE") -> 

Sheet SC4
A1: =muni& " - "&S71J& " - "&Head57 -> LIM353 Molemole - Supporting Table SC4 Monthly Budget Statement - aged creditors - Q3 Third Quarter
A2: =desc -> Description | B2: NT Code | C2: =Head2 -> Budget Year 2025/26 | L2: Prior year totals for chart (same period)
C3: 0 - 30 Days | D3: 31 - 60 Days | E3: 61 - 90 Days | F3: 91 - 120 Days | G3: 121 - 150 Days | H3: 151 - 180 Days | I3: 181 Days - 1 Year | J3: Over 1 Year | K3: Total
A4: R thousands
A5: Creditors Age Analysis By Customer Type
A6: Bulk Electricity | B6: 0100 | K6: =SUM(C6:J6) -> 0 | L6: 0
A7: Bulk Water | B7: 0200 | K7: =SUM(C7:J7) -> 0 | L7: 0
A8: PAYE deductions | B8: 0300 | K8: 0
A9: VAT (output less input) | B9: 0400 | K9: 0
A10: Pensions / Retirement deductions | B10: 0500 | K10: 0
A11: Loan repayments | B11: 0600 | K11: 0
A12: Trade Creditors | B12: 0700 | K12: 0
A13: Auditor General | B13: 0800 | K13: 0
A14: Other | B14: 0900 | C14: 25693 | D14: 39987 | E14: 0 | F14: 0 | G14: 0 | H14: 7370 | I14: 0 | J14: 0 | K14: =SUM(C14:J14) -> 73050
A15: Medical Aid deductions | B15: 0950 | K15: =SUM(C15:J15) -> 0
A16: Total By Customer Type | B16: 1000 | C16: =SUM(C6:C15) -> 25693 | D16: =SUM(D6:D15) -> 39987 | E16: 0 | F16: 0 | G16: 0 | H16: 7370 | I16: 0 | J16: 0 | K16: 73050 | L16: 0
A17: Notes
A18: Material increases in value of creditors' categories compared to previous month to be explained

Sheet SC5
A1: =muni& " - "&S71K& " - "&Head57 -> LIM353 Molemole - Supporting Table SC5 Monthly Budget Statement - investment portfolio - Q3 Third Quarter
A2: Investments by maturity Name of institution & investment ID | B2: Ref | C2: Period of Investment | D2: Type of Investment | E2: Capital Guarantee (Yes/ No) | F2: Variable or Fixed interest rate | G2: Interest Rate ᶟ | H2: Commission Paid (Rands) | I2: Commission Recipient | J2: Expiry date of investment | K2: Opening balance | L2: Interest to be realised | M2: Partial / Premature Withdrawal (4) | N2: Investment Top Up | O2: Closing Balance
A3: R thousands | C3: Yrs/Months
A4: Municipality
O5: =SUM(K5:N5) -> 0
A6: Municipality sub-total | K6: =SUM(K5:K5) -> 0 | L6: =SUM(L5:L5) -> 0 | M6: =SUM(M5:M5) -> 0 | N6: =SUM(N5:N5) -> 0 | O6: =SUM(O5:O5) -> 0
A8: Entities
O9: =SUM(K9:N9) -> 0
O10: 0
O11: 0
O12: 0
O13: 0
O14: 0
O15: 0
A16: Entities sub-total | K16: =SUM(K9:K15) -> 0 | L16: =SUM(L9:L15) -> 0 | M16: =SUM(M9:M15) -> 0 | N16: =SUM(N9:N15) -> 0 | O16: =SUM(O9:O15) -> 0
A18: TOTAL INVESTMENTS AND INTEREST | B18: 2 | K18: =K6+K16 -> 0 | L18: =L6+L16 -> 0 | M18: =M6+M16 -> 0 | N18: =N6+N16 -> 0 | O18: =O6+O16 -> 0
A19: =head27a -> References
A20: 2. List investments in expiry date order
A21: 3. If 'variable' is selected in column F, input interest rate range
A22: 4. Withdrawals to be entered as negative

Sheet SC6
A1: =muni& " - "&S71L& " - "&Head57 -> LIM353 Molemole - Supporting Table SC6 Monthly Budget Statement - transfers and grant receipts - Q3 Third Quarter
A2: =desc -> Description | B2: =head27 -> Ref | C2: =Head1 -> 2024/25 | D2: =Head2 -> Budget Year 2025/26
C3: =Head5 -> Audited Outcome | D3: =Head6 -> Original Budget | E3: =Head7 -> Adjusted Budget | F3: =Head38 -> Monthly actual | G3: =Head39 -> YearTD actual | H3: =Head40 -> YearTD budget | I3: =Head41 -> YTD variance | J3: =Head41 -> YTD variance | K3: =Head8 -> Full Year Forecast
A4: R thousands | J4: %
A5: RECEIPTS: | B5: 1,2
A7: Operating Transfers and Grants
A8: National Government: | C8: =SUM(C9:C15) -> 193141465.7 | D8: 207339000 | E8: 191368000 | F8: 46731000 | G8: 200773124.8 | H8: 149115832 | I8: =G8-H8 -> 51657292.77 | J8: =IF(H8=0,"",I8/H8) -> 0.3464239315 | K8: =SUM(K9:K15) -> 191368000
A9: Equitable Share | C9: 187594124 | D9: 186922000 | E9: 186922000 | F9: 46731000 | G9: 186921945.7 | H9: 140191497 | I9: 46730448.67 | J9: 0.3333329743 | K9: 186922000
A10: Expanded Public Works Programme Integrated Grant | C10: 1385014 | D10: 1405000 | E10: 1405000 | F10: 0 | G10: 971772 | H10: 1053747 | I10: -81975 | J10: -0.07779381578 | K10: 1405000
A11: Integrated National Electrification Programme Grant | C11: 0 | D11: 15971000 | E11: 0 | F11: 0 | G11: 11171607 | H11: 5589844 | I11: 5581763 | J11: 0.9985543425 | K11: 0
A12: Local Government Financial Management Grant | C12: 2138641.96 | D12: 2200000 | E12: 2200000 | F12: 0 | G12: 1575081.71 | H12: 1649997 | I12: -74915.29 | J12: -0.04540328861 | K12: 2200000
A13: Municipal Demarcation Transition Grant | C13: 0 | D13: 0 | E13: 0 | F13: 0 | G13: 0 | H13: 0 | I13: 0 | K13: 0
A14: Municipal Disaster Relief Grant | B14: 3 | C14: 0 | D14: 0 | E14: 0 | F14: 0 | G14: 0 | H14: 0 | I14: 0 | K14: 0
A15: Municipal Infrastructure Grant | C15: 2023685.7 | D15: 841000 | E15: 841000 | F15: 0 | G15: 132718.39 | H15: 630747 | I15: -498028.61 | J15: -0.7895853805 | K15: 841000
A16: Other transfers and grants [insert description] | I16: =G16-H16 -> 0 | J16: =IF(I16=0,"",I16/H16) -> 
A17: Provincial Government: | C17: =SUM(C18:C19) -> 0 | D17: 0 | E17: 0 | F17: 0 | G17: 0 | H17: 0 | I17: 0 | K17: =SUM(K18:K19) -> 0
I18: =G18-H18 -> 0
A19: Other transfers and grants [insert description] | I19: 0
A20: District Municipality: | C20: =SUM(C21:C21) -> 0 | D20: 0 | E20: 0 | F20: 0 | G20: 0 | H20: 0 | I20: 0 | K20: =SUM(K21:K21) -> 0
A21: [insert description] | I21: 0
A22: Other grant providers: | C22: =SUM(C23:C24) -> 0 | D22: 0 | E22: 0 | F22: 0 | G22: 0 | H22: 0 | I22: =G22-H22 -> 0 | J22: =IF(H22=0,"",I22/H22) ->  | K22: =SUM(K23:K24) -> 0
A23: Education Training and Development Practices SETA | C23: 0 | D23: 0 | E23: 0 | F23: 0 | G23: 0 | H23: 0 | I23: =G23-H23 -> 0 | J23: =IF(H23=0,"",I23/H23) ->  | K23: 0
A24: Non-statutory Forces | C24: 0 | D24: 0 | E24: 0 | F24: 0 | G24: 0 | H24: 0 | I24: =G24-H24 -> 0 | J24: =IF(H24=0,"",I24/H24) ->  | K24: 0
A25: Total Operating Transfers and Grants | B25: 5 | C25: =C8+C17+C20+C22 -> 193141465.7 | D25: 207339000 | E25: 191368000 | F25: 46731000 | G25: 200773124.8 | H25: 149115832 | I25: 51657292.77 | J25: 0.3464239315 | K25: =K8+K17+K20+K22 -> 191368000
A27: Capital Transfers and Grants
A28: =A8 -> National Government: | C28: =SUM(C29:C29) -> 0 | D28: 0 | E28: 0 | F28: 0 | G28: 0 | H28: 0 | I28: 0 | J28: =IF(I28=0,"",I28/H28) ->  | K28: =SUM(K29:K29) -> 0
I29: =G29-H29 -> 0
A30: =A17 -> Provincial Government: | C30: =SUM(C31:C31) -> 0 | D30: 0 | E30: 0 | F30: 0 | G30: 0 | H30: 0 | I30: =G30-H30 -> 0 | J30: =IF(I30=0,"",I30/H30) ->  | K30: =SUM(K31:K31) -> 0
A31: [insert description] | I31: 0 | J31: =IF(I31=0,"",I31/H31) -> 
A32: =A20 -> District Municipality: | C32: =SUM(C33:C33) -> 0 | D32: 0 | E32: 0 | F32: 0 | G32: 0 | H32: 0 | I32: 0 | K32: =SUM(K33:K33) -> 0
A33: [insert description] | I33: 0
A34: =A22 -> Other grant providers: | C34: =SUM(C35:C35) -> 0 | D34: 0 | E34: 0 | F34: 0 | G34: 0 | H34: 0 | I34: 0 | K34: =SUM(K35:K35) -> 0
A35: [insert description] | I35: =G35-H35 -> 0
A36: Total Capital Transfers and Grants | B36: 5 | C36: =C28+C30+C32+C34 -> 0 | D36: 0 | E36: 0 | F36: 0 | G36: 0 | H36: 0 | I36: 0 | K36: =K28+K30+K32+K34 -> 0
A38: TOTAL RECEIPTS OF TRANSFERS & GRANTS | B38: 5 | C38: =C25+C36 -> 193141465.7 | D38: 207339000 | E38: 191368000 | F38: 46731000 | G38: 200773124.8 | H38: 149115832 | I38: 51657292.77 | J38: 0.3464239315 | K38: =K25+K36 -> 191368000
A39: =head27a -> References
A40: 1. Each grant is listed by name as gazetted together with the name of the transferring department or municipality, donor or other organisation
A41: 2. Grant expenditure must be separately listed for each grant received
A42: 3. Replacement of RSC levies
A43: 4. Housing subsidies for housing where ownership transferred
A44: 5. Total recurrent/capital grants and subsidies must reconcile to the 'Financial Performance' Statement

Sheet SC7
A1: =muni& " - "&S71M& " - "&Head57 -> LIM353 Molemole - Supporting Table SC7(1) Monthly Budget Statement - transfers and grant expenditure - Q3 Third Quarter
A2: =desc -> Description | B2: =head27 -> Ref | C2: =Head1 -> 2024/25 | D2: =Head2 -> Budget Year 2025/26
C3: =Head5 -> Audited Outcome | D3: =Head6 -> Original Budget | E3: =Head7 -> Adjusted Budget | F3: =Head38 -> Monthly actual | G3: =Head39 -> YearTD actual | H3: =Head40 -> YearTD budget | I3: =Head41 -> YTD variance | J3: =Head41 -> YTD variance | K3: =Head8 -> Full Year Forecast
A4: R thousands | J4: %
A5: EXPENDITURE
A7: Operating expenditure of Transfers and Grants
A8: ='SC6'!A8 -> National Government: | C8: =SUM(C9:C16) -> 172335099.7 | D8: 174603428 | E8: 179654075 | F8: -13258442.08 | G8: 104461660.9 | H8: 133110078.9 | I8: -28648417.98 | J8: =IF(I8=0,"",I8/H8) -> -0.2152235069 | K8: =SUM(K9:K16) -> 179654075
I9: =G9-H9 -> 0
A10: Equitable Share | C10: 147769127.9 | D10: 152577628 | E10: 156682203 | F10: 523090.09 | G10: 104946251.3 | H10: 116212276.1 | I10: =G10-H10 -> -11266024.77 | J10: =IF(H10=0,"",I10/H10) -> -0.09694349988 | K10: 156682203
A11: Expanded Public Works Programme Integrated Grant | C11: 1385014 | D11: 1405000 | E11: 1405000 | F11: 0 | G11: 971772 | H11: 1053756 | I11: -81984 | J11: -0.07780169223 | K11: 1405000
A12: Integrated National Electrification Programme Grant | C12: 16893850.03 | D12: 15971000 | E12: 17217072 | F12: -13786500 | G12: -3714659.81 | H12: 12476681.8 | I12: -16191341.61 | J12: -1.297728184 | K12: 17217072
A13: Local Government Financial Management Grant | C13: 1944128.97 | D13: 2200000 | E13: 2200000 | F13: 0 | G13: 1436475.93 | H13: 1650006 | I13: -213530.07 | J13: -0.129411693 | K13: 2200000
A14: Municipal Demarcation Transition Grant | C14: 2511181.91 | D14: 1608800 | E14: 1608800 | F14: 0 | G14: 690346.96 | H14: 1206603 | I14: -516256.04 | J14: -0.4278590721 | K14: 1608800
A15: Municipal Disaster Relief Grant | C15: 0 | D15: 0 | E15: 0 | F15: 0 | G15: 0 | H15: 0 | I15: 0 | K15: 0
A16: Municipal Infrastructure Grant | C16: 1831796.82 | D16: 841000 | E16: 541000 | F16: 4967.83 | G16: 131474.51 | H16: 510756 | I16: -379281.49 | J16: -0.742588418 | K16: 541000
A17: ='SC6'!A17 -> Provincial Government: | C17: =SUM(C18:C18) -> 0 | D17: 0 | E17: 0 | F17: 0 | G17: 0 | H17: 0 | I17: 0 | K17: =SUM(K18:K18) -> 0
I18: =G18-H18 -> 0
A19: ='SC6'!A20 -> District Municipality: | C19: =SUM(C20:C20) -> 0 | D19: 0 | E19: 0 | F19: 0 | G19: 0 | H19: 0 | I19: 0 | K19: =SUM(K20:K20) -> 0
I20: 0
A21: ='SC6'!A22 -> Other grant providers: | C21: =SUM(C22:C23) -> 0 | D21: 0 | E21: 0 | F21: 0 | G21: 0 | H21: 0 | I21: 0 | K21: =SUM(K22:K23) -> 0
A22: Education Training and Development Practices SETA | C22: 0 | D22: 0 | E22: 0 | F22: 0 | G22: 0 | H22: 0 | I22: =G22-H22 -> 0 | J22: =IF(H22=0,"",I22/H22) ->  | K22: 0
A23: Municipal Demarcation Board | C23: 0 | D23: 0 | E23: 0 | F23: 0 | G23: 0 | H23: 0 | I23: =G23-H23 -> 0 | J23: =IF(H23=0,"",I23/H23) ->  | K23: 0
A24: Total operating expenditure of Transfers and Grants: | C24: =C8+C17+C19+C21 -> 172335099.7 | D24: 174603428 | E24: 179654075 | F24: -13258442.08 | G24: 104461660.9 | H24: 133110078.9 | I24: -28648417.98 | J24: -0.2152235069 | K24: =K8+K17+K19+K21 -> 179654075
A26: Capital expenditure of Transfers and Grants
A27: ='SC6'!A28 -> National Government: | C27: =SUM(C28:C32) -> 32564110.16 | D27: 52088000 | E27: 52388000 | F27: 14128351.5 | G27: 34158751.32 | H27: 39186012 | I27: -5027260.68 | J27: =IF(I27=0,"",I27/H27) -> -0.1282922253 | K27: =SUM(K28:K32) -> 52388000
A28: Energy Efficiency and Demand Side Management Grant | C28: 0 | D28: 0 | E28: 0 | F28: 0 | G28: 0 | H28: 0 | I28: =G28-H28 -> 0 | J28: =IF(H28=0,"",I28/H28) ->  | K28: 0
A29: Integrated National Electrification Programme Grant | C29: 0 | D29: 0 | E29: 0 | F29: 13786500 | G29: 13786500 | H29: 0 | I29: =G29-H29 -> 13786500 | J29: =IF(H29=0,"",I29/H29) ->  | K29: 0
A30: Municipal Disaster Recovery Grant | C30: 0 | D30: 0 | E30: 0 | F30: 0 | G30: 0 | H30: 0 | I30: =G30-H30 -> 0 | J30: =IF(H30=0,"",I30/H30) ->  | K30: 0
A31: Municipal Disaster Relief Grant | C31: 0 | D31: 0 | E31: 0 | F31: 0 | G31: 0 | H31: 0 | I31: =G31-H31 -> 0 | J31: =IF(H31=0,"",I31/H31) ->  | K31: 0
A32: Municipal Infrastructure Grant | C32: 32564110.16 | D32: 52088000 | E32: 52388000 | F32: 341851.5 | G32: 20372251.32 | H32: 39186012 | I32: =G32-H32 -> -18813760.68 | J32: =IF(H32=0,"",I32/H32) -> -0.4801141969 | K32: 52388000
A33: ='SC6'!A30 -> Provincial Government: | C33: =SUM(C34:C34) -> 0 | D33: 0 | E33: 0 | F33: 0 | G33: 0 | H33: 0 | I33: =G33-H33 -> 0 | K33: =SUM(K34:K34) -> 0
A34: Infrastructure Grant | C34: 0 | D34: 0 | E34: 0 | F34: 0 | G34: 0 | H34: 0 | I34: =G34-H34 -> 0 | J34: =IF(H34=0,"",I34/H34) ->  | K34: 0
A35: ='SC6'!A32 -> District Municipality: | C35: =SUM(C36:C36) -> 0 | D35: 0 | E35: 0 | F35: 0 | G35: 0 | H35: 0 | I35: 0 | K35: =SUM(K36:K36) -> 0
A36: Specify (Add grant description) | C36: 0 | D36: 0 | E36: 0 | F36: 0 | G36: 0 | H36: 0 | I36: =G36-H36 -> 0 | J36: =IF(H36=0,"",I36/H36) ->  | K36: 0
A37: ='SC6'!A34 -> Other grant providers: | C37: =SUM(C38:C39) -> 0 | D37: 0 | E37: 0 | F37: 0 | G37: 0 | H37: 0 | I37: 0 | K37: =SUM(K38:K39) -> 0
A38: Municipal Demarcation Board | C38: 0 | D38: 0 | E38: 0 | F38: 0 | G38: 0 | H38: 0 | I38: =G38-H38 -> 0 | J38: =IF(H38=0,"",I38/H38) ->  | K38: 0
A39: Municipal Infrastructure Investment Unit | C39: 0 | D39: 0 | E39: 0 | F39: 0 | G39: 0 | H39: 0 | I39: =G39-H39 -> 0 | J39: =IF(H39=0,"",I39/H39) ->  | K39: 0
A40: Total capital expenditure of Transfers and Grants | C40: =C27+C33+C35+C37 -> 32564110.16 | D40: 52088000 | E40: 52388000 | F40: 14128351.5 | G40: 34158751.32 | H40: 39186012 | I40: -5027260.68 | J40: =IF(I40=0,"",I40/H40) -> -0.1282922253 | K40: =K27+K33+K35+K37 -> 52388000
A42: TOTAL EXPENDITURE OF TRANSFERS AND GRANTS | C42: =C24+C40 -> 204899209.8 | D42: 226691428 | E42: 232042075 | F42: 869909.42 | G42: 138620412.2 | H42: 172296090.9 | I42: -33675678.66 | J42: =IF(I42=0,"",I42/H42) -> -0.1954523663 | K42: =K24+K40 -> 232042075
A43: =head27a -> References

Sheet SC8
A1: =muni& " - "&S71N& " - "&Head57 -> LIM353 Molemole - Supporting Table SC8 Monthly Budget Statement - councillor and staff benefits - Q3 Third Quarter
A2: Summary of Employee and Councillor remuneration | B2: =head27 -> Ref | C2: =Head1 -> 2024/25 | D2: =Head2 -> Budget Year 2025/26
C3: =Head5 -> Audited Outcome | D3: =Head6 -> Original Budget | E3: =Head7 -> Adjusted Budget | F3: =Head38 -> Monthly actual | G3: =Head39 -> YearTD actual | H3: =Head40 -> YearTD budget | I3: =Head41 -> YTD variance | J3: =Head41 -> YTD variance | K3: =Head8 -> Full Year Forecast
A4: R thousands | J4: %
B5: 1 | C5: A | D5: B | E5: C | K5: D
A6: Councillors (Political Office Bearers plus Other)
A7: Basic Salaries and Wages | C7: 9513994.58 | D7: 10828930 | E7: 10680825 | F7: 0 | G7: 6355449.92 | H7: 8062484 | I7: =G7-H7 -> -1707034.08 | J7: =IF(I7=0,"",I7/H7) -> -0.2117255774 | K7: 10680825
A8: Pension and UIF Contributions | C8: 0 | D8: 0 | E8: 0 | F8: 0 | G8: 0 | H8: 0 | I8: 0 | K8: 0
A9: Medical Aid Contributions | C9: 0 | D9: 0 | E9: 0 | F9: 0 | G9: 0 | H9: 0 | I9: 0 | K9: 0
A10: Motor Vehicle Allowance | I10: 0
A11: Cellphone Allowance | C11: 1500211 | D11: 1712623 | E11: 1712623 | F11: 0 | G11: 1002752 | H11: 1284489 | I11: -281737 | J11: -0.2193378067 | K11: 1712623
A12: Housing Allowances | I12: 0
A13: Other benefits and allowances | C13: 3171379.56 | D13: 3872348 | E13: 3872348 | F13: 0 | G13: 2118483.92 | H13: 2904300 | I13: -785816.08 | J13: -0.2705698723 | K13: 3872348
A14: Sub Total - Councillors | C14: =SUM(C7:C13) -> 14185585.14 | D14: 16413901 | E14: 16265796 | F14: 0 | G14: 9476685.84 | H14: 12251273 | I14: -2774587.16 | J14: -0.2264733763 | K14: =SUM(K7:K13) -> 16265796
A15: % increase | B15: 4 | D15: =IF(D14=0,"",(D14/C14)-1) -> 0.157083112 | E15: =IF(E14=0,"",(E14/C14)-1) -> 0.146642584 | K15: =IF(K14=0,"",(K14/C14)-1) -> 0.146642584
A17: Senior Managers of the Municipality | B17: 3
A18: Basic Salaries and Wages | C18: 2436093.12 | D18: 5061192 | E18: 4235710 | F18: 0 | G18: 1034497.89 | H18: 3465746.2 | I18: =G18-H18 -> -2431248.31 | J18: =IF(I18=0,"",I18/H18) -> -0.7015078917 | K18: 4235710
A19: Pension and UIF Contributions | C19: 0 | D19: 0 | E19: 0 | F19: 0 | G19: 0 | H19: 0 | I19: 0 | K19: 0
A20: Medical Aid Contributions | C20: 0 | D20: 0 | E20: 0 | F20: 0 | G20: 0 | H20: 0 | I20: 0 | K20: 0
A21: Overtime | C21: 0 | D21: 0 | E21: 0 | F21: 0 | G21: 0 | H21: 0 | I21: 0 | K21: 0
A22: Performance Bonus | C22: 203007.76 | D22: 559922 | E22: 486839 | F22: 0 | G22: 205491.44 | H22: 390751.8 | I22: -185260.36 | J22: -0.4741126209 | K22: 486839
A23: Motor Vehicle Allowance | C23: 879700.32 | D23: 1876462 | E23: 1586039 | F23: 0 | G23: 504614.88 | H23: 1291187.8 | I23: -786572.92 | J23: -0.6091855267 | K23: 1586039
A24: Cellphone Allowance | C24: 203400 | D24: 323611 | E24: 279490 | F24: 0 | G24: -78400 | H24: 225081.6 | I24: -303481.6 | J24: -1.348318121 | K24: 279490
A25: Housing Allowances | C25: 0 | D25: 0 | E25: 0 | F25: 0 | G25: 0 | H25: 0 | I25: 0 | K25: 0
A26: Other benefits and allowances | C26: 407411.65 | D26: 915761 | E26: 772326 | F26: 0 | G26: 306888.34 | H26: 629452 | I26: -322563.66 | J26: -0.512451561 | K26: 772326
A27: Payments in lieu of leave | C27: 0 | D27: 157725 | E27: 84637 | F27: 0 | G27: 149454.63 | H27: 89060.8 | I27: 60393.83 | J27: 0.6781191052 | K27: 84637
A28: Long service awards | C28: 0 | D28: 0 | E28: 0 | F28: 0 | G28: 0 | H28: 0 | I28: 0 | K28: 0
A29: Post-retirement benefit obligations | B29: 2 | C29: 42410.37 | D29: 42060 | E29: 42060 | F29: 0 | G29: 0 | H29: 31545 | I29: -31545 | J29: -1 | K29: 42060
A30: Entertainment | C30: 0 | D30: 0 | E30: 0 | F30: 0 | G30: 0 | H30: 0 | I30: =G30-H30 -> 0 | J30: =IF(I30=0,"",I30/H30) ->  | K30: 0
A31: Scarcity | I31: 0
A32: Acting and post related allowance | C32: 0 | D32: 55153 | E32: 55153 | F32: 0 | G32: 7677.71 | H32: 41382 | I32: -33704.29 | J32: -0.8144674013 | K32: 55153
A33: In kind benefits | I33: 0
A34: Sub Total - Senior Managers of Municipality | C34: =SUM(C18:C33) -> 4172023.22 | D34: 8991886 | E34: 7542254 | F34: 0 | G34: 2130224.89 | H34: 6164207.2 | I34: =G34-H34 -> -4033982.31 | J34: =IF(I34=0,"",I34/H34) -> -0.6544202976 | K34: =SUM(K18:K33) -> 7542254
A35: % increase | B35: 4 | D35: =IF(D34=0,"",(D34/C34)-1) -> 1.155281868 | E35: =IF(E34=0,"",(E34/C34)-1) -> 0.8078168798 | K35: =IF(K34=0,"",(K34/C34)-1) -> 0.8078168798
A37: Other Municipal Staff
A38: Basic Salaries and Wages | C38: 70811741.22 | D38: 65564334 | E38: 70782070 | F38: 0 | G38: 52154748.82 | H38: 51155475.58 | I38: =G38-H38 -> 999273.24 | J38: =IF(I38=0,"",I38/H38) -> 0.01953404262 | K38: 70782070
A39: Pension and UIF Contributions | C39: 14319926.6 | D39: 13223109 | E39: 14428705 | F39: 0 | G39: 10473891.87 | H39: 10494988.34 | I39: -21096.47 | J39: -0.002010147064 | K39: 14428705
A40: Medical Aid Contributions | C40: 6303723.38 | D40: 6201719 | E40: 6696131 | F40: 0 | G40: 4637201.86 | H40: 4901671.8 | I40: -264469.94 | J40: -0.05395504856 | K40: 6696131
A41: Overtime | C41: 628343.79 | D41: 730151 | E41: 730151 | F41: 0 | G41: 283498.64 | H41: 547641 | I41: -264142.36 | J41: -0.4823275832 | K41: 730151
A42: Performance Bonus | C42: 5984324.72 | D42: 6879172 | E42: 7463669 | F42: 0 | G42: 4332654.66 | H42: 5390958.83 | I42: -1058304.17 | J42: -0.1963109353 | K42: 7463669
A43: Motor Vehicle Allowance | C43: 7749932.54 | D43: 9774708 | E43: 8571963 | F43: 0 | G43: 5720956.05 | H43: 6757273.03 | I43: -1036316.98 | J43: -0.1533631948 | K43: 8571963
A44: Cellphone Allowance | C44: 1862717.1 | D44: 2543855 | E44: 2027492 | F44: 0 | G44: 1235840 | H44: 1701445.8 | I44: -465605.8 | J44: -0.2736530309 | K44: 2027492
A45: Housing Allowances | C45: 250445.52 | D45: 309023 | E45: 314024 | F45: 0 | G45: 180215.42 | H45: 233822.4 | I45: -53606.98 | J45: -0.2292636634 | K45: 314024
A46: Other benefits and allowances | C46: 988751.3 | D46: 1195580 | E46: 1312586 | F46: 0 | G46: 658778.71 | H46: 961206.34 | I46: -302427.63 | J46: -0.3146334116 | K46: 1312586
A47: Payments in lieu of leave | C47: 629125.14 | D47: 358612 | E47: 371612 | F47: 0 | G47: -25478 | H47: 274174 | I47: -299652 | J47: -1.09292639 | K47: 371612
A48: Long service awards | C48: 1851000 | D48: 2428318 | E48: 2444318 | F48: 0 | G48: 69099.09 | H48: 1827811 | I48: -1758711.91 | J48: -0.9621957139 | K48: 2444318
A49: Post-retirement benefit obligations | B49: 2 | C49: 2561589.63 | D49: 2627233 | E49: 2627233 | F49: 0 | G49: 0 | H49: 1970622 | I49: -1970622 | J49: -1 | K49: 2627233
A50: Entertainment | I50: 0
A51: Scarcity | I51: 0
A52: Acting and post related allowance | C52: 438548.25 | D52: 412620 | E52: 818668 | F52: 0 | G52: 521979.26 | H52: 506911.08 | I52: 15068.18 | J52: 0.02972548953 | K52: 818668
A53: In kind benefits | I53: 0
A54: Sub Total - Other Municipal Staff | C54: =SUM(C38:C53) -> 114380169.2 | D54: 112248434 | E54: 118588622 | F54: 0 | G54: 80243386.38 | H54: 86724001.2 | I54: -6480614.82 | J54: -0.0747268891 | K54: =SUM(K38:K53) -> 118588622
A55: % increase | B55: 4 | D55: =IF(D54=0,"",(D54/C54)-1) -> -0.01863727957 | E55: =IF(E54=0,"",(E54/C54)-1) -> 0.03679355294 | K55: =IF(K54=0,"",(K54/C54)-1) -> 0.03679355294
A56: Total Parent Municipality | C56: =C14+C34+C54 -> 132737777.5 | D56: 137654221 | E56: 142396672 | F56: 0 | G56: 91850297.11 | H56: 105139481.4 | I56: =G56-H56 -> -13289184.29 | J56: =IF(I56=0,"",I56/H56) -> -0.1263957565 | K56: =K14+K34+K54 -> 142396672
D57: =IF(D56=0,"",(D56/C56)-1) -> 0.03703876576 | E57: =IF(E56=0,"",(E56/C56)-1) -> 0.07276673324 | K57: =IF(K56=0,"",(K56/C56)-1) -> 0.07276673324
A58: Unpaid salary, allowances & benefits in arrears:
A60: Board Members of Entities
A61: Basic Salaries and Wages | I61: =G61-H61 -> 0 | J61: =IF(I61=0,"",I61/H61) -> 
A62: Pension and UIF Contributions | I62: 0
A63: Medical Aid Contributions | I63: 0
A64: Overtime | I64: 0
A65: Performance Bonus | I65: 0
A66: Motor Vehicle Allowance | I66: 0
A67: Cellphone Allowance | I67: 0
A68: Housing Allowances | I68: 0
A69: Other benefits and allowances | I69: 0
A70: Board Fees | B70: 5 | I70: 0
A71: Payments in lieu of leave | I71: 0
A72: Long service awards | I72: 0
A73: Post-retirement benefit obligations | I73: 0
A74: Entertainment | I74: =G74-H74 -> 0 | J74: =IF(I74=0,"",I74/H74) -> 
A75: Scarcity | I75: 0
A76: Acting and post related allowance | I76: 0
A77: In kind benefits | I77: 0
A78: Sub Total - Executive members Board | B78: 2 | C78: =SUM(C61:C77) -> 0 | D78: 0 | E78: 0 | F78: 0 | G78: 0 | H78: 0 | I78: =G78-H78 -> 0 | J78: =IF(I78=0,"",I78/H78) ->  | K78: =SUM(K61:K77) -> 0
A79: % increase | B79: 4 | D79: =IF(D78=0,"",(D78/C78)-1) ->  | E79: =IF(E78=0,"",(E78/C78)-1) ->  | K79: =IF(K78=0,"",(K78/C78)-1) -> 
A81: Senior Managers of Entities
A82: Basic Salaries and Wages | I82: =G82-H82 -> 0 | J82: =IF(I82=0,"",I82/H82) -> 
A83: Pension and UIF Contributions | I83: 0
A84: Medical Aid Contributions | I84: 0
A85: Overtime | I85: 0
A86: Performance Bonus | I86: 0
A87: Motor Vehicle Allowance | I87: 0
A88: Cellphone Allowance | I88: 0
A89: Housing Allowances | I89: 0
A90: Other benefits and allowances | I90: 0
A91: Payments in lieu of leave | I91: 0
A92: Long service awards | I92: 0
A93: Post-retirement benefit obligations | B93: 2 | I93: 0
A94: Entertainment | I94: =G94-H94 -> 0 | J94: =IF(I94=0,"",I94/H94) -> 
A95: Scarcity | I95: 0
A96: Acting and post related allowance | I96: 0
A97: In kind benefits | I97: 0
A98: Sub Total - Senior Managers of Entities | C98: =SUM(C82:C97) -> 0 | D98: 0 | E98: 0 | F98: 0 | G98: 0 | H98: 0 | I98: =G98-H98 -> 0 | J98: =IF(I98=0,"",I98/H98) ->  | K98: =SUM(K82:K97) -> 0
A99: % increase | B99: 4 | D99: =IF(D98=0,"",(D98/C98)-1) ->  | E99: =IF(E98=0,"",(E98/C98)-1) ->  | K99: =IF(K98=0,"",(K98/C98)-1) -> 
A101: Other Staff of Entities
A102: Basic Salaries and Wages | I102: =G102-H102 -> 0 | J102: =IF(I102=0,"",I102/H102) -> 
A103: Pension and UIF Contributions | I103: 0
A104: Medical Aid Contributions | I104: 0
A105: Overtime | I105: 0
A106: Performance Bonus | I106: 0
A107: Motor Vehicle Allowance | I107: 0
A108: Cellphone Allowance | I108: 0
A109: Housing Allowances | I109: 0
A110: Other benefits and allowances | I110: 0
A111: Payments in lieu of leave | I111: 0
A112: Long service awards | I112: 0
A113: Post-retirement benefit obligations | I113: 0
A114: Entertainment | I114: 0
A115: Scarcity | I115: 0
A116: Acting and post related allowance | I116: 0
A117: In kind benefits | I117: 0
A118: Sub Total - Other Staff of Entities | C118: =SUM(C102:C117) -> 0 | D118: 0 | E118: 0 | F118: 0 | G118: 0 | H118: 0 | I118: =G118-H118 -> 0 | J118: =IF(I118=0,"",I118/H118) ->  | K118: =SUM(K102:K117) -> 0
A119: % increase | B119: 4 | D119: =IF(D118=0,"",(D118/C118)-1) ->  | E119: =IF(E118=0,"",(E118/C118)-1) ->  | K119: =IF(K118=0,"",(K118/C118)-1) -> 
A120: Total Municipal Entities | C120: =C78+C98+C118 -> 0 | D120: 0 | E120: 0 | F120: 0 | G120: 0 | H120: 0 | I120: =G120-H120 -> 0 | J120: =IF(I120=0,"",I120/H120) ->  | K120: =K78+K98+K118 -> 0
A121: TOTAL SALARY, ALLOWANCES & BENEFITS | C121: =C56+C120 -> 132737777.5 | D121: 137654221 | E121: 142396672 | F121: 0 | G121: 91850297.11 | H121: 105139481.4 | I121: =G121-H121 -> -13289184.29 | J121: =IF(I121=0,"",I121/H121) -> -0.1263957565 | K121: =K56+K120 -> 142396672
A122: % increase | B122: 4 | D122: =IF(D121=0,"",(D121/C121)-1) -> 0.03703876576 | E122: =IF(E121=0,"",(E121/C121)-1) -> 0.07276673324 | K122: =IF(K121=0,"",(K121/C121)-1) -> 0.07276673324
A123: TOTAL MANAGERS AND STAFF | C123: =C34+C54+C98+C118 -> 118552192.4 | D123: 121240320 | E123: 126130876 | F123: 0 | G123: 82373611.27 | H123: 92888208.4 | I123: -10514597.13 | J123: =IF(I123=0,"",I123/H123) -> -0.1131962529 | K123: =K34+K54+K98+K118 -> 126130876
A124: =head27a -> References
A125: 1. Include 'Loans and advances' where applicable if any reportable amounts until phased compliance with s164 of MFMA achieved
A126: 2. If benefits in kind are provided (e.g. provision of living quarters) the full market value must be shown as the cost to the municipality
A127: 3. s57 of the Systems Act
A128: 4. B/A, C/A, D/A
A129: 5. Included in Contracted services
A130: Column Definitions:
A131: A. Audited actual 2022/23 (audited financial statements). If audited amounts unavailable, unaudited amounts must be provided with a note stating these are unaudited
A132: B. The original budget approved by council for the 2023/24 budget year.
A133: C. The budget for 2023/24 budget year as adjusted by council resolution in terms of section 28 of the MFMA.
A134: D. An estimate of final actual amounts (pre audit - 2006/07 budget year) at the time of preparing the budget for the 2007/08 budget year. This may differ from C.

Sheet SC9
A1: =muni& " - "&S71O& " - "&Head57 -> LIM353 Molemole - Supporting Table SC9 Monthly Budget Statement - actuals and revised targets for cash receipts - Q3 Third Quarter
A2: =desc -> Description | B2: =head27 -> Ref | C2: =Head2 -> Budget Year 2025/26 | O2: ='Template names'!B5 -> 2025/26 Medium Term Revenue & Expenditure Framework
C3: July | D3: August | E3: Sept | F3: October | G3: Nov | H3: Dec | I3: January | J3: Feb | K3: March | L3: April | M3: May | N3: June | O3: =Head9 -> Budget Year 2025/26 | P3: =Head10 -> Budget Year +1 2026/27 | Q3: =Head11 -> Budget Year +2 2027/28
A4: R thousands | B4: 1 | C4: Outcome | D4: Outcome | E4: Outcome | F4: Outcome | G4: Outcome | H4: Outcome | I4: Outcome | J4: Outcome | K4: Outcome | L4: Budget | M4: Budget | N4: Budget
A5: Cash Receipts By Source
A6: Property rates | C6: 184323.96 | D6: 306696.65 | E6: 356582.68 | F6: 280983.03 | G6: 4086239.98 | H6: 262593.36 | I6: 625110.29 | J6: 1106730.61 | K6: 0 | L6: 1638726.42 | M6: 1638726.42 | N6: =O6-SUM(C6:M6) -> 9178003.6 | O6: 19664717 | P6: 33299051 | Q6: 35047251
A7: Service charges - Electricity revenue | C7: 786.47 | D7: 2182.51 | E7: 5505.57 | F7: 1112.18 | G7: 1278.63 | H7: 1278.63 | I7: 1167.6 | J7: 1994.02 | K7: 0 | L7: 1183452.83 | M7: 1183452.83 | N7: 11819222.73 | O7: 14201434 | P7: 33183455 | Q7: 32646924
A8: Service charges - Water revenue | C8: 17291.66 | D8: 26041.65 | E8: 21318.96 | F8: 13034.27 | G8: 11915.95 | H8: 11693.91 | I8: 5028.92 | J8: 26504.39 | K8: 0 | L8: 0 | M8: 0 | N8: -132829.71 | O8: 0 | P8: 0 | Q8: 0
A9: Service charges - Waste Water Management | C9: 33213.22 | D9: 34233.78 | E9: 42665.44 | F9: 31501.85 | G9: 17142.83 | H9: 17991.15 | I9: 23734.55 | J9: 38324.77 | K9: 0 | L9: 0 | M9: 0 | N9: -238807.59 | O9: 0 | P9: 0 | Q9: 0
A10: Service charges - Waste Mangement | C10: 50629.59 | D10: 86587.35 | E10: 105144.2 | F10: 60583.01 | G10: 47605.59 | H10: 48400.46 | I10: 54973.82 | J10: 115621.45 | K10: 0 | L10: 51846.17 | M10: 51846.17 | N10: -51083.81 | O10: 622154 | P10: -4381057 | Q10: -2282792
N11: 0
A12: Rental of facilities and equipment | C12: 18998.04 | D12: 19519.78 | E12: 18998.04 | F12: 18998.04 | G12: 18998.04 | H12: 18998.04 | I12: 8959.09 | J12: 35297.86 | K12: 0 | L12: 0 | M12: 0 | N12: -158766.93 | O12: 0 | P12: 0 | Q12: 0
A13: Interest earned - external investments | C13: 418283.09 | D13: 1001105.37 | E13: 1074652.51 | F13: 996941.51 | G13: 982042.35 | H13: 814495.6 | I13: 562026.63 | J13: 453827.96 | K13: 0 | L13: 1391292 | M13: 1391292 | N13: 7609544.98 | O13: 16695504 | P13: 19313238 | Q13: 20327183
A14: Interest earned - outstanding debtors | C14: 33272.5 | D14: 54141.25 | E14: 55919.26 | F14: 36814.13 | G14: 23671.3 | H14: 33424.35 | I14: 45964.12 | J14: 79321.16 | K14: 0 | L14: 0 | M14: 0 | N14: -362528.07 | O14: 0 | P14: 0 | Q14: 0
A15: Dividends received | N15: 0
A16: Fines, penalties and forfeits | C16: 136.52 | D16: 176.52 | E16: 278.26 | F16: 175.65 | G16: 0 | H16: 7443.48 | I16: 0 | J16: 0 | K16: 0 | L16: 12244.83 | M16: 12244.83 | N16: 114237.91 | O16: 146938 | P16: 931780 | Q16: 963048
A17: Licences and permits | C17: 800 | D17: 1098621.8 | E17: 907470.73 | F17: 1136021.22 | G17: 1158232.01 | H17: 909394.68 | I17: 1103971.13 | J17: 1110084.03 | K17: 0 | L17: 1204164.67 | M17: 1204164.67 | N17: 4617051.06 | O17: 14449976 | P17: 12892535 | Q17: 13569392
A18: Agency services | C18: 33383.61 | D18: 31807.62 | E18: 31406.17 | F18: 30490.12 | G18: 30525.43 | H18: 30573.05 | I18: 30491.95 | J18: -18.35 | K18: 0 | L18: 42730 | M18: 42730 | N18: 208640.4 | O18: 512760 | P18: 531733 | Q18: 559648
A19: Transfers and Subsidies - Operational | C19: 77884000 | D19: 2550000 | E19: 0 | F19: 0 | G19: 0 | H19: 62938945.67 | I19: 0 | J19: 423000 | K19: 0 | L19: 15947333.32 | M19: 15947333.32 | N19: 15677387.69 | O19: 191368000 | P19: 189384850 | Q19: 186262620
A20: Other revenue | C20: 72292299.05 | D20: 8932550.01 | E20: 3319280.1 | F20: 2490969.92 | G20: 1427958.54 | H20: 3215094.82 | I20: 4909483.24 | J20: 2041505.22 | K20: 0 | L20: 1911335.09 | M20: 1911335.09 | N20: -79515790.08 | O20: 22936021 | P20: 21046410 | Q20: 30259740
A21: Cash Receipts by Source | C21: =SUM(C6:C20) -> 150967417.7 | D21: 14143664.29 | E21: 5939221.92 | F21: 5097624.93 | G21: 7805610.65 | H21: 68310327.2 | I21: 7370911.34 | J21: 5432193.12 | K21: 0 | L21: 23383125.33 | M21: 23383125.33 | N21: -31235717.82 | O21: 280597504 | P21: 306201995 | Q21: 317353014
A22: Other Cash Flows by Source | N22: =O22-SUM(C22:M22) -> 0
A23: Transfers and subsidies - capital (monetary allocations) (National / Provincial and District) | C23: 7825000 | D23: 0 | E23: 14430000 | F23: 0 | G23: 0 | H23: 14025000 | I23: 0 | J23: 0 | K23: 0 | L23: 4340666.67 | M23: 4340666.67 | N23: 7126666.66 | O23: 52088000 | P23: 50119150 | Q23: 45592400
A24: Transfers and subsidies - capital (monetary allocations) (Nat / Prov Departm Agencies, Households, Non-profit Institutions, Private Enterprises, Public Corporatons, Higher Educ Institutions) | N24: 0
A25: Proceeds on Disposal of Fixed and Intangible Assets | C25: 0 | D25: 0 | E25: 0 | F25: 0 | G25: 0 | H25: 0 | I25: 0 | J25: 0 | K25: 0 | L25: 0 | M25: 0 | N25: 0 | O25: 0 | P25: 32960000 | Q25: 0
A26: Short term loans | N26: 0
A27: Borrowing long term/refinancing | N27: 0
A28: Increase (decrease) in consumer deposits | N28: 0
A29: VAT Control (receipts) | N29: 0
A30: Decrease (increase) in non-current receivables | C30: 0 | D30: 0 | E30: 0 | F30: 0 | G30: 0 | H30: 0 | I30: 0 | J30: 0 | K30: 0 | L30: 0 | M30: 0 | N30: 0 | O30: 0 | P30: 0 | Q30: 0
A31: Decrease (increase) in non-current investments | C31: 0 | D31: 0 | E31: 0 | F31: 0 | G31: 0 | H31: 0 | I31: 0 | J31: 0 | K31: 0 | L31: 0 | M31: 0 | N31: 0 | O31: 0 | P31: 0 | Q31: 0
A32: Total Cash Receipts by Source | C32: =SUM(C21:C31) -> 158792417.7 | D32: =SUM(D21:D31) -> 14143664.29 | E32: 20369221.92 | F32: 5097624.93 | G32: 7805610.65 | H32: 82335327.2 | I32: 7370911.34 | J32: 5432193.12 | K32: 0 | L32: 27723792 | M32: 27723792 | N32: -24109051.16 | O32: 332685504 | P32: 389281145 | Q32: 362945414
A33: Cash Payments by Type | N33: =O33-SUM(C33:M33) -> 0
A34: Employee related costs | C34: 11555528.13 | D34: 11674008.83 | E34: 12727442.76 | F34: 12835003.06 | G34: 10842447.36 | H34: 12226787.12 | I34: 11453009.5 | J34: 12515006.09 | K34: 0 | L34: 10363172.91 | M34: 10363172.91 | N34: 4443696.33 | O34: 120999275 | P34: 154091518 | Q34: 161715030
A35: Remuneration of councillors | C35: 0 | D35: 0 | E35: 0 | F35: 0 | G35: 0 | H35: 0 | I35: 0 | J35: 0 | K35: 0 | L35: 1338213.25 | M35: 1338213.25 | N35: 13589360.5 | O35: 16265787 | P35: 17038421 | Q35: 17932938
A36: Interest | C36: 0 | D36: 0 | E36: 0 | F36: 0 | G36: 0 | H36: 0 | I36: 0 | J36: 0 | K36: 0 | L36: 257113.67 | M36: 257113.67 | N36: 2571136.66 | O36: 3085364 | P36: 3199500 | Q36: 3305084
A37: Bulk purchases - Electricity | C37: 0 | D37: 0 | E37: 0 | F37: 0 | G37: 0 | H37: 0 | I37: 0 | J37: 0 | K37: 0 | L37: 1549400.17 | M37: 1549400.17 | N37: 14809009.66 | O37: 17907810 | P37: 16148172 | Q37: 16681062
A38: Acquisitions - water & other inventory | C38: 0 | D38: 0 | E38: 0 | F38: 0 | G38: 0 | H38: 0 | I38: 0 | J38: 0 | K38: 0 | L38: 514428.83 | M38: 514428.83 | N38: 5144288.34 | O38: 6173146 | P38: 6978146 | Q38: 7208425
A40: Contracted services | C40: 0 | D40: 0 | E40: 0 | F40: 0 | G40: 0 | H40: 0 | I40: 0 | J40: 0 | K40: 0 | L40: 5648941 | M40: 5648941 | N40: 56489410 | O40: 67787292 | P40: 51505541 | Q40: 32902174
A41: Transfers and subsidies - other municipalities | N41: 0
A42: Transfers and subsidies - other | N42: 0
A43: Other expenditure | C43: 93994852.33 | D43: 21978803.84 | E43: 11532330.36 | F43: 8082885.12 | G43: 3736590.37 | H43: 89446071.81 | I43: 4615060.29 | J43: 6925309.01 | K43: 0 | L43: 4297671.41 | M43: 4297671.41 | N43: -197335188.9 | O43: 51572057 | P43: 43963000 | Q43: 59850000
A44: Cash Payments by Type | B44: =SUM(B34:B43) -> 0 | C44: =SUM(C34:C43) -> 105550380.5 | D44: =SUM(D34:D43) -> 33652812.67 | E44: 24259773.12 | F44: 20917888.18 | G44: 14579037.73 | H44: 101672858.9 | I44: 16068069.79 | J44: 19440315.1 | K44: 0 | L44: 23968941.24 | M44: 23968941.24 | N44: -100288287.5 | O44: 283790731 | P44: 292924298 | Q44: 299594713
A45: Other Cash Flows/Payments by Type
A46: Capital assets | C46: 2763197.56 | D46: 1954327.73 | E46: 2016665.24 | F46: 3591990.8 | G46: 3843230.48 | H46: 4433521.51 | I46: 1594282.5 | J46: 513610 | K46: 0 | L46: 4856416.66 | M46: 4856416.66 | N46: =O46-SUM(C46:M46) -> 27853340.86 | O46: 58277000 | P46: 72919153 | Q46: 45110795
A47: Repayment of borrowing | C47: 0 | D47: 0 | E47: 0 | F47: 0 | G47: 0 | H47: 0 | I47: 0 | J47: 0 | K47: 0 | L47: 0 | M47: 0 | N47: =O47-SUM(C47:M47) -> 0 | O47: 0 | P47: 0 | Q47: 0
A48: Other Cash Flows/Payments | C48: 0 | D48: 0 | E48: 0 | F48: 0 | G48: 0 | H48: 0 | I48: 9559656.56 | J48: 0 | K48: 0 | L48: 0 | M48: 0 | N48: =O48-SUM(C48:M48) -> -9559656.56 | O48: 0 | P48: 0 | Q48: 0
A49: Total Cash Payments by Type | B49: =SUM(B44:B48) -> 0 | C49: 108313578 | D49: 35607140.4 | E49: 26276438.36 | F49: 24509878.98 | G49: 18422268.21 | H49: 106106380.4 | I49: 27222008.85 | J49: 19953925.1 | K49: 0 | L49: 28825357.9 | M49: 28825357.9 | N49: -81994603.16 | O49: 342067731 | P49: 365843451 | Q49: 344705508
A50: NET INCREASE/(DECREASE) IN CASH HELD | B50: =B32-B49 -> 0 | C50: 50478839.69 | D50: -21463476.11 | E50: -5907216.44 | F50: -19412254.05 | G50: -10616657.56 | H50: -23771053.24 | I50: -19851097.51 | J50: -14521731.98 | K50: 0 | L50: -1101565.9 | M50: -1101565.9 | N50: 57885552 | O50: -9382227 | P50: 23437694 | Q50: 18239906
A51: Cash/cash equivalents at the month/year beginning: | C51: 132645118.4 | D51: =C52 -> 183123958.1 | E51: =D52 -> 161660482 | F51: 155753265.5 | G51: 136341011.5 | H51: 125724353.9 | I51: 101953300.7 | J51: 82102203.18 | K51: 67580471.2 | L51: 67580471.2 | M51: 66478905.3 | N51: 65377339.4 | O51: =C51 -> 132645118.4 | P51: =O52 -> 123262891.4 | Q51: =P52 -> 146700585.4
A52: Cash/cash equivalents at the month/year end: | C52: =C50+C51 -> 183123958.1 | D52: =D50+D51 -> 161660482 | E52: =E50+E51 -> 155753265.5 | F52: 136341011.5 | G52: 125724353.9 | H52: 101953300.7 | I52: 82102203.18 | J52: 67580471.2 | K52: 67580471.2 | L52: 66478905.3 | M52: 65377339.4 | N52: 123262891.4 | O52: =O50+O51 -> 123262891.4 | P52: =P50+P51 -> 146700585.4 | Q52: =Q50+Q51 -> 164940491.4
A53: =head27a -> References
A54: 1. Replace 'budget' heading with adjusted budget, or 'outcome' only for month/s complete
A55: 2. Total of monthly amounts must always agree to the approved or adjusted budget
A56: 3. Amend 'cash-at-beginning' when prior year actual known (as part of the adjustments budget)
E61: =E44+E60 -> 24259773.12 | F61: 20917888.18 | G61: 14579037.73 | H61: 101672858.9 | I61: 16068069.79 | J61: 19440315.1 | K61: 0 | L61: 23968941.24 | N61: =N44+N60 -> -100288287.5 | O61: =O44+O60 -> 283790731 | P61: =P44+P60 -> 292924298
E62: =E50-E60 -> -5907216.44 | F62: -19412254.05 | G62: -10616657.56 | H62: -23771053.24 | I62: -19851097.51 | J62: -14521731.98 | K62: 0 | L62: -1101565.9 | M62: =M50-M60 -> -1101565.9 | N62: =N50-N60 -> 57885552 | O62: -9382227 | P62: 23437694

Sheet SC10
A1: =muni& " - "&S71P& " - "&Head57 -> LIM353 Molemole - NOT REQUIRED - municipality does not have entities or this is the parent municipality's budget - Q3 Third Quarter
A2: =desc -> Description | B2: =head27 -> Ref | C2: =Head1 -> 2024/25 | D2: =Head2 -> Budget Year 2025/26
C3: =Head5 -> Audited Outcome | D3: =Head6 -> Original Budget | E3: =Head7 -> Adjusted Budget | F3: =Head38 -> Monthly actual | G3: =Head39 -> YearTD actual | H3: =Head40 -> YearTD budget | I3: =Head41 -> YTD variance | J3: =Head41 -> YTD variance | K3: =Head8 -> Full Year Forecast
A4: R thousands | B4: 1 | J4: %
A5: Revenue
A6: Exchange Revenue
A7: Service charges - Electricity | I7: =G7-H7 -> 0 | J7: =IF(I7=0,"",I7/H7) -> 
A8: Service charges - Water | I8: 0
A9: Service charges - Waste Water Management | I9: 0
A10: Service charges - Waste management | I10: 0
A11: Sale of Goods and Rendering of Services | I11: =G11-H11 -> 0 | J11: =IF(I11=0,"",I11/H11) -> 
A12: Agency services | I12: 0
A13: Interest | I13: 0
A14: Interest earned from Receivables | I14: 0
A15: Interest earned from Current and Non Current Assets | I15: =G15-H15 -> 0 | J15: =IF(I15=0,"",I15/H15) -> 
A16: Dividends | I16: 0
A17: Rent on Land | I17: 0
A18: Rental from Fixed Assets | I18: 0
A19: Licence and permits | I19: 0
A20: Special rating levies | I20: 0
A21: Operational Revenue | I21: 0
A22: Non-Exchange Revenue | I22: 0
A23: Property rates | I23: =G23-H23 -> 0 | J23: =IF(I23=0,"",I23/H23) -> 
A24: Surcharges and Taxes | I24: 0
A25: Fines, penalties and forfeits | I25: 0
A26: Licences or permits | I26: 0
A27: Transfer and subsidies - Operational | I27: 0
A28: Interest | I28: 0
A29: Fuel Levy | I29: 0
A30: Operational Revenue | I30: 0
A31: Gains on disposal of Assets | I31: 0
A32: Other Gains | I32: 0
A33: Discontinued Operations | I33: 0
A34: Total Revenue (excluding capital transfers and contributions) | C34: =SUM(C7:C21)+SUM(C23:C33) -> 0 | D34: =SUM(D7:D21)+SUM(D23:D33) -> 0 | E34: 0 | F34: =SUM(F7:F21)+SUM(F23:F33) -> 0 | G34: =SUM(G7:G21)+SUM(G23:G33) -> 0 | H34: =SUM(H7:H21)+SUM(H23:H33) -> 0 | I34: =G34-H34 -> 0 | K34: =SUM(K7:K21)+SUM(K23:K33) -> 0
A35: Expenditure By Type
A36: Employee related costs | I36: =G36-H36 -> 0 | J36: =IF(I36=0,"",I36/H36) -> 
A37: Remuneration of councillors | I37: 0
A38: Bulk purchases - electricity | I38: 0
A39: Inventory consumed | I39: 0
A40: Debt impairment | I40: 0
A41: Depreciation and amortisation | I41: 0
A42: Interest | I42: 0
A43: Contracted services | I43: 0
A44: Transfers and subsidies | I44: 0
A45: Irrecoverable debts written off | I45: 0
A46: Operational costs | I46: =G46-H46 -> 0 | J46: =IF(I46=0,"",I46/H46) -> 
A47: Losses on disposal of Assets | I47: =G47-H47 -> 0 | J47: =IF(I47=0,"",I47/H47) -> 
A48: Other Losses | I48: 0
A49: Total Expenditure | C49: =SUM(C36:C48) -> 0 | D49: =SUM(D36:D48) -> 0 | E49: 0 | F49: 0 | G49: 0 | H49: 0 | I49: 0 | K49: =SUM(K36:K48) -> 0
A50: Surplus/(Deficit) | C50: =C34-C49 -> 0 | D50: 0 | E50: 0 | F50: 0 | G50: 0 | H50: 0 | I50: 0 | K50: =K34-K49 -> 0
A51: Transfers and subsidies - capital (monetary allocations) | I51: 0
A52: Transfers and subsidies - capital (in-kind) | I52: 0
A53: Surplus/(Deficit) after capital transfers & contributions | C53: =C50+SUM(C51:C52) -> 0 | D53: 0 | E53: 0 | F53: 0 | G53: 0 | H53: 0 | I53: 0 | K53: =K50+SUM(K51:K52) -> 0
A54: Income Tax | I54: 0
A55: Surplus/(Deficit) after income tax | C55: =C53-C54 -> 0 | D55: 0 | E55: 0 | F55: 0 | G55: 0 | H55: 0 | I55: 0 | K55: =K53-K54 -> 0
A56: =head27a -> References
A57: 1. Votes (consolidated) are revenue sources and expenditure type

Sheet SC11
A1: =muni& " - "&S71Q& " - "&Head57 -> LIM353 Molemole - NOT REQUIRED - municipality does not have entities or this is the parent municipality's budget - Q3 Third Quarter
A2: =desc -> Description | B2: =head27 -> Ref | C2: =Head1 -> 2024/25 | D2: =Head2 -> Budget Year 2025/26
C3: =Head5 -> Audited Outcome | D3: =Head6 -> Original Budget | E3: =Head7 -> Adjusted Budget | F3: =Head38 -> Monthly actual | G3: =Head39 -> YearTD actual | H3: =Head40 -> YearTD budget | I3: =Head41 -> YTD variance | J3: =Head41 -> YTD variance | K3: =Head8 -> Full Year Forecast
A4: R thousands | J4: %
A5: Revenue By Municipal Entity
A6: Insert name of municipal entity | I6: =G6-H6 -> 0 | J6: =IF(I6=0,"",I6/H6) -> 
I7: 0 | J7: =IF(I7=0,"",I7/H7) -> 
I8: 0
I9: 0
I10: 0
I11: 0
I12: 0
I13: 0
I14: 0
I15: 0
A16: Total Operating Revenue | B16: 1 | C16: =SUM(C6:C15) -> 0 | D16: 0 | E16: 0 | F16: 0 | G16: 0 | H16: 0 | I16: 0 | K16: =SUM(K6:K15) -> 0
A18: Expenditure By Municipal Entity
A19: =A6 -> Insert name of municipal entity | I19: 0 | J19: =IF(I19=0,"",I19/H19) -> 
A20: =IF(A7="","",A7) ->  | I20: 0
A21: =IF(A8="","",A8) ->  | I21: 0
I22: 0
I23: 0
I24: 0
I25: 0
I26: 0
I27: 0
I28: 0
A29: Total Operating Expenditure | B29: 2 | C29: =SUM(C19:C28) -> 0 | D29: 0 | E29: 0 | F29: 0 | G29: 0 | H29: 0 | I29: 0 | K29: =SUM(K19:K28) -> 0
A31: =Head42 -> Surplus/ (Deficit) for the yr/period | C31: =C16-C29 -> 0 | D31: =D16-D29 -> 0 | E31: 0 | F31: 0 | G31: 0 | H31: 0 | I31: =I16+I29 -> 0 | K31: 0
A32: Capital Expenditure By Municipal Entity
A33: =$A$6 -> Insert name of municipal entity | I33: 0
A34: =IF(A7="","",A7) ->  | I34: 0
A35: =IF(A8="","",A8) ->  | I35: 0
I36: 0
I37: 0
I38: 0
I39: 0
I40: 0
I41: 0
A43: Total Capital Expenditure | B43: 3 | C43: =SUM(C32:C42) -> 0 | D43: =SUM(D32:D42) -> 0 | E43: 0 | F43: 0 | G43: 0 | H43: =SUM(H32:H42) -> 0 | I43: =G43-H43 -> 0 | K43: 0
A44: =head27a -> References
A45: 1. Must reconcile to the sum of all municipal entity monthly revenue reports
A46: 2. Must reconcile to the sum of all municipal entity monthly expenditure reports
A47: 3. YTD = Year to date; FAV - favourable variance or unfavourable variance
A48: 4. Material variances to be explained
A49: 5. Insert additional 'Adjustment' Budget column for each Adjustment made by an entity

Sheet SC12
A1: =muni& " - "&S71R& " - "&Head57 -> LIM353 Molemole - Supporting Table SC12 Monthly Budget Statement - capital expenditure trend - Q3 Third Quarter
A2: Month | B2: =Head1 -> 2024/25 | C2: =Head2 -> Budget Year 2025/26
B3: =Head5 -> Audited Outcome | C3: =Head6 -> Original Budget | D3: =Head7 -> Adjusted Budget | E3: =Head38 -> Monthly actual | F3: =Head39 -> YearTD actual | G3: =Head40 -> YearTD budget | H3: =Head41 -> YTD variance | I3: =Head41 -> YTD variance | J3: % spend of Original Budget
A4: R thousands | I4: %
A5: Monthly expenditure performance trend
A6: July | B6: 0 | C6: 5366405 | D6: 5366405 | E6: 2763197.56 | F6: =IF(E6>0,E6,0) -> 2763197.56 | G6: =IF(D6>0,D6,C6) -> 5366405 | H6: =IF(F6="",0,G6-F6) -> 2603207.44 | I6: =IF(F6="","",IF(H6=0,"",H6/G6)) -> 0.4850933614 | J6: =IF(F6="","",F6/$C$18) -> 0.04741489027
A7: August | B7: 1448489.35 | C7: 5366405 | D7: 5366405 | E7: 1954327.73 | F7: 1954327.73 | G7: =IF(D7>0,D7+D6,C7+C6) -> 10732810 | H7: 8778482.27 | I7: 0.8179108985 | J7: 0.03353514646
A8: September | B8: 2352886.3 | C8: 5366405 | D8: 5366405 | E8: 2016665.24 | F8: 2016665.24 | G8: =IF(D8>0,D8+G7,C8+G7) -> 16099215 | H8: 14082549.76 | I8: 0.8747351818 | J8: 0.03460482249
A9: October | B9: 3737538.1 | C9: 5366405 | D9: 5366405 | E9: 3591990.8 | F9: 3591990.8 | G9: =IF(D9>0,D9+G8,C9+G8) -> 21465620 | H9: 17873629.2 | I9: 0.8326630771 | J9: 0.0616365084
A10: November | B10: 5391676.15 | C10: 5366405 | D10: 5366405 | E10: 3843230.48 | F10: 3843230.48 | G10: 26832025 | H10: 22988794.52 | I10: 0.8567670357 | J10: 0.06594763766
A11: December | B11: 14131727.09 | C11: 5366405 | D11: 5366405 | E11: 4433521.51 | F11: 4433521.51 | G11: 32198430 | H11: 27764908.49 | I11: 0.8623062829 | J11: 0.07607669424
A12: January | B12: 2785465.22 | C12: 5366405 | D12: 5366405 | E12: 1594282.5 | F12: 1594282.5 | G12: 37564835 | H12: 35970552.5 | I12: 0.9575591774 | J12: 0.02735697617
A13: February | B13: 6699599.03 | C13: 4142445 | D13: 4142445 | E13: 513610 | F13: 513610 | G13: 41707280 | H13: 41193670 | I13: 0.9876853633 | J13: 0.008813253942
A14: March | B14: 948191.1 | C14: 4142445 | D14: 4142445 | E14: 14105735.5 | F14: 14105735.5 | G14: 45849725 | H14: 31743989.5 | I14: 0.6923485255 | J14: 0.2420463562
A15: April | B15: 7053021.58 | C15: 4142445 | D15: 4142445 | E15: 0 | F15: 0 | G15: 49992170 | H15: 49992170 | I15: 1 | J15: 0
A16: May | B16: 3110574 | C16: 4142445 | D16: 4142445 | E16: 0 | F16: =IF(E15>0,E15,0) -> 0 | G16: 54134615 | H16: 54134615 | I16: 1 | J16: 0
A17: June | B17: 4024671.57 | C17: 4142385 | D17: 4142385 | E17: 0 | F17: =IF(E17>0,E17,0) -> 0 | G17: 58277000 | H17: =IF(F17="",0,G17-F17) -> 58277000 | I17: =IF(F17="","",IF(H17=0,"",H17/G17)) -> 1 | J17: =IF(F17="","",F17/$C$18) -> 0
A18: Total Capital expenditure | B18: =SUM(B6:B17) -> 51683839.49 | C18: =SUM(C6:C17) -> 58277000 | D18: =SUM(D6:D17) -> 58277000 | E18: =SUM(E6:E17) -> 34816561.32

Sheet SC13a
A1: =muni& " - "&S71Sa& " - "&Head57 -> LIM353 Molemole - Supporting Table SC13a Monthly Budget Statement - capital expenditure on new assets by asset class - Q3 Third Quarter
A2: =desc -> Description | B2: =head27 -> Ref | C2: =Head1 -> 2024/25 | D2: =Head2 -> Budget Year 2025/26
C3: =Head5 -> Audited Outcome | D3: =Head6 -> Original Budget | E3: =Head7 -> Adjusted Budget | F3: =Head38 -> Monthly actual | G3: =Head39 -> YearTD actual | H3: =Head40 -> YearTD budget | I3: =Head41 -> YTD variance | J3: =Head41 -> YTD variance | K3: =Head8 -> Full Year Forecast
A4: R thousands | B4: 1 | J4: %
A5: Capital expenditure on new assets by Asset Class/Sub-class
A7: Infrastructure | C7: =C8+C13+C17+C27+C38+C45+C53+C63+C69 -> 35251195.16 | D7: 44488000 | E7: 40888000 | F7: 14128351.5 | G7: 34028316.54 | H7: 31926006 | I7: =H7-G7 -> -2102310.54 | J7: =IF(I7=0,"",I7/H7) -> -0.06584946893 | K7: =K8+K13+K17+K27+K38+K45+K53+K63+K69 -> 40888000
A8: Roads Infrastructure | C8: =SUM(C9:C12) -> 9483235.03 | D8: 21803670 | E8: 37540826 | F8: 341851.5 | G8: 18899664.29 | H8: 22647619.4 | I8: 3747955.11 | J8: 0.1654900254 | K8: =SUM(K9:K12) -> 37540826
A9: Roads | C9: 9432235.03 | D9: 21803670 | E9: 37540826 | F9: 341851.5 | G9: 18899664.29 | H9: 22647619.4 | I9: 3747955.11 | J9: 0.1654900254 | K9: 37540826
A10: Road Structures | C10: 0 | D10: 0 | E10: 0 | F10: 0 | G10: 0 | H10: 0 | I10: 0 | K10: 0
A11: Road Furniture | C11: 51000 | D11: 0 | E11: 0 | F11: 0 | G11: 0 | H11: 0 | I11: 0 | K11: 0
A12: Capital Spares | I12: 0
A13: Storm water Infrastructure | C13: =SUM(C14:C16) -> 0 | D13: 0 | E13: 0 | F13: 0 | G13: 0 | H13: 0 | I13: 0 | K13: =SUM(K14:K16) -> 0
A14: Drainage Collection | I14: 0
A15: Storm water Conveyance | C15: 0 | D15: 0 | E15: 0 | F15: 0 | G15: 0 | H15: 0 | I15: 0 | K15: 0
A16: Attenuation | I16: 0
A17: Electrical Infrastructure | C17: =SUM(C18:C26) -> 2636085 | D17: 3600000 | E17: 0 | F17: 13786500 | G17: 13786500 | H17: 1260000 | I17: -12526500 | J17: -9.941666667 | K17: =SUM(K18:K26) -> 0
A18: Power Plants | I18: 0
A19: HV Substations | I19: 0
A20: HV Switching Station | I20: 0
A21: HV Transmission Conductors | I21: 0
A22: MV Substations | C22: 0 | D22: 0 | E22: 0 | F22: 0 | G22: 0 | H22: 0 | I22: 0 | K22: 0
A23: MV Switching Stations | I23: 0
A24: MV Networks | C24: 869565 | D24: 0 | E24: 0 | F24: 0 | G24: 0 | H24: 0 | I24: 0 | K24: 0
A25: LV Networks | C25: 1766520 | D25: 3600000 | E25: 0 | F25: 13786500 | G25: 13786500 | H25: 1260000 | I25: -12526500 | J25: -9.941666667 | K25: 0
A26: Capital Spares | I26: 0
A27: Water Supply Infrastructure | C27: =SUM(C28:C37) -> 0 | D27: 0 | E27: 0 | F27: 0 | G27: 0 | H27: 0 | I27: 0 | K27: =SUM(K28:K37) -> 0
A28: Dams and Weirs | I28: 0
A29: Boreholes | I29: 0
A30: Reservoirs | I30: 0
A31: Pump Stations | I31: 0
A32: Water Treatment Works | I32: 0
A33: Bulk Mains | I33: 0
A34: Distribution | I34: 0
A35: Distribution Points | I35: 0
A36: PRV Stations | I36: 0
A37: Capital Spares | I37: 0
A38: Sanitation Infrastructure | C38: =SUM(C39:C44) -> 0 | D38: 0 | E38: 0 | F38: 0 | G38: 0 | H38: 0 | I38: 0 | K38: =SUM(K39:K44) -> 0
A39: Pump Station | I39: 0
A40: Reticulation | I40: =H40-G40 -> 0 | J40: =IF(I40=0,"",I40/H40) -> 
A41: Waste Water Treatment Works | I41: =H41-G41 -> 0 | J41: =IF(I41=0,"",I41/H41) -> 
A42: Outfall Sewers | I42: =H42-G42 -> 0 | J42: =IF(I42=0,"",I42/H42) -> 
A43: Toilet Facilities | I43: 0
A44: Capital Spares | I44: 0
A45: Solid Waste Infrastructure | C45: =SUM(C46:C52) -> 23131875.13 | D45: 19084330 | E45: 3347174 | F45: 0 | G45: 1342152.25 | H45: 8018386.6 | I45: 6676234.35 | J45: 0.8326156723 | K45: =SUM(K46:K52) -> 3347174
A46: Landfill Sites | C46: 23131875.13 | D46: 19084330 | E46: 3347174 | F46: 0 | G46: 1342152.25 | H46: 8018386.6 | I46: 6676234.35 | J46: 0.8326156723 | K46: 3347174
A47: Waste Transfer Stations | I47: 0
A48: Waste Processing Facilities | I48: =H48-G48 -> 0 | J48: =IF(I48=0,"",I48/H48) -> 
A49: Waste Drop-off Points | I49: 0
A50: Waste Separation Facilities | I50: 0
A51: Electricity Generation Facilities | I51: 0
A52: Capital Spares | I52: 0
A53: Rail Infrastructure | C53: =SUM(C54:C62) -> 0 | D53: 0 | E53: 0 | F53: 0 | G53: 0 | H53: 0 | I53: 0 | K53: =SUM(K54:K62) -> 0
A54: Rail Lines | I54: 0
A55: Rail Structures | I55: 0
A56: Rail Furniture | I56: 0
A57: Drainage Collection | I57: 0
A58: Storm water Conveyance | I58: 0
A59: Attenuation | I59: 0
A60: MV Substations | I60: 0
A61: LV Networks | I61: 0
A62: Capital Spares | I62: 0
A63: Coastal Infrastructure | C63: =SUM(C64:C68) -> 0 | D63: 0 | E63: 0 | F63: 0 | G63: 0 | H63: 0 | I63: 0 | K63: =SUM(K64:K68) -> 0
A64: Sand Pumps | I64: 0
A65: Piers | I65: 0
A66: Revetments | I66: 0
A67: Promenades | I67: 0
A68: Capital Spares | I68: 0
A69: Information and Communication Infrastructure | C69: =SUM(C70:C73) -> 0 | D69: 0 | E69: 0 | F69: 0 | G69: 0 | H69: 0 | I69: =H69-G69 -> 0 | K69: =SUM(K70:K73) -> 0
A70: Data Centres | I70: =H70-G70 -> 0
A71: Core Layers | I71: =H71-G71 -> 0 | J71: =IF(I71=0,"",I71/H71) -> 
A72: Distribution Layers | I72: =H72-G72 -> 0
A73: Capital Spares | I73: =H73-G73 -> 0
A75: Community Assets | C75: =+C76+C99 -> 0 | D75: 12700000 | E75: 12200000 | F75: 0 | G75: 130434.78 | H75: 9325015 | I75: =H75-G75 -> 9194580.22 | J75: 0.9860123785 | K75: =+K76+K99 -> 12200000
A76: Community Facilities | C76: =SUM(C77:C98) -> 0 | D76: 1500000 | E76: 1000000 | F76: 0 | G76: 0 | H76: 925009 | I76: =H76-G76 -> 925009 | J76: 1 | K76: =SUM(K77:K98) -> 1000000
A77: Halls | I77: 0
A78: Centres | I78: 0
A79: Crèches | I79: 0
A80: Clinics/Care Centres | I80: 0
A81: Fire/Ambulance Stations | I81: 0
A82: Testing Stations | C82: 0 | D82: 1500000 | E82: 1000000 | F82: 0 | G82: 0 | H82: 925009 | I82: 925009 | J82: 1 | K82: 1000000
A83: Museums | I83: 0
A84: Galleries | I84: 0
A85: Theatres | I85: 0
A86: Libraries | I86: 0
A87: Cemeteries/Crematoria | I87: 0
A88: Police | I88: 0
A89: Purls | I89: 0
A90: Public Open Space | C90: 0 | D90: 0 | E90: 0 | F90: 0 | G90: 0 | H90: 0 | I90: 0 | K90: 0
A91: Nature Reserves | I91: 0
A92: Public Ablution Facilities | I92: 0
A93: Markets | I93: 0
A94: Stalls | I94: 0
A95: Abattoirs | I95: 0
A96: Airports | I96: 0
A97: Taxi Ranks/Bus Terminals | I97: 0
A98: Capital Spares | I98: 0
A99: Sport and Recreation Facilities | C99: =SUM(C100:C102) -> 0 | D99: 11200000 | E99: 11200000 | F99: 0 | G99: 130434.78 | H99: 8400006 | I99: 8269571.22 | J99: 0.9844720611 | K99: =SUM(K100:K102) -> 11200000
A100: Indoor Facilities | C100: 0 | D100: 11200000 | E100: 11200000 | F100: 0 | G100: 130434.78 | H100: 8400006 | I100: 8269571.22 | J100: 0.9844720611 | K100: 11200000
A101: Outdoor Facilities | I101: 0
A102: Capital Spares | I102: 0
A103: Heritage assets | C103: =SUM(C104:C108) -> 0 | D103: 0 | E103: 0 | F103: 0 | G103: 0 | H103: 0 | I103: 0 | K103: =SUM(K104:K108) -> 0
A104: Monuments | I104: 0
A105: Historic Buildings | I105: 0
A106: Works of Art | I106: 0
A107: Conservation Areas | I107: 0
A108: Other Heritage | I108: 0
I109: 0
A110: Investment properties | C110: =+C111+C114 -> 0 | D110: 0 | E110: 0 | F110: 0 | G110: 0 | H110: 0 | I110: 0 | K110: =+K111+K114 -> 0
A111: Revenue Generating | C111: =SUM(C112:C113) -> 0 | D111: 0 | E111: 0 | F111: 0 | G111: 0 | H111: 0 | I111: 0 | K111: =SUM(K112:K113) -> 0
A112: Improved Property | I112: 0
A113: Unimproved Property | I113: 0
A114: Non-revenue Generating | C114: =SUM(C115:C116) -> 0 | D114: 0 | E114: 0 | F114: 0 | G114: 0 | H114: 0 | I114: 0 | K114: =SUM(K115:K116) -> 0
A115: Improved Property | I115: 0
A116: Unimproved Property | I116: 0
A117: Other assets | C117: =+C118+C130 -> 0 | D117: 1350000 | E117: 0 | F117: 0 | G117: 0 | H117: 472500 | I117: 472500 | J117: 1 | K117: =+K118+K130 -> 0
A118: Operational Buildings | C118: =SUM(C119:C129) -> 0 | D118: 1350000 | E118: 0 | F118: 0 | G118: 0 | H118: 472500 | I118: 472500 | J118: 1 | K118: =SUM(K119:K129) -> 0
A119: Municipal Offices | C119: 0 | D119: 1350000 | E119: 0 | F119: 0 | G119: 0 | H119: 472500 | I119: 472500 | J119: 1 | K119: 0
A120: Pay/Enquiry Points | I120: 0
A121: Building Plan Offices | I121: 0
A122: Workshops | C122: 0 | D122: 0 | E122: 0 | F122: 0 | G122: 0 | H122: 0 | I122: 0 | K122: 0
A123: Yards | I123: 0
A124: Stores | I124: 0
A125: Laboratories | I125: 0
A126: Training Centres | I126: 0
A127: Manufacturing Plant | I127: 0
A128: Depots | I128: 0
A129: Capital Spares | I129: 0
A130: Housing | C130: =SUM(C131:C133) -> 0 | D130: 0 | E130: 0 | F130: 0 | G130: 0 | H130: 0 | I130: 0 | K130: =SUM(K131:K133) -> 0
A131: Staff Housing | I131: 0
A132: Social Housing | I132: 0
A133: Capital Spares | I133: 0
A135: Biological or Cultivated Assets | C135: =SUM(C136:C136) -> 0 | D135: 0 | E135: 0 | F135: 0 | G135: 0 | H135: 0 | I135: =H135-G135 -> 0 | J135: =IF(I135=0,"",I135/H135) ->  | K135: =SUM(K136) -> 0
A136: Biological or Cultivated Assets | I136: =H136-G136 -> 0
A138: Intangible Assets | C138: =SUM(C139:C140) -> 2976569.26 | D138: 0 | E138: 0 | F138: 0 | G138: 0 | H138: 0 | I138: =H138-G138 -> 0 | K138: =SUM(K139:K140) -> 0
A139: Servitudes | I139: 0
A140: Licences and Rights | C140: =SUM(C141:C146) -> 2976569.26 | D140: 0 | E140: 0 | F140: 0 | G140: 0 | H140: 0 | I140: 0 | K140: =SUM(K141:K146) -> 0
A141: Water Rights | I141: 0
A142: Effluent Licenses | I142: 0
A143: Solid Waste Licenses | I143: 0
A144: Computer Software and Applications | C144: 2976569.26 | D144: 0 | E144: 0 | F144: 0 | G144: 0 | H144: 0 | I144: 0 | K144: 0
A145: Load Settlement Software Applications | I145: 0
A146: Unspecified | I146: 0
A148: Computer Equipment | C148: =SUM(C149:C149) -> 2253865 | D148: 600000 | E148: 429000 | F148: 0 | G148: 29000 | H148: 381600 | I148: =H148-G148 -> 352600 | J148: =IF(I148=0,"",I148/H148) -> 0.9240041929 | K148: =SUM(K149) -> 429000
A149: Computer Equipment | C149: 2253865 | D149: 600000 | E149: 429000 | F149: 0 | G149: 29000 | H149: 381600 | I149: =H149-G149 -> 352600 | J149: =IF(I149=0,"",I149/H149) -> 0.9240041929 | K149: 429000
A151: Furniture and Office Equipment | C151: =SUM(C152:C152) -> 325786.29 | D151: 250000 | E151: 250000 | F151: 0 | G151: 24860 | H151: 187506 | I151: =H151-G151 -> 162646 | J151: =IF(I151=0,"",I151/H151) -> 0.867417576 | K151: =SUM(K152) -> 250000
A152: Furniture and Office Equipment | C152: 325786.29 | D152: 250000 | E152: 250000 | F152: 0 | G152: 24860 | H152: 187506 | I152: =H152-G152 -> 162646 | J152: =IF(I152=0,"",I152/H152) -> 0.867417576 | K152: 250000
J153: =IF(I153=0,"",I153/H153) -> 
A154: Machinery and Equipment | C154: =SUM(C155:C155) -> 10530640.58 | D154: 1650000 | E154: 1650000 | F154: -22616 | G154: 603950 | H154: 1237509 | I154: =H154-G154 -> 633559 | J154: =IF(I154=0,"",I154/H154) -> 0.5119631453 | K154: =SUM(K155) -> 1650000
A155: Machinery and Equipment | C155: 10530640.58 | D155: 1650000 | E155: 1650000 | F155: -22616 | G155: 603950 | H155: 1237509 | I155: =H155-G155 -> 633559 | J155: =IF(I155=0,"",I155/H155) -> 0.5119631453 | K155: 1650000
A157: Transport Assets | C157: =SUM(C158:C158) -> 0 | D157: 2800000 | E157: 2800000 | F157: 0 | G157: 0 | H157: 2100006 | I157: =H157-G157 -> 2100006 | J157: =IF(I157=0,"",I157/H157) -> 1 | K157: =SUM(K158) -> 2800000
A158: Transport Assets | C158: 0 | D158: 2800000 | E158: 2800000 | F158: 0 | G158: 0 | H158: 2100006 | I158: =H158-G158 -> 2100006 | J158: =IF(I158=0,"",I158/H158) -> 1 | K158: 2800000
A160: Land | C160: =SUM(C161:C161) -> 0 | D160: 0 | E160: 0 | F160: 0 | G160: 0 | H160: 0 | I160: =H160-G160 -> 0 | J160: =IF(I160=0,"",I160/H160) ->  | K160: =SUM(K161) -> 0
A161: Land | I161: =H161-G161 -> 0 | J161: =IF(I161=0,"",I161/H161) -> 
A163: Zoo's, Marine and Non-biological Animals | C163: =SUM(C164:C164) -> 0 | D163: 0 | E163: 0 | F163: 0 | G163: 0 | H163: 0 | I163: =H163-G163 -> 0 | J163: =IF(I163=0,"",I163/H163) ->  | K163: =SUM(K164) -> 0
A164: Zoo's, Marine and Non-biological Animals | I164: =H164-G164 -> 0 | J164: =IF(I164=0,"",I164/H164) -> 
A166: Living resources | C166: =+C167+C170 -> 0 | D166: 0 | E166: 0 | F166: 0 | G166: 0 | H166: 0 | I166: =H166-G166 -> 0 | J166: =IF(I166=0,"",I166/H166) ->  | K166: 0
A167: Mature | C167: =+C168+C169 -> 0 | D167: 0 | E167: 0 | F167: 0 | G167: 0 | H167: 0 | I167: 0 | K167: 0
A168: Policing and Protection | I168: 0
A169: Zoological plants and animals | I169: 0
A170: Immature | C170: =+C171+C172 -> 0 | D170: =+D171+D172 -> 0 | E170: 0 | F170: 0 | G170: 0 | H170: 0 | I170: 0 | K170: =+K171+K172 -> 0
A171: Policing and Protection | I171: 0
A172: Zoological plants and animals | I172: 0
A173: Total Capital Expenditure on new assets | B173: 1 | C173: =C7+C75+C103+C110+C117+C135+C138+C148+C151+C154+C157+C160+C163+C166 -> 51338056.29 | D173: 63838000 | E173: 58217000 | F173: 14105735.5 | G173: 34816561.32 | H173: 45630142 | I173: =H173-G173 -> 10813580.68 | J173: =IF(I173=0,"",I173/H173) -> 0.2369832792 | K173: =K7+K75+K103+K110+K117+K135+K138+K148+K151+K154+K157+K160+K163+K166 -> 58217000
A175: =head27a -> References
A176: 1. Total Capital Expenditure on new assets (SC13a) plus Total Capital Expenditure on renewal of existing assets (SC13b) plus Total Capital Expenditure on upgrading of existing assets (SC13e) must reconcile to total capital expenditure in Table C5
A178: check balance | C178: =C173+SC13b!C173+SC13e!C173-'C5-Capex'!C40 -> 0 | D178: =D173+SC13b!D173+SC13e!D173-'C5-Capex'!D40 -> 0 | E178: =E173+SC13b!E173+SC13e!E173-'C5-Capex'!E40 -> 0 | F178: =F173+SC13b!F173+SC13e!F173-'C5-Capex'!F40 -> 0 | G178: =G173+SC13b!G173+SC13e!G173-'C5-Capex'!G40 -> 0 | H178: =H173+SC13b!H173+SC13e!H173-'C5-Capex'!H40 -> 0 | K178: =K173+SC13b!K173+SC13e!K173-'C5-Capex'!K40 -> 0

Sheet SC13b
A1: =muni& " - "&S71Sb& " - "&Head57 -> LIM353 Molemole - Supporting Table SC13b Monthly Budget Statement - capital expenditure on renewal of existing assets by asset class - Q3 Third Quarter
A2: =desc -> Description | B2: =head27 -> Ref | C2: =Head1 -> 2024/25 | D2: =Head2 -> Budget Year 2025/26
C3: =Head5 -> Audited Outcome | D3: =Head6 -> Original Budget | E3: =Head7 -> Adjusted Budget | F3: =Head38 -> Monthly actual | G3: =Head39 -> YearTD actual | H3: =Head40 -> YearTD budget | I3: =Head41 -> YTD variance | J3: =Head41 -> YTD variance | K3: =Head8 -> Full Year Forecast
A4: R thousands | B4: 1 | J4: %
A5: Capital expenditure on renewal of existing assets by Asset Class/Sub-class
A7: Infrastructure | C7: =C8+C13+C17+C27+C38+C45+C53+C63+C69 -> 0 | D7: 0 | E7: 0 | F7: 0 | G7: 0 | H7: 0 | I7: =H7-G7 -> 0 | J7: =IF(I7=0,"",I7/H7) ->  | K7: =K8+K13+K17+K27+K38+K45+K53+K63+K69 -> 0
A8: Roads Infrastructure | C8: =SUM(C9:C12) -> 0 | D8: 0 | E8: 0 | F8: 0 | G8: 0 | H8: 0 | I8: 0 | K8: =SUM(K9:K12) -> 0
A9: Roads | C9: 0 | D9: 0 | E9: 0 | F9: 0 | G9: 0 | H9: 0 | I9: 0 | K9: 0
A10: Road Structures | I10: 0
A11: Road Furniture | I11: 0
A12: Capital Spares | I12: 0
A13: Storm water Infrastructure | C13: =SUM(C14:C16) -> 0 | D13: 0 | E13: 0 | F13: 0 | G13: 0 | H13: 0 | I13: 0 | K13: =SUM(K14:K16) -> 0
A14: Drainage Collection | I14: 0
A15: Storm water Conveyance | I15: 0
A16: Attenuation | I16: 0
A17: Electrical Infrastructure | C17: =SUM(C18:C26) -> 0 | D17: 0 | E17: 0 | F17: 0 | G17: 0 | H17: 0 | I17: 0 | K17: =SUM(K18:K26) -> 0
A18: Power Plants | I18: 0
A19: HV Substations | I19: 0
A20: HV Switching Station | I20: 0
A21: HV Transmission Conductors | I21: 0
A22: MV Substations | I22: 0
A23: MV Switching Stations | I23: 0
A24: MV Networks | I24: 0
A25: LV Networks | C25: 0 | D25: 0 | E25: 0 | F25: 0 | G25: 0 | H25: 0 | I25: 0 | K25: 0
A26: Capital Spares | I26: 0
A27: Water Supply Infrastructure | C27: =SUM(C28:C37) -> 0 | D27: 0 | E27: 0 | F27: 0 | G27: 0 | H27: 0 | I27: 0 | K27: =SUM(K28:K37) -> 0
A28: Dams and Weirs | I28: 0
A29: Boreholes | I29: 0
A30: Reservoirs | I30: 0
A31: Pump Stations | I31: 0
A32: Water Treatment Works | I32: 0
A33: Bulk Mains | I33: 0
A34: Distribution | I34: 0
A35: Distribution Points | I35: 0
A36: PRV Stations | I36: 0
A37: Capital Spares | I37: 0
A38: Sanitation Infrastructure | C38: =SUM(C39:C44) -> 0 | D38: 0 | E38: 0 | F38: 0 | G38: 0 | H38: 0 | I38: 0 | K38: =SUM(K39:K44) -> 0
A39: Pump Station | I39: 0
A40: Reticulation | I40: 0
A41: Waste Water Treatment Works | I41: 0
A42: Outfall Sewers | I42: 0
A43: Toilet Facilities | I43: 0
A44: Capital Spares | I44: 0
A45: Solid Waste Infrastructure | C45: =SUM(C46:C52) -> 0 | D45: 0 | E45: 0 | F45: 0 | G45: 0 | H45: 0 | I45: 0 | K45: =SUM(K46:K52) -> 0
A46: Landfill Sites | I46: 0
A47: Waste Transfer Stations | I47: 0
A48: Waste Processing Facilities | I48: 0
A49: Waste Drop-off Points | I49: 0
A50: Waste Separation Facilities | I50: 0
A51: Electricity Generation Facilities | I51: 0
A52: Capital Spares | I52: 0
A53: Rail Infrastructure | C53: =SUM(C54:C62) -> 0 | D53: 0 | E53: 0 | F53: 0 | G53: 0 | H53: 0 | I53: 0 | K53: =SUM(K54:K62) -> 0
A54: Rail Lines | I54: 0
A55: Rail Structures | I55: 0
A56: Rail Furniture | I56: 0
A57: Drainage Collection | I57: 0
A58: Storm water Conveyance | I58: 0
A59: Attenuation | I59: 0
A60: MV Substations | I60: 0
A61: LV Networks | I61: 0
A62: Capital Spares | I62: 0
A63: Coastal Infrastructure | C63: =SUM(C64:C68) -> 0 | D63: 0 | E63: 0 | F63: 0 | G63: 0 | H63: 0 | I63: 0 | K63: =SUM(K64:K68) -> 0
A64: Sand Pumps | I64: 0
A65: Piers | I65: 0
A66: Revetments | I66: 0
A67: Promenades | I67: 0
A68: Capital Spares | I68: 0
A69: Information and Communication Infrastructure | C69: =SUM(C70:C73) -> 0 | D69: 0 | E69: 0 | F69: 0 | G69: 0 | H69: 0 | I69: 0 | K69: =SUM(K70:K73) -> 0
A70: Data Centres | I70: 0
A71: Core Layers | I71: 0
A72: Distribution Layers | I72: 0
A73: Capital Spares | I73: 0
A75: Community Assets | C75: =+C76+C99 -> 0 | D75: 0 | E75: 0 | F75: 0 | G75: 0 | H75: 0 | I75: 0 | K75: =+K76+K99 -> 0
A76: Community Facilities | C76: =SUM(C77:C98) -> 0 | D76: 0 | E76: 0 | F76: 0 | G76: 0 | H76: 0 | I76: 0 | K76: =SUM(K77:K98) -> 0
A77: Halls | I77: 0
A78: Centres | I78: 0
A79: Crèches | I79: 0
A80: Clinics/Care Centres | I80: 0
A81: Fire/Ambulance Stations | I81: 0
A82: Testing Stations | I82: 0
A83: Museums | I83: 0
A84: Galleries | I84: 0
A85: Theatres | I85: 0
A86: Libraries | I86: 0
A87: Cemeteries/Crematoria | I87: 0
A88: Police | I88: 0
A89: Purls | I89: 0
A90: Public Open Space | I90: 0
A91: Nature Reserves | I91: 0
A92: Public Ablution Facilities | I92: 0
A93: Markets | I93: 0
A94: Stalls | I94: 0
A95: Abattoirs | I95: 0
A96: Airports | I96: 0
A97: Taxi Ranks/Bus Terminals | I97: 0
A98: Capital Spares | I98: 0
A99: Sport and Recreation Facilities | C99: =SUM(C100:C102) -> 0 | D99: 0 | E99: 0 | F99: 0 | G99: 0 | H99: 0 | I99: 0 | K99: =SUM(K100:K102) -> 0
A100: Indoor Facilities | C100: 0 | D100: 0 | E100: 0 | F100: 0 | G100: 0 | H100: 0 | I100: 0 | K100: 0
A101: Outdoor Facilities | C101: 0 | D101: 0 | E101: 0 | F101: 0 | G101: 0 | H101: 0 | I101: =H101-G101 -> 0 | J101: =IF(I101=0,"",I101/H101) ->  | K101: 0
A102: Capital Spares | I102: 0
A103: Heritage assets | C103: =SUM(C104:C108) -> 0 | D103: 0 | E103: 0 | F103: 0 | G103: 0 | H103: 0 | I103: 0 | K103: =SUM(K104:K108) -> 0
A104: Monuments | I104: 0
A105: Historic Buildings | I105: 0
A106: Works of Art | I106: 0
A107: Conservation Areas | I107: 0
A108: Other Heritage | I108: 0
I109: 0
A110: Investment properties | C110: =+C111+C114 -> 0 | D110: 0 | E110: 0 | F110: 0 | G110: 0 | H110: 0 | I110: 0 | K110: =+K111+K114 -> 0
A111: Revenue Generating | C111: =SUM(C112:C113) -> 0 | D111: 0 | E111: 0 | F111: 0 | G111: 0 | H111: 0 | I111: 0 | K111: =SUM(K112:K113) -> 0
A112: Improved Property | I112: 0
A113: Unimproved Property | I113: 0
A114: Non-revenue Generating | C114: =SUM(C115:C116) -> 0 | D114: 0 | E114: 0 | F114: 0 | G114: 0 | H114: 0 | I114: 0 | K114: =SUM(K115:K116) -> 0
A115: Improved Property | I115: 0
A116: Unimproved Property | I116: =H116-G116 -> 0 | J116: =IF(I116=0,"",I116/H116) -> 
A117: Other assets | C117: =+C118+C130 -> 0 | D117: 0 | E117: 0 | F117: 0 | G117: 0 | H117: 0 | I117: 0 | K117: =+K118+K130 -> 0
A118: Operational Buildings | C118: =SUM(C119:C129) -> 0 | D118: 0 | E118: 0 | F118: 0 | G118: 0 | H118: 0 | I118: 0 | K118: =SUM(K119:K129) -> 0
A119: Municipal Offices | C119: 0 | D119: 0 | E119: 0 | F119: 0 | G119: 0 | H119: 0 | I119: 0 | K119: 0
A120: Pay/Enquiry Points | I120: 0
A121: Building Plan Offices | I121: 0
A122: Workshops | I122: 0
A123: Yards | I123: 0
A124: Stores | I124: 0
A125: Laboratories | I125: 0
A126: Training Centres | I126: 0
A127: Manufacturing Plant | I127: 0
A128: Depots | I128: 0
A129: Capital Spares | I129: 0
A130: Housing | C130: =SUM(C131:C133) -> 0 | D130: 0 | E130: 0 | F130: 0 | G130: 0 | H130: 0 | I130: 0 | K130: =SUM(K131:K133) -> 0
A131: Staff Housing | I131: 0
A132: Social Housing | I132: 0
A133: Capital Spares | I133: 0
A135: Biological or Cultivated Assets | C135: =SUM(C136:C136) -> 0 | D135: 0 | E135: 0 | F135: 0 | G135: 0 | H135: 0 | I135: =H135-G135 -> 0 | K135: =SUM(K136) -> 0
A136: Biological or Cultivated Assets | I136: =H136-G136 -> 0
J137: =IF(I137=0,"",I137/H137) -> 
A138: Intangible Assets | C138: =SUM(C139:C140) -> 0 | D138: 0 | E138: 0 | F138: 0 | G138: 0 | H138: 0 | I138: =H138-G138 -> 0 | K138: =SUM(K139:K140) -> 0
A139: Servitudes | I139: 0
A140: Licences and Rights | C140: =SUM(C141:C146) -> 0 | D140: 0 | E140: 0 | F140: 0 | G140: 0 | H140: 0 | I140: 0 | K140: =SUM(K141:K146) -> 0
A141: Water Rights | I141: 0
A142: Effluent Licenses | I142: 0
A143: Solid Waste Licenses | I143: 0
A144: Computer Software and Applications | C144: 0 | D144: 0 | E144: 0 | F144: 0 | G144: 0 | H144: 0 | I144: 0 | K144: 0
A145: Load Settlement Software Applications | I145: 0
A146: Unspecified | I146: 0
A148: Computer Equipment | C148: =SUM(C149:C149) -> 0 | D148: 0 | E148: 0 | F148: 0 | G148: 0 | H148: 0 | I148: =H148-G148 -> 0 | J148: =IF(I148=0,"",I148/H148) ->  | K148: =SUM(K149) -> 0
A149: Computer Equipment | C149: 0 | D149: 0 | E149: 0 | F149: 0 | G149: 0 | H149: 0 | I149: =H149-G149 -> 0 | J149: =IF(I149=0,"",I149/H149) ->  | K149: 0
A151: Furniture and Office Equipment | C151: =SUM(C152:C152) -> 0 | D151: 0 | E151: 0 | F151: 0 | G151: 0 | H151: 0 | I151: =H151-G151 -> 0 | J151: =IF(I151=0,"",I151/H151) ->  | K151: =SUM(K152) -> 0
A152: Furniture and Office Equipment | C152: 0 | D152: 0 | E152: 0 | F152: 0 | G152: 0 | H152: 0 | I152: =H152-G152 -> 0 | J152: =IF(I152=0,"",I152/H152) ->  | K152: 0
J153: =IF(I153=0,"",I153/H153) -> 
A154: Machinery and Equipment | C154: =SUM(C155:C155) -> 0 | D154: 0 | E154: 0 | F154: 0 | G154: 0 | H154: 0 | I154: =H154-G154 -> 0 | J154: =IF(I154=0,"",I154/H154) ->  | K154: =SUM(K155) -> 0
A155: Machinery and Equipment | I155: =H155-G155 -> 0 | J155: =IF(I155=0,"",I155/H155) -> 
A157: Transport Assets | C157: =SUM(C158:C158) -> 0 | D157: 0 | E157: 0 | F157: 0 | G157: 0 | H157: 0 | I157: =H157-G157 -> 0 | J157: =IF(I157=0,"",I157/H157) ->  | K157: =SUM(K158) -> 0
A158: Transport Assets | I158: =H158-G158 -> 0 | J158: =IF(I158=0,"",I158/H158) -> 
A160: Land | C160: =SUM(C161:C161) -> 0 | D160: 0 | E160: 0 | F160: 0 | G160: 0 | H160: 0 | I160: =H160-G160 -> 0 | J160: =IF(I160=0,"",I160/H160) ->  | K160: =SUM(K161) -> 0
A161: Land | I161: =H161-G161 -> 0 | J161: =IF(I161=0,"",I161/H161) -> 
J162: .
A163: Zoo's, Marine and Non-biological Animals | C163: =SUM(C164:C164) -> 0 | D163: 0 | E163: 0 | F163: 0 | G163: 0 | H163: 0 | I163: =H163-G163 -> 0 | J163: =IF(I163=0,"",I163/H163) ->  | K163: =SUM(K164) -> 0
A164: Zoo's, Marine and Non-biological Animals | I164: =H164-G164 -> 0 | J164: =IF(I164=0,"",I164/H164) -> 
A166: Living resources | C166: =+C167+C170 -> 0 | D166: 0 | E166: 0 | F166: 0 | G166: 0 | H166: 0 | I166: =H166-G166 -> 0 | J166: =IF(I166=0,"",I166/H166) ->  | K166: =+K167+K170 -> 0
A167: Mature | C167: =+C168+C169 -> 0 | D167: 0 | E167: 0 | F167: 0 | G167: 0 | H167: 0 | I167: 0 | K167: =+K168+K169 -> 0
A168: Policing and Protection | I168: 0
A169: Zoological plants and animals | I169: 0
A170: Immature | C170: =+C171+C172 -> 0 | D170: 0 | E170: 0 | F170: 0 | G170: 0 | H170: 0 | I170: 0 | K170: =+K171+K172 -> 0
A171: Policing and Protection | I171: 0
A172: Zoological plants and animals | I172: 0
A173: Total Capital Expenditure on renewal of existing assets | B173: 1 | C173: =C7+C75+C103+C110+C117+C135+C138+C148+C151+C154+C157+C160+C163+C166 -> 0 | D173: 0 | E173: 0 | F173: 0 | G173: 0 | H173: 0 | I173: =H173-G173 -> 0 | J173: =IF(I173=0,"",I173/H173) ->  | K173: =K7+K75+K103+K110+K117+K135+K138+K148+K151+K154+K157+K160+K163+K166 -> 0
A175: =head27a -> References
A176: 1. Total Capital Expenditure on new assets (SC13a) plus Total Capital Expenditure on renewal of existing assets (SC13b) plus Total Capital Expenditure on upgrading of existing assets (SC13e) must reconcile to total capital expenditure in Table C5
A178: check balance | C178: =C173+SC13a!C173+SC13e!C173-'C5-Capex'!C40 -> 0 | D178: =D173+SC13a!D173+SC13e!D173-'C5-Capex'!D40 -> 0 | E178: =E173+SC13a!E173+SC13e!E173-'C5-Capex'!E40 -> 0 | F178: =F173+SC13a!F173+SC13e!F173-'C5-Capex'!F40 -> 0 | G178: =G173+SC13a!G173+SC13e!G173-'C5-Capex'!G40 -> 0 | H178: =H173+SC13a!H173+SC13e!H173-'C5-Capex'!H40 -> 0 | K178: =K173+SC13a!K173+SC13e!K173-'C5-Capex'!K40 -> 0

Sheet SC13c
A1: =muni& " - "&S71Sc& " - "&Head57 -> LIM353 Molemole - Supporting Table SC13c Monthly Budget Statement - expenditure on repairs and maintenance by asset class - Q3 Third Quarter
A2: =desc -> Description | B2: =head27 -> Ref | C2: =Head1 -> 2024/25 | D2: =Head2 -> Budget Year 2025/26
C3: =Head5 -> Audited Outcome | D3: =Head6 -> Original Budget | E3: =Head7 -> Adjusted Budget | F3: =Head38 -> Monthly actual | G3: =Head39 -> YearTD actual | H3: =Head40 -> YearTD budget | I3: =Head41 -> YTD variance | J3: =Head41 -> YTD variance | K3: =Head8 -> Full Year Forecast
A4: R thousands | B4: 1 | J4: %
A5: Repairs and maintenance expenditure by Asset Class/Sub-class
A7: Infrastructure | C7: =C8+C13+C17+C27+C38+C45+C53+C63+C69 -> 5036592.96 | D7: 4468400 | E7: 4308400 | F7: 303616 | G7: 1312194.47 | H7: 3296312 | I7: =H7-G7 -> 1984117.53 | J7: =IF(I7=0,"",I7/H7) -> 0.601920428 | K7: =K8+K13+K17+K27+K38+K45+K53+K63+K69 -> 4308400
A8: Roads Infrastructure | C8: =SUM(C9:C12) -> 5036592.96 | D8: 4468400 | E8: 4308400 | F8: 303616 | G8: 1312194.47 | H8: 3296312 | I8: 1984117.53 | J8: 0.601920428 | K8: =SUM(K9:K12) -> 4308400
A9: Roads | C9: 2944234 | D9: 2254000 | E9: 2254000 | F9: 28990 | G9: 237769 | H9: 1690506 | I9: 1452737 | J9: 0.8593503957 | K9: 2254000
A10: Road Structures | C10: 2092358.96 | D10: 2214400 | E10: 2054400 | F10: 274626 | G10: 1074425.47 | H10: 1605806 | I10: 531380.53 | J10: 0.3309120342 | K10: 2054400
A11: Road Furniture | I11: 0
A12: Capital Spares | I12: 0
A13: Storm water Infrastructure | C13: =SUM(C14:C16) -> 0 | D13: 0 | E13: 0 | F13: 0 | G13: 0 | H13: 0 | I13: 0 | K13: =SUM(K14:K16) -> 0
A14: Drainage Collection | I14: 0
A15: Storm water Conveyance | I15: 0
A16: Attenuation | I16: 0
A17: Electrical Infrastructure | C17: =SUM(C18:C26) -> 0 | D17: 0 | E17: 0 | F17: 0 | G17: 0 | H17: 0 | I17: 0 | K17: =SUM(K18:K26) -> 0
A18: Power Plants | I18: 0
A19: HV Substations | I19: 0
A20: HV Switching Station | I20: 0
A21: HV Transmission Conductors | I21: 0
A22: MV Substations | I22: 0
A23: MV Switching Stations | I23: 0
A24: MV Networks | C24: 0 | D24: 0 | E24: 0 | F24: 0 | G24: 0 | H24: 0 | I24: 0 | K24: 0
A25: LV Networks | I25: 0
A26: Capital Spares | I26: 0
A27: Water Supply Infrastructure | C27: =SUM(C28:C37) -> 0 | D27: 0 | E27: 0 | F27: 0 | G27: 0 | H27: 0 | I27: 0 | K27: =SUM(K28:K37) -> 0
A28: Dams and Weirs | I28: 0
A29: Boreholes | I29: 0
A30: Reservoirs | I30: 0
A31: Pump Stations | I31: 0
A32: Water Treatment Works | I32: 0
A33: Bulk Mains | I33: 0
A34: Distribution | I34: 0
A35: Distribution Points | I35: 0
A36: PRV Stations | I36: 0
A37: Capital Spares | I37: 0
A38: Sanitation Infrastructure | C38: =SUM(C39:C44) -> 0 | D38: 0 | E38: 0 | F38: 0 | G38: 0 | H38: 0 | I38: 0 | K38: =SUM(K39:K44) -> 0
A39: Pump Station | I39: 0
A40: Reticulation | I40: 0
A41: Waste Water Treatment Works | I41: 0
A42: Outfall Sewers | I42: 0
A43: Toilet Facilities | I43: 0
A44: Capital Spares | I44: 0
A45: Solid Waste Infrastructure | C45: =SUM(C46:C52) -> 0 | D45: 0 | E45: 0 | F45: 0 | G45: 0 | H45: 0 | I45: 0 | K45: =SUM(K46:K52) -> 0
A46: Landfill Sites | I46: 0
A47: Waste Transfer Stations | I47: 0
A48: Waste Processing Facilities | I48: 0
A49: Waste Drop-off Points | I49: 0
A50: Waste Separation Facilities | I50: 0
A51: Electricity Generation Facilities | I51: 0
A52: Capital Spares | I52: 0
A53: Rail Infrastructure | C53: =SUM(C54:C62) -> 0 | D53: 0 | E53: 0 | F53: 0 | G53: 0 | H53: 0 | I53: 0 | K53: =SUM(K54:K62) -> 0
A54: Rail Lines | I54: 0
A55: Rail Structures | I55: 0
A56: Rail Furniture | I56: 0
A57: Drainage Collection | I57: 0
A58: Storm water Conveyance | I58: 0
A59: Attenuation | I59: 0
A60: MV Substations | I60: 0
A61: LV Networks | I61: 0
A62: Capital Spares | I62: 0
A63: Coastal Infrastructure | C63: =SUM(C64:C68) -> 0 | D63: 0 | E63: 0 | F63: 0 | G63: 0 | H63: 0 | I63: 0 | K63: =SUM(K64:K68) -> 0
A64: Sand Pumps | I64: 0
A65: Piers | I65: 0
A66: Revetments | I66: 0
A67: Promenades | I67: 0
A68: Capital Spares | I68: 0
A69: Information and Communication Infrastructure | C69: =SUM(C70:C73) -> 0 | D69: 0 | E69: 0 | F69: 0 | G69: 0 | H69: 0 | I69: 0 | K69: =SUM(K70:K73) -> 0
A70: Data Centres | I70: 0
A71: Core Layers | I71: 0
A72: Distribution Layers | I72: 0
A73: Capital Spares | I73: 0
A75: Community Assets | C75: =+C76+C99 -> 203887 | D75: 208800 | E75: 208800 | F75: 0 | G75: 59450 | H75: 156600 | I75: 97150 | J75: 0.6203703704 | K75: =+K76+K99 -> 208800
A76: Community Facilities | C76: =SUM(C77:C98) -> 143987 | D76: 208800 | E76: 208800 | F76: 0 | G76: 59450 | H76: 156600 | I76: 97150 | J76: 0.6203703704 | K76: =SUM(K77:K98) -> 208800
A77: Halls | C77: 0 | D77: 208800 | E77: 208800 | F77: 0 | G77: 59450 | H77: 156600 | I77: 97150 | J77: 0.6203703704 | K77: 208800
A78: Centres | I78: 0
A79: Crèches | I79: 0
A80: Clinics/Care Centres | I80: 0
A81: Fire/Ambulance Stations | I81: 0
A82: Testing Stations | I82: 0
A83: Museums | I83: 0
A84: Galleries | I84: 0
A85: Theatres | I85: 0
A86: Libraries | I86: 0
A87: Cemeteries/Crematoria | C87: 143987 | D87: 0 | E87: 0 | F87: 0 | G87: 0 | H87: 0 | I87: 0 | K87: 0
A88: Police | I88: 0
A89: Purls | I89: 0
A90: Public Open Space | I90: 0
A91: Nature Reserves | I91: 0
A92: Public Ablution Facilities | I92: 0
A93: Markets | I93: 0
A94: Stalls | I94: 0
A95: Abattoirs | I95: 0
A96: Airports | I96: 0
A97: Taxi Ranks/Bus Terminals | I97: 0
A98: Capital Spares | I98: 0
A99: Sport and Recreation Facilities | C99: =SUM(C100:C102) -> 59900 | D99: 0 | E99: 0 | F99: 0 | G99: 0 | H99: 0 | I99: 0 | K99: =SUM(K100:K102) -> 0
A100: Indoor Facilities | C100: 0 | D100: 0 | E100: 0 | F100: 0 | G100: 0 | H100: 0 | I100: 0 | K100: 0
A101: Outdoor Facilities | C101: 59900 | D101: 0 | E101: 0 | F101: 0 | G101: 0 | H101: 0 | I101: =H101-G101 -> 0 | J101: =IF(I101=0,"",I101/H101) ->  | K101: 0
A102: Capital Spares | I102: 0
A103: Heritage assets | C103: =SUM(C104:C108) -> 0 | D103: 0 | E103: 0 | F103: 0 | G103: 0 | H103: 0 | I103: 0 | K103: =SUM(K104:K108) -> 0
A104: Monuments | I104: 0
A105: Historic Buildings | I105: 0
A106: Works of Art | I106: 0
A107: Conservation Areas | I107: 0
A108: Other Heritage | I108: 0
I109: 0
A110: Investment properties | C110: =+C111+C114 -> 0 | D110: 0 | E110: 0 | F110: 0 | G110: 0 | H110: 0 | I110: 0 | K110: =+K111+K114 -> 0
A111: Revenue Generating | C111: =SUM(C112:C113) -> 0 | D111: 0 | E111: 0 | F111: 0 | G111: 0 | H111: 0 | I111: 0 | K111: =SUM(K112:K113) -> 0
A112: Improved Property | I112: 0
A113: Unimproved Property | I113: 0
A114: Non-revenue Generating | C114: =SUM(C115:C116) -> 0 | D114: 0 | E114: 0 | F114: 0 | G114: 0 | H114: 0 | I114: 0 | K114: =SUM(K115:K116) -> 0
A115: Improved Property | I115: 0
A116: Unimproved Property | I116: =H116-G116 -> 0 | J116: =IF(I116=0,"",I116/H116) -> 
A117: Other assets | C117: =+C118+C130 -> 1141997.56 | D117: 978600 | E117: 1038600 | F117: 0 | G117: 408835 | H117: 748950 | I117: 340115 | J117: 0.4541224381 | K117: =+K118+K130 -> 1038600
A118: Operational Buildings | C118: =SUM(C119:C129) -> 1141997.56 | D118: 978600 | E118: 1038600 | F118: 0 | G118: 408835 | H118: 748950 | I118: 340115 | J118: 0.4541224381 | K118: =SUM(K119:K129) -> 1038600
A119: Municipal Offices | C119: 1141997.56 | D119: 978600 | E119: 1038600 | F119: 0 | G119: 408835 | H119: 748950 | I119: 340115 | J119: 0.4541224381 | K119: 1038600
A120: Pay/Enquiry Points | I120: 0
A121: Building Plan Offices | I121: 0
A122: Workshops | I122: 0
A123: Yards | I123: 0
A124: Stores | I124: 0
A125: Laboratories | I125: 0
A126: Training Centres | I126: 0
A127: Manufacturing Plant | I127: 0
A128: Depots | I128: 0
A129: Capital Spares | I129: 0
A130: Housing | C130: =SUM(C131:C133) -> 0 | D130: 0 | E130: 0 | F130: 0 | G130: 0 | H130: 0 | I130: 0 | K130: =SUM(K131:K133) -> 0
A131: Staff Housing | I131: 0
A132: Social Housing | I132: 0
A133: Capital Spares | I133: 0
A135: Biological or Cultivated Assets | C135: =SUM(C136:C136) -> 0 | D135: 0 | E135: 0 | F135: 0 | G135: 0 | H135: 0 | I135: =H135-G135 -> 0 | K135: =SUM(K136) -> 0
A136: Biological or Cultivated Assets | I136: =H136-G136 -> 0
A138: Intangible Assets | C138: =SUM(C139:C140) -> 0 | D138: 0 | E138: 0 | F138: 0 | G138: 0 | H138: 0 | I138: =H138-G138 -> 0 | K138: =SUM(K139:K140) -> 0
A139: Servitudes | I139: 0
A140: Licences and Rights | C140: =SUM(C141:C146) -> 0 | D140: 0 | E140: 0 | F140: 0 | G140: 0 | H140: 0 | I140: 0 | K140: =SUM(K141:K146) -> 0
A141: Water Rights | I141: 0
A142: Effluent Licenses | I142: 0
A143: Solid Waste Licenses | I143: 0
A144: Computer Software and Applications | I144: 0
A145: Load Settlement Software Applications | I145: 0
A146: Unspecified | I146: 0
A148: Computer Equipment | C148: =SUM(C149:C149) -> 2889451.52 | D148: 3508400 | E148: 3608400 | F148: 563787.78 | G148: 1910836.64 | H148: 2671303 | I148: =H148-G148 -> 760466.36 | J148: =IF(I148=0,"",I148/H148) -> 0.2846799334 | K148: =SUM(K149) -> 3608400
A149: Computer Equipment | C149: 2889451.52 | D149: 3508400 | E149: 3608400 | F149: 563787.78 | G149: 1910836.64 | H149: 2671303 | I149: =H149-G149 -> 760466.36 | J149: =IF(I149=0,"",I149/H149) -> 0.2846799334 | K149: 3608400
A151: Furniture and Office Equipment | C151: =SUM(C152:C152) -> 258056.2 | D151: 208800 | E151: 208800 | F151: 0 | G151: 192070.18 | H151: 156600 | I151: =H151-G151 -> -35470.18 | J151: =IF(I151=0,"",I151/H151) -> -0.226501788 | K151: =SUM(K152) -> 208800
A152: Furniture and Office Equipment | C152: 258056.2 | D152: 208800 | E152: 208800 | F152: 0 | G152: 192070.18 | H152: 156600 | I152: =H152-G152 -> -35470.18 | J152: =IF(I152=0,"",I152/H152) -> -0.226501788 | K152: 208800
J153: =IF(I153=0,"",I153/H153) -> 
A154: Machinery and Equipment | C154: =SUM(C155:C155) -> 3922872.23 | D154: 3837000 | E154: 4577000 | F154: 195750.43 | G154: 3421035.43 | H154: 3173759 | I154: =H154-G154 -> -247276.43 | J154: =IF(I154=0,"",I154/H154) -> -0.07791279363 | K154: =SUM(K155) -> 4577000
A155: Machinery and Equipment | C155: 3922872.23 | D155: 3837000 | E155: 4577000 | F155: 195750.43 | G155: 3421035.43 | H155: 3173759 | I155: =H155-G155 -> -247276.43 | J155: =IF(I155=0,"",I155/H155) -> -0.07791279363 | K155: 4577000
A157: Transport Assets | C157: =SUM(C158:C158) -> 997427.68 | D157: 0 | E157: 0 | F157: 0 | G157: 0 | H157: 0 | I157: =H157-G157 -> 0 | J157: =IF(I157=0,"",I157/H157) ->  | K157: =SUM(K158) -> 0
A158: Transport Assets | C158: 997427.68 | D158: 0 | E158: 0 | F158: 0 | G158: 0 | H158: 0 | I158: =H158-G158 -> 0 | J158: =IF(I158=0,"",I158/H158) ->  | K158: 0
A160: Land | C160: =SUM(C161:C161) -> 0 | D160: 0 | E160: 0 | F160: 0 | G160: 0 | H160: 0 | I160: =H160-G160 -> 0 | J160: =IF(I160=0,"",I160/H160) ->  | K160: =SUM(K161) -> 0
A161: Land | I161: =H161-G161 -> 0 | J161: =IF(I161=0,"",I161/H161) -> 
A163: Zoo's, Marine and Non-biological Animals | C163: =SUM(C164:C164) -> 0 | D163: 0 | E163: 0 | F163: 0 | G163: 0 | H163: 0 | I163: =H163-G163 -> 0 | J163: =IF(I163=0,"",I163/H163) ->  | K163: =SUM(K164) -> 0
A164: Zoo's, Marine and Non-biological Animals | I164: =H164-G164 -> 0 | J164: =IF(I164=0,"",I164/H164) -> 
A166: Living resources | C166: =+C167+C170 -> 0 | D166: 0 | E166: 0 | F166: 0 | G166: 0 | H166: 0 | I166: =H166-G166 -> 0 | J166: =IF(I166=0,"",I166/H166) ->  | K166: =+K167+K170 -> 0
A167: Mature | C167: =+C168+C169 -> 0 | D167: 0 | E167: 0 | F167: 0 | G167: 0 | H167: 0 | I167: 0 | K167: =+K168+K169 -> 0
A168: Policing and Protection | I168: 0
A169: Zoological plants and animals | I169: 0
A170: Immature | C170: =+C171+C172 -> 0 | D170: 0 | E170: 0 | F170: 0 | G170: 0 | H170: 0 | I170: 0 | K170: =+K171+K172 -> 0
A171: Policing and Protection | I171: 0
A172: Zoological plants and animals | I172: 0
A173: Total Repairs and Maintenance Expenditure | B173: 1 | C173: =C7+C75+C103+C110+C117+C135+C138+C148+C151+C154+C157+C160+C163+C166 -> 14450285.15 | D173: 13210000 | E173: 13950000 | F173: 1063154.21 | G173: 7304421.72 | H173: 10203524 | I173: =H173-G173 -> 2899102.28 | J173: =IF(I173=0,"",I173/H173) -> 0.2841275504 | K173: =K7+K75+K103+K110+K117+K135+K138+K148+K151+K154+K157+K160+K163+K166 -> 13950000

Sheet SC13d
A1: =muni& " - "&S71Sd& " - "&Head57 -> LIM353 Molemole - Supporting Table SC13d Monthly Budget Statement - depreciation by asset class - Q3 Third Quarter
A2: =desc -> Description | B2: =head27 -> Ref | C2: =Head1 -> 2024/25 | D2: =Head2 -> Budget Year 2025/26
C3: =Head5 -> Audited Outcome | D3: =Head6 -> Original Budget | E3: =Head7 -> Adjusted Budget | F3: =Head38 -> Monthly actual | G3: =Head39 -> YearTD actual | H3: =Head40 -> YearTD budget | I3: =Head41 -> YTD variance | J3: =Head41 -> YTD variance | K3: =Head8 -> Full Year Forecast
A4: R thousands | B4: 1 | J4: %
A5: Depreciation by Asset Class/Sub-class
A7: Infrastructure | C7: =C8+C13+C17+C27+C38+C45+C53+C63+C69 -> 16334420.75 | D7: 9573765 | E7: 9573765 | F7: 0 | G7: 7086871.54 | H7: 7180353 | I7: =H7-G7 -> 93481.46 | J7: =IF(I7=0,"",I7/H7) -> 0.01301906188 | K7: =K8+K13+K17+K27+K38+K45+K53+K63+K69 -> 9573765
A8: Roads Infrastructure | C8: =SUM(C9:C12) -> 12559560.83 | D8: 8573673 | E8: 8573673 | F8: 0 | G8: 6420851.39 | H8: 6430266 | I8: 9414.61 | J8: 0.00146410895 | K8: =SUM(K9:K12) -> 8573673
A9: Roads | C9: 12345248.61 | D9: 8380334 | E9: 8380334 | F9: 0 | G9: 6313106.79 | H9: 6285258 | I9: -27848.79 | J9: -0.004430810955 | K9: 8380334
A10: Road Structures | C10: 0 | D10: 0 | E10: 0 | F10: 0 | G10: 0 | H10: 0 | I10: 0 | K10: 0
A11: Road Furniture | C11: 214312.22 | D11: 193339 | E11: 193339 | F11: 0 | G11: 107744.6 | H11: 145008 | I11: 37263.4 | J11: 0.2569747876 | K11: 193339
A12: Capital Spares | C12: 0 | D12: 0 | E12: 0 | F12: 0 | G12: 0 | H12: 0 | I12: 0 | K12: 0
A13: Storm water Infrastructure | C13: =SUM(C14:C16) -> 0 | D13: 0 | E13: 0 | F13: 0 | G13: 0 | H13: 0 | I13: 0 | K13: =SUM(K14:K16) -> 0
A14: Drainage Collection | C14: 0 | D14: 0 | E14: 0 | F14: 0 | G14: 0 | H14: 0 | I14: 0 | K14: 0
A15: Storm water Conveyance | C15: 0 | D15: 0 | E15: 0 | F15: 0 | G15: 0 | H15: 0 | I15: 0 | K15: 0
A16: Attenuation | C16: 0 | D16: 0 | E16: 0 | F16: 0 | G16: 0 | H16: 0 | I16: 0 | K16: 0
A17: Electrical Infrastructure | C17: =SUM(C18:C26) -> 1333393.22 | D17: 1000092 | E17: 1000092 | F17: 0 | G17: 666020.15 | H17: 750087 | I17: 84066.85 | J17: 0.1120761325 | K17: =SUM(K18:K26) -> 1000092
A18: Power Plants | C18: 77146.14 | D18: 0 | E18: 0 | F18: 0 | G18: 0 | H18: 0 | I18: 0 | K18: 0
A19: HV Substations | C19: 0 | D19: 0 | E19: 0 | F19: 0 | G19: 0 | H19: 0 | I19: 0 | K19: 0
A20: HV Switching Station | C20: 0 | D20: 0 | E20: 0 | F20: 0 | G20: 0 | H20: 0 | I20: 0 | K20: 0
A21: HV Transmission Conductors | C21: 0 | D21: 0 | E21: 0 | F21: 0 | G21: 0 | H21: 0 | I21: 0 | K21: 0
A22: MV Substations | C22: 0 | D22: 0 | E22: 0 | F22: 0 | G22: 0 | H22: 0 | I22: 0 | K22: 0
A23: MV Switching Stations | C23: 0 | D23: 0 | E23: 0 | F23: 0 | G23: 0 | H23: 0 | I23: 0 | K23: 0
A24: MV Networks | C24: 300076.29 | D24: 160827 | E24: 160827 | F24: 0 | G24: 201317.49 | H24: 120627 | I24: -80690.49 | J24: -0.6689256137 | K24: 160827
A25: LV Networks | C25: 956170.79 | D25: 839265 | E25: 839265 | F25: 0 | G25: 464702.66 | H25: 629460 | I25: 164757.34 | J25: 0.2617439392 | K25: 839265
A26: Capital Spares | C26: 0 | D26: 0 | E26: 0 | F26: 0 | G26: 0 | H26: 0 | I26: 0 | K26: 0
A27: Water Supply Infrastructure | C27: =SUM(C28:C37) -> 0 | D27: 0 | E27: 0 | F27: 0 | G27: 0 | H27: 0 | I27: 0 | K27: =SUM(K28:K37) -> 0
A28: Dams and Weirs | C28: 0 | D28: 0 | E28: 0 | F28: 0 | G28: 0 | H28: 0 | I28: 0 | K28: 0
A29: Boreholes | C29: 0 | D29: 0 | E29: 0 | F29: 0 | G29: 0 | H29: 0 | I29: 0 | K29: 0
A30: Reservoirs | C30: 0 | D30: 0 | E30: 0 | F30: 0 | G30: 0 | H30: 0 | I30: 0 | K30: 0
A31: Pump Stations | C31: 0 | D31: 0 | E31: 0 | F31: 0 | G31: 0 | H31: 0 | I31: 0 | K31: 0
A32: Water Treatment Works | C32: 0 | D32: 0 | E32: 0 | F32: 0 | G32: 0 | H32: 0 | I32: 0 | K32: 0
A33: Bulk Mains | C33: 0 | D33: 0 | E33: 0 | F33: 0 | G33: 0 | H33: 0 | I33: 0 | K33: 0
A34: Distribution | C34: 0 | D34: 0 | E34: 0 | F34: 0 | G34: 0 | H34: 0 | I34: 0 | K34: 0
A35: Distribution Points | C35: 0 | D35: 0 | E35: 0 | F35: 0 | G35: 0 | H35: 0 | I35: 0 | K35: 0
A36: PRV Stations | C36: 0 | D36: 0 | E36: 0 | F36: 0 | G36: 0 | H36: 0 | I36: 0 | K36: 0
A37: Capital Spares | C37: 0 | D37: 0 | E37: 0 | F37: 0 | G37: 0 | H37: 0 | I37: 0 | K37: 0
A38: Sanitation Infrastructure | C38: =SUM(C39:C44) -> 0 | D38: 0 | E38: 0 | F38: 0 | G38: 0 | H38: 0 | I38: 0 | K38: =SUM(K39:K44) -> 0
A39: Pump Station | C39: 0 | D39: 0 | E39: 0 | F39: 0 | G39: 0 | H39: 0 | I39: 0 | K39: 0
A40: Reticulation | C40: 0 | D40: 0 | E40: 0 | F40: 0 | G40: 0 | H40: 0 | I40: 0 | K40: 0
A41: Waste Water Treatment Works | C41: 0 | D41: 0 | E41: 0 | F41: 0 | G41: 0 | H41: 0 | I41: 0 | K41: 0
A42: Outfall Sewers | C42: 0 | D42: 0 | E42: 0 | F42: 0 | G42: 0 | H42: 0 | I42: 0 | K42: 0
A43: Toilet Facilities | C43: 0 | D43: 0 | E43: 0 | F43: 0 | G43: 0 | H43: 0 | I43: 0 | K43: 0
A44: Capital Spares | C44: 0 | D44: 0 | E44: 0 | F44: 0 | G44: 0 | H44: 0 | I44: 0 | K44: 0
A45: Solid Waste Infrastructure | C45: =SUM(C46:C52) -> 2441466.7 | D45: 0 | E45: 0 | F45: 0 | G45: 0 | H45: 0 | I45: 0 | K45: =SUM(K46:K52) -> 0
A46: Landfill Sites | C46: 2441466.7 | D46: 0 | E46: 0 | F46: 0 | G46: 0 | H46: 0 | I46: 0 | K46: 0
A47: Waste Transfer Stations | C47: 0 | D47: 0 | E47: 0 | F47: 0 | G47: 0 | H47: 0 | I47: 0 | K47: 0
A48: Waste Processing Facilities | C48: 0 | D48: 0 | E48: 0 | F48: 0 | G48: 0 | H48: 0 | I48: 0 | K48: 0
A49: Waste Drop-off Points | C49: 0 | D49: 0 | E49: 0 | F49: 0 | G49: 0 | H49: 0 | I49: 0 | K49: 0
A50: Waste Separation Facilities | C50: 0 | D50: 0 | E50: 0 | F50: 0 | G50: 0 | H50: 0 | I50: 0 | K50: 0
A51: Electricity Generation Facilities | C51: 0 | D51: 0 | E51: 0 | F51: 0 | G51: 0 | H51: 0 | I51: 0 | K51: 0
A52: Capital Spares | C52: 0 | D52: 0 | E52: 0 | F52: 0 | G52: 0 | H52: 0 | I52: 0 | K52: 0
A53: Rail Infrastructure | C53: =SUM(C54:C62) -> 0 | D53: 0 | E53: 0 | F53: 0 | G53: 0 | H53: 0 | I53: 0 | K53: =SUM(K54:K62) -> 0
A54: Rail Lines | C54: 0 | D54: 0 | E54: 0 | F54: 0 | G54: 0 | H54: 0 | I54: 0 | K54: 0
A55: Rail Structures | C55: 0 | D55: 0 | E55: 0 | F55: 0 | G55: 0 | H55: 0 | I55: 0 | K55: 0
A56: Rail Furniture | C56: 0 | D56: 0 | E56: 0 | F56: 0 | G56: 0 | H56: 0 | I56: 0 | K56: 0
A57: Drainage Collection | C57: 0 | D57: 0 | E57: 0 | F57: 0 | G57: 0 | H57: 0 | I57: 0 | K57: 0
A58: Storm water Conveyance | C58: 0 | D58: 0 | E58: 0 | F58: 0 | G58: 0 | H58: 0 | I58: 0 | K58: 0
A59: Attenuation | C59: 0 | D59: 0 | E59: 0 | F59: 0 | G59: 0 | H59: 0 | I59: 0 | K59: 0
A60: MV Substations | C60: 0 | D60: 0 | E60: 0 | F60: 0 | G60: 0 | H60: 0 | I60: 0 | K60: 0
A61: LV Networks | C61: 0 | D61: 0 | E61: 0 | F61: 0 | G61: 0 | H61: 0 | I61: 0 | K61: 0
A62: Capital Spares | C62: 0 | D62: 0 | E62: 0 | F62: 0 | G62: 0 | H62: 0 | I62: 0 | K62: 0
A63: Coastal Infrastructure | C63: =SUM(C64:C68) -> 0 | D63: 0 | E63: 0 | F63: 0 | G63: 0 | H63: 0 | I63: 0 | K63: =SUM(K64:K68) -> 0
A64: Sand Pumps | C64: 0 | D64: 0 | E64: 0 | F64: 0 | G64: 0 | H64: 0 | I64: 0 | K64: 0
A65: Piers | C65: 0 | D65: 0 | E65: 0 | F65: 0 | G65: 0 | H65: 0 | I65: 0 | K65: 0
A66: Revetments | C66: 0 | D66: 0 | E66: 0 | F66: 0 | G66: 0 | H66: 0 | I66: 0 | K66: 0
A67: Promenades | C67: 0 | D67: 0 | E67: 0 | F67: 0 | G67: 0 | H67: 0 | I67: 0 | K67: 0
A68: Capital Spares | C68: 0 | D68: 0 | E68: 0 | F68: 0 | G68: 0 | H68: 0 | I68: 0 | K68: 0
A69: Information and Communication Infrastructure | C69: =SUM(C70:C73) -> 0 | D69: 0 | E69: 0 | F69: 0 | G69: 0 | H69: 0 | I69: 0 | K69: =SUM(K70:K73) -> 0
A70: Data Centres | I70: 0
A71: Core Layers | I71: 0
A72: Distribution Layers | I72: 0
A73: Capital Spares | I73: 0
A75: Community Assets | C75: =+C76+C99 -> 2619819.32 | D75: 2687178 | E75: 2687178 | F75: 0 | G75: 1236959.03 | H75: 2015433 | I75: 778473.97 | J75: 0.3862564372 | K75: =+K76+K99 -> 2687178
A76: Community Facilities | C76: =SUM(C77:C98) -> 2619819.32 | D76: 1159843 | E76: 1159843 | F76: 0 | G76: 1236959.03 | H76: 869922 | I76: -367037.03 | J76: -0.4219194709 | K76: =SUM(K77:K98) -> 1159843
A77: Halls | C77: 144557.57 | D77: 199243 | E77: 199243 | F77: 0 | G77: 72872.84 | H77: 149436 | I77: 76563.16 | J77: 0.5123474932 | K77: 199243
A78: Centres | C78: 2171404.98 | D78: 588466 | E78: 588466 | F78: 0 | G78: 276007.82 | H78: 441360 | I78: 165352.18 | J78: 0.3746424234 | K78: 588466
A79: Crèches | C79: 0 | D79: 0 | E79: 0 | F79: 0 | G79: 0 | H79: 0 | I79: 0 | K79: 0
A80: Clinics/Care Centres | C80: 0 | D80: 0 | E80: 0 | F80: 0 | G80: 0 | H80: 0 | I80: 0 | K80: 0
A81: Fire/Ambulance Stations | C81: 0 | D81: 0 | E81: 0 | F81: 0 | G81: 0 | H81: 0 | I81: 0 | K81: 0
A82: Testing Stations | C82: 0 | D82: 0 | E82: 0 | F82: 0 | G82: 0 | H82: 0 | I82: 0 | K82: 0
A83: Museums | C83: 0 | D83: 0 | E83: 0 | F83: 0 | G83: 0 | H83: 0 | I83: 0 | K83: 0
A84: Galleries | C84: 0 | D84: 0 | E84: 0 | F84: 0 | G84: 0 | H84: 0 | I84: 0 | K84: 0
A85: Theatres | C85: 0 | D85: 0 | E85: 0 | F85: 0 | G85: 0 | H85: 0 | I85: 0 | K85: 0
A86: Libraries | C86: 0 | D86: 0 | E86: 0 | F86: 0 | G86: 0 | H86: 0 | I86: 0 | K86: 0
A87: Cemeteries/Crematoria | C87: 0 | D87: 0 | E87: 0 | F87: 0 | G87: 0 | H87: 0 | I87: 0 | K87: 0
A88: Police | C88: 0 | D88: 0 | E88: 0 | F88: 0 | G88: 0 | H88: 0 | I88: 0 | K88: 0
A89: Purls | C89: 0 | D89: 0 | E89: 0 | F89: 0 | G89: 0 | H89: 0 | I89: 0 | K89: 0
A90: Public Open Space | C90: 4483.75 | D90: 0 | E90: 0 | F90: 0 | G90: 742825.31 | H90: 0 | I90: -742825.31 | K90: 0
A91: Nature Reserves | C91: 0 | D91: 0 | E91: 0 | F91: 0 | G91: 0 | H91: 0 | I91: 0 | K91: 0
A92: Public Ablution Facilities | C92: 20833.65 | D92: 10550 | E92: 10550 | F92: 0 | G92: 12423 | H92: 7920 | I92: -4503 | J92: -0.5685606061 | K92: 10550
A93: Markets | C93: 30762.27 | D93: 19904 | E93: 19904 | F93: 0 | G93: 15507.55 | H93: 14931 | I93: -576.55 | J93: -0.03861429241 | K93: 19904
A94: Stalls | C94: 0 | D94: 0 | E94: 0 | F94: 0 | G94: 0 | H94: 0 | I94: 0 | K94: 0
A95: Abattoirs | C95: 0 | D95: 0 | E95: 0 | F95: 0 | G95: 0 | H95: 0 | I95: 0 | K95: 0
A96: Airports | C96: 0 | D96: 0 | E96: 0 | F96: 0 | G96: 0 | H96: 0 | I96: 0 | K96: 0
A97: Taxi Ranks/Bus Terminals | C97: 247777.1 | D97: 341680 | E97: 341680 | F97: 0 | G97: 117322.51 | H97: 256275 | I97: 138952.49 | J97: 0.5422007219 | K97: 341680
A98: Capital Spares | C98: 0 | D98: 0 | E98: 0 | F98: 0 | G98: 0 | H98: 0 | I98: 0 | K98: 0
A99: Sport and Recreation Facilities | C99: =SUM(C100:C102) -> 0 | D99: 1527335 | E99: 1527335 | F99: 0 | G99: 0 | H99: 1145511 | I99: 1145511 | J99: 1 | K99: =SUM(K100:K102) -> 1527335
A100: Indoor Facilities | I100: 0
A101: Outdoor Facilities | C101: 0 | D101: 1527335 | E101: 1527335 | F101: 0 | G101: 0 | H101: 1145511 | I101: =H101-G101 -> 1145511 | J101: =IF(I101=0,"",I101/H101) -> 1 | K101: 1527335
A102: Capital Spares | I102: 0
A103: Heritage assets | C103: =SUM(C104:C108) -> 0 | D103: 0 | E103: 0 | F103: 0 | G103: 12467093.05 | H103: 0 | I103: -12467093.05 | K103: =SUM(K104:K108) -> 0
A104: Monuments | I104: 0
A105: Historic Buildings | I105: 0
A106: Works of Art | I106: 0
A107: Conservation Areas | I107: 0
A108: Other Heritage | C108: 0 | D108: 0 | E108: 0 | F108: 0 | G108: 12467093.05 | H108: 0 | I108: -12467093.05 | K108: 0
I109: 0
A110: Investment properties | C110: =+C111+C114 -> 43303.67 | D110: 0 | E110: 0 | F110: 0 | G110: 21829.8 | H110: 0 | I110: -21829.8 | K110: =+K111+K114 -> 0
A111: Revenue Generating | C111: =SUM(C112:C113) -> 43303.67 | D111: 0 | E111: 0 | F111: 0 | G111: 21829.8 | H111: 0 | I111: -21829.8 | K111: =SUM(K112:K113) -> 0
A112: Improved Property | C112: 43303.67 | D112: 0 | E112: 0 | F112: 0 | G112: 21829.8 | H112: 0 | I112: -21829.8 | K112: 0
A113: Unimproved Property | C113: 0 | D113: 0 | E113: 0 | F113: 0 | G113: 0 | H113: 0 | I113: 0 | K113: 0
A114: Non-revenue Generating | C114: =SUM(C115:C116) -> 0 | D114: 0 | E114: 0 | F114: 0 | G114: 0 | H114: 0 | I114: 0 | K114: =SUM(K115:K116) -> 0
A115: Improved Property | I115: 0
A116: Unimproved Property | C116: 0 | D116: 0 | E116: 0 | F116: 0 | G116: 0 | H116: 0 | I116: =H116-G116 -> 0 | J116: =IF(I116=0,"",I116/H116) ->  | K116: 0
A117: Other assets | C117: =+C118+C130 -> 1615511.28 | D117: 1471680 | E117: 1471680 | F117: 0 | G117: 807053.43 | H117: 1103769 | I117: 296715.57 | J117: 0.268820351 | K117: =+K118+K130 -> 1471680
A118: Operational Buildings | C118: =SUM(C119:C129) -> 1615511.28 | D118: 1471680 | E118: 1471680 | F118: 0 | G118: 807053.43 | H118: 1103769 | I118: 296715.57 | J118: 0.268820351 | K118: =SUM(K119:K129) -> 1471680
A119: Municipal Offices | C119: 1615511.28 | D119: 1471680 | E119: 1471680 | F119: 0 | G119: 807053.43 | H119: 1103769 | I119: 296715.57 | J119: 0.268820351 | K119: 1471680
A120: Pay/Enquiry Points | C120: 0 | D120: 0 | E120: 0 | F120: 0 | G120: 0 | H120: 0 | I120: 0 | K120: 0
A121: Building Plan Offices | C121: 0 | D121: 0 | E121: 0 | F121: 0 | G121: 0 | H121: 0 | I121: 0 | K121: 0
A122: Workshops | C122: 0 | D122: 0 | E122: 0 | F122: 0 | G122: 0 | H122: 0 | I122: 0 | K122: 0
A123: Yards | C123: 0 | D123: 0 | E123: 0 | F123: 0 | G123: 0 | H123: 0 | I123: 0 | K123: 0
A124: Stores | C124: 0 | D124: 0 | E124: 0 | F124: 0 | G124: 0 | H124: 0 | I124: 0 | K124: 0
A125: Laboratories | C125: 0 | D125: 0 | E125: 0 | F125: 0 | G125: 0 | H125: 0 | I125: 0 | K125: 0
A126: Training Centres | C126: 0 | D126: 0 | E126: 0 | F126: 0 | G126: 0 | H126: 0 | I126: 0 | K126: 0
A127: Manufacturing Plant | C127: 0 | D127: 0 | E127: 0 | F127: 0 | G127: 0 | H127: 0 | I127: 0 | K127: 0
A128: Depots | C128: 0 | D128: 0 | E128: 0 | F128: 0 | G128: 0 | H128: 0 | I128: 0 | K128: 0
A129: Capital Spares | C129: 0 | D129: 0 | E129: 0 | F129: 0 | G129: 0 | H129: 0 | I129: 0 | K129: 0
A130: Housing | C130: =SUM(C131:C133) -> 0 | D130: 0 | E130: 0 | F130: 0 | G130: 0 | H130: 0 | I130: 0 | K130: =SUM(K131:K133) -> 0
A131: Staff Housing | C131: 0 | D131: 0 | E131: 0 | F131: 0 | G131: 0 | H131: 0 | I131: 0 | K131: 0
A132: Social Housing | C132: 0 | D132: 0 | E132: 0 | F132: 0 | G132: 0 | H132: 0 | I132: 0 | K132: 0
A133: Capital Spares | C133: 0 | D133: 0 | E133: 0 | F133: 0 | G133: 0 | H133: 0 | I133: 0 | K133: 0
A135: Biological or Cultivated Assets | C135: =SUM(C136:C136) -> 0 | D135: 0 | E135: 0 | F135: 0 | G135: 0 | H135: 0 | I135: =H135-G135 -> 0 | K135: =SUM(K136) -> 0
A136: Biological or Cultivated Assets | I136: =H136-G136 -> 0
A138: Intangible Assets | C138: =SUM(C139:C140) -> 155130.5 | D138: 840356 | E138: 841324 | F138: 0 | G138: 55165.04 | H138: 630684.2 | I138: =H138-G138 -> 575519.16 | J138: 0.9125314381 | K138: =SUM(K139:K140) -> 841324
A139: Servitudes | C139: 0 | D139: 505727 | E139: 505727 | F139: 0 | G139: 0 | H139: 379296 | I139: 379296 | J139: 1 | K139: 505727
A140: Licences and Rights | C140: =SUM(C141:C146) -> 155130.5 | D140: 334629 | E140: 335597 | F140: 0 | G140: 55165.04 | H140: 251388.2 | I140: 196223.16 | J140: 0.7805583556 | K140: =SUM(K141:K146) -> 335597
A141: Water Rights | I141: 0
A142: Effluent Licenses | I142: 0
A143: Solid Waste Licenses | I143: 0
A144: Computer Software and Applications | C144: 155130.5 | D144: 334629 | E144: 335597 | F144: 0 | G144: 55165.04 | H144: 251388.2 | I144: 196223.16 | J144: 0.7805583556 | K144: 335597
A145: Load Settlement Software Applications | I145: 0
A146: Unspecified | C146: 0 | D146: 0 | E146: 0 | F146: 0 | G146: 0 | H146: 0 | I146: 0 | K146: 0
A148: Computer Equipment | C148: =SUM(C149:C149) -> 783900.57 | D148: 969257 | E148: 969257 | F148: 0 | G148: 400995.43 | H148: 726993 | I148: =H148-G148 -> 325997.57 | J148: =IF(I148=0,"",I148/H148) -> 0.448419132 | K148: =SUM(K149) -> 969257
A149: Computer Equipment | C149: 783900.57 | D149: 969257 | E149: 969257 | F149: 0 | G149: 400995.43 | H149: 726993 | I149: =H149-G149 -> 325997.57 | J149: =IF(I149=0,"",I149/H149) -> 0.448419132 | K149: 969257
A151: Furniture and Office Equipment | C151: =SUM(C152:C152) -> 463577.79 | D151: 2252031 | E151: 2252031 | F151: 0 | G151: 305883.41 | H151: 1689111 | I151: =H151-G151 -> 1383227.59 | J151: =IF(I151=0,"",I151/H151) -> 0.8189086389 | K151: =SUM(K152) -> 2252031
A152: Furniture and Office Equipment | C152: 463577.79 | D152: 2252031 | E152: 2252031 | F152: 0 | G152: 305883.41 | H152: 1689111 | I152: =H152-G152 -> 1383227.59 | J152: =IF(I152=0,"",I152/H152) -> 0.8189086389 | K152: 2252031
J153: =IF(I153=0,"",I153/H153) -> 
A154: Machinery and Equipment | C154: =SUM(C155:C155) -> 673934.56 | D154: 1674425 | E154: 1674425 | F154: 0 | G154: 399873.14 | H154: 1255860 | I154: =H154-G154 -> 855986.86 | J154: =IF(I154=0,"",I154/H154) -> 0.6815941745 | K154: =SUM(K155) -> 1674425
A155: Machinery and Equipment | C155: 673934.56 | D155: 1674425 | E155: 1674425 | F155: 0 | G155: 399873.14 | H155: 1255860 | I155: =H155-G155 -> 855986.86 | J155: =IF(I155=0,"",I155/H155) -> 0.6815941745 | K155: 1674425
A157: Transport Assets | C157: =SUM(C158:C158) -> 1722046.38 | D157: 2187564 | E157: 4663535 | F157: 0 | G157: 927599.66 | H157: 2631079.4 | I157: =H157-G157 -> 1703479.74 | J157: =IF(I157=0,"",I157/H157) -> 0.6474452044 | K157: =SUM(K158) -> 4663535
A158: Transport Assets | C158: 1722046.38 | D158: 2187564 | E158: 4663535 | F158: 0 | G158: 927599.66 | H158: 2631079.4 | I158: =H158-G158 -> 1703479.74 | J158: =IF(I158=0,"",I158/H158) -> 0.6474452044 | K158: 4663535
A160: Land | C160: =SUM(C161:C161) -> 0 | D160: 0 | E160: 0 | F160: 0 | G160: 0 | H160: 0 | I160: =H160-G160 -> 0 | J160: =IF(I160=0,"",I160/H160) ->  | K160: =SUM(K161) -> 0
A161: Land | C161: 0 | D161: 0 | E161: 0 | F161: 0 | G161: 0 | H161: 0 | I161: =H161-G161 -> 0 | J161: =IF(I161=0,"",I161/H161) ->  | K161: 0
A163: Zoo's, Marine and Non-biological Animals | C163: =SUM(C164:C164) -> 0 | D163: 0 | E163: 0 | F163: 0 | G163: 0 | H163: 0 | I163: =H163-G163 -> 0 | J163: =IF(I163=0,"",I163/H163) ->  | K163: =SUM(K164) -> 0
A164: Zoo's, Marine and Non-biological Animals | C164: 0 | D164: 0 | E164: 0 | F164: 0 | G164: 0 | H164: 0 | I164: =H164-G164 -> 0 | J164: =IF(I164=0,"",I164/H164) ->  | K164: 0
J165: =IF(I165=0,"",I165/H165) -> 
A166: Living resources | C166: =+C167+C170 -> 0 | D166: 0 | E166: 0 | F166: 0 | G166: 0 | H166: 0 | I166: =H166-G166 -> 0 | K166: =+K167+K170 -> 0
A167: Mature | C167: =+C168+C169 -> 0 | D167: 0 | E167: 0 | F167: 0 | G167: 0 | H167: 0 | I167: 0 | K167: =+K168+K169 -> 0
A168: Policing and Protection | I168: 0
A169: Zoological plants and animals | I169: 0
A170: Immature | C170: =+C171+C172 -> 0 | D170: 0 | E170: 0 | F170: 0 | G170: 0 | H170: 0 | I170: 0 | K170: =+K171+K172 -> 0
A171: Policing and Protection | I171: 0
A172: Zoological plants and animals | I172: 0
A173: Total Depreciation | B173: 1 | C173: =C7+C75+C103+C110+C117+C135+C138+C148+C151+C154+C157+C160+C163+C166 -> 24411644.82 | D173: 21656256 | E173: 24133195 | F173: 0 | G173: 23709323.53 | H173: 17233282.6 | I173: =H173-G173 -> -6476040.93 | J173: =IF(I173=0,"",I173/H173) -> -0.3757868469 | K173: =K7+K75+K103+K110+K117+K135+K138+K148+K151+K154+K157+K160+K163+K166 -> 24133195

Sheet SC13e
A1: =muni& " - "&S71Se& " - "&Head57 -> LIM353 Molemole - Supporting Table SC13e Monthly Budget Statement - capital expenditure on upgrading of existing assets by asset class - Q3 Third Quarter
A2: =desc -> Description | B2: =head27 -> Ref | C2: =Head1 -> 2024/25 | D2: =Head2 -> Budget Year 2025/26
C3: =Head5 -> Audited Outcome | D3: =Head6 -> Original Budget | E3: =Head7 -> Adjusted Budget | F3: =Head38 -> Monthly actual | G3: =Head39 -> YearTD actual | H3: =Head40 -> YearTD budget | I3: =Head41 -> YTD variance | J3: =Head41 -> YTD variance | K3: =Head8 -> Full Year Forecast
A4: R thousands | B4: 1 | J4: %
A5: Capital expenditure on upgrading of existing assets by Asset Class/Sub-class
A7: Infrastructure | C7: =C8+C13+C17+C27+C38+C45+C53+C63+C69 -> 1463370.5 | D7: 0 | E7: 0 | F7: 0 | G7: 0 | H7: 0 | I7: =H7-G7 -> 0 | J7: =IF(I7=0,"",I7/H7) ->  | K7: =K8+K13+K17+K27+K38+K45+K53+K63+K69 -> 0
A8: Roads Infrastructure | C8: =SUM(C9:C12) -> 0 | D8: 0 | E8: 0 | F8: 0 | G8: 0 | H8: 0 | I8: 0 | K8: =SUM(K9:K12) -> 0
A9: Roads | I9: 0
A10: Road Structures | I10: 0
A11: Road Furniture | I11: 0
A12: Capital Spares | I12: 0
A13: Storm water Infrastructure | C13: =SUM(C14:C16) -> 0 | D13: 0 | E13: 0 | F13: 0 | G13: 0 | H13: 0 | I13: 0 | K13: =SUM(K14:K16) -> 0
A14: Drainage Collection | I14: 0
A15: Storm water Conveyance | I15: 0
A16: Attenuation | I16: 0
A17: Electrical Infrastructure | C17: =SUM(C18:C26) -> 0 | D17: 0 | E17: 0 | F17: 0 | G17: 0 | H17: 0 | I17: 0 | K17: =SUM(K18:K26) -> 0
A18: Power Plants | I18: 0
A19: HV Substations | I19: 0
A20: HV Switching Station | I20: 0
A21: HV Transmission Conductors | I21: 0
A22: MV Substations | I22: 0
A23: MV Switching Stations | I23: 0
A24: MV Networks | I24: 0
A25: LV Networks | I25: 0
A26: Capital Spares | I26: 0
A27: Water Supply Infrastructure | C27: =SUM(C28:C37) -> 0 | D27: 0 | E27: 0 | F27: 0 | G27: 0 | H27: 0 | I27: 0 | K27: =SUM(K28:K37) -> 0
A28: Dams and Weirs | I28: 0
A29: Boreholes | I29: 0
A30: Reservoirs | I30: 0
A31: Pump Stations | I31: 0
A32: Water Treatment Works | I32: 0
A33: Bulk Mains | I33: 0
A34: Distribution | I34: 0
A35: Distribution Points | I35: 0
A36: PRV Stations | I36: 0
A37: Capital Spares | I37: 0
A38: Sanitation Infrastructure | C38: =SUM(C39:C44) -> 0 | D38: 0 | E38: 0 | F38: 0 | G38: 0 | H38: 0 | I38: 0 | K38: =SUM(K39:K44) -> 0
A39: Pump Station | I39: 0
A40: Reticulation | I40: 0
A41: Waste Water Treatment Works | I41: 0
A42: Outfall Sewers | I42: 0
A43: Toilet Facilities | I43: 0
A44: Capital Spares | I44: 0
A45: Solid Waste Infrastructure | C45: =SUM(C46:C52) -> 1463370.5 | D45: 0 | E45: 0 | F45: 0 | G45: 0 | H45: 0 | I45: 0 | K45: =SUM(K46:K52) -> 0
A46: Landfill Sites | C46: 1463370.5 | D46: 0 | E46: 0 | F46: 0 | G46: 0 | H46: 0 | I46: 0 | K46: 0
A47: Waste Transfer Stations | I47: 0
A48: Waste Processing Facilities | I48: 0
A49: Waste Drop-off Points | I49: 0
A50: Waste Separation Facilities | I50: 0
A51: Electricity Generation Facilities | I51: 0
A52: Capital Spares | I52: 0
A53: Rail Infrastructure | C53: =SUM(C54:C62) -> 0 | D53: 0 | E53: 0 | F53: 0 | G53: 0 | H53: 0 | I53: 0 | K53: =SUM(K54:K62) -> 0
A54: Rail Lines | I54: 0
A55: Rail Structures | I55: 0
A56: Rail Furniture | I56: 0
A57: Drainage Collection | I57: 0
A58: Storm water Conveyance | I58: 0
A59: Attenuation | I59: 0
A60: MV Substations | I60: 0
A61: LV Networks | I61: 0
A62: Capital Spares | I62: 0
A63: Coastal Infrastructure | C63: =SUM(C64:C68) -> 0 | D63: 0 | E63: 0 | F63: 0 | G63: 0 | H63: 0 | I63: 0 | K63: =SUM(K64:K68) -> 0
A64: Sand Pumps | I64: 0
A65: Piers | I65: 0
A66: Revetments | I66: 0
A67: Promenades | I67: 0
A68: Capital Spares | I68: 0
A69: Information and Communication Infrastructure | C69: =SUM(C70:C73) -> 0 | D69: 0 | E69: 0 | F69: 0 | G69: 0 | H69: 0 | I69: 0 | K69: =SUM(K70:K73) -> 0
A70: Data Centres | I70: 0
A71: Core Layers | I71: 0
A72: Distribution Layers | I72: 0
A73: Capital Spares | I73: 0
A75: Community Assets | C75: =+C76+C99 -> 0 | D75: 558800 | E75: 0 | F75: 0 | G75: 0 | H75: 195583 | I75: 195583 | J75: 1 | K75: =+K76+K99 -> 0
A76: Community Facilities | C76: =SUM(C77:C98) -> 0 | D76: 0 | E76: 0 | F76: 0 | G76: 0 | H76: 0 | I76: 0 | K76: =SUM(K77:K98) -> 0
A77: Halls | I77: 0
A78: Centres | I78: 0
A79: Crèches | I79: 0
A80: Clinics/Care Centres | I80: 0
A81: Fire/Ambulance Stations | I81: 0
A82: Testing Stations | I82: 0
A83: Museums | I83: 0
A84: Galleries | I84: 0
A85: Theatres | I85: 0
A86: Libraries | I86: 0
A87: Cemeteries/Crematoria | I87: 0
A88: Police | I88: 0
A89: Purls | I89: 0
A90: Public Open Space | I90: 0
A91: Nature Reserves | I91: 0
A92: Public Ablution Facilities | I92: 0
A93: Markets | I93: 0
A94: Stalls | I94: 0
A95: Abattoirs | I95: 0
A96: Airports | I96: 0
A97: Taxi Ranks/Bus Terminals | I97: 0
A98: Capital Spares | I98: 0
A99: Sport and Recreation Facilities | C99: =SUM(C100:C102) -> 0 | D99: 558800 | E99: 0 | F99: 0 | G99: 0 | H99: 195583 | I99: 195583 | J99: 1 | K99: =SUM(K100:K102) -> 0
A100: Indoor Facilities | I100: 0
A101: Outdoor Facilities | C101: 0 | D101: 558800 | E101: 0 | F101: 0 | G101: 0 | H101: 195583 | I101: =H101-G101 -> 195583 | J101: =IF(I101=0,"",I101/H101) -> 1 | K101: 0
A102: Capital Spares | I102: 0
A103: Heritage assets | C103: =SUM(C104:C108) -> 0 | D103: 0 | E103: 0 | F103: 0 | G103: 0 | H103: 0 | I103: 0 | K103: =SUM(K104:K108) -> 0
A104: Monuments | I104: 0
A105: Historic Buildings | I105: 0
A106: Works of Art | I106: 0
A107: Conservation Areas | I107: 0
A108: Other Heritage | I108: 0
I109: 0
A110: Investment properties | C110: =+C111+C114 -> 0 | D110: 0 | E110: 0 | F110: 0 | G110: 0 | H110: 0 | I110: 0 | K110: =+K111+K114 -> 0
A111: Revenue Generating | C111: =SUM(C112:C113) -> 0 | D111: 0 | E111: 0 | F111: 0 | G111: 0 | H111: 0 | I111: 0 | K111: =SUM(K112:K113) -> 0
A112: Improved Property | I112: 0
A113: Unimproved Property | I113: 0
A114: Non-revenue Generating | C114: =SUM(C115:C116) -> 0 | D114: 0 | E114: 0 | F114: 0 | G114: 0 | H114: 0 | I114: 0 | K114: =SUM(K115:K116) -> 0
A115: Improved Property | I115: 0
A116: Unimproved Property | I116: =H116-G116 -> 0 | J116: =IF(I116=0,"",I116/H116) -> 
A117: Other assets | C117: =+C118+C130 -> 0 | D117: 0 | E117: 0 | F117: 0 | G117: 0 | H117: 0 | I117: 0 | K117: =+K118+K130 -> 0
A118: Operational Buildings | C118: =SUM(C119:C129) -> 0 | D118: 0 | E118: 0 | F118: 0 | G118: 0 | H118: 0 | I118: 0 | K118: =SUM(K119:K129) -> 0
A119: Municipal Offices | I119: 0
A120: Pay/Enquiry Points | I120: 0
A121: Building Plan Offices | I121: 0
A122: Workshops | I122: 0
A123: Yards | I123: 0
A124: Stores | I124: 0
A125: Laboratories | I125: 0
A126: Training Centres | I126: 0
A127: Manufacturing Plant | I127: 0
A128: Depots | I128: 0
A129: Capital Spares | I129: 0
A130: Housing | C130: =SUM(C131:C133) -> 0 | D130: 0 | E130: 0 | F130: 0 | G130: 0 | H130: 0 | I130: 0 | K130: =SUM(K131:K133) -> 0
A131: Staff Housing | I131: 0
A132: Social Housing | I132: 0
A133: Capital Spares | I133: 0
A135: Biological or Cultivated Assets | C135: =SUM(C136:C136) -> 0 | D135: 0 | E135: 0 | F135: 0 | G135: 0 | H135: 0 | I135: =H135-G135 -> 0 | K135: =SUM(K136) -> 0
A136: Biological or Cultivated Assets | I136: =H136-G136 -> 0
J137: =IF(I137=0,"",I137/H137) -> 
A138: Intangible Assets | C138: =SUM(C139:C140) -> 0 | D138: 0 | E138: 0 | F138: 0 | G138: 0 | H138: 0 | I138: =H138-G138 -> 0 | K138: =SUM(K139:K140) -> 0
A139: Servitudes | I139: 0
A140: Licences and Rights | C140: =SUM(C141:C146) -> 0 | D140: 0 | E140: 0 | F140: 0 | G140: 0 | H140: 0 | I140: 0 | K140: =SUM(K141:K146) -> 0
A141: Water Rights | I141: 0
A142: Effluent Licenses | I142: 0
A143: Solid Waste Licenses | I143: 0
A144: Computer Software and Applications | I144: 0
A145: Load Settlement Software Applications | I145: 0
A146: Unspecified | I146: 0
A148: Computer Equipment | C148: =SUM(C149:C149) -> 0 | D148: 0 | E148: 0 | F148: 0 | G148: 0 | H148: 0 | I148: =H148-G148 -> 0 | J148: =IF(I148=0,"",I148/H148) ->  | K148: =SUM(K149) -> 0
A149: Computer Equipment | I149: =H149-G149 -> 0 | J149: =IF(I149=0,"",I149/H149) -> 
A151: Furniture and Office Equipment | C151: =SUM(C152:C152) -> 0 | D151: 0 | E151: 0 | F151: 0 | G151: 0 | H151: 0 | I151: =H151-G151 -> 0 | J151: =IF(I151=0,"",I151/H151) ->  | K151: =SUM(K152) -> 0
A152: Furniture and Office Equipment | I152: =H152-G152 -> 0 | J152: =IF(I152=0,"",I152/H152) -> 
J153: =IF(I153=0,"",I153/H153) -> 
A154: Machinery and Equipment | C154: =SUM(C155:C155) -> 21200 | D154: 0 | E154: 60000 | F154: 0 | G154: 0 | H154: 24000 | I154: =H154-G154 -> 24000 | J154: =IF(I154=0,"",I154/H154) -> 1 | K154: =SUM(K155) -> 60000
A155: Machinery and Equipment | C155: 21200 | D155: 0 | E155: 60000 | F155: 0 | G155: 0 | H155: 24000 | I155: =H155-G155 -> 24000 | J155: =IF(I155=0,"",I155/H155) -> 1 | K155: 60000
A157: Transport Assets | C157: =SUM(C158:C158) -> 0 | D157: 0 | E157: 0 | F157: 0 | G157: 0 | H157: 0 | I157: =H157-G157 -> 0 | J157: =IF(I157=0,"",I157/H157) ->  | K157: =SUM(K158) -> 0
A158: Transport Assets | I158: =H158-G158 -> 0 | J158: =IF(I158=0,"",I158/H158) -> 
A160: Land | C160: =SUM(C161:C161) -> 0 | D160: 0 | E160: 0 | F160: 0 | G160: 0 | H160: 0 | I160: =H160-G160 -> 0 | J160: =IF(I160=0,"",I160/H160) ->  | K160: =SUM(K161) -> 0
A161: Land | I161: =H161-G161 -> 0 | J161: =IF(I161=0,"",I161/H161) -> 
J162: .
A163: Zoo's, Marine and Non-biological Animals | C163: =SUM(C164:C164) -> 0 | D163: 0 | E163: 0 | F163: 0 | G163: 0 | H163: 0 | I163: =H163-G163 -> 0 | J163: =IF(I163=0,"",I163/H163) ->  | K163: =SUM(K164) -> 0
A164: Zoo's, Marine and Non-biological Animals | I164: =H164-G164 -> 0
A166: Living resources | C166: =+C167+C170 -> 0 | D166: 0 | E166: 0 | F166: 0 | G166: 0 | H166: 0 | I166: =H166-G166 -> 0 | K166: =+K167+K170 -> 0
A167: Mature | C167: =+C168+C169 -> 0 | D167: 0 | E167: 0 | F167: 0 | G167: 0 | H167: 0 | I167: 0 | K167: =+K168+K169 -> 0
A168: Policing and Protection | I168: 0
A169: Zoological plants and animals | I169: 0
A170: Immature | C170: =+C171+C172 -> 0 | D170: =+D171+D172 -> 0 | E170: 0 | F170: 0 | G170: 0 | H170: 0 | I170: 0 | K170: =+K171+K172 -> 0
A171: Policing and Protection | I171: 0
A172: Zoological plants and animals | I172: 0
A173: Total Capital Expenditure on upgrading of existing assets | B173: 1 | C173: =C7+C75+C103+C110+C117+C135+C138+C148+C151+C154+C157+C160+C163+C166 -> 1484570.5 | D173: 558800 | E173: 60000 | F173: 0 | G173: 0 | H173: 219583 | I173: =H173-G173 -> 219583 | J173: =IF(I173=0,"",I173/H173) -> 1 | K173: =K7+K75+K103+K110+K117+K135+K138+K148+K151+K154+K157+K160+K163+K166 -> 60000
A175: =head27a -> References
A176: 1. Total Capital Expenditure on new assets (SC13a) plus Total Capital Expenditure on renewal of existing assets (SC13b) plus Total Capital Expenditure on upgrading of existing assets (SC13e) must reconcile to total capital expenditure in Table C5

Sheet SC71charts
A1: ='Template names'!B102 -> Chart C1 2025/26 Capital Expenditure Monthly Trend: actual v target
A2: Month | B2: ='SC12'!B2 -> 2024/25 | C2: ='SC12'!C3 -> Original Budget | D2: ='SC12'!D3 -> Adjusted Budget | E2: ='SC12'!E3 -> Monthly actual
A3: =LEFT('SC12'!A6,3) -> Jul | B3: ='SC12'!B6 -> 0 | C3: ='SC12'!C6 -> 5366405 | D3: ='SC12'!D6 -> 5366405 | E3: ='SC12'!E6 -> 2763197.56
A4: =LEFT('SC12'!A7,3) -> Aug | B4: ='SC12'!B7 -> 1448489.35 | C4: ='SC12'!C7 -> 5366405 | D4: ='SC12'!D7 -> 5366405 | E4: ='SC12'!E7 -> 1954327.73
A5: =LEFT('SC12'!A8,3) -> Sep | B5: ='SC12'!B8 -> 2352886.3 | C5: ='SC12'!C8 -> 5366405 | D5: ='SC12'!D8 -> 5366405 | E5: ='SC12'!E8 -> 2016665.24
A6: =LEFT('SC12'!A9,3) -> Oct | B6: ='SC12'!B9 -> 3737538.1 | C6: ='SC12'!C9 -> 5366405 | D6: ='SC12'!D9 -> 5366405 | E6: ='SC12'!E9 -> 3591990.8
A7: =LEFT('SC12'!A10,3) -> Nov | B7: ='SC12'!B10 -> 5391676.15 | C7: ='SC12'!C10 -> 5366405 | D7: ='SC12'!D10 -> 5366405 | E7: ='SC12'!E10 -> 3843230.48
A8: =LEFT('SC12'!A11,3) -> Dec | B8: ='SC12'!B11 -> 14131727.09 | C8: ='SC12'!C11 -> 5366405 | D8: ='SC12'!D11 -> 5366405 | E8: ='SC12'!E11 -> 4433521.51
A9: =LEFT('SC12'!A12,3) -> Jan | B9: ='SC12'!B12 -> 2785465.22 | C9: ='SC12'!C12 -> 5366405 | D9: ='SC12'!D12 -> 5366405 | E9: ='SC12'!E12 -> 1594282.5
A10: =LEFT('SC12'!A13,3) -> Feb | B10: ='SC12'!B13 -> 6699599.03 | C10: ='SC12'!C13 -> 4142445 | D10: ='SC12'!D13 -> 4142445 | E10: ='SC12'!E13 -> 513610
A11: =LEFT('SC12'!A14,3) -> Mar | B11: ='SC12'!B14 -> 948191.1 | C11: ='SC12'!C14 -> 4142445 | D11: ='SC12'!D14 -> 4142445 | E11: ='SC12'!E14 -> 14105735.5
A12: =LEFT('SC12'!A15,3) -> Apr | B12: ='SC12'!B15 -> 7053021.58 | C12: ='SC12'!C15 -> 4142445 | D12: ='SC12'!D15 -> 4142445 | E12: ='SC12'!E15 -> 0
A13: =LEFT('SC12'!A16,3) -> May | B13: ='SC12'!B16 -> 3110574 | C13: ='SC12'!C16 -> 4142445 | D13: ='SC12'!D16 -> 4142445 | E13: ='SC12'!E16 -> 0
A14: =LEFT('SC12'!A17,3) -> Jun | B14: ='SC12'!B17 -> 4024671.57 | C14: ='SC12'!C17 -> 4142385 | D14: ='SC12'!D17 -> 4142385 | E14: ='SC12'!E17 -> 0
A26: ='Template names'!B103 -> Chart C2 2025/26 Capital Expenditure: YTD actual v YTD target
A27: Month | B27: ='SC12'!F3 -> YearTD actual | C27: ='SC12'!G3 -> YearTD budget
A28: =LEFT('SC12'!A6,3) -> Jul | B28: ='SC12'!F6 -> 2763197.56 | C28: ='SC12'!G6 -> 5366405
A29: =LEFT('SC12'!A7,3) -> Aug | B29: ='SC12'!F7 -> 1954327.73 | C29: ='SC12'!G7 -> 10732810
A30: =LEFT('SC12'!A8,3) -> Sep | B30: ='SC12'!F8 -> 2016665.24 | C30: ='SC12'!G8 -> 16099215
A31: =LEFT('SC12'!A9,3) -> Oct | B31: ='SC12'!F9 -> 3591990.8 | C31: ='SC12'!G9 -> 21465620
A32: =LEFT('SC12'!A10,3) -> Nov | B32: ='SC12'!F10 -> 3843230.48 | C32: ='SC12'!G10 -> 26832025
A33: =LEFT('SC12'!A11,3) -> Dec | B33: ='SC12'!F11 -> 4433521.51 | C33: ='SC12'!G11 -> 32198430
A34: =LEFT('SC12'!A12,3) -> Jan | B34: ='SC12'!F12 -> 1594282.5 | C34: ='SC12'!G12 -> 37564835
A35: =LEFT('SC12'!A13,3) -> Feb | B35: ='SC12'!F13 -> 513610 | C35: ='SC12'!G13 -> 41707280
A36: =LEFT('SC12'!A14,3) -> Mar | B36: ='SC12'!F14 -> 14105735.5 | C36: ='SC12'!G14 -> 45849725
A37: =LEFT('SC12'!A15,3) -> Apr | B37: ='SC12'!F15 -> 0 | C37: ='SC12'!G15 -> 49992170
A38: =LEFT('SC12'!A16,3) -> May | B38: ='SC12'!F16 -> 0 | C38: ='SC12'!G16 -> 54134615
A39: =LEFT('SC12'!A17,3) -> Jun | B39: ='SC12'!F17 -> 0 | C39: ='SC12'!G17 -> 58277000
A51: ='Template names'!B104 -> Chart C3 Aged Consumer Debtors Analysis
B52: ='SC3'!C3 -> 0-30 Days | C52: ='SC3'!D3 -> 31-60 Days | D52: ='SC3'!E3 -> 61-90 Days | E52: ='SC3'!F3 -> 91-120 Days | F52: ='SC3'!G3 -> 121-150 Dys | G52: ='SC3'!H3 -> 151-180 Dys | H52: ='SC3'!I3 -> 181 Dys-1 Yr | I52: ='SC3'!J3 -> Over 1Yr
A53: =Head2 -> Budget Year 2025/26 | B53: ='SC3'!C14 -> 6064230 | C53: ='SC3'!D14 -> 8527872 | D53: ='SC3'!E14 -> 685388 | E53: ='SC3'!F14 -> 154330577 | F53: ='SC3'!G14 -> 0 | G53: ='SC3'!H14 -> 0 | H53: ='SC3'!I14 -> 0 | I53: ='SC3'!J14 -> 0
A54: =Head1 -> 2024/25 | B54: ='SC3'!C15 -> 913448 | C54: ='SC3'!D15 -> 3935239 | D54: ='SC3'!E15 -> 876807 | E54: ='SC3'!F15 -> 159302832 | F54: ='SC3'!G15 -> 0 | G54: ='SC3'!H15 -> 0 | H54: ='SC3'!I15 -> 0 | I54: ='SC3'!J15 -> 0
A76: ='Template names'!B105 -> Chart C4 Consumer Debtors (total by Debtor Customer Category)
B77: =Head1 -> 2024/25 | C77: =Head2 -> Budget Year 2025/26
A78: ='SC3'!A17 -> Organs of State | B78: =C78*0.97 -> 39959840.64 | C78: ='SC3'!K17 -> 41195712
A79: ='SC3'!A18 -> Commercial | B79: =C79*0.97 -> 9451933.17 | C79: ='SC3'!K18 -> 9744261
A80: ='SC3'!A19 -> Households | B80: =C80*0.97 -> 43176140.45 | C80: ='SC3'!K19 -> 44511485
A81: ='SC3'!A20 -> Other | B81: =C81*0.97 -> 71931910.73 | C81: ='SC3'!K20 -> 74156609
A101: ='Template names'!B106 -> Chart C5 Aged Creditors Analysis
B102: ='SC4'!A6 -> Bulk Electricity | C102: ='SC4'!A7 -> Bulk Water | D102: ='SC4'!A8 -> PAYE deductions | E102: ='SC4'!A9 -> VAT (output less input) | F102: ='SC4'!A10 -> Pensions / Retirement deductions | G102: ='SC4'!A11 -> Loan repayments | H102: ='SC4'!A12 -> Trade Creditors | I102: ='SC4'!A13 -> Auditor General | J102: ='SC4'!A14 -> Other
A103: =A54 -> 2024/25 | B103: ='SC4'!L6 -> 0 | C103: ='SC4'!L7 -> 0 | D103: ='SC4'!L8 -> 0 | E103: ='SC4'!L9 -> 0 | F103: ='SC4'!L10 -> 0 | G103: ='SC4'!L11 -> 0 | H103: ='SC4'!L12 -> 0 | I103: ='SC4'!L13 -> 0 | J103: ='SC4'!L14 -> 0
A104: =A53 -> Budget Year 2025/26 | B104: ='SC4'!K6 -> 0 | C104: ='SC4'!K7 -> 0 | D104: ='SC4'!K8 -> 0 | E104: ='SC4'!K9 -> 0 | F104: ='SC4'!K10 -> 0 | G104: ='SC4'!K11 -> 0 | H104: ='SC4'!K12 -> 0 | I104: ='SC4'!K13 -> 0 | J104: ='SC4'!K14 -> 73050
